Workbook

Sheet Teams
A1: seed | C1: Division | D1: Name | E1: Team Code | F1: Paid Amount | G1: Club Name | H1: Club Day Phone | I1: Club Night Phone | J1: Club Email
A2: 1 | C2: 12-13 Power | D2: C1VB 13 Power Grvl | E2: fj3crone1pm | F2: 395 | G2: Carolina One | H2: 864-404-1963 | I2: 864-404-1963 | J2: kim.christman@carolinaonevolleyball.com | M2: gkrieger@andersonuniversity.edu | N2: kim.christman@carolinaonevolleyball.com | O2: 12-13 Power | P2: Upward Stars 12 Candi | Q2: fj2upwrd2pm | R2: 395 | S2: Upward Stars | T2: 864-949-5839 | U2: 864-909-3196 | V2: chelle@upward.org
A3: 2 | C3: 12-13 Power | D3: Low Country 13 Open | E3: fj3lowco1pm | F3: 395 | G3: Low Country Volleyball Club | H3: 843-705-5293 | I3: 843-442-5083 | J3: spiker149@hargray.com | M3: michaeldixon56@gmail.com | N3: spiker149@hargray.com | O3: 12-13 Power | P3: Upward Stars 13 Becky | Q3: fj3upwrd2pm | R3: 395 | S3: Upward Stars | T3: 864-949-5839 | U3: 864-909-3196 | V3: chelle@upward.org
A4: 3 | C4: 12-13 Power | D4: Upward Stars 13 Becky | E4: fj3upwrd2pm | F4: 395 | G4: Upward Stars | H4: 864-949-5839 | I4: 864-909-3196 | J4: chelle@upward.org | M4: magnumvolleyball@gmail.com | N4: chelle@upward.org | O4: 12-13 Power | P4: Upward Stars 13 BrittanyL | Q4: fj3upwrd3pm | R4: 395 | S4: Upward Stars | T4: 864-949-5839 | U4: 864-909-3196 | V4: chelle@upward.org
A5: 4 | C5: 12-13 Power | D5: Vision 13 National | E5: fj3vison1pm | F5: 200 | G5: Vision | H5: 9517433438 | I5: 9517433438 | J5: gkrieger@andersonuniversity.edu | M5: shawn@lakemurrayvolleyball.com | N5: gkrieger@andersonuniversity.edu | O5: 12-13 Power | P5: Upward Stars 13 Emily | Q5: fj3upwrd4pm | R5: 395 | S5: Upward Stars | T5: 864-949-5839 | U5: 864-909-3196 | V5: chelle@upward.org
A6: 5 | C6: 12-13 Power | D6: Magnum 13 Mizuno | E6: fj3magnm1pm | F6: 395 | G6: Magnum Volleyball Club | H6: 803-730-6100 | I6: 803-730-6100 | J6: magnumvolleyball@gmail.com | M6: info@a5volleyball.com | N6: magnumvolleyball@gmail.com | O6: 12-13 Power | P6: Upward Stars 13 Abbey | Q6: fj3upwrd5pm | R6: 395 | S6: Upward Stars | T6: 864-949-5839 | U6: 864-909-3196 | V6: chelle@upward.org
A7: 6 | C7: 12-13 Power | D7: CSRA Heat 13 Gold | E7: fj3csrah1pm | F7: 395 | G7: CSRA Heat | H7: 803-2088928 | I7: 706-399-4225 | J7: director@csraheat.com | M7: spiker149@hargray.com | N7: director@csraheat.com | O7: 12-13 Power | P7: Magnum 13 Blue | Q7: fj3magnm4pm | R7: 395 | S7: Magnum Volleyball Club | T7: 803-730-6100 | U7: 803-730-6100 | V7: magnumvolleyball@gmail.com
A8: 7 | C8: 12-13 Power | D8: Fort Mill VBC 13 Purple | E8: fj3fortm1pm | F8: 395 | G8: Fort Mill VBC | I8: 704.607.9206 | J8: FortMillVBC@gmail.com | M8: coachjarod@clubcoastalvolleyball.com | N8: FortMillVBC@gmail.com | O8: 12-13 Power | P8: C1VB 13 Power Grvl | Q8: fj3crone1pm | R8: 395 | S8: Carolina One | T8: 864-404-1963 | U8: 864-404-1963 | V8: kim.christman@carolinaonevolleyball.com
A9: 8 | C9: 12-13 Power | D9: Upward Stars 13 BrittanyL | E9: fj3upwrd3pm | F9: 395 | G9: Upward Stars | H9: 864-949-5839 | I9: 864-909-3196 | J9: chelle@upward.org | M9: kim.christman@carolinaonevolleyball.com | N9: kvavolleyball@gmail.com | O9: 12-13 Power | P9: CSRA Heat 13 Gold | Q9: fj3csrah1pm | R9: 395 | S9: CSRA Heat | T9: 803-2088928 | U9: 706-399-4225 | V9: director@csraheat.com
A10: 9 | C10: 12-13 Power | D10: KVA 13Vanessa | E10: fj3david1so | F10: 395 | G10: Knoxville Volleyball Academy | H10: 423-736-7406 | J10: kvavolleyball@gmail.com | M10: FortMillVBC@gmail.com | N10: directors@charlestonjuniors.com | O10: 12-13 Power | P10: KVA 13Vanessa | Q10: fj3david1so | R10: 395 | S10: Knoxville Volleyball Academy | T10: 423-736-7406 | V10: kvavolleyball@gmail.com
A11: 10 | C11: 12-13 Power | D11: Magnum Aiken 13 Green | E11: fj3magnm3pm | F11: 395 | G11: Magnum Volleyball Club | H11: 803-730-6100 | I11: 803-730-6100 | J11: magnumvolleyball@gmail.com | M11: paige.wilson@kcsdschools.net | O11: 12-13 Power | P11: Chas Jrs 13 Red | Q11: fj3charl1pm | R11: 395 | S11: Charleston Juniors | T11: 5612390117 | U11: 5612390117 | V11: directors@charlestonjuniors.com
A12: 11 | C12: 12-13 Power | D12: Chas Jrs 13 Red | E12: fj3charl1pm | F12: 395 | G12: Charleston Juniors | H12: 5612390117 | I12: 5612390117 | J12: directors@charlestonjuniors.com | N12: excellsports.org@gmail.com | O12: 12-13 Power | P12: Magnum 13 Mizuno | Q12: fj3magnm1pm | R12: 395 | S12: Magnum Volleyball Club | T12: 803-730-6100 | U12: 803-730-6100 | V12: magnumvolleyball@gmail.com
A13: 12 | C13: 12-13 Power | D13: Magnum 13 Black | E13: fj3magnm2pm | F13: 395 | G13: Magnum Volleyball Club | H13: 803-730-6100 | I13: 803-730-6100 | J13: magnumvolleyball@gmail.com | M13: amber@upstatevolleyball.net | N13: shawn@lakemurrayvolleyball.com | O13: 12-13 Power | P13: Magnum 13 Black | Q13: fj3magnm2pm | R13: 395 | S13: Magnum Volleyball Club | T13: 803-730-6100 | U13: 803-730-6100 | V13: magnumvolleyball@gmail.com
A14: 13 | C14: 12-13 Power | D14: Upward Stars 13 Emily | E14: fj3upwrd4pm | F14: 395 | G14: Upward Stars | H14: 864-949-5839 | I14: 864-909-3196 | J14: chelle@upward.org | M14: director@csraheat.com | N14: jmbpeterson@att.net | O14: 12-13 Power | P14: Magnum Aiken 13 Green | Q14: fj3magnm3pm | R14: 395 | S14: Magnum Volleyball Club | T14: 803-730-6100 | U14: 803-730-6100 | V14: magnumvolleyball@gmail.com
A15: 14 | C15: 12-13 Power | D15: Upward Stars 12 Candi | E15: fj2upwrd2pm | F15: 395 | G15: Upward Stars | H15: 864-949-5839 | I15: 864-909-3196 | J15: chelle@upward.org | M15: chelle@upward.org | N15: michaeldixon56@gmail.com | O15: 12-13 Power | P15: Vision 13 National | Q15: fj3vison1pm | R15: 395 | S15: Vision | T15: 9517433438 | U15: 9517433438 | V15: gkrieger@andersonuniversity.edu
A16: 15 | C16: 12-13 Power | D16: Upward Stars 13 Abbey | E16: fj3upwrd5pm | F16: 395 | G16: Upward Stars | H16: 864-949-5839 | I16: 864-909-3196 | J16: chelle@upward.org | M16: kvavolleyball@gmail.com | N16: Tamara.Jacobus@clover.k12.sc.us | O16: 12-13 Power | P16: Low Country 13 Open | Q16: fj3lowco1pm | R16: 395 | S16: Low Country Volleyball Club | T16: 843-705-5293 | U16: 843-442-5083 | V16: spiker149@hargray.com
A17: 16 | C17: 12-13 Power | D17: Magnum 13 Blue | E17: fj3magnm4pm | F17: 395 | G17: Magnum Volleyball Club | H17: 803-730-6100 | I17: 803-730-6100 | J17: magnumvolleyball@gmail.com | M17: directors@charlestonjuniors.com | N17: hesterta@rss.k12.nc.us | O17: 12-13 Power | P17: Fort Mill VBC 13 Purple | Q17: fj3fortm1pm | R17: 395 | S17: Fort Mill VBC | U17: 704.607.9206 | V17: FortMillVBC@gmail.com
C18: Wait 13s | D18: Set Point 13s | M18: rockhillvolleyball@gmail.com | N18: paige.wilson@kcsdschools.net
M19: hesterta@rss.k12.nc.us | N19: info@a5volleyball.com
M20: jmbpeterson@att.net | N20: amber@upstatevolleyball.net
B21: 1 | C21: 14 Power | D21: C1VB 14 Elite Greenville | E21: fj4crone1pm | F21: 395 | G21: Carolina One | H21: 864-404-1963 | I21: 864-404-1963 | J21: kim.christman@carolinaonevolleyball.com | M21: motovolleyballclub@gmail.com | N21: rockhillvolleyball@gmail.com | O21: 14 Power | P21: Upward Stars 14 Bridgette | Q21: fj4upwrd2pm | R21: 395 | S21: Upward Stars | T21: 864-949-5839 | U21: 864-909-3196 | V21: chelle@upward.org
B22: 2 | C22: 14 Power | D22: Excell U14 Elite | E22: fj4excel1pm | G22: Excell Sports | H22: 864-787-5968 | I22: 864-787-5968 | J22: excellsports.org@gmail.com | N22: coachjarod@clubcoastalvolleyball.com | O22: 14 Power | P22: A5 Mizuno 14-4 LA | Q22: fj4afive4so | R22: 395 | S22: A5 Volleyball Club | T22: 404-697-4825 | U22: 919-357-2935 | V22: info@a5volleyball.com
B23: 3 | C23: 14 Power | D23: C1VB 14 Power Grvl | E23: fj4crone2pm | F23: 395 | G23: Carolina One | H23: 864-404-1963 | I23: 864-404-1963 | J23: kim.christman@carolinaonevolleyball.com | M23: heinz_dan@yahoo.com | N23: teamlifevball@gmail.com | O23: 14 Power | P23: Upstate 14-1 Power | Q23: fj4upsvc1pm | R23: 395 | S23: Upstate Volleyball Club | T23: 864-616-6987 | V23: amber@upstatevolleyball.net
B24: 4 | C24: 14 Power | D24: Lake Murray 14 Red | E24: fj4lakem1pm | F24: 395 | G24: Lake Murray Volleyball Club | H24: 8035304598 | I24: 8035304598 | J24: shawn@lakemurrayvolleyball.com | M24: gbowman3@gmail.com | N24: lacy@birminghamvolleyball.com | O24: 14 Power | P24: Kershaw 14 Black | Q24: fj4kersh1pm | R24: 395 | S24: Kershaw County Juniors | T24: 803-427-1018 | U24: 803-427-1018 | V24: paige.wilson@kcsdschools.net
B25: 5 | C25: 14 Power | D25: Magnum 14 Elite | E25: fj4magnm2pm | F25: 395 | G25: Magnum Volleyball Club | H25: 803-730-6100 | I25: 803-730-6100 | J25: magnumvolleyball@gmail.com | N25: crossfirevolleyballsc@gmail.com | O25: 14 Power | P25: Lake Murray 14 Red | Q25: fj4lakem1pm | R25: 395 | S25: Lake Murray Volleyball Club | T25: 8035304598 | U25: 8035304598 | V25: shawn@lakemurrayvolleyball.com
B26: 6 | C26: 14 Power | D26: BVA 14N | E26: fj4biltm1cr | F26: 395 | G26: Biltmore Volleyball Academy | H26: 828-273-7837 | I26: 828-670-5427 | J26: jmbpeterson@att.net | M26: foothillsvbc@yahoo.com | N26: brianbyler@msn.com | O26: 14 Power | P26: Beaufort 14 National | Q26: fj4beauf1pm | R26: 395 | S26: Beaufort Volleyball Club | T26: 8435210142 | U26: 8432633745 | V26: michaeldixon56@gmail.com
A27: em to move? | B27: 7 | C27: 14 Power | D27: Chas Jrs 14 Red | E27: fj4charl1pm | F27: 395 | G27: Charleston Juniors | H27: 5612390117 | I27: 5612390117 | J27: directors@charlestonjuniors.com | M27: goextremevolleyball@charter.net | N27: mbeaver002@gmail.com | O27: 14 Power | P27: Coastal 14 Storm | Q27: fj4ccoas1pm | S27: club coastal volleyball | T27: 843-325-1973 | U27: 843-325-1973 | V27: coachjarod@clubcoastalvolleyball.com
B28: 8 | C28: 14 Power | D28: Vision 14 National | E28: fj4vison1pm | F28: 200 | G28: Vision | H28: 9517433438 | I28: 9517433438 | J28: gkrieger@andersonuniversity.edu | N28: gbowman3@gmail.com | O28: 14 Power | P28: KVA 14Shannon | Q28: fj4david1so | R28: 395 | S28: Knoxville Volleyball Academy | T28: 423-736-7406 | V28: kvavolleyball@gmail.com
B29: 9 | C29: 14 Power | D29: Magnum 14 Mizuno | E29: fj4magnm1pm | F29: 395 | G29: Magnum Volleyball Club | H29: 803-730-6100 | I29: 803-730-6100 | J29: magnumvolleyball@gmail.com | N29: dalecasey21@aol.com | O29: 14 Power | P29: RHVC 14 Power | Q29: fj4rockh1pm | R29: 395 | S29: Rock Hill Volleyball Club | T29: 803-242-8009 | U29: 803-242-8009 | V29: rockhillvolleyball@gmail.com
B30: 10 | C30: 14 Power | D30: Beaufort 14 National | E30: fj4beauf1pm | F30: 395 | G30: Beaufort Volleyball Club | H30: 8435210142 | I30: 8432633745 | J30: michaeldixon56@gmail.com | M30: teamlifevball@gmail.com | N30: foothillsvbc@yahoo.com | O30: 14 Power | P30: C1VB 14 Elite Greenville | Q30: fj4crone1pm | R30: 395 | S30: Carolina One | T30: 864-404-1963 | U30: 864-404-1963 | V30: kim.christman@carolinaonevolleyball.com
B31: 11 | C31: 14 Power | D31: SOAR BLUE 14UP | E31: fj4soarj1pm | F31: 395 | G31: Soar VBC | I31: 803-322-3965 | J31: Tamara.Jacobus@clover.k12.sc.us | N31: motovolleyballclub@gmail.com | O31: 14 Power | P31: C1VB 14 Power Grvl | Q31: fj4crone2pm | R31: 395 | S31: Carolina One | T31: 864-404-1963 | U31: 864-404-1963 | V31: kim.christman@carolinaonevolleyball.com
B32: 12 | C32: 14 Power | D32: KVA 14Shannon | E32: fj4david1so | F32: 395 | G32: Knoxville Volleyball Academy | H32: 423-736-7406 | J32: kvavolleyball@gmail.com | M32: mbeaver002@gmail.com | N32: lwaring@charter.net | O32: 14 Power | P32: C1VB 14 Power Pickens | Q32: fj4crone3pm | R32: 395 | S32: Carolina One | T32: 864-404-1963 | U32: 864-404-1963 | V32: kim.christman@carolinaonevolleyball.com
B33: 13 | C33: 14 Power | D33: Upward Stars 14 Bridgette | E33: fj4upwrd2pm | F33: 395 | G33: Upward Stars | H33: 864-949-5839 | I33: 864-909-3196 | J33: chelle@upward.org | M33: excellsports.org@gmail.com | N33: heinz_dan@yahoo.com | O33: 14 Power | P33: CSRA Heat 14 Gold | Q33: fj4csrah1pm | R33: 395 | S33: CSRA Heat | T33: 803-2088928 | U33: 706-399-4225 | V33: director@csraheat.com
B34: 14 | C34: 14 Power | D34: HRVC TEAM RICOCHET | E34: fj4hrock1cr | F34: 395 | G34: High Rock VBC | H34: 336-240-8530 | I34: 7042130637 | J34: hesterta@rss.k12.nc.us | M34: kbenny07@yahoo.com | N34: kcvb11@yahoo.com | O34: 14 Power | P34: HRVC TEAM RICOCHET | Q34: fj4hrock1cr | R34: 395 | S34: High Rock VBC | T34: 336-240-8530 | U34: 7042130637 | V34: hesterta@rss.k12.nc.us
B35: 15 | C35: 14 Power | D35: Magnum Aiken 14 Green | E35: fj4magnm3pm | F35: 395 | G35: Magnum Volleyball Club | H35: 803-730-6100 | I35: 803-730-6100 | J35: magnumvolleyball@gmail.com | N35: kbenny07@yahoo.com | O35: 14 Power | P35: HRVC SIDE OUT | Q35: fj4hrock2cr | R35: 395 | S35: High Rock VBC | T35: 336-240-8530 | U35: 7042130637 | V35: hesterta@rss.k12.nc.us
B36: 16 | C36: 14 Power | D36: Kershaw 14 Black | E36: fj4kersh1pm | F36: 395 | G36: Kershaw County Juniors | H36: 803-427-1018 | I36: 803-427-1018 | J36: paige.wilson@kcsdschools.net | M36: brianbyler@msn.com | N36: columbiascstarlings@live.com | O36: 14 Power | P36: BVA 14N | Q36: fj4biltm1cr | R36: 395 | S36: Biltmore Volleyball Academy | T36: 828-273-7837 | U36: 828-670-5427 | V36: jmbpeterson@att.net
B37: 17 | C37: 14 Power | D37: CSRA Heat 14 Gold | E37: fj4csrah1pm | F37: 395 | G37: CSRA Heat | H37: 803-2088928 | I37: 706-399-4225 | J37: director@csraheat.com | M37: columbiascstarlings@live.com | N37: goextremevolleyball@charter.net | O37: 14 Power | P37: Chas Jrs 14 Red | Q37: fj4charl1pm | R37: 395 | S37: Charleston Juniors | T37: 5612390117 | U37: 5612390117 | V37: directors@charlestonjuniors.com
B38: 18 | C38: 14 Power | D38: A5 Mizuno 14-4 LA | E38: fj4afive4so | F38: 395 | G38: A5 Volleyball Club | H38: 404-697-4825 | I38: 919-357-2935 | J38: info@a5volleyball.com | M38: Tamara.Jacobus@clover.k12.sc.us | N38: mwbragg@comporium.net | O38: 14 Power | P38: SOAR BLUE 14UP | Q38: fj4soarj1pm | R38: 395 | S38: Soar VBC | T38: 5612390117 | U38: 5612390117 | V38: directors@charlestonjuniors.com
B39: 19 | C39: 14 Power | D39: C1VB 14 Power Pickens | E39: fj4crone3pm | F39: 395 | G39: Carolina One | H39: 864-404-1963 | I39: 864-404-1963 | J39: kim.christman@carolinaonevolleyball.com | M39: mwbragg@comporium.net | O39: 14 Power | P39: Magnum 14 Mizuno | Q39: fj4magnm1pm | R39: 395 | S39: Magnum Volleyball Club | T39: 803-730-6100 | U39: 803-730-6100 | V39: magnumvolleyball@gmail.com
B40: 20 | C40: 14 Power | D40: Upstate 14-1 Power | E40: fj4upsvc1pm | F40: 395 | G40: Upstate Volleyball Club | H40: 864-616-6987 | J40: amber@upstatevolleyball.net | M40: lacy@birminghamvolleyball.com | O40: 14 Power | P40: Magnum 14 Elite | Q40: fj4magnm2pm | R40: 395 | S40: Magnum Volleyball Club | T40: 803-730-6100 | U40: 803-730-6100 | V40: magnumvolleyball@gmail.com
B41: 21 | C41: 14 Power | D41: Low Country 14 Power | E41: fj4lowco1pm | F41: 395 | G41: Low Country Volleyball Club | H41: 843-705-5293 | I41: 843-442-5083 | J41: spiker149@hargray.com | O41: 14 Power | P41: Magnum Aiken 14 Green | Q41: fj4magnm3pm | R41: 395 | S41: Magnum Volleyball Club | T41: 803-730-6100 | U41: 803-730-6100 | V41: magnumvolleyball@gmail.com
B42: 22 | C42: 14 Power | D42: HRVC SIDE OUT 14 | E42: fj4hrock2cr | F42: 395 | G42: High Rock VBC | H42: 336-240-8530 | I42: 7042130637 | J42: hesterta@rss.k12.nc.us | M42: kcvb11@yahoo.com | O42: 14 Power | P42: Vision 14 National | Q42: fj4vison1pm | R42: 200 | S42: Vision | T42: 9517433438 | U42: 9517433438 | V42: gkrieger@andersonuniversity.edu
B43: 23 | C43: 14 Power | D43: RHVC 14 Power | E43: fj4rockh1pm | F43: 395 | G43: Rock Hill Volleyball Club | H43: 803-242-8009 | I43: 803-242-8009 | J43: rockhillvolleyball@gmail.com | M43: dalecasey21@aol.com | O43: 14 Power | P43: Low Country 14 Power | Q43: fj4lowco1pm | R43: 395 | S43: Low Country Volleyball Club | T43: 843-705-5293 | U43: 843-442-5083 | V43: spiker149@hargray.com
A44: em to move? | B44: 24 | C44: 14 Power | D44: Coastal 14 Storm | E44: fj4ccoas1pm | G44: club coastal volleyball | H44: 843-325-1973 | I44: 843-325-1973 | J44: coachjarod@clubcoastalvolleyball.com | M44: crossfirevolleyballsc@gmail.com | O44: 14 Power | P44: Excell U14 Elite | Q44: fj4excel1pm | R44: 395 | S44: Excell Sports | T44: 864-787-5968 | U44: 864-787-5968 | V44: excellsports.org@gmail.com
B45: FULL | U45: 803-322-3965 | V45: Tamara.Jacobus@clover.k12.sc.us
B49: 1 | C49: 15 Power | D49: Low Country 15 Open | E49: fj5lowco1pm | F49: 395 | G49: Low Country Volleyball Club | H49: 843-705-5293 | I49: 843-442-5083 | J49: spiker149@hargray.com | O49: 15 Power | P49: Upward Stars 15 Taylor | Q49: fj5upwrd2pm | R49: 395 | S49: Upward Stars | T49: 864-949-5839 | U49: 864-909-3196 | V49: chelle@upward.org
B50: 2 | C50: 15 Power | D50: C1VB 15 Elite Greenville | E50: fj5crone2pm | F50: 395 | G50: Carolina One | H50: 864-404-1963 | I50: 864-404-1963 | J50: kim.christman@carolinaonevolleyball.com | O50: 15 Power | P50: Upward Stars 15 Mark | Q50: fj5upwrd3pm | R50: 395 | S50: Upward Stars | T50: 864-949-5839 | U50: 864-909-3196 | V50: chelle@upward.org
B51: 3 | C51: 15 Power | D51: Lake Murray 15 Red | E51: fj5lakem1pm | F51: 395 | G51: Lake Murray Volleyball Club | H51: 8035304598 | I51: 8035304598 | J51: shawn@lakemurrayvolleyball.com | O51: 15 Power | P51: BVC 15 Black | Q51: fj5bvcal1so | R51: 395 | S51: Birmingham Volleyball Club | T51: 2053582065 | U51: 2053582065 | V51: lacy@birminghamvolleyball.com
B52: 4 | C52: 15 Power | D52: Magnum 15 Mizuno | E52: fj5magnm1pm | F52: 395 | G52: Magnum Volleyball Club | H52: 803-730-6100 | I52: 803-730-6100 | J52: magnumvolleyball@gmail.com | O52: 15 Power | P52: Upstate 15-2 Power | Q52: fj5upsvc2pm | R52: 395 | S52: Upstate Volleyball Club | T52: 864-616-6987 | V52: amber@upstatevolleyball.net
B53: 5 | C53: 15 Power | D53: C1VB 15 Elite Pickens | E53: fj5crone1pm | F53: 395 | G53: Carolina One | H53: 864-404-1963 | I53: 864-404-1963 | J53: kim.christman@carolinaonevolleyball.com | O53: 15 Power | P53: Lake Murray 15 Red | Q53: fj5lakem1pm | R53: 395 | S53: Lake Murray Volleyball Club | T53: 8035304598 | U53: 8035304598 | V53: shawn@lakemurrayvolleyball.com
B54: 6 | C54: 15 Power | D54: Chas Jrs 15 Red | E54: fj5charl1pm | F54: 395 | G54: Charleston Juniors | H54: 5612390117 | I54: 5612390117 | J54: directors@charlestonjuniors.com | O54: 15 Power | P54: Hurricane VBC 15 Riptide | Q54: fj5hurrc1pm | R54: 395 | S54: Hurricane Volleyball Club | T54: 706-564-7686 | U54: 706-564-7686 | V54: brianbyler@msn.com
B55: 7 | C55: 15 Power | D55: Magnum 15 Black | E55: fj5magnm5pm | F55: 395 | G55: Magnum Volleyball Club | H55: 803-730-6100 | I55: 803-730-6100 | J55: magnumvolleyball@gmail.com | O55: 15 Power | P55: Beaufort 15 U | Q55: fj5beauf1pm | R55: 395 | S55: Beaufort Volleyball Club | T55: 8435210142 | U55: 8432633745 | V55: michaeldixon56@gmail.com
B56: 8 | C56: 16 Power | D56: Vision 15 National | E56: fj5vison1pm | F56: 200 | G56: Vision | H56: 9517433438 | I56: 9517433438 | J56: gkrieger@andersonuniversity.edu | O56: 15 Power | P56: RHVC 15 Power Black | Q56: fj5rockh1pm | R56: 395 | S56: Rock Hill Volleyball Club | T56: 803-242-8009 | U56: 803-242-8009 | V56: rockhillvolleyball@gmail.com
B57: 9 | C57: 15 Power | D57: CSRA Heat 15 Gold | E57: fj5csrah1pm | F57: 395 | G57: CSRA Heat | H57: 803-2088928 | I57: 706-399-4225 | J57: director@csraheat.com | O57: 15 Power | P57: RHVC 15 Power Red | Q57: fj5rockh2pm | R57: 395 | S57: Rock Hill Volleyball Club | T57: 803-242-8009 | U57: 803-242-8009 | V57: rockhillvolleyball@gmail.com
B58: 10 | C58: 15 Power | D58: Magnum 15 Elite | E58: fj5magnm2pm | F58: 395 | G58: Magnum Volleyball Club | H58: 803-730-6100 | I58: 803-730-6100 | J58: magnumvolleyball@gmail.com | O58: 15 Power | P58: C1VB 15 Elite Pickens | Q58: fj5crone1pm | R58: 395 | S58: Carolina One | T58: 864-404-1963 | U58: 864-404-1963 | V58: kim.christman@carolinaonevolleyball.com
B59: 11 | C59: 15 Power | D59: TLVC 15 | E59: fj5tlife1cr | F59: 395 | G59: Team Life Volleyball Club | H59: 8285723367 | I59: 8283151812 | J59: teamlifevball@gmail.com | O59: 15 Power | P59: C1VB 15 Elite Greenville | Q59: fj5crone2pm | R59: 395 | S59: Carolina One | T59: 864-404-1963 | U59: 864-404-1963 | V59: kim.christman@carolinaonevolleyball.com
B60: 12 | C60: 15 Power | D60: Upward Stars 15 Taylor | E60: fj5upwrd2pm | F60: 395 | G60: Upward Stars | H60: 864-949-5839 | I60: 864-909-3196 | J60: chelle@upward.org | O60: 15 Power | P60: C1VB 15 Power Grvl | Q60: fj5crone3pm | R60: 395 | S60: Carolina One | T60: 864-404-1963 | U60: 864-404-1963 | V60: kim.christman@carolinaonevolleyball.com
B61: 13 | C61: 15 Power | D61: BVC 15 Black | E61: fj5bvcal1so | F61: 395 | G61: Birmingham Volleyball Club | H61: 2053582065 | I61: 2053582065 | J61: lacy@birminghamvolleyball.com | O61: 15 Power | P61: CSRA Heat 15 Gold | Q61: fj5csrah1pm | R61: 395 | S61: CSRA Heat | T61: 803-2088928 | U61: 706-399-4225 | V61: director@csraheat.com
B62: 14 | C62: 15 Power | D62: HRVC LEGACY | E62: fj5hrock2cr | F62: 395 | G62: High Rock VBC | H62: 336-240-8530 | I62: 7042130637 | J62: hesterta@rss.k12.nc.us | O62: 15 Power | P62: CSRA Heat 15 Black | Q62: fj5csrah2pm | R62: 395 | S62: CSRA Heat | T62: 803-2088928 | U62: 706-399-4225 | V62: director@csraheat.com
B63: 15 | C63: 15 Power | D63: Biltmore 15 Elite | E63: fj5biltm1cr | F63: 395 | G63: Biltmore Volleyball Academy | H63: 828-273-7837 | I63: 828-670-5427 | J63: jmbpeterson@att.net | O63: 15 Power | P63: TLVC 15 | Q63: fj5tlife1cr | R63: 395 | S63: Team Life Volleyball Club | T63: 8285723367 | U63: 8283151812 | V63: teamlifevball@gmail.com
B64: 16 | C64: 15 Power | D64: Magnum Aiken 15 Green | E64: fj5magnm3pm | F64: 395 | G64: Magnum Volleyball Club | H64: 803-730-6100 | I64: 803-730-6100 | J64: magnumvolleyball@gmail.com | O64: 15 Power | P64: HRVC LEGACY | Q64: fj5hrock2cr | R64: 395 | S64: High Rock VBC | T64: 336-240-8530 | U64: 7042130637 | V64: hesterta@rss.k12.nc.us
B65: 17 | C65: 15 Power | D65: Fort Mill VBC 15 Purple | E65: fj5fortm1pm | F65: 395 | G65: Fort Mill VBC | I65: 704.607.9206 | J65: FortMillVBC@gmail.com | O65: 15 Power | P65: Biltmore 15 Elite | Q65: fj5biltm1cr | R65: 395 | S65: Biltmore Volleyball Academy | T65: 828-273-7837 | U65: 828-670-5427 | V65: jmbpeterson@att.net
B66: 18 | C66: 15 Power | D66: Crossfire 15 Power | E66: fj5crosf1pm | F66: 395 | G66: Crossfire Volleyball | H66: 8649050470 | I66: 8649050470 | J66: crossfirevolleyballsc@gmail.com | O66: 15 Power | P66: BVA 15 National | Q66: fj5biltm2cr | R66: 395 | S66: Biltmore Volleyball Academy | T66: 828-273-7837 | U66: 828-670-5427 | V66: jmbpeterson@att.net
B67: 19 | C67: 15 Power | D67: Upward Stars 15 Mark | E67: fj5upwrd3pm | F67: 395 | G67: Upward Stars | H67: 864-949-5839 | I67: 864-909-3196 | J67: chelle@upward.org | O67: 15 Power | P67: Crossfire 15 Power | Q67: fj5crosf1pm | R67: 395 | S67: Crossfire Volleyball | T67: 8649050470 | U67: 8649050470 | V67: crossfirevolleyballsc@gmail.com
B68: 20 | C68: 15 Power | D68: BVA 15 National | E68: fj5biltm2cr | F68: 395 | G68: Biltmore Volleyball Academy | H68: 828-273-7837 | I68: 828-670-5427 | J68: jmbpeterson@att.net | O68: 15 Power | P68: Magnum 15 Black | Q68: fj5magnm5pm | R68: 395 | S68: Magnum Volleyball Club | T68: 803-730-6100 | U68: 803-730-6100 | V68: magnumvolleyball@gmail.com
B69: 21 | C69: 15 Power | D69: Coastal 16 Hurricanes | E69: fj5ccoas2pm | G69: club coastal volleyball | H69: 843-325-1973 | I69: 843-325-1973 | J69: coachjarod@clubcoastalvolleyball.com | O69: 15 Power | P69: Magnum 15 Mizuno | Q69: fj5magnm1pm | R69: 395 | S69: Magnum Volleyball Club | T69: 803-730-6100 | U69: 803-730-6100 | V69: magnumvolleyball@gmail.com
B70: 22 | C70: 15 Power | D70: C1VB 15 Power Grvl | E70: fj5crone3pm | F70: 395 | G70: Carolina One | H70: 864-404-1963 | I70: 864-404-1963 | J70: kim.christman@carolinaonevolleyball.com | O70: 15 Power | P70: Magnum 15 Elite | Q70: fj5magnm2pm | R70: 395 | S70: Magnum Volleyball Club | T70: 803-730-6100 | U70: 803-730-6100 | V70: magnumvolleyball@gmail.com
B71: 23 | C71: 15 Power | D71: RHVC 15 Power Black | E71: fj5rockh1pm | F71: 395 | G71: Rock Hill Volleyball Club | H71: 803-242-8009 | I71: 803-242-8009 | J71: rockhillvolleyball@gmail.com | O71: 15 Power | P71: Magnum Aiken 15 Green | Q71: fj5magnm3pm | R71: 395 | S71: Magnum Volleyball Club | T71: 803-730-6100 | U71: 803-730-6100 | V71: magnumvolleyball@gmail.com
B72: 24 | C72: 15 Power | D72: Hurricane VBC 15 Riptide | E72: fj5hurrc1pm | F72: 395 | G72: Hurricane Volleyball Club | H72: 706-564-7686 | I72: 706-564-7686 | J72: brianbyler@msn.com | O72: 15 Power | P72: Vision 15 National | Q72: fj5vison1pm | R72: 200 | S72: Vision | T72: 9517433438 | U72: 9517433438 | V72: gkrieger@andersonuniversity.edu
B73: 25 | C73: 15 Power | D73: RHVC 15 Power Red | E73: fj5rockh2pm | F73: 395 | G73: Rock Hill Volleyball Club | H73: 803-242-8009 | I73: 803-242-8009 | J73: rockhillvolleyball@gmail.com | O73: 15 Power | P73: Low Country 15 Open | Q73: fj5lowco1pm | R73: 395 | S73: Low Country Volleyball Club | T73: 843-705-5293 | U73: 843-442-5083 | V73: spiker149@hargray.com
B74: 26 | C74: 15 Power | D74: High Velocity 15's | E74: fj5hvelo1pm | F74: 395 | G74: High Velocity VBC | H74: 803-800-2336 | I74: 803-800-2336 | J74: mbeaver002@gmail.com | O74: 15 Power | P74: High Velocity 15's | Q74: fj5hvelo1pm | R74: 395 | S74: High Velocity VBC | T74: 803-800-2336 | U74: 803-800-2336 | V74: mbeaver002@gmail.com
B75: 27 | C75: 15 Power | D75: Beaufort 15 U | E75: fj5beauf1pm | F75: 395 | G75: Beaufort Volleyball Club | H75: 8435210142 | I75: 8432633745 | J75: michaeldixon56@gmail.com | O75: 15 Power | P75: Chas Jrs 15 Red | Q75: fj5charl1pm | R75: 395 | S75: Charleston Juniors | T75: 5612390117 | U75: 5612390117 | V75: directors@charlestonjuniors.com
B76: 28 | C76: 15 Power | D76: Upstate 15-2 Power | E76: fj5upsvc2pm | F76: 395 | G76: Upstate Volleyball Club | H76: 864-616-6987 | J76: amber@upstatevolleyball.net | O76: 15 Power | P76: Fort Mill VBC 15 Purple | Q76: fj5fortm1pm | R76: 395 | S76: Fort Mill VBC | U76: 704.607.9206 | V76: FortMillVBC@gmail.com
B77: 29 | C77: 15 Power | D77: CSRA Heat 15 Black | E77: fj5csrah2pm | F77: 395 | G77: CSRA Heat | H77: 803-2088928 | I77: 706-399-4225 | J77: director@csraheat.com
B78: 30 | C78: 15 Power | D78: TCV 15 Kaos | E78: fj5trcvb2cr | G78: TriCounty Volleyball Club | H78: 336-302-4128 | I78: 336-302-4128 | J78: gbowman3@gmail.com
B79: 31 | C79: 16 Power | D79: Coastal 16 Elite | E79: fj6ccoas1pm | G79: club coastal volleyball | H79: 843-325-1973 | I79: 843-325-1973 | J79: coachjarod@clubcoastalvolleyball.com
B80: 32
B82: 1 | C82: 16 Power | D82: Magnum 16 Mizuno | E82: fj6magnm1pm | F82: 395 | G82: Magnum Volleyball Club | H82: 803-730-6100 | I82: 803-730-6100 | J82: magnumvolleyball@gmail.com | O82: 16 Power | P82: BVA 16 Elite | Q82: fj6biltm1cr | R82: 395 | S82: Biltmore Volleyball Academy | T82: 828-273-7837 | U82: 828-670-5427 | V82: jmbpeterson@att.net
B83: 2 | C83: 16 Power | D83: Hurricane VBC 16 Tsunami | E83: fj6hurrc1pm | F83: 395 | G83: Hurricane Volleyball Club | H83: 706-564-7686 | I83: 706-564-7686 | J83: brianbyler@msn.com | O83: 16 Power | P83: Upward Stars 16 Andrew | Q83: fj6upwrd2pm | R83: 395 | S83: Upward Stars | T83: 864-949-5839 | U83: 864-909-3196 | V83: chelle@upward.org
B84: 3 | C84: 16 Power | D84: Magnum 16 Elite | E84: fj6magnm2pm | F84: 395 | G84: Magnum Volleyball Club | H84: 803-730-6100 | I84: 803-730-6100 | J84: magnumvolleyball@gmail.com | O84: 16 Power | P84: Upward Stars 16 Leslie | Q84: fj6upwrd3pm | R84: 395 | S84: Upward Stars | T84: 864-949-5839 | U84: 864-909-3196 | V84: chelle@upward.org
B85: 4 | C85: 16 Power | D85: TLVC 16 | E85: fj6tlife1cr | F85: 395 | G85: Team Life Volleyball Club | H85: 8285723367 | I85: 8283151812 | J85: teamlifevball@gmail.com | O85: 16 Power | P85: Upward Stars 16 Brandon | Q85: fj6upwrd4pm | R85: 395 | S85: Upward Stars | T85: 864-949-5839 | U85: 864-909-3196 | V85: chelle@upward.org
B86: 5 | C86: 16 Power | D86: BVA 16 Elite | E86: fj6biltm1cr | F86: 395 | G86: Biltmore Volleyball Academy | H86: 828-273-7837 | I86: 828-670-5427 | J86: jmbpeterson@att.net | O86: 16 Power | P86: Upstate 16-2 Power | Q86: fj6upsvc2pm | R86: 395 | S86: Upstate Volleyball Club | T86: 864-616-6987 | V86: amber@upstatevolleyball.net
B87: 6 | C87: 16 Power | D87: Upward Stars 16 Andrew | E87: fj6upwrd2pm | F87: 395 | G87: Upward Stars | H87: 864-949-5839 | I87: 864-909-3196 | J87: chelle@upward.org | O87: 16 Power | P87: Hurricane VBC 16 Tsunami | Q87: fj6hurrc1pm | R87: 395 | S87: Hurricane Volleyball Club | T87: 706-564-7686 | U87: 706-564-7686 | V87: brianbyler@msn.com
B88: 7 | C88: 16 Power | D88: Extreme 16 Taylor | E88: fj6triex2so | F88: 395 | G88: Tri-Cities Extreme Velocity | H88: 423 -213 -1899 | J88: dalecasey21@aol.com | O88: 16 Power | P88: Extreme 16 Taylor | Q88: fj6triex2so | R88: 395 | S88: Tri-Cities Extreme Velocity | T88: 423 -213 -1899 | V88: dalecasey21@aol.com
A89: to 15s | B89: 8 | C89: 16 Power | D89: BVA 16 National | E89: fj6biltm2cr | F89: 395 | G89: Biltmore Volleyball Academy | H89: 828-273-7837 | I89: 828-670-5427 | J89: jmbpeterson@att.net | O89: 16 Power | P89: Coastal 16 Hurricanes | Q89: fj5ccoas2pm | S89: club coastal volleyball | T89: 843-325-1973 | U89: 843-325-1973 | V89: coachjarod@clubcoastalvolleyball.com
B90: 9 | C90: 16 Power | D90: Soar Rockets 16U | E90: fj6soarj1pm | F90: 395 | G90: Soar VBC | I90: 803-322-3965 | J90: Tamara.Jacobus@clover.k12.sc.us | O90: 16 Power | P90: Coastal 16 Elite | Q90: fj6ccoas1pm | S90: club coastal volleyball | T90: 843-325-1973 | U90: 843-325-1973 | V90: coachjarod@clubcoastalvolleyball.com
A91: 2/24 WD | B91: 10 | C91: 16 Power | D91: Magnum Aiken 16 Green | E91: fj6magnm3pm | F91: 395 | G91: Magnum Volleyball Club | H91: 803-730-6100 | I91: 803-730-6100 | J91: magnumvolleyball@gmail.com | O91: 16 Power | P91: C1VB 16 Power Grvl | Q91: fj6crone1pm | R91: 395 | S91: Carolina One | T91: 864-404-1963 | U91: 864-404-1963 | V91: kim.christman@carolinaonevolleyball.com
B92: 11 | C92: 16 Power | D92: Upward Stars 16 Leslie | E92: fj6upwrd3pm | F92: 395 | G92: Upward Stars | H92: 864-949-5839 | I92: 864-909-3196 | J92: chelle@upward.org | O92: 16 Power | P92: CSRA Heat 16 Gold | Q92: fj6csrah1pm | R92: 395 | S92: CSRA Heat | T92: 803-2088928 | U92: 706-399-4225 | V92: director@csraheat.com
B93: 12 | C93: 16 Power | D93: Coastal 17 Cyclones | E93: fj7ccoas1pm | G93: club coastal volleyball | H93: 843-325-1973 | I93: 843-325-1973 | J93: coachjarod@clubcoastalvolleyball.com | O93: 16 Power | P93: TLVC 16 | Q93: fj6tlife1cr | R93: 395 | S93: Team Life Volleyball Club | T93: 8285723367 | U93: 8283151812 | V93: teamlifevball@gmail.com
B94: 13 | C94: 16 Power | D94: Foothills 17 | E94: fj7footh7pm | G94: Foothills Volleyball Club | H94: 8642471337 | I94: 8642471337 | J94: foothillsvbc@yahoo.com | O94: 16 Power | P94: BVA 16 National | Q94: fj6biltm2cr | R94: 395 | S94: Biltmore Volleyball Academy | T94: 828-273-7837 | U94: 828-670-5427 | V94: jmbpeterson@att.net
B95: 14 | C95: 16 Power | D95: CSRA Heat 16 Gold | E95: fj6csrah1pm | F95: 395 | G95: CSRA Heat | H95: 803-2088928 | I95: 706-399-4225 | J95: director@csraheat.com | O95: 16 Power | P95: MOTO 16 | Q95: fj6motoj1pm | R95: 200 | S95: MOTO | T95: (803) 728-0037 | U95: (803) 446-7337 | V95: motovolleyballclub@gmail.com
B96: 15 | C96: 16 Power | D96: Upward Stars 16 Brandon | E96: fj6upwrd4pm | F96: 395 | G96: Upward Stars | H96: 864-949-5839 | I96: 864-909-3196 | J96: chelle@upward.org | O96: 16 Power | P96: Crossfire 16 Power | Q96: fj6crosf1pm | R96: 395 | S96: Crossfire Volleyball | T96: 8649050470 | U96: 8649050470 | V96: crossfirevolleyballsc@gmail.com
B97: 16 | C97: 16 Power | D97: Fort Mill VBC 16 Purple | E97: fj6fortm1pm | F97: 395 | G97: Fort Mill VBC | I97: 704.607.9206 | J97: FortMillVBC@gmail.com | O97: 16 Power | P97: Magnum 16 Mizuno | Q97: fj6magnm1pm | R97: 395 | S97: Magnum Volleyball Club | T97: 803-730-6100 | U97: 803-730-6100 | V97: magnumvolleyball@gmail.com
B98: 17 | C98: 16 Power | D98: Crossfire 16 Power | E98: fj6crosf1pm | F98: 395 | G98: Crossfire Volleyball | H98: 8649050470 | I98: 8649050470 | J98: crossfirevolleyballsc@gmail.com | O98: 16 Power | P98: Magnum 16 Elite | Q98: fj6magnm2pm | R98: 395 | S98: Magnum Volleyball Club | T98: 803-730-6100 | U98: 803-730-6100 | V98: magnumvolleyball@gmail.com
B99: 18 | C99: 17 Power | D99: Vision 16 National | E99: fj6vison1pm | F99: 200 | G99: Vision | H99: 9517433438 | I99: 9517433438 | J99: gkrieger@andersonuniversity.edu | O99: 16 Power | P99: Magnum Aiken 16 Green | Q99: fj6magnm3pm | R99: 395 | S99: Magnum Volleyball Club | T99: 803-730-6100 | U99: 803-730-6100 | V99: magnumvolleyball@gmail.com
B100: 19 | C100: 16 Power | D100: MOTO 16 | E100: fj6motoj1pm | F100: 200 | G100: MOTO | H100: (803) 728-0037 | I100: (803) 446-7337 | J100: motovolleyballclub@gmail.com | O100: 16 Power | P100: Vision 16 National | Q100: fj6vison1pm | R100: 200 | S100: Vision | T100: 9517433438 | U100: 9517433438 | V100: gkrieger@andersonuniversity.edu
B101: 20 | C101: 16 Power | D101: C1VB 16 Power Grvl | E101: fj6crone1pm | F101: 395 | G101: Carolina One | H101: 864-404-1963 | I101: 864-404-1963 | J101: kim.christman@carolinaonevolleyball.com | O101: 16 Power | P101: Excell U16 Power | Q101: fj6excel1pm | R101: 395 | S101: Excell Sports | T101: 864-787-5968 | U101: 864-787-5968 | V101: excellsports.org@gmail.com
B102: 21 | C102: 16 Power | D102: Upstate 16-2 Power | E102: fj6upsvc2pm | F102: 395 | G102: Upstate Volleyball Club | H102: 864-616-6987 | J102: amber@upstatevolleyball.net | O102: 16 Power | P102: Fort Mill VBC 16 Purple | Q102: fj6fortm1pm | R102: 395 | S102: Fort Mill VBC | U102: 704.607.9206 | V102: FortMillVBC@gmail.com
B103: 22 | C103: 16 Power | D103: CCJ 16-1 (BLACK) | E103: fj6ccjrs1so | J103: lwaring@charter.net | O103: 16 Power | P103: LAVA 16U Purple | Q103: fj6lavaf1cr | R103: 420 | S103: Lakewood Area Volleyball Association | U103: 910-596-1102 | V103: heinz_dan@yahoo.com
B104: 23 | C104: 17 Power | D104: Excell U16 Power | E104: fj6excel1pm | G104: Excell Sports | H104: 864-787-5968 | I104: 864-787-5968 | J104: excellsports.org@gmail.com | O104: 16 Power | P104: Soar Rockets 16U | Q104: fj6soarj1pm | R104: 395 | S104: Soar VBC | U104: 803-322-3965 | V104: Tamara.Jacobus@clover.k12.sc.us
A105: ok move dn 50% | B105: 24 | C105: 16 Power | D105: LAVA 16U Purple | E105: fj6lavaf1cr | F105: 420 | G105: Lakewood Area Volleyball Association | I105: 910-596-1102 | J105: heinz_dan@yahoo.com
B106: FULL
B109: 1 | C109: 17 Power | D109: KC11 17's | E109: fj7kc11j1pm | F109: 395 | G109: KC11 Volleyball Club | I109: 408-893-5711 | J109: kcvb11@yahoo.com | O109: 17 Power | P109: Kershaw 17 Black | Q109: fj7kersh1pm | R109: 395 | S109: Kershaw County Juniors | T109: 803-427-1018 | U109: 803-427-1018 | V109: paige.wilson@kcsdschools.net
B110: 2 | C110: 17 Power | D110: Magnum 17 Mizuno | E110: fj7magnm1pm | F110: 395 | G110: Magnum Volleyball Club | H110: 803-730-6100 | I110: 803-730-6100 | J110: magnumvolleyball@gmail.com | O110: 17 Power | P110: Upward Stars 17 Melissa | Q110: fj7upwrd2pm | R110: 395 | S110: Upward Stars | T110: 864-949-5839 | U110: 864-909-3196 | V110: chelle@upward.org
B111: 3 | C111: 17 Power | D111: Kershaw 17 Black | E111: fj7kersh1pm | F111: 395 | G111: Kershaw County Juniors | H111: 803-427-1018 | I111: 803-427-1018 | J111: paige.wilson@kcsdschools.net | O111: 17 Power | P111: Lake Murray 17 Red | Q111: fj7lakem1pm | R111: 395 | S111: Lake Murray Volleyball Club | T111: 8035304598 | U111: 8035304598 | V111: shawn@lakemurrayvolleyball.com
B112: 4 | C112: 17 Power | D112: C1VB 17 Power Pickens | E112: fj7crone2pm | F112: 395 | G112: Carolina One | H112: 864-404-1963 | I112: 864-404-1963 | J112: kim.christman@carolinaonevolleyball.com | O112: 17 Power | P112: PRV -17U Tony | Q112: fj7prage1pm | R112: 420 | S112: Palmetto Rage Volleyball Club | T112: 803-367-7712 | U112: 803-367-7712 | V112: mwbragg@comporium.net
B113: 5 | C113: 17 Power | D113: Low Country 17 Open | E113: fj7lowco1pm | F113: 395 | G113: Low Country Volleyball Club | H113: 843-705-5293 | I113: 843-442-5083 | J113: spiker149@hargray.com | O113: 17 Power | P113: Hurricane VBC 17 Cyclones | Q113: fj7hurrc1pm | R113: 395 | S113: Hurricane Volleyball Club | T113: 706-564-7686 | U113: 706-564-7686 | V113: brianbyler@msn.com
B114: 6 | C114: 17 Power | D114: C1VB 17 Elite Greenville | E114: fj7crone1pm | F114: 395 | G114: Carolina One | H114: 864-404-1963 | I114: 864-404-1963 | J114: kim.christman@carolinaonevolleyball.com | O114: 17 Power | P114: Coastal 17 Cyclones | Q114: fj7ccoas1pm | S114: club coastal volleyball | T114: 843-325-1973 | U114: 843-325-1973 | V114: coachjarod@clubcoastalvolleyball.com
B115: 7 | C115: 17 Power | D115: Upward Stars 17 Melissa | E115: fj7upwrd2pm | F115: 395 | G115: Upward Stars | H115: 864-949-5839 | I115: 864-909-3196 | J115: chelle@upward.org | O115: 17 Power | P115: Columbia SC Starlings 17 | Q115: fj7starl1pm | R115: 395 | S115: Columbia SC Starlings | T115: 803-479-2941 | U115: 803-479-2941 | V115: columbiascstarlings@live.com
B116: 8 | C116: 17 Power | D116: MEVC17Power | E116: fj7mtnel1pm | F116: 395 | G116: Mountain Elite Volleyball Club | H116: 828-577-0550 | J116: kbenny07@yahoo.com | O116: 17 Power | P116: RHVC 17 Power Black | Q116: fj7rockh1pm | R116: 395 | S116: Rock Hill Volleyball Club | T116: 803-242-8009 | U116: 803-242-8009 | V116: rockhillvolleyball@gmail.com
B117: 9 | C117: 17 Power | D117: Magnum 17 Black | E117: fj7magnm2pm | F117: 395 | G117: Magnum Volleyball Club | H117: 803-730-6100 | I117: 803-730-6100 | J117: magnumvolleyball@gmail.com | O117: 17 Power | P117: RHVC 17 Power Red | Q117: fj7rockh2pm | R117: 395 | S117: Rock Hill Volleyball Club | T117: 803-242-8009 | U117: 803-242-8009 | V117: rockhillvolleyball@gmail.com
B118: 10 | C118: 17 Power | D118: BVA 17 National | E118: fj7biltm1cr | F118: 395 | G118: Biltmore Volleyball Academy | H118: 828-273-7837 | I118: 828-670-5427 | J118: jmbpeterson@att.net
B119: 11 | C119: 17 Power | D119: Chas Jrs 16 Red | E119: fj6charl1pm | F119: 395 | G119: Charleston Juniors | H119: 5612390117 | I119: 5612390117 | J119: directors@charlestonjuniors.com
B120: 12 | C120: 17 Power | D120: RHVC 17 Power Black | E120: fj7rockh1pm | F120: 395 | G120: Rock Hill Volleyball Club | H120: 803-242-8009 | I120: 803-242-8009 | J120: rockhillvolleyball@gmail.com | O120: 17 Power | P120: C1VB 17 Elite Greenville | Q120: fj7crone1pm | R120: 395 | S120: Carolina One | T120: 864-404-1963 | U120: 864-404-1963 | V120: kim.christman@carolinaonevolleyball.com
B121: 13 | C121: 17 Power | D121: Hurricane VBC 17 Cyclones | E121: fj7hurrc1pm | F121: 395 | G121: Hurricane Volleyball Club | H121: 706-564-7686 | I121: 706-564-7686 | J121: brianbyler@msn.com | O121: 17 Power | P121: C1VB 17 Power Pickens | Q121: fj7crone2pm | R121: 395 | S121: Carolina One | T121: 864-404-1963 | U121: 864-404-1963 | V121: kim.christman@carolinaonevolleyball.com
B122: 14 | C122: 17 Power | D122: Lake Murray 17 Red | E122: fj7lakem1pm | F122: 395 | G122: Lake Murray Volleyball Club | H122: 8035304598 | I122: 8035304598 | J122: shawn@lakemurrayvolleyball.com | O122: 17 Power | P122: Chas Jrs 16 Red | Q122: fj6charl1pm | R122: 395 | S122: Charleston Juniors | T122: 5612390117 | U122: 5612390117 | V122: directors@charlestonjuniors.com
B123: 15 | C123: 17 Power | D123: RHVC 17 Power Red | E123: fj7rockh2pm | F123: 395 | G123: Rock Hill Volleyball Club | H123: 803-242-8009 | I123: 803-242-8009 | J123: rockhillvolleyball@gmail.com | O123: 17 Power | P123: BVA 17 National | Q123: fj7biltm1cr | R123: 395 | S123: Biltmore Volleyball Academy | T123: 828-273-7837 | U123: 828-670-5427 | V123: jmbpeterson@att.net
A124: move to 16s | B124: 16 | C124: 17 Power | D124: Columbia SC Starlings 17 | E124: fj7starl1pm | F124: 395 | G124: Columbia SC Starlings | H124: 803-479-2941 | I124: 803-479-2941 | J124: columbiascstarlings@live.com | O124: 17 Power | P124: MEVC17Power | Q124: fj7mtnel1pm | R124: 395 | S124: Mountain Elite Volleyball Club | T124: 828-577-0550 | V124: kbenny07@yahoo.com
A125: MAX 16 | B125: FULL | O125: 17 Power | P125: Magnum 17 Mizuno | Q125: fj7magnm1pm | R125: 395 | S125: Magnum Volleyball Club | T125: 803-730-6100 | U125: 803-730-6100 | V125: magnumvolleyball@gmail.com
O126: 17 Power | P126: Magnum 17 Black | Q126: fj7magnm2pm | R126: 395 | S126: Magnum Volleyball Club | T126: 803-730-6100 | U126: 803-730-6100 | V126: magnumvolleyball@gmail.com
O127: 17 Power | P127: Low Country 17 Open | Q127: fj7lowco1pm | R127: 395 | S127: Low Country Volleyball Club | T127: 843-705-5293 | U127: 843-442-5083 | V127: spiker149@hargray.com
O128: 17 Power | P128: KC11 17's | Q128: fj7kc11j1pm | R128: 395 | S128: KC11 Volleyball Club | U128: 408-893-5711 | V128: kcvb11@yahoo.com
O129: 17 Power | P129: Foothills 17 | Q129: fj7footh7pm | R129: 420 | S129: Foothills Volleyball Club | T129: 8642471337 | U129: 8642471337 | V129: foothillsvbc@yahoo.com
B131: 1 | C131: 18 Power | D131: Magnum 18 Mizuno | E131: fj8magnm1pm | F131: 395 | G131: Magnum Volleyball Club | H131: 803-730-6100 | I131: 803-730-6100 | J131: magnumvolleyball@gmail.com | O131: 18 Power | P131: Upward Stars 18 Amy | Q131: fj8upwrd2pm | R131: 395 | S131: Upward Stars | T131: 864-949-5839 | U131: 864-909-3196 | V131: chelle@upward.org
B132: 2 | C132: 18 Power | D132: Upstate 18-1 Power | E132: fj8upsvc1pm | F132: 395 | G132: Upstate Volleyball Club | H132: 864-616-6987 | J132: amber@upstatevolleyball.net | O132: 18 Power | P132: Upward Stars 18 BC | Q132: fj8upwrd3pm | R132: 395 | S132: Upward Stars | T132: 864-949-5839 | U132: 864-909-3196 | V132: chelle@upward.org
B133: 3 | C133: 18 Power | D133: Hurricane VBC 18 Storm | E133: fj8hurrc1pm | F133: 395 | G133: Hurricane Volleyball Club | H133: 706-564-7686 | I133: 706-564-7686 | J133: brianbyler@msn.com | O133: 18 Power | P133: Upward Stars 18 Vickie | Q133: fj8upwrd4pm | R133: 395 | S133: Upward Stars | T133: 864-949-5839 | U133: 864-909-3196 | V133: chelle@upward.org
B134: 4 | C134: 18 Power | D134: Excell U18 Elite | E134: fj8excel1pm | G134: Excell Sports | H134: 864-787-5968 | I134: 864-787-5968 | J134: excellsports.org@gmail.com | O134: 18 Power | P134: Upstate 18-1 Power | Q134: fj8upsvc1pm | R134: 395 | S134: Upstate Volleyball Club | T134: 864-616-6987 | V134: amber@upstatevolleyball.net
B135: 5 | C135: 18 Power | D135: Upward Stars 18 Amy | E135: fj8upwrd2pm | F135: 395 | G135: Upward Stars | H135: 864-949-5839 | I135: 864-909-3196 | J135: chelle@upward.org | O135: 18 Power | P135: Lake Murray 18 Red | Q135: fj8lakem1pm | R135: 395 | S135: Lake Murray Volleyball Club | T135: 8035304598 | U135: 8035304598 | V135: shawn@lakemurrayvolleyball.com
B136: 6 | C136: 18 Power | D136: Extreme 18-1 | E136: fj8extvb1so | F136: 395 | G136: Extreme Volleyball Club | H136: 423-312-5207 | I136: 423-312-5207 | J136: goextremevolleyball@charter.net | O136: 18 Power | P136: Hurricane VBC 18 Storm | Q136: fj8hurrc1pm | R136: 395 | S136: Hurricane Volleyball Club | T136: 706-564-7686 | U136: 706-564-7686 | V136: brianbyler@msn.com
B137: 7 | C137: 18 Power | D137: Magnum Aiken 18 Green | E137: fj8magnm2pm | F137: 395 | G137: Magnum Volleyball Club | H137: 803-730-6100 | I137: 803-730-6100 | J137: magnumvolleyball@gmail.com | O137: 18 Power | P137: Foothills 18 Penni | Q137: fj8footh1pm | R137: 395 | S137: Foothills Volleyball Club | T137: 8642471337 | U137: 8642471337 | V137: foothillsvbc@yahoo.com
B138: 8 | C138: 18 Power | D138: Upward Stars 18 BC | E138: fj8upwrd3pm | F138: 395 | G138: Upward Stars | H138: 864-949-5839 | I138: 864-909-3196 | J138: chelle@upward.org | O138: 18 Power | P138: Extreme 18-1 | Q138: fj8extvb1so | R138: 395 | S138: Extreme Volleyball Club | T138: 423-312-5207 | U138: 423-312-5207 | V138: goextremevolleyball@charter.net
B139: 9 | C139: 18 Power | D139: Lake Murray 18 Red | E139: fj8lakem1pm | F139: 395 | G139: Lake Murray Volleyball Club | H139: 8035304598 | I139: 8035304598 | J139: shawn@lakemurrayvolleyball.com | O139: 18 Power | P139: Magnum 18 Mizuno | Q139: fj8magnm1pm | R139: 395 | S139: Magnum Volleyball Club | T139: 803-730-6100 | U139: 803-730-6100 | V139: magnumvolleyball@gmail.com
B140: 10 | C140: 18 Power | D140: Chas Jrs 18 Red | E140: fj8charl1pm | F140: 395 | G140: Charleston Juniors | H140: 5612390117 | I140: 5612390117 | J140: directors@charlestonjuniors.com | O140: 18 Power | P140: Magnum Aiken 18 Green | Q140: fj8magnm2pm | R140: 395 | S140: Magnum Volleyball Club | T140: 803-730-6100 | U140: 803-730-6100 | V140: magnumvolleyball@gmail.com
B141: 11 | C141: 18 Power | D141: Upward Stars 18 Vickie | E141: fj8upwrd4pm | F141: 395 | G141: Upward Stars | H141: 864-949-5839 | I141: 864-909-3196 | J141: chelle@upward.org | O141: 18 Power | P141: Chas Jrs 18 Red | Q141: fj8charl1pm | R141: 395 | S141: Charleston Juniors | T141: 5612390117 | U141: 5612390117 | V141: directors@charlestonjuniors.com
B142: 12 | C142: 17 Power | D142: PRV -17U Tony | E142: fj7prage1pm | G142: Palmetto Rage Volleyball Club | H142: 803-367-7712 | I142: 803-367-7712 | J142: mwbragg@comporium.net | O142: 18 Power | P142: High Velocity 18's | Q142: fj8hvelo1pm | R142: 395 | S142: High Velocity VBC | T142: 803-800-2336 | U142: 803-800-2336 | V142: mbeaver002@gmail.com
B143: 13 | C143: 17 Power | D143: HRVC SHOCK | E143: fj7hrock1cr | F143: 420 | G143: High Rock VBC | H143: 336-240-8530 | I143: 7042130637 | J143: hesterta@rss.k12.nc.us | O143: 18 Power | P143: Excell U18 Elite | Q143: fj8excel1pm | R143: 395 | S143: Excell Sports | T143: 864-787-5968 | U143: 864-787-5968 | V143: excellsports.org@gmail.com
A144: move up 50% | B144: 14 | C144: 18 Power | D144: High Velocity 18's | E144: fj8hvelo1pm | F144: 395 | G144: High Velocity VBC | H144: 803-800-2336 | I144: 803-800-2336 | J144: mbeaver002@gmail.com
B145: 15 | C145: 18 Power | D145: Foothills 18 Penni | E145: fj8footh1pm | F145: 395 | G145: Foothills Volleyball Club | H145: 8642471337 | I145: 8642471337 | J145: foothillsvbc@yahoo.com
B146: 16 | C146: 17 Power | D146: HRVC ACERS | E146: fj7hrock2cr | G146: High Rock VBC | H146: 336-240-8530 | I146: 7042130637 | J146: hesterta@rss.k12.nc.us
B147: FULL
C157: Move to club | D157: 18 | E157: 14 Power | F157: Chas Jrs 14 Blue | G157: fj4charl2pm | H157: 395 | I157: Charleston Juniors | J157: 5612390117 | K157: 5612390117 | L157: directors@charlestonjuniors.com | Q157: 14 Power | R157: Chas Jrs 14 Blue | S157: fj4charl2pm | T157: 395 | U157: Charleston Juniors

Sheet divisions (hidden)
D3: Division | E3: Max Tms | F3: Tms Entered | H3: =SUM(H6:H11) -> 33
D4: as of | F4: =SUM(F5:F11) -> 126 | G4: Pools | H4: nets | I4: nets secured
J5: star ctr | K5: VB Ctr
B6: Upward | D6: 12-13 Power | E6: 16 | F6: 16 | G6: 16 | H6: 4 | I6: 4 | J6: 2 | K6: 2 | M6: set
B7: Srec, Img | D7: 14 Power | E7: 24 | F7: 25 | G7: 24 | H7: 6 | I7: 6 | M7: Asked to move 1 tm, excel, coastal
B8: LU EC Y | D8: 15 Power | E8: 32 | F8: 29 | H8: 8 | I8: 8 | L8: 3- LU, 2 EC, 3 YMCA | M8: ok
B9: Upward | D9: 16 Power | E9: 24 | F9: 24 | G9: 24 | H9: 6 | I9: 6 | J9: 4 | K9: 2 | M9: set 24
B10: Upward | D10: 17 Power | E10: 16 | F10: 19 | G10: 16 | H10: 5 | I10: 4 | J10: 3 | K10: 1 | M10: possibly to 16, move 3 to 18s
B11: Upward | D11: 18 Power | E11: 16 | F11: 13 | G11: 16 | H11: 4 | I11: 4 | J11: 3 | K11: 1 | M11: try to move to 16 tms

Sheet seeding 02 17 (hidden)
B3: Seed | C3: Rating | D3: Division | E3: Name | F3: Team Code | G3: Paid Amount | H3: Club Name | I3: Club Day Phone | J3: Club Night Phone | K3: Club Email
B4: 1 | C4: =VLOOKUP(F4,[4]Initial!#REF!,5,FALSE) ->  | D4: 12-13 Power | E4: C1VB 13 Power Grvl | F4: fj3crone1pm | G4: 395 | H4: Carolina One | I4: 864-404-1963 | J4: 864-404-1963 | K4: kim.christman@carolinaonevolleyball.com
B5: 2 | C5: =VLOOKUP(F5,[4]Initial!#REF!,5,FALSE) ->  | D5: 12-13 Power | E5: Low Country 13 Open | F5: fj3lowco1pm | G5: 395 | H5: Low Country Volleyball Club | I5: 843-705-5293 | J5: 843-442-5083 | K5: spiker149@hargray.com
B6: 3 | C6: =VLOOKUP(F6,[4]Initial!#REF!,5,FALSE) ->  | D6: 12-13 Power | E6: Vision 13 National | F6: fj3vison1pm | G6: 395 | H6: Vision | I6: 9517433438 | J6: 9517433438 | K6: gkrieger@andersonuniversity.edu
B7: 4 | C7: =VLOOKUP(F7,[4]Initial!#REF!,5,FALSE) ->  | D7: 12-13 Power | E7: Magnum 13 Mizuno | F7: fj3magnm1pm | G7: 395 | H7: Magnum Volleyball Club | I7: 803-730-6100 | J7: 803-730-6100 | K7: magnumvolleyball@gmail.com
B8: 5 | C8: =VLOOKUP(F8,[4]Initial!#REF!,5,FALSE) ->  | D8: 12-13 Power | E8: CSRA Heat 13 Gold | F8: fj3csrah1pm | G8: 395 | H8: CSRA Heat | I8: 803-2088928 | J8: 706-399-4225 | K8: director@csraheat.com
B9: 6 | C9: =VLOOKUP(F9,[4]Initial!#REF!,5,FALSE) ->  | D9: 12-13 Power | E9: Fort Mill VBC 13 Purple | F9: fj3fortm1pm | G9: 395 | H9: Fort Mill VBC | J9: 704.607.9206 | K9: FortMillVBC@gmail.com
B10: 7 | C10: 2000 | D10: 12-13 Power | E10: KVA 13Vanessa | F10: fj3david1so | G10: 395 | H10: Knoxville Volleyball Academy | I10: 423-736-7406 | K10: kvavolleyball@gmail.com
B11: 8 | C11: =VLOOKUP(F11,[4]Initial!#REF!,5,FALSE) ->  | D11: 12-13 Power | E11: Upward Stars 13 Becky | F11: fj3upwrd2pm | G11: 395 | H11: Upward Stars | I11: 864-949-5839 | J11: 864-909-3196 | K11: chelle@upward.org
B12: 9 | C12: =VLOOKUP(F12,[4]Initial!#REF!,5,FALSE) ->  | D12: 12-13 Power | E12: Magnum Aiken 13 Green | F12: fj3magnm3pm | G12: 395 | H12: Magnum Volleyball Club | I12: 803-730-6100 | J12: 803-730-6100 | K12: magnumvolleyball@gmail.com
B13: 10 | C13: 1990 | D13: 12-13 Power | E13: Upward Stars 13 BrittanyL | F13: fj3upwrd3pm | G13: 395 | H13: Upward Stars | I13: 864-949-5839 | J13: 864-909-3196 | K13: chelle@upward.org
B14: 11 | C14: =VLOOKUP(F14,[4]Initial!#REF!,5,FALSE) ->  | D14: 12-13 Power | E14: Magnum 13 Black | F14: fj3magnm2pm | G14: 395 | H14: Magnum Volleyball Club | I14: 803-730-6100 | J14: 803-730-6100 | K14: magnumvolleyball@gmail.com
B15: 12 | C15: 1980 | D15: 12-13 Power | E15: Upward Stars 13 Emily | F15: fj3upwrd4pm | G15: 395 | H15: Upward Stars | I15: 864-949-5839 | J15: 864-909-3196 | K15: chelle@upward.org
B16: 13 | C16: 1970 | D16: 12-13 Power | E16: Upward Stars 13 Abbey | F16: fj3upwrd5pm | G16: 395 | H16: Upward Stars | I16: 864-949-5839 | J16: 864-909-3196 | K16: chelle@upward.org
B17: 14 | C17: =VLOOKUP(F17,[4]Initial!#REF!,5,FALSE) ->  | D17: 12-13 Power | E17: Chas Jrs 13 Red | F17: fj3charl1pm | G17: 395 | H17: Charleston Juniors | I17: 5612390117 | J17: 5612390117 | K17: directors@charlestonjuniors.com
B18: 15 | C18: 1900 | D18: 12-13 Power | E18: Upward Stars 12 Candi | F18: fj2upwrd2pm | G18: 395 | H18: Upward Stars | I18: 864-949-5839 | J18: 864-909-3196 | K18: chelle@upward.org
B19: 16 | C19: =VLOOKUP(F19,[4]Initial!#REF!,5,FALSE) ->  | D19: 12-13 Power | E19: Magnum 13 Blue | F19: fj3magnm4pm | G19: 395 | H19: Magnum Volleyball Club | I19: 803-730-6100 | J19: 803-730-6100 | K19: magnumvolleyball@gmail.com
B22: 1 | C22: =VLOOKUP(F22,[4]Initial!#REF!,5,FALSE) ->  | D22: 14 Power | E22: C1VB 14 Elite Greenville | F22: fj4crone1pm | G22: 395 | H22: Carolina One | I22: 864-404-1963 | J22: 864-404-1963 | K22: kim.christman@carolinaonevolleyball.com
B23: 2 | C23: =VLOOKUP(F23,[4]Initial!#REF!,5,FALSE) ->  | D23: 14 Power | E23: Excell U14 Elite | F23: fj4excel1pm | G23: 395 | H23: Excell Sports | I23: 864-787-5968 | J23: 864-787-5968 | K23: excellsports.org@gmail.com
B24: 3 | C24: =VLOOKUP(F24,[4]Initial!#REF!,5,FALSE) ->  | D24: 14 Power | E24: C1VB 14 Power Grvl | F24: fj4crone2pm | G24: 395 | H24: Carolina One | I24: 864-404-1963 | J24: 864-404-1963 | K24: kim.christman@carolinaonevolleyball.com
B25: 4 | C25: =VLOOKUP(F25,[4]Initial!#REF!,5,FALSE) ->  | D25: 14 Power | E25: Lake Murray 14 Red | F25: fj4lakem1pm | G25: 395 | H25: Lake Murray Volleyball Club | I25: 8035304598 | J25: 8035304598 | K25: shawn@lakemurrayvolleyball.com
B26: 5 | C26: =VLOOKUP(F26,[4]Initial!#REF!,5,FALSE) ->  | D26: 14 Power | E26: Magnum 14 Elite | F26: fj4magnm2pm | G26: 395 | H26: Magnum Volleyball Club | I26: 803-730-6100 | J26: 803-730-6100 | K26: magnumvolleyball@gmail.com
B27: 6 | C27: =VLOOKUP(F27,[4]Initial!#REF!,5,FALSE) ->  | D27: 14 Power | E27: BVA 14N | F27: fj4biltm1cr | G27: 395 | H27: Biltmore Volleyball Academy | I27: 828-273-7837 | J27: 828-670-5427 | K27: jmbpeterson@att.net
B28: 7 | C28: =VLOOKUP(F28,[4]Initial!#REF!,5,FALSE) ->  | D28: 14 Power | E28: Chas Jrs 14 Red | F28: fj4charl1pm | G28: 395 | H28: Charleston Juniors | I28: 5612390117 | J28: 5612390117 | K28: directors@charlestonjuniors.com
B29: 8 | C29: =VLOOKUP(F29,[4]Initial!#REF!,5,FALSE) ->  | D29: 14 Power | E29: Vision 14 National | F29: fj4vison1pm | G29: 200 | H29: Vision | I29: 9517433438 | J29: 9517433438 | K29: gkrieger@andersonuniversity.edu
B30: 9 | C30: =VLOOKUP(F30,[4]Initial!#REF!,5,FALSE) ->  | D30: 14 Power | E30: Magnum 14 Mizuno | F30: fj4magnm1pm | G30: 395 | H30: Magnum Volleyball Club | I30: 803-730-6100 | J30: 803-730-6100 | K30: magnumvolleyball@gmail.com
B31: 10 | C31: =VLOOKUP(F31,[4]Initial!#REF!,5,FALSE) ->  | D31: 14 Power | E31: Beaufort 14 National | F31: fj4beauf1pm | G31: 395 | H31: Beaufort Volleyball Club | I31: 8435210142 | J31: 8432633745 | K31: michaeldixon56@gmail.com
B32: 11 | C32: =VLOOKUP(F32,[4]Initial!#REF!,5,FALSE) ->  | D32: 14 Power | E32: SOAR BLUE 14UP | F32: fj4soarj1pm | G32: 395 | H32: Soar VBC | J32: 803-322-3965 | K32: Tamara.Jacobus@clover.k12.sc.us
B33: 12 | C33: 2200 | D33: 14 Power | E33: KVA 14Shannon | F33: fj4david1so | G33: 395 | H33: Knoxville Volleyball Academy | I33: 423-736-7406 | K33: kvavolleyball@gmail.com
B34: 13 | C34: =VLOOKUP(F34,[4]Initial!#REF!,5,FALSE) ->  | D34: 14 Power | E34: Upward Stars 14 Bridgette | F34: fj4upwrd2pm | G34: 395 | H34: Upward Stars | I34: 864-949-5839 | J34: 864-909-3196 | K34: chelle@upward.org
B35: 14 | C35: =VLOOKUP(F35,[4]Initial!#REF!,5,FALSE) ->  | D35: 14 Power | E35: HRVC TEAM RICOCHET | F35: fj4hrock1cr | G35: 395 | H35: High Rock VBC | I35: 336-240-8530 | J35: 7042130637 | K35: hesterta@rss.k12.nc.us
B36: 15 | C36: 2175 | D36: 14 Power | E36: Magnum Aiken 14 Green | F36: fj4magnm3pm | G36: 395 | H36: Magnum Volleyball Club | I36: 803-730-6100 | J36: 803-730-6100 | K36: magnumvolleyball@gmail.com
B37: 16 | C37: =VLOOKUP(F37,[4]Initial!#REF!,5,FALSE) ->  | D37: 14 Power | E37: Kershaw 14 Black | F37: fj4kersh1pm | G37: 395 | H37: Kershaw County Juniors | I37: 803-427-1018 | J37: 803-427-1018 | K37: paige.wilson@kcsdschools.net
B38: 17 | C38: =VLOOKUP(F38,[4]Initial!#REF!,5,FALSE) ->  | D38: 14 Power | E38: CSRA Heat 14 Gold | F38: fj4csrah1pm | G38: 395 | H38: CSRA Heat | I38: 803-2088928 | J38: 706-399-4225 | K38: director@csraheat.com
B39: 18 | C39: 2150 | D39: 14 Power | E39: A5 Mizuno 14-4 LA | F39: fj4afive4so | G39: 395 | H39: A5 Volleyball Club | I39: 404-697-4825 | J39: 919-357-2935 | K39: info@a5volleyball.com
B40: 19 | C40: =VLOOKUP(F40,[4]Initial!#REF!,5,FALSE) ->  | D40: 14 Power | E40: C1VB 14 Power Pickens | F40: fj4crone3pm | G40: 395 | H40: Carolina One | I40: 864-404-1963 | J40: 864-404-1963 | K40: kim.christman@carolinaonevolleyball.com
B41: 20 | C41: =VLOOKUP(F41,[4]Initial!#REF!,5,FALSE) ->  | D41: 14 Power | E41: Chas Jrs 14 Blue | F41: fj4charl2pm | G41: 395 | H41: Charleston Juniors | I41: 5612390117 | J41: 5612390117 | K41: directors@charlestonjuniors.com
B42: 21 | C42: =VLOOKUP(F42,[4]Initial!#REF!,5,FALSE) ->  | D42: 14 Power | E42: Upstate 14-1 Power | F42: fj4upsvc1pm | G42: 395 | H42: Upstate Volleyball Club | I42: 864-616-6987 | K42: amber@upstatevolleyball.net
B43: 22 | C43: =VLOOKUP(F43,[4]Initial!#REF!,5,FALSE) ->  | D43: 14 Power | E43: Low Country 14 Power | F43: fj4lowco1pm | G43: 395 | H43: Low Country Volleyball Club | I43: 843-705-5293 | J43: 843-442-5083 | K43: spiker149@hargray.com
B44: 23 | C44: 2100 | D44: 14 Power | E44: HRVC SIDE OUT | F44: fj4hrock2cr | G44: 395 | H44: High Rock VBC | I44: 336-240-8530 | J44: 7042130637 | K44: hesterta@rss.k12.nc.us
B45: 24 | C45: =VLOOKUP(F45,[4]Initial!#REF!,5,FALSE) ->  | D45: 14 Power | E45: RHVC 14 Power | F45: fj4rockh1pm | G45: 395 | H45: Rock Hill Volleyball Club | I45: 803-242-8009 | J45: 803-242-8009 | K45: rockhillvolleyball@gmail.com
B46: 25 | C46: =VLOOKUP(F46,[4]Initial!#REF!,5,FALSE) ->  | D46: 14 Power | E46: Coastal 14 Storm | F46: fj4ccoas1pm | H46: club coastal volleyball | I46: 843-325-1973 | J46: 843-325-1973 | K46: coachjarod@clubcoastalvolleyball.com
B49: 1 | C49: =VLOOKUP(F49,[4]Initial!#REF!,5,FALSE) ->  | D49: 15 Power | E49: Low Country 15 Open | F49: fj5lowco1pm | G49: 395 | H49: Low Country Volleyball Club | I49: 843-705-5293 | J49: 843-442-5083 | K49: spiker149@hargray.com
B50: 2 | C50: =VLOOKUP(F50,[4]Initial!#REF!,5,FALSE) ->  | D50: 15 Power | E50: C1VB 15 Elite Greenville | F50: fj5crone2pm | G50: 395 | H50: Carolina One | I50: 864-404-1963 | J50: 864-404-1963 | K50: kim.christman@carolinaonevolleyball.com
B51: 3 | C51: =VLOOKUP(F51,[4]Initial!#REF!,5,FALSE) ->  | D51: 15 Power | E51: Lake Murray 15 Red | F51: fj5lakem1pm | G51: 395 | H51: Lake Murray Volleyball Club | I51: 8035304598 | J51: 8035304598 | K51: shawn@lakemurrayvolleyball.com
B52: 4 | C52: =VLOOKUP(F52,[4]Initial!#REF!,5,FALSE) ->  | D52: 15 Power | E52: Magnum 15 Mizuno | F52: fj5magnm1pm | G52: 395 | H52: Magnum Volleyball Club | I52: 803-730-6100 | J52: 803-730-6100 | K52: magnumvolleyball@gmail.com
B53: 5 | C53: =VLOOKUP(F53,[4]Initial!#REF!,5,FALSE) ->  | D53: 15 Power | E53: C1VB 15 Elite Pickens | F53: fj5crone1pm | G53: 395 | H53: Carolina One | I53: 864-404-1963 | J53: 864-404-1963 | K53: kim.christman@carolinaonevolleyball.com
B54: 6 | C54: =VLOOKUP(F54,[4]Initial!#REF!,5,FALSE) ->  | D54: 15 Power | E54: Chas Jrs 15 Red | F54: fj5charl1pm | G54: 395 | H54: Charleston Juniors | I54: 5612390117 | J54: 5612390117 | K54: directors@charlestonjuniors.com
B55: 7 | C55: =VLOOKUP(F55,[4]Initial!#REF!,5,FALSE) ->  | D55: 15 Power | E55: Magnum 15 Black | F55: fj5magnm5pm | G55: 395 | H55: Magnum Volleyball Club | I55: 803-730-6100 | J55: 803-730-6100 | K55: magnumvolleyball@gmail.com
B56: 8 | C56: =VLOOKUP(F56,[4]Initial!#REF!,5,FALSE) ->  | D56: 15 Power | E56: Vision 15 National | F56: fj5vison1pm | G56: 200 | H56: Vision | I56: 9517433438 | J56: 9517433438 | K56: gkrieger@andersonuniversity.edu
B57: 9 | C57: =VLOOKUP(F57,[4]Initial!#REF!,5,FALSE) ->  | D57: 15 Power | E57: CSRA Heat 15 Gold | F57: fj5csrah1pm | G57: 395 | H57: CSRA Heat | I57: 803-2088928 | J57: 706-399-4225 | K57: director@csraheat.com
B58: 10 | C58: =VLOOKUP(F58,[4]Initial!#REF!,5,FALSE) ->  | D58: 15 Power | E58: Magnum 15 Elite | F58: fj5magnm2pm | G58: 395 | H58: Magnum Volleyball Club | I58: 803-730-6100 | J58: 803-730-6100 | K58: magnumvolleyball@gmail.com
B59: 11 | C59: =VLOOKUP(F59,[4]Initial!#REF!,5,FALSE) ->  | D59: 15 Power | E59: TLVC 15 | F59: fj5tlife1cr | G59: 395 | H59: Team Life Volleyball Club | I59: 8285723367 | J59: 8283151812 | K59: teamlifevball@gmail.com
B60: 12 | C60: =VLOOKUP(F60,[4]Initial!#REF!,5,FALSE) ->  | D60: 15 Power | E60: Upward Stars 15 Taylor | F60: fj5upwrd2pm | G60: 395 | H60: Upward Stars | I60: 864-949-5839 | J60: 864-909-3196 | K60: chelle@upward.org
B61: 13 | C61: =VLOOKUP(F61,[4]Initial!#REF!,5,FALSE) ->  | D61: 15 Power | E61: BVC 15 Black | F61: fj5bvcal1so | G61: 395 | H61: Birmingham Volleyball Club | I61: 2053582065 | J61: 2053582065 | K61: lacy@birminghamvolleyball.com
B62: 14 | C62: =VLOOKUP(F62,[4]Initial!#REF!,5,FALSE) ->  | D62: 15 Power | E62: HRVC LEGACY | F62: fj5hrock2cr | G62: 395 | H62: High Rock VBC | I62: 336-240-8530 | J62: 7042130637 | K62: hesterta@rss.k12.nc.us
B63: 15 | C63: =VLOOKUP(F63,[4]Initial!#REF!,5,FALSE) ->  | D63: 15 Power | E63: Biltmore 15 Elite | F63: fj5biltm1cr | G63: 395 | H63: Biltmore Volleyball Academy | I63: 828-273-7837 | J63: 828-670-5427 | K63: jmbpeterson@att.net
B64: 16 | C64: =VLOOKUP(F64,[4]Initial!#REF!,5,FALSE) ->  | D64: 15 Power | E64: Magnum Aiken 15 Green | F64: fj5magnm3pm | G64: 395 | H64: Magnum Volleyball Club | I64: 803-730-6100 | J64: 803-730-6100 | K64: magnumvolleyball@gmail.com
B65: 17 | C65: =VLOOKUP(F65,[4]Initial!#REF!,5,FALSE) ->  | D65: 15 Power | E65: Fort Mill VBC 15 Purple | F65: fj5fortm1pm | G65: 395 | H65: Fort Mill VBC | J65: 704.607.9206 | K65: FortMillVBC@gmail.com
B66: 18 | C66: =VLOOKUP(F66,[4]Initial!#REF!,5,FALSE) ->  | D66: 15 Power | E66: Crossfire 15 Power | F66: fj5crosf1pm | G66: 395 | H66: Crossfire Volleyball | I66: 8649050470 | J66: 8649050470 | K66: crossfirevolleyballsc@gmail.com
B67: 19 | C67: 2375 | D67: 15 Power | E67: Upward Stars 15 Mark | F67: fj5upwrd3pm | G67: 395 | H67: Upward Stars | I67: 864-949-5839 | J67: 864-909-3196 | K67: chelle@upward.org
B68: 20 | C68: 2375 | D68: 15 Power | E68: BVA 15 National | F68: fj5biltm2cr | G68: 395 | H68: Biltmore Volleyball Academy | I68: 828-273-7837 | J68: 828-670-5427 | K68: jmbpeterson@att.net
B69: 21 | C69: =VLOOKUP(F69,[4]Initial!#REF!,5,FALSE) ->  | D69: 15 Power | E69: C1VB 15 Power Grvl | F69: fj5crone3pm | G69: 395 | H69: Carolina One | I69: 864-404-1963 | J69: 864-404-1963 | K69: kim.christman@carolinaonevolleyball.com
B70: 22 | C70: =VLOOKUP(F70,[4]Initial!#REF!,5,FALSE) ->  | D70: 15 Power | E70: RHVC 15 Power Black | F70: fj5rockh1pm | G70: 395 | H70: Rock Hill Volleyball Club | I70: 803-242-8009 | J70: 803-242-8009 | K70: rockhillvolleyball@gmail.com
B71: 23 | C71: =VLOOKUP(F71,[4]Initial!#REF!,5,FALSE) ->  | D71: 15 Power | E71: Hurricane VBC 15 Riptide | F71: fj5hurrc1pm | G71: 395 | H71: Hurricane Volleyball Club | I71: 706-564-7686 | J71: 706-564-7686 | K71: brianbyler@msn.com
B72: 24 | C72: =VLOOKUP(F72,[4]Initial!#REF!,5,FALSE) ->  | D72: 15 Power | E72: RHVC 15 Power Red | F72: fj5rockh2pm | G72: 395 | H72: Rock Hill Volleyball Club | I72: 803-242-8009 | J72: 803-242-8009 | K72: rockhillvolleyball@gmail.com
B73: 25 | C73: =VLOOKUP(F73,[4]Initial!#REF!,5,FALSE) ->  | D73: 15 Power | E73: High Velocity 15's | F73: fj5hvelo1pm | G73: 395 | H73: High Velocity VBC | I73: 803-800-2336 | J73: 803-800-2336 | K73: mbeaver002@gmail.com
B74: 26 | C74: =VLOOKUP(F74,[4]Initial!#REF!,5,FALSE) ->  | D74: 15 Power | E74: Beaufort 15 U | F74: fj5beauf1pm | G74: 395 | H74: Beaufort Volleyball Club | I74: 8435210142 | J74: 8432633745 | K74: michaeldixon56@gmail.com
B75: 27 | C75: =VLOOKUP(F75,[4]Initial!#REF!,5,FALSE) ->  | D75: 15 Power | E75: Upstate 15-2 Power | F75: fj5upsvc2pm | G75: 395 | H75: Upstate Volleyball Club | I75: 864-616-6987 | K75: amber@upstatevolleyball.net
B76: 28 | C76: =VLOOKUP(F76,[4]Initial!#REF!,5,FALSE) ->  | D76: 15 Power | E76: CSRA Heat 15 Black | F76: fj5csrah2pm | G76: 395 | H76: CSRA Heat | I76: 803-2088928 | J76: 706-399-4225 | K76: director@csraheat.com
B79: 1 | C79: =VLOOKUP(F79,[4]Initial!#REF!,5,FALSE) ->  | D79: 16 Power | E79: Magnum 16 Mizuno | F79: fj6magnm1pm | G79: 395 | H79: Magnum Volleyball Club | I79: 803-730-6100 | J79: 803-730-6100 | K79: magnumvolleyball@gmail.com
B80: 2 | C80: =VLOOKUP(F80,[4]Initial!#REF!,5,FALSE) ->  | D80: 16 Power | E80: Hurricane VBC 16 Tsunami | F80: fj6hurrc1pm | G80: 395 | H80: Hurricane Volleyball Club | I80: 706-564-7686 | J80: 706-564-7686 | K80: brianbyler@msn.com
B81: 3 | C81: =VLOOKUP(F81,[4]Initial!#REF!,5,FALSE) ->  | D81: 16 Power | E81: Magnum 16 Elite | F81: fj6magnm2pm | G81: 395 | H81: Magnum Volleyball Club | I81: 803-730-6100 | J81: 803-730-6100 | K81: magnumvolleyball@gmail.com
B82: 4 | C82: =VLOOKUP(F82,[4]Initial!#REF!,5,FALSE) ->  | D82: 16 Power | E82: TLVC 16 | F82: fj6tlife1cr | G82: 395 | H82: Team Life Volleyball Club | I82: 8285723367 | J82: 8283151812 | K82: teamlifevball@gmail.com
B83: 5 | C83: =VLOOKUP(F83,[4]Initial!#REF!,5,FALSE) ->  | D83: 16 Power | E83: BVA 16 Elite | F83: fj6biltm1cr | G83: 395 | H83: Biltmore Volleyball Academy | I83: 828-273-7837 | J83: 828-670-5427 | K83: jmbpeterson@att.net
B84: 6 | C84: =VLOOKUP(F84,[4]Initial!#REF!,5,FALSE) ->  | D84: 16 Power | E84: Upward Stars 16 Andrew | F84: fj6upwrd2pm | G84: 395 | H84: Upward Stars | I84: 864-949-5839 | J84: 864-909-3196 | K84: chelle@upward.org
B85: 9 | C85: =VLOOKUP(F85,[4]Initial!#REF!,5,FALSE) ->  | D85: 16 Power | E85: Extreme 16 Taylor | F85: fj6triex2so | G85: 395 | H85: Tri-Cities Extreme Velocity | I85: 423 -213 -1899 | K85: dalecasey21@aol.com
B86: 10 | C86: =VLOOKUP(F86,[4]Initial!#REF!,5,FALSE) ->  | D86: 16 Power | E86: BVA 16 National | F86: fj6biltm2cr | G86: 395 | H86: Biltmore Volleyball Academy | I86: 828-273-7837 | J86: 828-670-5427 | K86: jmbpeterson@att.net
B87: 12 | C87: =VLOOKUP(F87,[4]Initial!#REF!,5,FALSE) ->  | D87: 16 Power | E87: Soar Rockets 16U | F87: fj6soarj1pm | G87: 395 | H87: Soar VBC | J87: 803-322-3965 | K87: Tamara.Jacobus@clover.k12.sc.us
B88: 11 | C88: 2590 | D88: 16 Power | E88: Magnum Aiken 16 Green | F88: fj6magnm3pm | G88: 395 | H88: Magnum Volleyball Club | I88: 803-730-6100 | J88: 803-730-6100 | K88: magnumvolleyball@gmail.com
B89: 7 | C89: 2575 | D89: 16 Power | E89: Upward Stars 16 Leslie | F89: fj6upwrd3pm | G89: 395 | H89: Upward Stars | I89: 864-949-5839 | J89: 864-909-3196 | K89: chelle@upward.org
B90: 13 | C90: =VLOOKUP(F90,[4]Initial!#REF!,5,FALSE) ->  | D90: 16 Power | E90: CSRA Heat 16 Gold | F90: fj6csrah1pm | G90: 395 | H90: CSRA Heat | I90: 803-2088928 | J90: 706-399-4225 | K90: director@csraheat.com
B91: 8 | C91: 2550 | D91: 16 Power | E91: Upward Stars 16 Brandon | F91: fj6upwrd4pm | G91: 395 | H91: Upward Stars | I91: 864-949-5839 | J91: 864-909-3196 | K91: chelle@upward.org
B92: 14 | C92: =VLOOKUP(F92,[4]Initial!#REF!,5,FALSE) ->  | D92: 16 Power | E92: Fort Mill VBC 16 Purple | F92: fj6fortm1pm | G92: 395 | H92: Fort Mill VBC | J92: 704.607.9206 | K92: FortMillVBC@gmail.com
B93: 15 | C93: =VLOOKUP(F93,[4]Initial!#REF!,5,FALSE) ->  | D93: 16 Power | E93: Crossfire 16 Power | F93: fj6crosf1pm | G93: 395 | H93: Crossfire Volleyball | I93: 8649050470 | J93: 8649050470 | K93: crossfirevolleyballsc@gmail.com
B94: 16 | C94: =VLOOKUP(F94,[4]Initial!#REF!,5,FALSE) ->  | D94: 16 Power | E94: Excell U16 Power | F94: fj6excel1pm | G94: 395 | H94: Excell Sports | I94: 864-787-5968 | J94: 864-787-5968 | K94: excellsports.org@gmail.com
B95: 17 | C95: =VLOOKUP(F95,[4]Initial!#REF!,5,FALSE) ->  | D95: 16 Power | E95: Vision 16 National | F95: fj6vison1pm | G95: 200 | H95: Vision | I95: 9517433438 | J95: 9517433438 | K95: gkrieger@andersonuniversity.edu
B96: 18 | C96: =VLOOKUP(F96,[4]Initial!#REF!,5,FALSE) ->  | D96: 16 Power | E96: MOTO 16 | F96: fj6motoj1pm | G96: 200 | H96: MOTO | I96: (803) 728-0037 | J96: (803) 446-7337 | K96: motovolleyballclub@gmail.com
B97: 19 | C97: =VLOOKUP(F97,[4]Initial!#REF!,5,FALSE) ->  | D97: 16 Power | E97: C1VB 16 Power Grvl | F97: fj6crone1pm | G97: 395 | H97: Carolina One | I97: 864-404-1963 | J97: 864-404-1963 | K97: kim.christman@carolinaonevolleyball.com
B98: 20 | C98: =VLOOKUP(F98,[4]Initial!#REF!,5,FALSE) ->  | D98: 16 Power | E98: Upstate 16-2 Power | F98: fj6upsvc2pm | G98: 395 | H98: Upstate Volleyball Club | I98: 864-616-6987 | K98: amber@upstatevolleyball.net
B99: 21 | C99: =VLOOKUP(F99,[4]Initial!#REF!,5,FALSE) ->  | D99: 16 Power | E99: Coastal 16 Elite | F99: fj6ccoas1pm | H99: club coastal volleyball | I99: 843-325-1973 | J99: 843-325-1973 | K99: coachjarod@clubcoastalvolleyball.com
B100: 22 | C100: =VLOOKUP(F100,[4]Initial!#REF!,5,FALSE) ->  | D100: 16 Power | E100: CSRA Heat 16 Black | F100: fj6csrah2pm | G100: 395 | H100: CSRA Heat | I100: 803-2088928 | J100: 706-399-4225 | K100: director@csraheat.com
B101: 23 | C101: =VLOOKUP(F101,[4]Initial!#REF!,5,FALSE) ->  | D101: 16 Power | E101: LAVA 16U Purple | F101: fj6lavaf1cr | G101: 420 | H101: Lakewood Area Volleyball Association | J101: 910-596-1102 | K101: heinz_dan@yahoo.com
B102: 24 | C102: =VLOOKUP(F102,[4]Initial!#REF!,5,FALSE) ->  | D102: 16 Power | E102: Coastal 16 Hurricanes | F102: fj5ccoas2pm | H102: club coastal volleyball | I102: 843-325-1973 | J102: 843-325-1973 | K102: coachjarod@clubcoastalvolleyball.com
B105: 1 | C105: =VLOOKUP(F105,[4]Initial!#REF!,5,FALSE) ->  | D105: 17 Power | E105: KC11 17's | F105: fj7kc11j1pm | G105: 395 | H105: KC11 Volleyball Club | J105: 408-893-5711 | K105: kcvb11@yahoo.com
B106: 2 | C106: =VLOOKUP(F106,[4]Initial!#REF!,5,FALSE) ->  | D106: 17 Power | E106: Magnum 17 Mizuno | F106: fj7magnm1pm | G106: 395 | H106: Magnum Volleyball Club | I106: 803-730-6100 | J106: 803-730-6100 | K106: magnumvolleyball@gmail.com
B107: 3 | C107: =VLOOKUP(F107,[4]Initial!#REF!,5,FALSE) ->  | D107: 17 Power | E107: Kershaw 17 Black | F107: fj7kersh1pm | G107: 395 | H107: Kershaw County Juniors | I107: 803-427-1018 | J107: 803-427-1018 | K107: paige.wilson@kcsdschools.net
B108: 4 | C108: =VLOOKUP(F108,[4]Initial!#REF!,5,FALSE) ->  | D108: 17 Power | E108: C1VB 17 Power Pickens | F108: fj7crone2pm | G108: 395 | H108: Carolina One | I108: 864-404-1963 | J108: 864-404-1963 | K108: kim.christman@carolinaonevolleyball.com
B109: 5 | C109: =VLOOKUP(F109,[4]Initial!#REF!,5,FALSE) ->  | D109: 17 Power | E109: Low Country 17 Open | F109: fj7lowco1pm | G109: 395 | H109: Low Country Volleyball Club | I109: 843-705-5293 | J109: 843-442-5083 | K109: spiker149@hargray.com
B110: 6 | C110: =VLOOKUP(F110,[4]Initial!#REF!,5,FALSE) ->  | D110: 17 Power | E110: C1VB 17 Elite Greenville | F110: fj7crone1pm | G110: 395 | H110: Carolina One | I110: 864-404-1963 | J110: 864-404-1963 | K110: kim.christman@carolinaonevolleyball.com
B111: 7 | C111: =VLOOKUP(F111,[4]Initial!#REF!,5,FALSE) ->  | D111: 17 Power | E111: PRV -17U Tony | F111: fj7prage1pm | G111: 420 | H111: Palmetto Rage Volleyball Club | I111: 803-367-7712 | J111: 803-367-7712 | K111: mwbragg@comporium.net
B112: 8 | C112: 2800 | D112: 17 Power | E112: HRVC SHOCK | F112: fj7hrock1cr | G112: 420 | H112: High Rock VBC | I112: 336-240-8530 | J112: 7042130637 | K112: hesterta@rss.k12.nc.us
B113: 10 | C113: =VLOOKUP(F113,[4]Initial!#REF!,5,FALSE) ->  | D113: 17 Power | E113: Upward Stars 17 Melissa | F113: fj7upwrd2pm | G113: 395 | H113: Upward Stars | I113: 864-949-5839 | J113: 864-909-3196 | K113: chelle@upward.org
B114: 11 | C114: =VLOOKUP(F114,[4]Initial!#REF!,5,FALSE) ->  | D114: 17 Power | E114: MEVC17Power | F114: fj7mtnel1pm | G114: 395 | H114: Mountain Elite Volleyball Club | I114: 828-577-0550 | K114: kbenny07@yahoo.com
B115: 9 | C115: 2775 | D115: 17 Power | E115: HRVC ACERS | F115: fj7hrock2cr | H115: High Rock VBC | I115: 336-240-8530 | J115: 7042130637 | K115: hesterta@rss.k12.nc.us
B116: 12 | C116: =VLOOKUP(F116,[4]Initial!#REF!,5,FALSE) ->  | D116: 17 Power | E116: Magnum 17 Black | F116: fj7magnm2pm | G116: 395 | H116: Magnum Volleyball Club | I116: 803-730-6100 | J116: 803-730-6100 | K116: magnumvolleyball@gmail.com
B117: 13 | C117: =VLOOKUP(F117,[4]Initial!#REF!,5,FALSE) ->  | D117: 17 Power | E117: BVA 17 National | F117: fj7biltm1cr | G117: 395 | H117: Biltmore Volleyball Academy | I117: 828-273-7837 | J117: 828-670-5427 | K117: jmbpeterson@att.net
B118: 14 | C118: =VLOOKUP(F118,[4]Initial!#REF!,5,FALSE) ->  | D118: 17 Power | E118: Chas Jrs 16 Red | F118: fj6charl1pm | G118: 395 | H118: Charleston Juniors | I118: 5612390117 | J118: 5612390117 | K118: directors@charlestonjuniors.com
B119: 15 | C119: =VLOOKUP(F119,[4]Initial!#REF!,5,FALSE) ->  | D119: 17 Power | E119: RHVC 17 Power Black | F119: fj7rockh1pm | G119: 395 | H119: Rock Hill Volleyball Club | I119: 803-242-8009 | J119: 803-242-8009 | K119: rockhillvolleyball@gmail.com
B120: 16 | C120: =VLOOKUP(F120,[4]Initial!#REF!,5,FALSE) ->  | D120: 17 Power | E120: Hurricane VBC 17 Cyclones | F120: fj7hurrc1pm | G120: 395 | H120: Hurricane Volleyball Club | I120: 706-564-7686 | J120: 706-564-7686 | K120: brianbyler@msn.com
B121: 17 | C121: =VLOOKUP(F121,[4]Initial!#REF!,5,FALSE) ->  | D121: 17 Power | E121: Lake Murray 17 Red | F121: fj7lakem1pm | G121: 395 | H121: Lake Murray Volleyball Club | I121: 8035304598 | J121: 8035304598 | K121: shawn@lakemurrayvolleyball.com
B122: 18 | C122: =VLOOKUP(F122,[4]Initial!#REF!,5,FALSE) ->  | D122: 17 Power | E122: RHVC 17 Power Red | F122: fj7rockh2pm | G122: 395 | H122: Rock Hill Volleyball Club | I122: 803-242-8009 | J122: 803-242-8009 | K122: rockhillvolleyball@gmail.com
B123: 19 | C123: =VLOOKUP(F123,[4]Initial!#REF!,5,FALSE) ->  | D123: 17 Power | E123: Coastal 17 Cyclones | F123: fj7ccoas1pm | H123: club coastal volleyball | I123: 843-325-1973 | J123: 843-325-1973 | K123: coachjarod@clubcoastalvolleyball.com
B124: 20 | C124: =VLOOKUP(F124,[4]Initial!#REF!,5,FALSE) ->  | D124: 17 Power | E124: Foothills 17 | F124: fj7footh7pm | G124: 420 | H124: Foothills Volleyball Club | I124: 8642471337 | J124: 8642471337 | K124: foothillsvbc@yahoo.com
B125: 21 | C125: =VLOOKUP(F125,[4]Initial!#REF!,5,FALSE) ->  | D125: 17 Power | E125: Columbia SC Starlings 17 | F125: fj7starl1pm | G125: 395 | H125: Columbia SC Starlings | I125: 803-479-2941 | J125: 803-479-2941 | K125: columbiascstarlings@live.com
B128: 1 | C128: =VLOOKUP(F128,[4]Initial!#REF!,5,FALSE) ->  | D128: 18 Power | E128: Magnum 18 Mizuno | F128: fj8magnm1pm | G128: 395 | H128: Magnum Volleyball Club | I128: 803-730-6100 | J128: 803-730-6100 | K128: magnumvolleyball@gmail.com
B129: 2 | C129: =VLOOKUP(F129,[4]Initial!#REF!,5,FALSE) ->  | D129: 18 Power | E129: Upstate 18-1 Power | F129: fj8upsvc1pm | G129: 395 | H129: Upstate Volleyball Club | I129: 864-616-6987 | K129: amber@upstatevolleyball.net
B130: 3 | C130: =VLOOKUP(F130,[4]Initial!#REF!,5,FALSE) ->  | D130: 18 Power | E130: Hurricane VBC 18 Storm | F130: fj8hurrc1pm | G130: 395 | H130: Hurricane Volleyball Club | I130: 706-564-7686 | J130: 706-564-7686 | K130: brianbyler@msn.com
B131: 4 | C131: =VLOOKUP(F131,[4]Initial!#REF!,5,FALSE) ->  | D131: 18 Power | E131: Excell U18 Elite | F131: fj8excel1pm | G131: 395 | H131: Excell Sports | I131: 864-787-5968 | J131: 864-787-5968 | K131: excellsports.org@gmail.com
B132: 5 | C132: =VLOOKUP(F132,[4]Initial!#REF!,5,FALSE) ->  | D132: 18 Power | E132: Upward Stars 18 Amy | F132: fj8upwrd2pm | G132: 395 | H132: Upward Stars | I132: 864-949-5839 | J132: 864-909-3196 | K132: chelle@upward.org
B133: 8 | C133: =VLOOKUP(F133,[4]Initial!#REF!,5,FALSE) ->  | D133: 18 Power | E133: Extreme 18-1 | F133: fj8extvb1so | G133: 395 | H133: Extreme Volleyball Club | I133: 423-312-5207 | J133: 423-312-5207 | K133: goextremevolleyball@charter.net
B134: 9 | C134: =VLOOKUP(F134,[4]Initial!#REF!,5,FALSE) ->  | D134: 18 Power | E134: Magnum Aiken 18 Green | F134: fj8magnm2pm | G134: 395 | H134: Magnum Volleyball Club | I134: 803-730-6100 | J134: 803-730-6100 | K134: magnumvolleyball@gmail.com
B135: 6 | C135: 2975 | D135: 18 Power | E135: Upward Stars 18 BC | F135: fj8upwrd3pm | G135: 395 | H135: Upward Stars | I135: 864-949-5839 | J135: 864-909-3196 | K135: chelle@upward.org
B136: 7 | C136: 2950 | D136: 18 Power | E136: Upward Stars 18 Vickie | F136: fj8upwrd4pm | G136: 395 | H136: Upward Stars | I136: 864-949-5839 | J136: 864-909-3196 | K136: chelle@upward.org
B137: 10 | C137: =VLOOKUP(F137,[4]Initial!#REF!,5,FALSE) ->  | D137: 18 Power | E137: Lake Murray 18 Red | F137: fj8lakem1pm | G137: 395 | H137: Lake Murray Volleyball Club | I137: 8035304598 | J137: 8035304598 | K137: shawn@lakemurrayvolleyball.com
B138: 11 | C138: =VLOOKUP(F138,[4]Initial!#REF!,5,FALSE) ->  | D138: 18 Power | E138: Chas Jrs 18 Red | F138: fj8charl1pm | G138: 395 | H138: Charleston Juniors | I138: 5612390117 | J138: 5612390117 | K138: directors@charlestonjuniors.com
B139: 12 | C139: =VLOOKUP(F139,[4]Initial!#REF!,5,FALSE) ->  | D139: 18 Power | E139: High Velocity 18's | F139: fj8hvelo1pm | G139: 395 | H139: High Velocity VBC | I139: 803-800-2336 | J139: 803-800-2336 | K139: mbeaver002@gmail.com
B140: 13 | C140: =VLOOKUP(F140,[4]Initial!#REF!,5,FALSE) ->  | D140: 18 Power | E140: Foothills 18 Penni | F140: fj8footh1pm | G140: 395 | H140: Foothills Volleyball Club | I140: 8642471337 | J140: 8642471337 | K140: foothillsvbc@yahoo.com

Sheet Officials (hidden)
A1: No Lodging
A2: Dianne Owens
A3: Brenda Skeffington
A4: Przemyslaw Wlodarczyk
A5: Erin Troyer
A6: Bob Waldrop
A7: Laurel Farley
A8: Terrence Brannen
A9: Rhett Powell
A10: Bob Wnukowski
A11: Cynthia Brandeis
A14: Room 1- Upward Star Facility | B14: Courtyard Sptbg | C14: #90186502 f | D14: 95 | E14: Purchased central reservations 2/8 | I14: Only had 2 rooms, req from jennifer to add 1, comp? | N14: 110 Mobile Drive . Spartanburg, South Carolina 29303 USA [[[|:CY|CNF|en_US]]]
A15: Luis Martinez
A16: Gabby Martinez
A18: Room 2- Upward Stars Facility | B18: Courtyard Sptbg | D18: 95 | E18: Purchased central reservations 2/8
A19: Linda Williams
A20: Jessica Williams
A22: Room 3- Upward Stars Facility
A23: Richard Holstead
A24: Louis Ambroise
A26: Room 4 –Upward Stars Facility
A27: Roque Urena
A28: William Lowery
A30: Room 5 – Upward Stars Facility
A31: Moses Brown
A32: Jamaal Brown
A34: Room 6 – Upward Stars Facility
A35: Emily Rose
A36: Leah Gunther
A39: Room 7 – Upward Stars Facility
A40: Meredith Jones
A41: Megan Mancini
A43: Room 8- Upward Stars Facility
A44: Maria Hoidas
A45: Lydia Sale
A47: Room 10- Upward Volleyball
A48: Moti BenAmi
A49: Larry Stout
A51: Room 11 – Upward Volleyball
A52: Kim Ratcliff
A53: Kim Hyatt
A55: Room 12- Upward Volleyball
A56: Johnny Guterwill
A57: Glenn Goudy
A59: Room 13 - Simpsonville
A60: Michael Ross
A61: Bob McCarthy
A63: Room 14 - Simpsonville
A64: Eric Stouffer
A65: Douglas Kaufman
A67: Room 15 - Simpsonville
A68: Cori Bray - Female
A70: Room 16 Greenwood | B70: Hampton King Room | C70: 2/8 em Nid to verify | D70: Comp
A71: Donald Perry
A73: Room 17 - Greenwood | B73: Holiday Inn Dble | C73: conf Ashley 2/8 | D73: comp
A74: Celso Ferreira-Alves
A75: Brian Wood
A77: Rm 18 - Greenwood | B77: Holiday Inn Dble | C77: conf Ashley 2/8 | D77: comp
A78: Angela Kincer
A79: Kirsten Boessnek
A81: Room 19 - Greenwood | B81: Hampton King Room | C81: 2/8 em Nid to verify | D81: comp
A82: Jannifer Tucker
A84: Room 20 - Greenwood
A85: Linda Warren
A86: Renee Todd
A88: Room 9 - Erskine
A89: Keith Olawsky
A90: Olivia Olawsky

Sheet Score Report Form (hidden)
B1: Palmetto Region Score Report Form
A2: Gym Site | G2: COURT # 1 2 3 4 5 6 7 | K2: COMPLETE ALL AREAS
A3: Circle One
A4: Age Division 12 13 14 15 16 17 18 | G4: Your Tm level | I4: Club | J4: Power
A6: Match # Pool Play 1 2 3 4 5 6 7
A8: Your Tm # in Pool 1 2 3 4 5 | F8: OPP Pool Tm # 1 2 3 4 5
B9: REPORTING TEAM NAME | G9: OPPONENTS TEAM NAME | K9: Failure to remit form to gym supervisor before the start of next match can result in 5 pt penality on your next match.
B11: Coaches Name | G11: TIME MATCH FINISHED
C13: Reporting Tm Score | H13: Opp. Tm Score
B14: Game 1
B15: Game 2
B16: Game 3
A17: FORM MUST BE GIVEN TO GYM SUPERVISOR IMMEDIATELY FOLLOWING THE MATCH BY EACH TEAM.
A18: Pls complete to assist in certification of officiating team. TEAM OFFICIATING: _________________________
A19: Note any areas of poor officiating, if comments, provide players number or coaches name:
B23: Palmetto Region Score Report Form
A24: Gym Site | G24: COURT # 1 2 3 4 5 6 7 | K24: COMPLETE ALL AREAS
A25: Circle One
A26: Age Division 12 13 14 15 16 17 18 | G26: Your Tm level | I26: Club | J26: Power
A28: Match # Pool Play 1 2 3 4 5 6 7
A30: Your Tm # in Pool 1 2 3 4 5 | F30: OPP Pool Tm # 1 2 3 4 5
B31: REPORTING TEAM NAME | G31: OPPONENTS TEAM NAME | K31: Failure to remit form to gym supervisor before the start of next match can result in 5 pt penality on your next match.
B33: Coaches Name | G33: TIME MATCH FINISHED
C35: Reporting Tm Score | H35: Opp. Tm Score
B36: Game 1
B37: Game 2
B38: Game 3
A39: FORM MUST BE GIVEN TO GYM SUPERVISOR IMMEDIATELY FOLLOWING THE MATCH BY EACH TEAM.
A40: Pls complete to assist in certification of officiating team. TEAM OFFICIATING: _________________________
A41: Note any areas of poor officiating, if comments, provide players number or coaches name:
B45: Palmetto Region Score Report Form
A46: Gym Site | G46: COURT # 1 2 3 4 5 6 7 | K46: COMPLETE ALL AREAS
A47: Circle One
A48: Age Division 12 13 14 15 16 17 18 | G48: Your Tm level | I48: Club | J48: Power
A50: Match # Pool Play 1 2 3 4 5 6 7
A52: Your Tm # in Pool 1 2 3 4 5 | F52: OPP Pool Tm # 1 2 3 4 5
B53: REPORTING TEAM NAME | G53: OPPONENTS TEAM NAME | K53: Failure to remit form to gym supervisor before the start of next match can result in 5 pt penality on your next match.
B55: Coaches Name | G55: TIME MATCH FINISHED
C57: Reporting Tm Score | H57: Opp. Tm Score
B58: Game 1
B59: Game 2
B60: Game 3
A61: FORM MUST BE GIVEN TO GYM SUPERVISOR IMMEDIATELY FOLLOWING THE MATCH BY EACH TEAM.
A62: Pls complete to assist in certification of officiating team. TEAM OFFICIATING: _________________________
A63: Note any areas of poor officiating, if comments, provide players number or coaches name:

Sheet 12-13Pwr Rnd 2
A1: copywrited program: May not be used or reproduced without the consent of Chip Moseley | AQ1: Version : 5.1 | AT1: Seeding | AX1: Final Ranking | AZ1: Pool Ranking Multiplier = | BA1: 24
B2: Tournament Name | J2: S O U T H E R N C L A S S I C | U2: Date | X2: March 12-13th | AT2: # | AU2: Team Name | AV2: Team Code | AW2: Initial Ranking | AX2: Pool Play | AY2: Finals | AZ2: Playoff Ranking Multiplier = | BA2: 16
B3: Site: | D3: Upward Facilities | L3: Age | P3: 2016-12-13 | U3: Division | AB3: Club | AD3: Power | AT3: 1 | AU3: ='12-13 Pwr 16 tm Rnd 1'!AU3 -> C1VB 13 Power Grvl | AV3: ='12-13 Pwr 16 tm Rnd 1'!AV3 -> fj3crone1pm | AW3: =VLOOKUP(AV3,'12-13 Pwr 16 tm Rnd 1'!AV$3:AX$18,3,FALSE) -> 2201.528761 | AX3: =VLOOKUP(AU3,AR$79:AS$345,2,FALSE) -> 2222.927887 | AY3: =IF(ISNA(VLOOKUP(AU3,'12-13 Pwr Rnd 3'!AT$43:AU$101,2,FALSE)),AX3,VLOOKUP(AU3,'12-13 Pwr Rnd 3'!AT$43:AU$101,2,FALSE)) -> 2205.65692
H4: Gym Supervisor | U4: Supr Cell #: | AT4: 2 | AU4: ='12-13 Pwr 16 tm Rnd 1'!AU4 -> Low Country 13 Open | AV4: ='12-13 Pwr 16 tm Rnd 1'!AV4 -> fj3lowco1pm | AW4: =VLOOKUP(AV4,'12-13 Pwr 16 tm Rnd 1'!AV$3:AX$18,3,FALSE) -> 2151.52903 | AX4: 2120.171792 | AY4: =IF(ISNA(VLOOKUP(AU4,'12-13 Pwr Rnd 3'!AT$43:AU$101,2,FALSE)),AX4,VLOOKUP(AU4,'12-13 Pwr Rnd 3'!AT$43:AU$101,2,FALSE)) -> 2126.760954
AT5: 3 | AU5: ='12-13 Pwr 16 tm Rnd 1'!AU5 -> Upward Stars 13 Becky | AV5: ='12-13 Pwr 16 tm Rnd 1'!AV5 -> fj3upwrd2pm | AW5: =VLOOKUP(AV5,'12-13 Pwr 16 tm Rnd 1'!AV$3:AX$18,3,FALSE) -> 2161.177082 | AX5: 2130.197376 | AY5: =IF(ISNA(VLOOKUP(AU5,'12-13 Pwr Rnd 3'!AT$43:AU$101,2,FALSE)),AX5,VLOOKUP(AU5,'12-13 Pwr Rnd 3'!AT$43:AU$101,2,FALSE)) -> 2148.833704 | AZ5: =AY5-BB5 -> 1.223588697e-08 | BB5: 2148.833704
A6: POOL: | B6: AA | C6: COURT: Star Ctr | I6: 1 | K6: ="Pool "&B6&" - Round 2 - Court "&I6 -> Pool AA - Round 2 - Court 1 | AT6: 4 | AU6: ='12-13 Pwr 16 tm Rnd 1'!AU6 -> Vision 13 National | AV6: ='12-13 Pwr 16 tm Rnd 1'!AV6 -> fj3vison1pm | AW6: =VLOOKUP(AV6,'12-13 Pwr 16 tm Rnd 1'!AV$3:AX$18,3,FALSE) -> 2188.315122 | AX6: 2195.270929 | AY6: =IF(ISNA(VLOOKUP(AU6,'12-13 Pwr Rnd 3'!AT$43:AU$101,2,FALSE)),AX6,VLOOKUP(AU6,'12-13 Pwr Rnd 3'!AT$43:AU$101,2,FALSE)) -> 2227.096924
A7: Team # | B7: Team Name | L7: =IF($AK10=0,"Games Won","Matches Won") -> Matches Won | R7: =IF($AK10=0,"Games Lost","Matches Lost") -> Matches Lost | W7: Total Pool Net Points | Z7: % Total Net Points | AC7: Game Win % | AF7: Pool Finish | AG7: # | AK7: 3 | AL7: Games per Match (1-5) | AT7: 5 | AU7: ='12-13 Pwr 16 tm Rnd 1'!AU7 -> Magnum 13 Mizuno | AV7: ='12-13 Pwr 16 tm Rnd 1'!AV7 -> fj3magnm1pm | AW7: =VLOOKUP(AV7,'12-13 Pwr 16 tm Rnd 1'!AV$3:AX$18,3,FALSE) -> 2137.537194 | AX7: 2167.162148 | AY7: =IF(ISNA(VLOOKUP(AU7,'12-13 Pwr Rnd 3'!AT$43:AU$101,2,FALSE)),AX7,VLOOKUP(AU7,'12-13 Pwr Rnd 3'!AT$43:AU$101,2,FALSE)) -> 2166.523981
A8: =IF($AK9>0,"1","") -> 1 | B8: Team Name | E8: ='12-13 Pwr 16 tm Rnd 1'!B349 -> C1VB 13 Power Grvl | L8: =IF($AK10=0,AF64,AF46) -> 3 | R8: =IF($AK10=0,AG64,AG46) -> 0 | W8: =AQ24 -> 7 | Z8: =IF(AF58>0,(AQ24/AF58),0) -> 0.03804347826 | AC8: =IF(AF72=0,0,(AF64/AF72)) -> 0.75 | AF8: 1 | AG8: 1 | AK8: 6 | AL8: Matches (1-10) | AT8: 6 | AU8: ='12-13 Pwr 16 tm Rnd 1'!AU8 -> CSRA Heat 13 Gold | AV8: ='12-13 Pwr 16 tm Rnd 1'!AV8 -> fj3csrah1pm | AW8: =VLOOKUP(AV8,'12-13 Pwr 16 tm Rnd 1'!AV$3:AX$18,3,FALSE) -> 2124.977292 | AX8: 2078.773369 | AY8: =IF(ISNA(VLOOKUP(AU8,'12-13 Pwr Rnd 3'!AT$43:AU$101,2,FALSE)),AX8,VLOOKUP(AU8,'12-13 Pwr Rnd 3'!AT$43:AU$101,2,FALSE)) -> 2064.670865
B9: Team Code | E9: ='12-13 Pwr 16 tm Rnd 1'!H349 -> fj3crone1pm | AK9: 4 | AL9: Teams in Pool (1-5) | AT9: 7 | AU9: ='12-13 Pwr 16 tm Rnd 1'!AU9 -> Fort Mill VBC 13 Purple | AV9: ='12-13 Pwr 16 tm Rnd 1'!AV9 -> fj3fortm1pm | AW9: =VLOOKUP(AV9,'12-13 Pwr 16 tm Rnd 1'!AV$3:AX$18,3,FALSE) -> 1992.289461 | AX9: 2005.297815 | AY9: =IF(ISNA(VLOOKUP(AU9,'12-13 Pwr Rnd 3'!AT$43:AU$101,2,FALSE)),AX9,VLOOKUP(AU9,'12-13 Pwr Rnd 3'!AT$43:AU$101,2,FALSE)) -> 1991.375287
A10: =IF($AK9>1,"2","") -> 2 | B10: Team Name | E10: ='12-13 Pwr 16 tm Rnd 1'!B352 -> Magnum 13 Mizuno | L10: =IF($AK10=0,AF65,AF47) -> 2 | R10: =IF($AK10=0,AG65,AG47) -> 1 | W10: =AQ25 -> 46 | Z10: =IF(AF59>0,(AQ25/AF59),0) -> 0.2721893491 | AC10: =IF(AF73=0,0,(AF65/AF73)) -> 0.7142857143 | AF10: 2 | AG10: 1 | AK10: 1 | AL10: 0-Count Games 1-Count Matches | AT10: 8 | AU10: ='12-13 Pwr 16 tm Rnd 1'!AU10 -> Upward Stars 13 BrittanyL | AV10: ='12-13 Pwr 16 tm Rnd 1'!AV10 -> fj3upwrd3pm | AW10: =VLOOKUP(AV10,'12-13 Pwr 16 tm Rnd 1'!AV$3:AX$18,3,FALSE) -> 1548.799543 | AX10: 1572.692861 | AY10: =IF(ISNA(VLOOKUP(AU10,'12-13 Pwr Rnd 3'!AT$43:AU$101,2,FALSE)),AX10,VLOOKUP(AU10,'12-13 Pwr Rnd 3'!AT$43:AU$101,2,FALSE)) -> 1568.691362 | AZ10: =AY10-BB10 -> -1.201078703e-08 | BB10: 1568.691363
B11: Team Code | E11: ='12-13 Pwr 16 tm Rnd 1'!H352 -> fj3magnm1pm | AK11: 1 | AL11: Game Win % 0 = No 1 = Yes | AT11: 9 | AU11: ='12-13 Pwr 16 tm Rnd 1'!AU11 -> KVA 13Vanessa | AV11: ='12-13 Pwr 16 tm Rnd 1'!AV11 -> fj3david1so | AW11: =VLOOKUP(AV11,'12-13 Pwr 16 tm Rnd 1'!AV$3:AX$18,3,FALSE) -> 2066.287987 | AX11: 2121.669125 | AY11: =IF(ISNA(VLOOKUP(AU11,'12-13 Pwr Rnd 3'!AT$43:AU$101,2,FALSE)),AX11,VLOOKUP(AU11,'12-13 Pwr Rnd 3'!AT$43:AU$101,2,FALSE)) -> 2107.752264 | AZ11: =AY11-BB11 -> 5.995843821e-09 | BB11: 2107.752264
A12: =IF($AK9>2,"3","") -> 3 | B12: Team Name | E12: ='12-13 Pwr 16 tm Rnd 1'!L351 -> CSRA Heat 13 Gold | L12: =IF($AK10=0,AF66,AF48) -> 0 | R12: =IF($AK10=0,AG66,AG48) -> 3 | W12: =AQ26 -> -18 | Z12: =IF(AF60>0,(AQ26/AF60),0) -> -0.1 | AC12: =IF(AF74=0,0,(AF66/AF74)) -> 0.25 | AF12: 4 | AG12: 1 | AK12: 3 | AL12: # of Matches/Games per Team | AT12: 10 | AU12: ='12-13 Pwr 16 tm Rnd 1'!AU12 -> Magnum Aiken 13 Green | AV12: ='12-13 Pwr 16 tm Rnd 1'!AV12 -> fj3magnm3pm | AW12: =VLOOKUP(AV12,'12-13 Pwr 16 tm Rnd 1'!AV$3:AX$18,3,FALSE) -> 2025.638757 | AX12: 2020.8186 | AY12: =IF(ISNA(VLOOKUP(AU12,'12-13 Pwr Rnd 3'!AT$43:AU$101,2,FALSE)),AX12,VLOOKUP(AU12,'12-13 Pwr Rnd 3'!AT$43:AU$101,2,FALSE)) -> 2009.695613
B13: Team Code | E13: ='12-13 Pwr 16 tm Rnd 1'!R351 -> fj3csrah1pm | AT13: 11 | AU13: ='12-13 Pwr 16 tm Rnd 1'!AU13 -> Magnum 13 Black | AV13: ='12-13 Pwr 16 tm Rnd 1'!AV13 -> fj3magnm2pm | AW13: =VLOOKUP(AV13,'12-13 Pwr 16 tm Rnd 1'!AV$3:AX$18,3,FALSE) -> 1982.038263 | AX13: 1955.689951 | AY13: =IF(ISNA(VLOOKUP(AU13,'12-13 Pwr Rnd 3'!AT$43:AU$101,2,FALSE)),AX13,VLOOKUP(AU13,'12-13 Pwr Rnd 3'!AT$43:AU$101,2,FALSE)) -> 1937.78014
A14: =IF($AK9>3,"4","") -> 4 | B14: Team Name | E14: ='12-13 Pwr 16 tm Rnd 1'!L350 -> Magnum Aiken 13 Green | L14: =IF($AK10=0,AF67,AF49) -> 1 | R14: =IF($AK10=0,AG67,AG49) -> 2 | W14: =AQ27 -> -35 | Z14: =IF(AF61>0,(AQ27/AF61),0) -> -0.2121212121 | AC14: =IF(AF75=0,0,(AF67/AF75)) -> 0.2857142857 | AF14: 3 | AG14: 1 | AT14: 12 | AU14: ='12-13 Pwr 16 tm Rnd 1'!AU14 -> Chas Jrs 13 Red | AV14: ='12-13 Pwr 16 tm Rnd 1'!AV14 -> fj3charl1pm | AW14: =VLOOKUP(AV14,'12-13 Pwr 16 tm Rnd 1'!AV$3:AX$18,3,FALSE) -> 1926.978658 | AX14: 1914.020284 | AY14: =IF(ISNA(VLOOKUP(AU14,'12-13 Pwr Rnd 3'!AT$43:AU$101,2,FALSE)),AX14,VLOOKUP(AU14,'12-13 Pwr Rnd 3'!AT$43:AU$101,2,FALSE)) -> 1951.50775
B15: Team Code | E15: ='12-13 Pwr 16 tm Rnd 1'!R350 -> fj3magnm3pm | AT15: 13 | AU15: ='12-13 Pwr 16 tm Rnd 1'!AU15 -> Upward Stars 13 Emily | AV15: ='12-13 Pwr 16 tm Rnd 1'!AV15 -> fj3upwrd4pm | AW15: =VLOOKUP(AV15,'12-13 Pwr 16 tm Rnd 1'!AV$3:AX$18,3,FALSE) -> 1304.460653 | AX15: 1293.907292 | AY15: =IF(ISNA(VLOOKUP(AU15,'12-13 Pwr Rnd 3'!AT$43:AU$101,2,FALSE)),AX15,VLOOKUP(AU15,'12-13 Pwr Rnd 3'!AT$43:AU$101,2,FALSE)) -> 1307.241286 | AZ15: =AY15-BB15 -> -1.37583811e-08 | BB15: 1307.241286
A16: =IF($AK9>4,"5","") ->  | B16: Team Name | L16: =IF($AK10=0,AF68,AF50) -> 0 | R16: =IF($AK10=0,AG68,AG50) -> 0 | W16: =AQ28 -> 0 | Z16: =IF(AF62>0,(AQ28/AF62),0) -> 0 | AC16: =IF(AF76=0,0,(AF68/AF76)) -> 0 | AT16: 14 | AU16: ='12-13 Pwr 16 tm Rnd 1'!AU16 -> Upward Stars 12 Candi | AV16: ='12-13 Pwr 16 tm Rnd 1'!AV16 -> fj2upwrd2pm | AW16: =VLOOKUP(AV16,'12-13 Pwr 16 tm Rnd 1'!AV$3:AX$18,3,FALSE) -> 1709.047016 | AX16: 1737.996341 | AY16: =IF(ISNA(VLOOKUP(AU16,'12-13 Pwr Rnd 3'!AT$43:AU$101,2,FALSE)),AX16,VLOOKUP(AU16,'12-13 Pwr Rnd 3'!AT$43:AU$101,2,FALSE)) -> 1732.341214 | AZ16: =AY16-BB16 -> -6.955588105e-09 | BB16: 1732.341214
B17: Team Code | AT17: 15 | AU17: ='12-13 Pwr 16 tm Rnd 1'!AU17 -> Upward Stars 13 Abbey | AV17: ='12-13 Pwr 16 tm Rnd 1'!AV17 -> fj3upwrd5pm | AW17: =VLOOKUP(AV17,'12-13 Pwr 16 tm Rnd 1'!AV$3:AX$18,3,FALSE) -> 1274.667874 | AX17: 1267.980375 | AY17: =IF(ISNA(VLOOKUP(AU17,'12-13 Pwr Rnd 3'!AT$43:AU$101,2,FALSE)),AX17,VLOOKUP(AU17,'12-13 Pwr Rnd 3'!AT$43:AU$101,2,FALSE)) -> 1276.898691 | AZ17: =AY17-BB17 -> 1.710736797e-08 | BB17: 1276.898691
B18: POOL PLAY FORMAT: Best of 3 (25-25-15) Start at 4 - 2 Pt cap. Warmups 2-4-4 | AT18: 16 | AU18: ='12-13 Pwr 16 tm Rnd 1'!AU18 -> Magnum 13 Blue | AV18: ='12-13 Pwr 16 tm Rnd 1'!AV18 -> fj3magnm4pm | AW18: =VLOOKUP(AV18,'12-13 Pwr 16 tm Rnd 1'!AV$3:AX$18,3,FALSE) -> 1795.435894 | AX18: 1786.132442 | AY18: =IF(ISNA(VLOOKUP(AU18,'12-13 Pwr Rnd 3'!AT$43:AU$101,2,FALSE)),AX18,VLOOKUP(AU18,'12-13 Pwr Rnd 3'!AT$43:AU$101,2,FALSE)) -> 1767.88163
A19: Sch Start | B19: Sat 3:00 | E19: Sat 4:00 | H19: Sat 5:00 | K19: Sat 6:00 | N19: Sun 8am | Q19: Sun 9am | AF19: Note: The Pool Finish Summary at the bottom of the sheet will fill in AUTOMATICALLY once the POOL FINISH column (at left) is filled in. | AT19: Warning -- Do not use CUT/PASTE to move teams in table. Only use COPY/PASTE or seeded cells will be corrupted.
A20: Actual Start
A21: End Time
B22: Match 1 | E22: =IF(AK8>1,"Match 2","") -> Match 2 | H22: =IF(AK8>2,"Match 3","") -> Match 3 | K22: =IF(AK8>3,"Match 4","") -> Match 4 | N22: =IF(AK8>4,"Match 5","") -> Match 5 | Q22: =IF(AK8>5,"Match 6","") -> Match 6 | T22: =IF(AK8>6,"Match 7","") ->  | W22: =IF(AK8>7,"Match 8","") ->  | Z22: =IF(AK8>8,"Match 9","") ->  | AC22: =IF(AK8>9,"Match 10","") -> 
B23: 1 refs | E23: 2 refs | H23: 3 refs | K23: 4 refs | N23: 2 refs | Q23: 3 refs | AF23: Net Points | AG23: 1 | AH23: 2 | AI23: 3 | AJ23: 4 | AK23: 5 | AL23: 6 | AM23: 7 | AN23: 8 | AO23: 9 | AP23: 10 | AQ23: Total
B24: 2 | C24: v | D24: 3 | E24: 1 | F24: =IF(AK8>1,"v","") -> v | G24: 4 | H24: 2 | I24: =IF(AK8>2,"v","") -> v | J24: 4 | K24: 1 | L24: =IF(AK8>3,"v","") -> v | M24: 3 | N24: 3 | O24: =IF(AK8>4,"v","") -> v | P24: 4 | Q24: 1 | R24: =IF(AK8>5,"v","") -> v | S24: 2 | U24: =IF(AK8>6,"v","") ->  | X24: =IF(AK8>7,"v","") ->  | AA24: =IF(AK8>8,"v","") ->  | AD24: =IF(AK8>9,"v","") ->  | AF24: =IF(AK9>0,"Team 1","") -> Team 1 | AG24: =IF(AK9<1,"",IF(AK8<1,"",IF(B24=1,B30-D30,IF(D24=1,D30-B30,"")))) ->  | AH24: =IF(AK9<1,"",IF(AK8<2,"",IF(E24=1,E30-G30,IF(G24=1,G30-E30,"")))) -> 12 | AI24: =IF(AK9<1,"",IF(AK8<3,"",IF(H24=1,H30-J30,IF(J24=1,J30-H30,"")))) ->  | AJ24: =IF(AK9<1,"",IF(AK8<4,"",IF(K24=1,K30-M30,IF(M24=1,M30-K30,"")))) -> 6 | AK24: =IF(AK9<1,"",IF(AK8<5,"",IF(N24=1,N30-P30,IF(P24=1,P30-N30,"")))) ->  | AL24: =IF(AK9<1,"",IF(AK8<6,"",IF(Q24=1,Q30-S30,IF(S24=1,S30-Q30,"")))) -> -11 | AM24: =IF(AK9<1,"",IF(AK8<7,"",IF(T24=1,T30-V30,IF(V24=1,V30-T30,"")))) ->  | AN24: =IF(AK9<1,"",IF(AK8<8,"",IF(W24=1,W30-Y30,IF(Y24=1,Y30-W30,"")))) ->  | AO24: =IF(AK9<1,"",IF(AK8<9,"",IF(Z24=1,Z30-AB30,IF(AB24=1,AB30-Z30,"")))) ->  | AP24: =IF(AK9<1,"",IF(AK8<10,"",IF(AC24=1,AC30-AE30,IF(AE24=1,AE30-AC30,"")))) ->  | AQ24: =SUM(AG24:AP24) -> 7 | AZ24: =SUMSQ(AZ5:AZ17) -> 8.602613734e-16
A25: Game 1 | B25: 25 | C25: / | D25: 17 | E25: 25 | F25: =IF(AK8>1,"/","") -> / | G25: 19 | H25: 25 | I25: =IF(AK8>2,"/","") -> / | J25: 15 | K25: 25 | L25: =IF(AK8>3,"/","") -> / | M25: 23 | N25: 23 | O25: =IF(AK8>4,"/","") -> / | P25: 25 | Q25: 27 | R25: =IF(AK8>5,"/","") -> / | S25: 26 | U25: =IF(AK8>6,"/","") ->  | X25: =IF(AK8>7,"/","") ->  | AA25: =IF(AK8>8,"/","") ->  | AD25: =IF(AK8>9,"/","") ->  | AF25: =IF(AK9>1,"Team 2","") -> Team 2 | AG25: =IF(AK9<2,"",IF(AK8<1,"",IF(B24=2,B30-D30,IF(D24=2,D30-B30,"")))) -> 16 | AH25: =IF(AK9<2,"",IF(AK8<2,"",IF(E24=2,E30-G30,IF(G24=2,G30-E30,"")))) ->  | AI25: =IF(AK9<2,"",IF(AK8<3,"",IF(H24=2,H30-J30,IF(J24=2,J30-H30,"")))) -> 19 | AJ25: =IF(AK9<2,"",IF(AK8<4,"",IF(K24=2,K30-M30,IF(M24=2,M30-K30,"")))) ->  | AK25: =IF(AK9<2,"",IF(AK8<5,"",IF(N24=2,N30-P30,IF(P24=2,P30-N30,"")))) ->  | AL25: =IF(AK9<2,"",IF(AK8<6,"",IF(Q24=2,Q30-S30,IF(S24=2,S30-Q30,"")))) -> 11 | AM25: =IF(AK9<2,"",IF(AK8<7,"",IF(T24=2,T30-V30,IF(V24=2,V30-T30,"")))) ->  | AN25: =IF(AK9<2,"",IF(AK8<8,"",IF(W24=2,W30-Y30,IF(Y24=2,Y30-W30,"")))) ->  | AO25: =IF(AK9<2,"",IF(AK8<9,"",IF(Z24=2,Z30-AB30,IF(AB24=2,AB30-Z30,"")))) ->  | AP25: =IF(AK9<2,"",IF(AK8<10,"",IF(AC24=2,AC30-AE30,IF(AE24=2,AE30-AC30,"")))) ->  | AQ25: =SUM(AG25:AP25) -> 46
A26: =IF(AK7>1,"Game 2","") -> Game 2 | B26: 25 | C26: / | D26: 17 | E26: 25 | F26: =IF(AK8>1,IF(AK7>1,"/",""),"") -> / | G26: 19 | H26: 25 | I26: =IF(AK8>2,IF(AK7>1,"/",""),"") -> / | J26: 16 | K26: 20 | L26: =IF(AK8>3,IF(AK7>1,"/",""),"") -> / | M26: 25 | N26: 25 | O26: =IF(AK8>4,IF(AK7>1,"/",""),"") -> / | P26: 14 | Q26: 12 | R26: =IF(AK8>5,IF(AK7>1,"/",""),"") -> / | S26: 25 | U26: =IF(AK8>6,IF(AK7>1,"/",""),"") ->  | X26: =IF(AK8>7,IF(AK7>1,"/",""),"") ->  | AA26: =IF(AK8>8,IF(AK7>1,"/",""),"") ->  | AD26: =IF(AK8>9,IF(AK7>1,"/",""),"") ->  | AF26: =IF(AK9>2,"Team 3","") -> Team 3 | AG26: =IF(AK9<3,"",IF(AK8<1,"",IF(B24=3,B30-D30,IF(D24=3,D30-B30,"")))) -> -16 | AH26: =IF(AK9<3,"",IF(AK8<2,"",IF(E24=3,E30-G30,IF(G24=3,G30-E30,"")))) ->  | AI26: =IF(AK9<3,"",IF(AK8<3,"",IF(H24=3,H30-J30,IF(J24=3,J30-H30,"")))) ->  | AJ26: =IF(AK9<3,"",IF(AK8<4,"",IF(K24=3,K30-M30,IF(M24=3,M30-K30,"")))) -> -6 | AK26: =IF(AK9<3,"",IF(AK8<5,"",IF(N24=3,N30-P30,IF(P24=3,P30-N30,"")))) -> 4 | AL26: =IF(AK9<3,"",IF(AK8<6,"",IF(Q24=3,Q30-S30,IF(S24=3,S30-Q30,"")))) ->  | AM26: =IF(AK9<3,"",IF(AK8<7,"",IF(T24=3,T30-V30,IF(V24=3,V30-T30,"")))) ->  | AN26: =IF(AK9<3,"",IF(AK8<8,"",IF(W24=3,W30-Y30,IF(Y24=3,Y30-W30,"")))) ->  | AO26: =IF(AK9<3,"",IF(AK8<9,"",IF(Z24=3,Z30-AB30,IF(AB24=3,AB30-Z30,"")))) ->  | AP26: =IF(AK9<3,"",IF(AK8<9,"",IF(AC24=3,AC30-AE30,IF(AE24=3,AE30-AC30,"")))) ->  | AQ26: =SUM(AG26:AP26) -> -18
A27: =IF(AK7>2,"Game 3","") -> Game 3 | C27: / | F27: =IF(AK8>1,IF(AK7>2,"/",""),"") -> / | I27: =IF(AK8>2,IF(AK7>2,"/",""),"") -> / | K27: 15 | L27: =IF(AK8>3,IF(AK7>2,"/",""),"") -> / | M27: 6 | N27: 10 | O27: =IF(AK8>4,IF(AK7>2,"/",""),"") -> / | P27: 15 | Q27: 17 | R27: =IF(AK8>5,IF(AK7>2,"/",""),"") -> / | S27: 16 | U27: =IF(AK8>6,IF(AK7>2,"/",""),"") ->  | X27: =IF(AK8>7,IF(AK7>2,"/",""),"") ->  | AA27: =IF(AK8>8,IF(AK7>2,"/",""),"") ->  | AD27: =IF(AK8>9,IF(AK7>2,"/",""),"") ->  | AF27: =IF(AK9>3,"Team 4","") -> Team 4 | AG27: =IF(AK9<4,"",IF(AK8<1,"",IF(B24=4,B30-D30,IF(D24=4,D30-B30,"")))) ->  | AH27: =IF(AK9<4,"",IF(AK8<2,"",IF(E24=4,E30-G30,IF(G24=4,G30-E30,"")))) -> -12 | AI27: =IF(AK9<4,"",IF(AK8<3,"",IF(H24=4,H30-J30,IF(J24=4,J30-H30,"")))) -> -19 | AJ27: =IF(AK9<4,"",IF(AK8<4,"",IF(K24=4,K30-M30,IF(M24=4,M30-K30,"")))) ->  | AK27: =IF(AK9<4,"",IF(AK8<5,"",IF(N24=4,N30-P30,IF(P24=4,P30-N30,"")))) -> -4 | AL27: =IF(AK9<4,"",IF(AK8<6,"",IF(Q24=4,Q30-S30,IF(S24=4,S30-Q30,"")))) ->  | AM27: =IF(AK9<4,"",IF(AK8<7,"",IF(T24=4,T30-V30,IF(V24=4,V30-T30,"")))) ->  | AN27: =IF(AK9<4,"",IF(AK8<8,"",IF(W24=4,W30-Y30,IF(Y24=4,Y30-W30,"")))) ->  | AO27: =IF(AK9<4,"",IF(AK8<9,"",IF(Z24=4,Z30-AB30,IF(AB24=4,AB30-Z30,"")))) ->  | AP27: =IF(AK9<4,"",IF(AK8<10,"",IF(AC24=4,AC30-AE30,IF(AE24=4,AE30-AC30,"")))) ->  | AQ27: =SUM(AG27:AP27) -> -35
A28: =IF(AK7>3,"Game 4","") ->  | C28: / | F28: =IF(AK8>1,IF(AK7>3,"/",""),"") ->  | I28: =IF(AK8>2,IF(AK7>3,"/",""),"") ->  | L28: =IF(AK8>3,IF(AK7>3,"/",""),"") ->  | O28: =IF(AK8>4,IF(AK7>3,"/",""),"") ->  | R28: =IF(AK8>5,IF(AK7>3,"/",""),"") ->  | U28: =IF(AK8>6,IF(AK7>3,"/",""),"") ->  | X28: =IF(AK8>7,IF(AK7>3,"/",""),"") ->  | AA28: =IF(AK8>8,IF(AK7>3,"/",""),"") ->  | AD28: =IF(AK8>9,IF(AK7>3,"/",""),"") ->  | AF28: =IF(AK9>4,"Team 5","") ->  | AG28: =IF(AK9<5,"",IF(AK8<1,"",IF(B24=5,B30-D30,IF(D24=5,D30-B30,"")))) ->  | AH28: =IF(AK9<5,"",IF(AK8<2,"",IF(E24=5,E30-G30,IF(G24=5,G30-E30,"")))) ->  | AI28: =IF(AK9<5,"",IF(AK8<3,"",IF(H24=5,H30-J30,IF(J24=5,J30-H30,"")))) ->  | AJ28: =IF(AK9<5,"",IF(AK8<4,"",IF(K24=5,K30-M30,IF(M24=5,M30-K30,"")))) ->  | AK28: =IF(AK9<5,"",IF(AK8<5,"",IF(N24=5,N30-P30,IF(P24=5,P30-N30,"")))) ->  | AL28: =IF(AK9<5,"",IF(AK8<6,"",IF(Q24=5,Q30-S30,IF(S24=5,S30-Q30,"")))) ->  | AM28: =IF(AK9<5,"",IF(AK8<7,"",IF(T24=5,T30-V30,IF(V24=5,V30-T30,"")))) ->  | AN28: =IF(AK9<5,"",IF(AK8<8,"",IF(W24=5,W30-Y30,IF(Y24=5,Y30-W30,"")))) ->  | AO28: =IF(AK9<5,"",IF(AK8<9,"",IF(Z24=5,Z30-AB30,IF(AB24=5,AB30-Z30,"")))) ->  | AP28: =IF(AK9<5,"",IF(AK8<10,"",IF(AC24=5,AC30-AE30,IF(AE24=5,AE30-AC30,"")))) ->  | AQ28: =SUM(AG28:AP28) -> 0
A29: =IF(AK7>4,"Game 5","") ->  | C29: / | F29: =IF(AK8>1,IF(AK7>4,"/",""),"") ->  | I29: =IF(AK8>2,IF(AK7>4,"/",""),"") ->  | L29: =IF(AK8>3,IF(AK7>4,"/",""),"") ->  | O29: =IF(AK8>4,IF(AK7>4,"/",""),"") ->  | R29: =IF(AK8>5,IF(AK7>4,"/",""),"") ->  | U29: =IF(AK8>6,IF(AK7>4,"/",""),"") ->  | X29: =IF(AK8>7,IF(AK7>4,"/",""),"") ->  | AA29: =IF(AK8>8,IF(AK7>4,"/",""),"") ->  | AD29: =IF(AK8>9,IF(AK7>4,"/",""),"") -> 
B30: =IF($AK7=5,SUM(B25:B29),IF($AK7=4,SUM(B25:B28),IF($AK7=3,SUM(B25:B27),IF($AK7=2,SUM(B25:B26),B25)))) -> 50 | D30: =IF($AK7=5,SUM(D25:D29),IF($AK7=4,SUM(D25:D28),IF($AK7=3,SUM(D25:D27),IF($AK7=2,SUM(D25:D26),D25)))) -> 34 | E30: =IF($AK7=5,SUM(E25:E29),IF($AK7=4,SUM(E25:E28),IF($AK7=3,SUM(E25:E27),IF($AK7=2,SUM(E25:E26),E25)))) -> 50 | G30: =IF($AK7=5,SUM(G25:G29),IF($AK7=4,SUM(G25:G28),IF($AK7=3,SUM(G25:G27),IF($AK7=2,SUM(G25:G26),G25)))) -> 38 | H30: =IF($AK7=5,SUM(H25:H29),IF($AK7=4,SUM(H25:H28),IF($AK7=3,SUM(H25:H27),IF($AK7=2,SUM(H25:H26),H25)))) -> 50 | J30: =IF($AK7=5,SUM(J25:J29),IF($AK7=4,SUM(J25:J28),IF($AK7=3,SUM(J25:J27),IF($AK7=2,SUM(J25:J26),J25)))) -> 31 | K30: =IF($AK7=5,SUM(K25:K29),IF($AK7=4,SUM(K25:K28),IF($AK7=3,SUM(K25:K27),IF($AK7=2,SUM(K25:K26),K25)))) -> 60 | M30: =IF($AK7=5,SUM(M25:M29),IF($AK7=4,SUM(M25:M28),IF($AK7=3,SUM(M25:M27),IF($AK7=2,SUM(M25:M26),M25)))) -> 54 | N30: =IF($AK7=5,SUM(N25:N29),IF($AK7=4,SUM(N25:N28),IF($AK7=3,SUM(N25:N27),IF($AK7=2,SUM(N25:N26),N25)))) -> 58 | P30: =IF($AK7=5,SUM(P25:P29),IF($AK7=4,SUM(P25:P28),IF($AK7=3,SUM(P25:P27),IF($AK7=2,SUM(P25:P26),P25)))) -> 54 | Q30: =IF($AK7=5,SUM(Q25:Q29),IF($AK7=4,SUM(Q25:Q28),IF($AK7=3,SUM(Q25:Q27),IF($AK7=2,SUM(Q25:Q26),Q25)))) -> 56 | S30: =IF($AK7=5,SUM(S25:S29),IF($AK7=4,SUM(S25:S28),IF($AK7=3,SUM(S25:S27),IF($AK7=2,SUM(S25:S26),S25)))) -> 67 | T30: =IF($AK7=5,SUM(T25:T29),IF($AK7=4,SUM(T25:T28),IF($AK7=3,SUM(T25:T27),IF($AK7=2,SUM(T25:T26),T25)))) -> 0 | V30: =IF($AK7=5,SUM(V25:V29),IF($AK7=4,SUM(V25:V28),IF($AK7=3,SUM(V25:V27),IF($AK7=2,SUM(V25:V26),V25)))) -> 0 | W30: =IF($AK7=5,SUM(W25:W29),IF($AK7=4,SUM(W25:W28),IF($AK7=3,SUM(W25:W27),IF($AK7=2,SUM(W25:W26),W25)))) -> 0 | Y30: =IF($AK7=5,SUM(Y25:Y29),IF($AK7=4,SUM(Y25:Y28),IF($AK7=3,SUM(Y25:Y27),IF($AK7=2,SUM(Y25:Y26),Y25)))) -> 0 | Z30: =IF($AK7=5,SUM(Z25:Z29),IF($AK7=4,SUM(Z25:Z28),IF($AK7=3,SUM(Z25:Z27),IF($AK7=2,SUM(Z25:Z26),Z25)))) -> 0 | AB30: =IF($AK7=5,SUM(AB25:AB29),IF($AK7=4,SUM(AB25:AB28),IF($AK7=3,SUM(AB25:AB27),IF($AK7=2,SUM(AB25:AB26),AB25)))) -> 0 | AC30: =IF($AK7=5,SUM(AC25:AC29),IF($AK7=4,SUM(AC25:AC28),IF($AK7=3,SUM(AC25:AC27),IF($AK7=2,SUM(AC25:AC26),AC25)))) -> 0 | AE30: =IF($AK7=5,SUM(AE25:AE29),IF($AK7=4,SUM(AE25:AE28),IF($AK7=3,SUM(AE25:AE27),IF($AK7=2,SUM(AE25:AE26),AE25)))) -> 0
A31: Gm1 Win | B31: =IF(AND(B25>D25,$AK8>0,ISNUMBER(B25),ISNUMBER(D25)),1,0) -> 1 | D31: =IF(AND(D25>B25,$AK8>0,ISNUMBER(B25),ISNUMBER(D25)),1,0) -> 0 | E31: =IF(AND(E25>G25,$AK8>1,ISNUMBER(E25),ISNUMBER(G25)),1,0) -> 1 | G31: =IF(AND(G25>E25,$AK8>1,ISNUMBER(E25),ISNUMBER(G25)),1,0) -> 0 | H31: =IF(AND(H25>J25,$AK8>2,ISNUMBER(H25),ISNUMBER(J25)),1,0) -> 1 | J31: =IF(AND(J25>H25,$AK8>2,ISNUMBER(H25),ISNUMBER(J25)),1,0) -> 0 | K31: =IF(AND(K25>M25,$AK8>3,ISNUMBER(K25),ISNUMBER(M25)),1,0) -> 1 | M31: =IF(AND(M25>K25,$AK8>3,ISNUMBER(K25),ISNUMBER(M25)),1,0) -> 0 | N31: =IF(AND(N25>P25,$AK8>4,ISNUMBER(N25),ISNUMBER(P25)),1,0) -> 0 | P31: =IF(AND(P25>N25,$AK8>4,ISNUMBER(N25),ISNUMBER(P25)),1,0) -> 1 | Q31: =IF(AND(Q25>S25,$AK8>5,ISNUMBER(Q25),ISNUMBER(S25)),1,0) -> 1 | S31: =IF(AND(S25>Q25,$AK8>5,ISNUMBER(Q25),ISNUMBER(S25)),1,0) -> 0 | T31: =IF(AND(T25>V25,$AK8>6,ISNUMBER(T25),ISNUMBER(V25)),1,0) -> 0 | V31: =IF(AND(V25>T25,$AK8>6,ISNUMBER(T25),ISNUMBER(V25)),1,0) -> 0 | W31: =IF(AND(W25>Y25,$AK8>7,ISNUMBER(W25),ISNUMBER(Y25)),1,0) -> 0 | Y31: =IF(AND(Y25>W25,$AK8>7,ISNUMBER(W25),ISNUMBER(Y25)),1,0) -> 0 | Z31: =IF(AND(Z25>AB25,$AK8>8,ISNUMBER(Z25),ISNUMBER(AB25)),1,0) -> 0 | AB31: =IF(AND(AB25>Z25,$AK8>8,ISNUMBER(Z25),ISNUMBER(AB25)),1,0) -> 0 | AC31: =IF(AND(AC25>AE25,$AK8>9,ISNUMBER(AC25),ISNUMBER(AE25)),1,0) -> 0 | AE31: =IF(AND(AE25>AC25,$AK8>9,ISNUMBER(AC25),ISNUMBER(AE25)),1,0) -> 0
A32: Gm2 Win | B32: =IF(AND(B26>D26,$AK8>0,$AK7>1,ISNUMBER(B26),ISNUMBER(D26)),1,0) -> 1 | D32: =IF(AND(D26>B26,$AK8>0,$AK7>1,ISNUMBER(B26),ISNUMBER(D26)),1,0) -> 0 | E32: =IF(AND(E26>G26,$AK8>1,$AK7>1,ISNUMBER(E26),ISNUMBER(G26)),1,0) -> 1 | G32: =IF(AND(G26>E26,$AK8>1,$AK7>1,ISNUMBER(E26),ISNUMBER(G26)),1,0) -> 0 | H32: =IF(AND(H26>J26,$AK8>2,$AK7>1,ISNUMBER(H26),ISNUMBER(J26)),1,0) -> 1 | J32: =IF(AND(J26>H26,$AK8>2,$AK7>1,ISNUMBER(H26),ISNUMBER(J26)),1,0) -> 0 | K32: =IF(AND(K26>M26,$AK8>3,$AK7>1,ISNUMBER(K26),ISNUMBER(M26)),1,0) -> 0 | M32: =IF(AND(M26>K26,$AK8>3,$AK7>1,ISNUMBER(K26),ISNUMBER(M26)),1,0) -> 1 | N32: =IF(AND(N26>P26,$AK8>4,$AK7>1,ISNUMBER(N26),ISNUMBER(P26)),1,0) -> 1 | P32: =IF(AND(P26>N26,$AK8>4,$AK7>1,ISNUMBER(N26),ISNUMBER(P26)),1,0) -> 0 | Q32: =IF(AND(Q26>S26,$AK8>5,$AK7>1,ISNUMBER(Q26),ISNUMBER(S26)),1,0) -> 0 | S32: =IF(AND(S26>Q26,$AK8>5,$AK7>1,ISNUMBER(Q26),ISNUMBER(S26)),1,0) -> 1 | T32: =IF(AND(T26>V26,$AK8>6,$AK7>1,ISNUMBER(T26),ISNUMBER(V26)),1,0) -> 0 | V32: =IF(AND(V26>T26,$AK8>6,$AK7>1,ISNUMBER(T26),ISNUMBER(V26)),1,0) -> 0 | W32: =IF(AND(W26>Y26,$AK8>7,$AK7>1,ISNUMBER(W26),ISNUMBER(Y26)),1,0) -> 0 | Y32: =IF(AND(Y26>W26,$AK8>7,$AK7>1,ISNUMBER(W26),ISNUMBER(Y26)),1,0) -> 0 | Z32: =IF(AND(Z26>AB26,$AK8>8,$AK7>1,ISNUMBER(Z26),ISNUMBER(AB26)),1,0) -> 0 | AB32: =IF(AND(AB26>Z26,$AK8>8,$AK7>1,ISNUMBER(Z26),ISNUMBER(AB26)),1,0) -> 0 | AC32: =IF(AND(AC26>AE26,$AK8>9,$AK7>1,ISNUMBER(AC26),ISNUMBER(AE26)),1,0) -> 0 | AE32: =IF(AND(AE26>AC26,$AK8>9,$AK7>1,ISNUMBER(AC26),ISNUMBER(AE26)),1,0) -> 0
A33: Gm3 Win | B33: =IF(AND(B27>D27,$AK8>0,$AK7>2,ISNUMBER(B27),ISNUMBER(D27)),1,0) -> 0 | D33: =IF(AND(D27>B27,$AK8>0,$AK7>2,ISNUMBER(B27),ISNUMBER(D27)),1,0) -> 0 | E33: =IF(AND(E27>G27,$AK8>1,$AK7>2,ISNUMBER(E27),ISNUMBER(G27)),1,0) -> 0 | G33: =IF(AND(G27>E27,$AK8>1,$AK7>2,ISNUMBER(E27),ISNUMBER(G27)),1,0) -> 0 | H33: =IF(AND(H27>J27,$AK8>2,$AK7>2,ISNUMBER(H27),ISNUMBER(J27)),1,0) -> 0 | J33: =IF(AND(J27>H27,$AK8>2,$AK7>2,ISNUMBER(H27),ISNUMBER(J27)),1,0) -> 0 | K33: =IF(AND(K27>M27,$AK8>3,$AK7>2,ISNUMBER(K27),ISNUMBER(M27)),1,0) -> 1 | M33: =IF(AND(M27>K27,$AK8>3,$AK7>2,ISNUMBER(K27),ISNUMBER(M27)),1,0) -> 0 | N33: =IF(AND(N27>P27,$AK8>4,$AK7>2,ISNUMBER(N27),ISNUMBER(P27)),1,0) -> 0 | P33: =IF(AND(P27>N27,$AK8>4,$AK7>2,ISNUMBER(N27),ISNUMBER(P27)),1,0) -> 1 | Q33: =IF(AND(Q27>S27,$AK8>5,$AK7>2,ISNUMBER(Q27),ISNUMBER(S27)),1,0) -> 1 | S33: =IF(AND(S27>Q27,$AK8>5,$AK7>2,ISNUMBER(Q27),ISNUMBER(S27)),1,0) -> 0 | T33: =IF(AND(T27>V27,$AK8>6,$AK7>2,ISNUMBER(T27),ISNUMBER(V27)),1,0) -> 0 | V33: =IF(AND(V27>T27,$AK8>6,$AK7>2,ISNUMBER(T27),ISNUMBER(V27)),1,0) -> 0 | W33: =IF(AND(W27>Y27,$AK8>7,$AK7>2,ISNUMBER(W27),ISNUMBER(Y27)),1,0) -> 0 | Y33: =IF(AND(Y27>W27,$AK8>7,$AK7>2,ISNUMBER(W27),ISNUMBER(Y27)),1,0) -> 0 | Z33: =IF(AND(Z27>AB27,$AK8>8,$AK7>2,ISNUMBER(Z27),ISNUMBER(AB27)),1,0) -> 0 | AB33: =IF(AND(AB27>Z27,$AK8>8,$AK7>2,ISNUMBER(Z27),ISNUMBER(AB27)),1,0) -> 0 | AC33: =IF(AND(AC27>AE27,$AK8>9,$AK7>2,ISNUMBER(AC27),ISNUMBER(AE27)),1,0) -> 0 | AE33: =IF(AND(AE27>AC27,$AK8>9,$AK7>2,ISNUMBER(AC27),ISNUMBER(AE27)),1,0) -> 0
A34: Gm4 Win | B34: =IF(AND(B28>D28,$AK8>0,$AK7>3,ISNUMBER(B28),ISNUMBER(D28)),1,0) -> 0 | D34: =IF(AND(D28>B28,$AK8>0,$AK7>3,ISNUMBER(B28),ISNUMBER(D28)),1,0) -> 0 | E34: =IF(AND(E28>G28,$AK8>1,$AK7>3,ISNUMBER(E28),ISNUMBER(G28)),1,0) -> 0 | G34: =IF(AND(G28>E28,$AK8>1,$AK7>3,ISNUMBER(E28),ISNUMBER(G28)),1,0) -> 0 | H34: =IF(AND(H28>J28,$AK8>2,$AK7>3,ISNUMBER(H28),ISNUMBER(J28)),1,0) -> 0 | J34: =IF(AND(J28>H28,$AK8>2,$AK7>3,ISNUMBER(H28),ISNUMBER(J28)),1,0) -> 0 | K34: =IF(AND(K28>M28,$AK8>3,$AK7>3,ISNUMBER(K28),ISNUMBER(M28)),1,0) -> 0 | M34: =IF(AND(M28>K28,$AK8>3,$AK7>3,ISNUMBER(K28),ISNUMBER(M28)),1,0) -> 0 | N34: =IF(AND(N28>P28,$AK8>4,$AK7>3,ISNUMBER(N28),ISNUMBER(P28)),1,0) -> 0 | P34: =IF(AND(P28>N28,$AK8>4,$AK7>3,ISNUMBER(N28),ISNUMBER(P28)),1,0) -> 0 | Q34: =IF(AND(Q28>S28,$AK8>5,$AK7>3,ISNUMBER(Q28),ISNUMBER(S28)),1,0) -> 0 | S34: =IF(AND(S28>Q28,$AK8>5,$AK7>3,ISNUMBER(Q28),ISNUMBER(S28)),1,0) -> 0 | T34: =IF(AND(T28>V28,$AK8>6,$AK7>3,ISNUMBER(T28),ISNUMBER(V28)),1,0) -> 0 | V34: =IF(AND(V28>T28,$AK8>6,$AK7>3,ISNUMBER(T28),ISNUMBER(V28)),1,0) -> 0 | W34: =IF(AND(W28>Y28,$AK8>7,$AK7>3,ISNUMBER(W28),ISNUMBER(Y28)),1,0) -> 0 | Y34: =IF(AND(Y28>W28,$AK8>7,$AK7>3,ISNUMBER(W28),ISNUMBER(Y28)),1,0) -> 0 | Z34: =IF(AND(Z28>AB28,$AK8>8,$AK7>3,ISNUMBER(Z28),ISNUMBER(AB28)),1,0) -> 0 | AB34: =IF(AND(AB28>Z28,$AK8>8,$AK7>3,ISNUMBER(Z28),ISNUMBER(AB28)),1,0) -> 0 | AC34: =IF(AND(AC28>AE28,$AK8>9,$AK7>3,ISNUMBER(AC28),ISNUMBER(AE28)),1,0) -> 0 | AE34: =IF(AND(AE28>AC28,$AK8>9,$AK7>3,ISNUMBER(AC28),ISNUMBER(AE28)),1,0) -> 0
A35: Gm5 Win | B35: =IF(AND(B29>D29,$AK8>0,$AK7>4,ISNUMBER(B29),ISNUMBER(D29)),1,0) -> 0 | D35: =IF(AND(D29>B29,$AK8>0,$AK7>4,ISNUMBER(B29),ISNUMBER(D29)),1,0) -> 0 | E35: =IF(AND(E29>G29,$AK8>1,$AK7>4,ISNUMBER(E29),ISNUMBER(G29)),1,0) -> 0 | G35: =IF(AND(G29>E29,$AK8>1,$AK7>4,ISNUMBER(E29),ISNUMBER(G29)),1,0) -> 0 | H35: =IF(AND(H29>J29,$AK8>2,$AK7>4,ISNUMBER(H29),ISNUMBER(J29)),1,0) -> 0 | J35: =IF(AND(J29>H29,$AK8>2,$AK7>4,ISNUMBER(H29),ISNUMBER(J29)),1,0) -> 0 | K35: =IF(AND(K29>M29,$AK8>3,$AK7>4,ISNUMBER(K29),ISNUMBER(M29)),1,0) -> 0 | M35: =IF(AND(M29>K29,$AK8>3,$AK7>4,ISNUMBER(K29),ISNUMBER(M29)),1,0) -> 0 | N35: =IF(AND(N29>P29,$AK8>4,$AK7>4,ISNUMBER(N29),ISNUMBER(P29)),1,0) -> 0 | P35: =IF(AND(P29>N29,$AK8>4,$AK7>4,ISNUMBER(N29),ISNUMBER(P29)),1,0) -> 0 | Q35: =IF(AND(Q29>S29,$AK8>5,$AK7>4,ISNUMBER(Q29),ISNUMBER(S29)),1,0) -> 0 | S35: =IF(AND(S29>Q29,$AK8>5,$AK7>4,ISNUMBER(Q29),ISNUMBER(S29)),1,0) -> 0 | T35: =IF(AND(T29>V29,$AK8>6,$AK7>4,ISNUMBER(T29),ISNUMBER(V29)),1,0) -> 0 | V35: =IF(AND(V29>T29,$AK8>6,$AK7>4,ISNUMBER(T29),ISNUMBER(V29)),1,0) -> 0 | W35: =IF(AND(W29>Y29,$AK8>7,$AK7>4,ISNUMBER(W29),ISNUMBER(Y29)),1,0) -> 0 | Y35: =IF(AND(Y29>W29,$AK8>7,$AK7>4,ISNUMBER(W29),ISNUMBER(Y29)),1,0) -> 0 | Z35: =IF(AND(Z29>AB29,$AK8>8,$AK7>4,ISNUMBER(Z29),ISNUMBER(AB29)),1,0) -> 0 | AB35: =IF(AND(AB29>Z29,$AK8>8,$AK7>4,ISNUMBER(Z29),ISNUMBER(AB29)),1,0) -> 0 | AC35: =IF(AND(AC29>AE29,$AK8>9,$AK7>4,ISNUMBER(AC29),ISNUMBER(AE29)),1,0) -> 0 | AE35: =IF(AND(AE29>AC29,$AK8>9,$AK7>4,ISNUMBER(AC29),ISNUMBER(AE29)),1,0) -> 0
A36: Sum Game Win/Loss | B36: =SUM(B31:B35) -> 2 | D36: =SUM(D31:D35) -> 0 | E36: =SUM(E31:E35) -> 2 | G36: =SUM(G31:G35) -> 0 | H36: =SUM(H31:H35) -> 2 | J36: =SUM(J31:J35) -> 0 | K36: =SUM(K31:K35) -> 2 | M36: =SUM(M31:M35) -> 1 | N36: =SUM(N31:N35) -> 1 | P36: =SUM(P31:P35) -> 2 | Q36: =SUM(Q31:Q35) -> 2 | S36: =SUM(S31:S35) -> 1 | T36: =SUM(T31:T35) -> 0 | V36: =SUM(V31:V35) -> 0 | W36: =SUM(W31:W35) -> 0 | Y36: =SUM(Y31:Y35) -> 0 | Z36: =SUM(Z31:Z35) -> 0 | AB36: =SUM(AB31:AB35) -> 0 | AC36: =SUM(AC31:AC35) -> 0 | AE36: =SUM(AE31:AE35) -> 0
A37: Match Won/Lost | B37: =IF(B36>D36,IF(C71=AK7,1,IF(C71=AK7-1,1,0)),0) -> 1 | C37: =B37+D37 -> 1 | D37: =IF(D36>B36,IF(C71=AK7,1,IF(C71=AK7-1,1,0)),0) -> 0 | E37: =IF(E36>G36,IF(F71=AK7,1,IF(F71=AK7-1,1,0)),0) -> 1 | F37: =E37+G37 -> 1 | G37: =IF(G36>E36,IF(F71=AK7,1,IF(F71=AK7-1,1,0)),0) -> 0 | H37: =IF(H36>J36,IF(I71=AK7,1,IF(I71=AK7-1,1,0)),0) -> 1 | I37: =H37+J37 -> 1 | J37: =IF(J36>H36,IF(I71=AK7,1,IF(I71=AK7-1,1,0)),0) -> 0 | K37: =IF(K36>M36,IF(L71=AK7,1,IF(L71=AK7-1,1,0)),0) -> 1 | L37: =K37+M37 -> 1 | M37: =IF(M36>K36,IF(L71=AK7,1,IF(L71=AK7-1,1,0)),0) -> 0 | N37: =IF(N36>P36,IF(O71=AK7,1,IF(O71=AK7-1,1,0)),0) -> 0 | O37: =N37+P37 -> 1 | P37: =IF(P36>N36,IF(O71=AK7,1,IF(O71=AK7-1,1,0)),0) -> 1 | Q37: =IF(Q36>S36,IF(R71=AK7,1,IF(R71=AK7-1,1,0)),0) -> 1 | R37: =Q37+S37 -> 1 | S37: =IF(S36>Q36,IF(R71=AK7,1,IF(R71=AK7-1,1,0)),0) -> 0 | T37: =IF(T36>V36,IF(U71=AK7,1,IF(U71=AK7-1,1,0)),0) -> 0 | U37: =T37+V37 -> 0 | V37: =IF(V36>T36,IF(U71=AK7,1,IF(U71=AK7-1,1,0)),0) -> 0 | W37: =IF(W36>Y36,IF(X71=AK7,1,IF(X71=AK7-1,1,0)),0) -> 0 | X37: =W37+Y37 -> 0 | Y37: =IF(Y36>W36,IF(X71=AK7,1,IF(X71=AK7-1,1,0)),0) -> 0 | Z37: =IF(Z36>AB36,IF(AA71=AK7,1,IF(AA71=AK7-1,1,0)),0) -> 0 | AA37: =Z37+AB37 -> 0 | AB37: =IF(AB36>Z36,IF(AA71=AK7,1,IF(AA71=AK7-1,1,0)),0) -> 0 | AC37: =IF(AC36>AE36,IF(AD71=AK7,1,IF(AD71=AK7-1,1,0)),0) -> 0 | AD37: =AC37+AE37 -> 0 | AE37: =IF(AE36>AC36,IF(AD71=AK7,1,IF(AD71=AK7-1,1,0)),0) -> 0
A39: Gm1 Pts | B39: =IF(B31=1,B25,0) -> 25 | D39: =IF(D31=1,D25,0) -> 0 | E39: 25 | G39: =IF(G31=1,G25,0) -> 0 | H39: 25 | J39: =IF(J31=1,J25,0) -> 0 | K39: 25 | M39: =IF(M31=1,M25,0) -> 0 | N39: 0 | P39: =IF(P31=1,P25,0) -> 25 | Q39: 27 | S39: =IF(S31=1,S25,0) -> 0 | T39: 0 | V39: =IF(V31=1,V25,0) -> 0 | W39: 0 | Y39: =IF(Y31=1,Y25,0) -> 0 | Z39: 0 | AB39: =IF(AB31=1,AB25,0) -> 0 | AC39: 0 | AE39: =IF(AE31=1,AE25,0) -> 0
A40: Gm2 Pts | B40: =IF(B32=1,B26,0) -> 25 | D40: 0 | E40: 25 | G40: 0 | H40: 25 | J40: 0 | K40: 0 | M40: 25 | N40: 25 | P40: 0 | Q40: 0 | S40: 25 | T40: 0 | V40: 0 | W40: 0 | Y40: 0 | Z40: 0 | AB40: 0 | AC40: 0 | AE40: =IF(AE32=1,AE26,0) -> 0
A41: Gm3 Pts | B41: =IF(B33=1,B27,0) -> 0 | D41: 0 | E41: 0 | G41: 0 | H41: 0 | J41: 0 | K41: 15 | M41: 0 | N41: 0 | P41: 15 | Q41: 17 | S41: 0 | T41: 0 | V41: 0 | W41: 0 | Y41: 0 | Z41: 0 | AB41: 0 | AC41: 0 | AE41: =IF(AE33=1,AE27,0) -> 0
A42: Gm4 Pts | B42: =IF(B34=1,B28,0) -> 0 | D42: 0 | E42: 0 | G42: 0 | H42: 0 | J42: 0 | K42: 0 | M42: 0 | N42: 0 | P42: 0 | Q42: 0 | S42: 0 | T42: 0 | V42: 0 | W42: 0 | Y42: 0 | Z42: 0 | AB42: 0 | AC42: 0 | AE42: =IF(AE34=1,AE28,0) -> 0
A43: Gm5 Pts | B43: =IF(B35=1,B29,0) -> 0 | D43: 0 | E43: 0 | G43: 0 | H43: 0 | J43: 0 | K43: 0 | M43: 0 | N43: 0 | P43: 0 | Q43: 0 | S43: 0 | T43: 0 | V43: 0 | W43: 0 | Y43: 0 | Z43: 0 | AB43: 0 | AC43: 0 | AE43: =IF(AE35=1,AE29,0) -> 0
A44: Sum Match Points | B44: =SUM(B39:D43) -> 50 | E44: =SUM(E39:G43) -> 50 | H44: =SUM(H39:J43) -> 50 | K44: =SUM(K39:M43) -> 65 | N44: =SUM(N39:P43) -> 65 | Q44: =SUM(Q39:S43) -> 69 | T44: =SUM(T39:V43) -> 0 | W44: =SUM(W39:Y43) -> 0 | Z44: =SUM(Z39:AB43) -> 0 | AC44: =SUM(AC39:AE43) -> 0
A45: Matches | AF45: Match Wins by Team | AG45: Match Losses by Team
A46: Tm1 Wins | B46: =IF(B24=1,IF(B37=1,1,0),0) -> 0 | D46: =IF(D24=1,IF(D37=1,1,0),0) -> 0 | E46: =IF(E24=1,IF(E37=1,1,0),0) -> 1 | G46: =IF(G24=1,IF(G37=1,1,0),0) -> 0 | H46: =IF(H24=1,IF(H37=1,1,0),0) -> 0 | J46: =IF(J24=1,IF(J37=1,1,0),0) -> 0 | K46: =IF(K24=1,IF(K37=1,1,0),0) -> 1 | M46: =IF(M24=1,IF(M37=1,1,0),0) -> 0 | N46: =IF(N24=1,IF(N37=1,1,0),0) -> 0 | P46: =IF(P24=1,IF(P37=1,1,0),0) -> 0 | Q46: =IF(Q24=1,IF(Q37=1,1,0),0) -> 1 | S46: =IF(S24=1,IF(S37=1,1,0),0) -> 0 | T46: =IF(T24=1,IF(T37=1,1,0),0) -> 0 | V46: =IF(V24=1,IF(V37=1,1,0),0) -> 0 | W46: =IF(W24=1,IF(W37=1,1,0),0) -> 0 | Y46: =IF(Y24=1,IF(Y37=1,1,0),0) -> 0 | Z46: =IF(Z24=1,IF(Z37=1,1,0),0) -> 0 | AB46: =IF(AB24=1,IF(AB37=1,1,0),0) -> 0 | AC46: =IF(AC24=1,IF(AC37=1,1,0),0) -> 0 | AE46: =IF(AE24=1,IF(AE37=1,1,0),0) -> 0 | AF46: =SUM(B46:AE46) -> 3 | AG46: =AF52-AF46 -> 0
A47: Tm2 Wins | B47: =IF(B24=2,IF(B37=1,1,0),0) -> 1 | D47: =IF(D24=2,IF(D37=1,1,0),0) -> 0 | E47: =IF(E24=2,IF(E37=1,1,0),0) -> 0 | G47: =IF(G24=2,IF(G37=1,1,0),0) -> 0 | H47: =IF(H24=2,IF(H37=1,1,0),0) -> 1 | J47: =IF(J24=2,IF(J37=1,1,0),0) -> 0 | K47: =IF(K24=2,IF(K37=1,1,0),0) -> 0 | M47: =IF(M24=2,IF(M37=1,1,0),0) -> 0 | N47: =IF(N24=2,IF(N37=1,1,0),0) -> 0 | P47: =IF(P24=2,IF(P37=1,1,0),0) -> 0 | Q47: =IF(Q24=2,IF(Q37=1,1,0),0) -> 0 | S47: =IF(S24=2,IF(S37=1,1,0),0) -> 0 | T47: =IF(T24=2,IF(T37=1,1,0),0) -> 0 | V47: =IF(V24=2,IF(V37=1,1,0),0) -> 0 | W47: =IF(W24=2,IF(W37=1,1,0),0) -> 0 | Y47: =IF(Y24=2,IF(Y37=1,1,0),0) -> 0 | Z47: =IF(Z24=2,IF(Z37=1,1,0),0) -> 0 | AB47: =IF(AB24=2,IF(AB37=1,1,0),0) -> 0 | AC47: =IF(AC24=2,IF(AC37=1,1,0),0) -> 0 | AE47: =IF(AE24=2,IF(AE37=1,1,0),0) -> 0 | AF47: =SUM(B47:AE47) -> 2 | AG47: =AF53-AF47 -> 1
A48: Tm3 Wins | B48: =IF(B24=3,IF(B37=1,1,0),0) -> 0 | D48: =IF(D24=3,IF(D37=1,1,0),0) -> 0 | E48: =IF(E24=3,IF(E37=1,1,0),0) -> 0 | G48: =IF(G24=3,IF(G37=1,1,0),0) -> 0 | H48: =IF(H24=3,IF(H37=1,1,0),0) -> 0 | J48: =IF(J24=3,IF(J37=1,1,0),0) -> 0 | K48: =IF(K24=3,IF(K37=1,1,0),0) -> 0 | M48: =IF(M24=3,IF(M37=1,1,0),0) -> 0 | N48: =IF(N24=3,IF(N37=1,1,0),0) -> 0 | P48: =IF(P24=3,IF(P37=1,1,0),0) -> 0 | Q48: =IF(Q24=3,IF(Q37=1,1,0),0) -> 0 | S48: =IF(S24=3,IF(S37=1,1,0),0) -> 0 | T48: =IF(T24=3,IF(T37=1,1,0),0) -> 0 | V48: =IF(V24=3,IF(V37=1,1,0),0) -> 0 | W48: =IF(W24=3,IF(W37=1,1,0),0) -> 0 | Y48: =IF(Y24=3,IF(Y37=1,1,0),0) -> 0 | Z48: =IF(Z24=3,IF(Z37=1,1,0),0) -> 0 | AB48: =IF(AB24=3,IF(AB37=1,1,0),0) -> 0 | AC48: =IF(AC24=3,IF(AC37=1,1,0),0) -> 0 | AE48: =IF(AE24=3,IF(AE37=1,1,0),0) -> 0 | AF48: =SUM(B48:AE48) -> 0 | AG48: =AF54-AF48 -> 3
A49: Tm4 Wins | B49: =IF(B24=4,IF(B37=1,1,0),0) -> 0 | D49: =IF(D24=4,IF(D37=1,1,0),0) -> 0 | E49: =IF(E24=4,IF(E37=1,1,0),0) -> 0 | G49: =IF(G24=4,IF(G37=1,1,0),0) -> 0 | H49: =IF(H24=4,IF(H37=1,1,0),0) -> 0 | J49: =IF(J24=4,IF(J37=1,1,0),0) -> 0 | K49: =IF(K24=4,IF(K37=1,1,0),0) -> 0 | M49: =IF(M24=4,IF(M37=1,1,0),0) -> 0 | N49: =IF(N24=4,IF(N37=1,1,0),0) -> 0 | P49: =IF(P24=4,IF(P37=1,1,0),0) -> 1 | Q49: =IF(Q24=4,IF(Q37=1,1,0),0) -> 0 | S49: =IF(S24=4,IF(S37=1,1,0),0) -> 0 | T49: =IF(T24=4,IF(T37=1,1,0),0) -> 0 | V49: =IF(V24=4,IF(V37=1,1,0),0) -> 0 | W49: =IF(W24=4,IF(W37=1,1,0),0) -> 0 | Y49: =IF(Y24=4,IF(Y37=1,1,0),0) -> 0 | Z49: =IF(Z24=4,IF(Z37=1,1,0),0) -> 0 | AB49: =IF(AB24=4,IF(AB37=1,1,0),0) -> 0 | AC49: =IF(AC24=4,IF(AC37=1,1,0),0) -> 0 | AE49: =IF(AE24=4,IF(AE37=1,1,0),0) -> 0 | AF49: =SUM(B49:AE49) -> 1 | AG49: =AF55-AF49 -> 2
A50: Tm5 Wins | B50: =IF(B24=5,IF(B37=1,1,0),0) -> 0 | D50: =IF(D24=5,IF(D37=1,1,0),0) -> 0 | E50: =IF(E24=5,IF(E37=1,1,0),0) -> 0 | G50: =IF(G24=5,IF(G37=1,1,0),0) -> 0 | H50: =IF(H24=5,IF(H37=1,1,0),0) -> 0 | J50: =IF(J24=5,IF(J37=1,1,0),0) -> 0 | K50: =IF(K24=5,IF(K37=1,1,0),0) -> 0 | M50: =IF(M24=5,IF(M37=1,1,0),0) -> 0 | N50: =IF(N24=5,IF(N37=1,1,0),0) -> 0 | P50: =IF(P24=5,IF(P37=1,1,0),0) -> 0 | Q50: =IF(Q24=5,IF(Q37=1,1,0),0) -> 0 | S50: =IF(S24=5,IF(S37=1,1,0),0) -> 0 | T50: =IF(T24=5,IF(T37=1,1,0),0) -> 0 | V50: =IF(V24=5,IF(V37=1,1,0),0) -> 0 | W50: =IF(W24=5,IF(W37=1,1,0),0) -> 0 | Y50: =IF(Y24=5,IF(Y37=1,1,0),0) -> 0 | Z50: =IF(Z24=5,IF(Z37=1,1,0),0) -> 0 | AB50: =IF(AB24=5,IF(AB37=1,1,0),0) -> 0 | AC50: =IF(AC24=5,IF(AC37=1,1,0),0) -> 0 | AE50: =IF(AE24=5,IF(AE37=1,1,0),0) -> 0 | AF50: =SUM(B50:AE50) -> 0 | AG50: =AF56-AF50 -> 0
AF51: Matches played by team
A52: Tm1 Play | B52: =IF(B24=1,IF(C37=1,1,0),0) -> 0 | D52: =IF(D24=1,IF(C37=1,1,0),0) -> 0 | E52: =IF(E24=1,IF(F37=1,1,0),0) -> 1 | G52: =IF(G24=1,IF(F37=1,1,0),0) -> 0 | H52: =IF(H24=1,IF(I37=1,1,0),0) -> 0 | J52: =IF(J24=1,IF(I37=1,1,0),0) -> 0 | K52: =IF(K24=1,IF(L37=1,1,0),0) -> 1 | M52: =IF(M24=1,IF(L37=1,1,0),0) -> 0 | N52: =IF(N24=1,IF(O37=1,1,0),0) -> 0 | P52: =IF(P24=1,IF(O37=1,1,0),0) -> 0 | Q52: =IF(Q24=1,IF(R37=1,1,0),0) -> 1 | S52: =IF(S24=1,IF(R37=1,1,0),0) -> 0 | T52: =IF(T24=1,IF(U37=1,1,0),0) -> 0 | V52: =IF(V24=1,IF(U37=1,1,0),0) -> 0 | W52: =IF(W24=1,IF(X37=1,1,0),0) -> 0 | Y52: =IF(Y24=1,IF(X37=1,1,0),0) -> 0 | Z52: =IF(Z24=1,IF(AA37=1,1,0),0) -> 0 | AB52: =IF(AB24=1,IF(AA37=1,1,0),0) -> 0 | AC52: =IF(AC24=1,IF(AD37=1,1,0),0) -> 0 | AE52: =IF(AE24=1,IF(AD37=1,1,0),0) -> 0 | AF52: =SUM(B52:AE52) -> 3
A53: Tm2 Play | B53: =IF(B24=2,IF(C37=1,1,0),0) -> 1 | D53: =IF(D24=2,IF(C37=1,1,0),0) -> 0 | E53: =IF(E24=2,IF(F37=1,1,0),0) -> 0 | G53: =IF(G24=2,IF(F37=1,1,0),0) -> 0 | H53: =IF(H24=2,IF(I37=1,1,0),0) -> 1 | J53: =IF(J24=2,IF(I37=1,1,0),0) -> 0 | K53: =IF(K24=2,IF(L37=1,1,0),0) -> 0 | M53: =IF(M24=2,IF(L37=1,1,0),0) -> 0 | N53: =IF(N24=2,IF(O37=1,1,0),0) -> 0 | P53: =IF(P24=2,IF(O37=1,1,0),0) -> 0 | Q53: =IF(Q24=2,IF(R37=1,1,0),0) -> 0 | S53: =IF(S24=2,IF(R37=1,1,0),0) -> 1 | T53: =IF(T24=2,IF(U37=1,1,0),0) -> 0 | V53: =IF(V24=2,IF(U37=1,1,0),0) -> 0 | W53: =IF(W24=2,IF(X37=1,1,0),0) -> 0 | Y53: =IF(Y24=2,IF(X37=1,1,0),0) -> 0 | Z53: =IF(Z24=2,IF(AA37=1,1,0),0) -> 0 | AB53: =IF(AB24=2,IF(AA37=1,1,0),0) -> 0 | AC53: =IF(AC24=2,IF(AD37=1,1,0),0) -> 0 | AE53: =IF(AE24=2,IF(AD37=1,1,0),0) -> 0 | AF53: =SUM(B53:AE53) -> 3
A54: Tm3 Play | B54: =IF(B24=3,IF(C37=1,1,0),0) -> 0 | D54: =IF(D24=3,IF(C37=1,1,0),0) -> 1 | E54: =IF(E24=3,IF(F37=1,1,0),0) -> 0 | G54: =IF(G24=3,IF(F37=1,1,0),0) -> 0 | H54: =IF(H24=3,IF(I37=1,1,0),0) -> 0 | J54: =IF(J24=3,IF(I37=1,1,0),0) -> 0 | K54: =IF(K24=3,IF(L37=1,1,0),0) -> 0 | M54: =IF(M24=3,IF(L37=1,1,0),0) -> 1 | N54: =IF(N24=3,IF(O37=1,1,0),0) -> 1 | P54: =IF(P24=3,IF(O37=1,1,0),0) -> 0 | Q54: =IF(Q24=3,IF(R37=1,1,0),0) -> 0 | S54: =IF(S24=3,IF(R37=1,1,0),0) -> 0 | T54: =IF(T24=3,IF(U37=1,1,0),0) -> 0 | V54: =IF(V24=3,IF(U37=1,1,0),0) -> 0 | W54: =IF(W24=3,IF(X37=1,1,0),0) -> 0 | Y54: =IF(Y24=3,IF(X37=1,1,0),0) -> 0 | Z54: =IF(Z24=3,IF(AA37=1,1,0),0) -> 0 | AB54: =IF(AB24=3,IF(AA37=1,1,0),0) -> 0 | AC54: =IF(AC24=3,IF(AD37=1,1,0),0) -> 0 | AE54: =IF(AE24=3,IF(AD37=1,1,0),0) -> 0 | AF54: =SUM(B54:AE54) -> 3
A55: Tm4 Play | B55: =IF(B24=4,IF(C37=1,1,0),0) -> 0 | D55: =IF(D24=4,IF(C37=1,1,0),0) -> 0 | E55: =IF(E24=4,IF(F37=1,1,0),0) -> 0 | G55: =IF(G24=4,IF(F37=1,1,0),0) -> 1 | H55: =IF(H24=4,IF(I37=1,1,0),0) -> 0 | J55: =IF(J24=4,IF(I37=1,1,0),0) -> 1 | K55: =IF(K24=4,IF(L37=1,1,0),0) -> 0 | M55: =IF(M24=4,IF(L37=1,1,0),0) -> 0 | N55: =IF(N24=4,IF(O37=1,1,0),0) -> 0 | P55: =IF(P24=4,IF(O37=1,1,0),0) -> 1 | Q55: =IF(Q24=4,IF(R37=1,1,0),0) -> 0 | S55: =IF(S24=4,IF(R37=1,1,0),0) -> 0 | T55: =IF(T24=4,IF(U37=1,1,0),0) -> 0 | V55: =IF(V24=4,IF(U37=1,1,0),0) -> 0 | W55: =IF(W24=4,IF(X37=1,1,0),0) -> 0 | Y55: =IF(Y24=4,IF(X37=1,1,0),0) -> 0 | Z55: =IF(Z24=4,IF(AA37=1,1,0),0) -> 0 | AB55: =IF(AB24=4,IF(AA37=1,1,0),0) -> 0 | AC55: =IF(AC24=4,IF(AD37=1,1,0),0) -> 0 | AE55: =IF(AE24=4,IF(AD37=1,1,0),0) -> 0 | AF55: =SUM(B55:AE55) -> 3
A56: Tm5 Play | B56: =IF(B24=5,IF(C37=1,1,0),0) -> 0 | D56: =IF(D24=5,IF(C37=1,1,0),0) -> 0 | E56: =IF(E24=5,IF(F37=1,1,0),0) -> 0 | G56: =IF(G24=5,IF(F37=1,1,0),0) -> 0 | H56: =IF(H24=5,IF(I37=1,1,0),0) -> 0 | J56: =IF(J24=5,IF(I37=1,1,0),0) -> 0 | K56: =IF(K24=5,IF(L37=1,1,0),0) -> 0 | M56: =IF(M24=5,IF(L37=1,1,0),0) -> 0 | N56: =IF(N24=5,IF(O37=1,1,0),0) -> 0 | P56: =IF(P24=5,IF(O37=1,1,0),0) -> 0 | Q56: =IF(Q24=5,IF(R37=1,1,0),0) -> 0 | S56: =IF(S24=5,IF(R37=1,1,0),0) -> 0 | T56: =IF(T24=5,IF(U37=1,1,0),0) -> 0 | V56: =IF(V24=5,IF(U37=1,1,0),0) -> 0 | W56: =IF(W24=5,IF(X37=1,1,0),0) -> 0 | Y56: =IF(Y24=5,IF(X37=1,1,0),0) -> 0 | Z56: =IF(Z24=5,IF(AA37=1,1,0),0) -> 0 | AB56: =IF(AB24=5,IF(AA37=1,1,0),0) -> 0 | AC56: =IF(AC24=5,IF(AD37=1,1,0),0) -> 0 | AE56: =IF(AE24=5,IF(AD37=1,1,0),0) -> 0 | AF56: =SUM(B56:AE56) -> 0
AF57: Total Points played by team
A58: Tm1 Play | B58: =IF(B24=1,B44,0) -> 0 | D58: =IF(D24=1,B44,0) -> 0 | E58: =IF(E24=1,E44,0) -> 50 | G58: =IF(G24=1,E44,0) -> 0 | H58: =IF(H24=1,H44,0) -> 0 | J58: =IF(J24=1,H44,0) -> 0 | K58: =IF(K24=1,K44,0) -> 65 | M58: =IF(M24=1,K44,0) -> 0 | N58: =IF(N24=1,N44,0) -> 0 | P58: =IF(P24=1,N44,0) -> 0 | Q58: =IF(Q24=1,Q44,0) -> 69 | S58: =IF(S24=1,Q44,0) -> 0 | T58: =IF(T24=1,T44,0) -> 0 | V58: =IF(V24=1,T44,0) -> 0 | W58: =IF(W24=1,W44,0) -> 0 | Y58: =IF(Y24=1,W44,0) -> 0 | Z58: =IF(Z24=1,Z44,0) -> 0 | AB58: =IF(AB24=1,Z44,0) -> 0 | AC58: =IF(AC24=1,AC44,0) -> 0 | AE58: =IF(AE24=1,AC44,0) -> 0 | AF58: =SUM(B58:AE58) -> 184
A59: Tm2 Play | B59: =IF(B24=2,B44,0) -> 50 | D59: =IF(D24=2,B44,0) -> 0 | E59: =IF(E24=2,E44,0) -> 0 | G59: =IF(G24=2,E44,0) -> 0 | H59: =IF(H24=2,H44,0) -> 50 | J59: =IF(J24=2,H44,0) -> 0 | K59: =IF(K24=2,K44,0) -> 0 | M59: =IF(M24=2,K44,0) -> 0 | N59: =IF(N24=2,N44,0) -> 0 | P59: =IF(P24=2,N44,0) -> 0 | Q59: =IF(Q24=2,Q44,0) -> 0 | S59: =IF(S24=2,Q44,0) -> 69 | T59: =IF(T24=2,T44,0) -> 0 | V59: =IF(V24=2,T44,0) -> 0 | W59: =IF(W24=2,W44,0) -> 0 | Y59: =IF(Y24=2,W44,0) -> 0 | Z59: =IF(Z24=2,Z44,0) -> 0 | AB59: =IF(AB24=2,Z44,0) -> 0 | AC59: =IF(AC24=2,AC44,0) -> 0 | AE59: =IF(AE24=2,AC44,0) -> 0 | AF59: =SUM(B59:AE59) -> 169
A60: Tm3 Play | B60: =IF(B24=3,B44,0) -> 0 | D60: =IF(D24=3,B44,0) -> 50 | E60: =IF(E24=3,E44,0) -> 0 | G60: =IF(G24=3,E44,0) -> 0 | H60: =IF(H24=3,H44,0) -> 0 | J60: =IF(J24=3,H44,0) -> 0 | K60: =IF(K24=3,K44,0) -> 0 | M60: =IF(M24=3,K44,0) -> 65 | N60: =IF(N24=3,N44,0) -> 65 | P60: =IF(P24=3,N44,0) -> 0 | Q60: =IF(Q24=3,Q44,0) -> 0 | S60: =IF(S24=3,Q44,0) -> 0 | T60: =IF(T24=3,T44,0) -> 0 | V60: =IF(V24=3,T44,0) -> 0 | W60: =IF(W24=3,W44,0) -> 0 | Y60: =IF(Y24=3,W44,0) -> 0 | Z60: =IF(Z24=3,Z44,0) -> 0 | AB60: =IF(AB24=3,Z44,0) -> 0 | AC60: =IF(AC24=3,AC44,0) -> 0 | AE60: =IF(AE24=3,AC44,0) -> 0 | AF60: =SUM(B60:AE60) -> 180
A61: Tm4 Play | B61: =IF(B24=4,B44,0) -> 0 | D61: =IF(D24=4,B44,0) -> 0 | E61: =IF(E24=4,E44,0) -> 0 | G61: =IF(G24=4,E44,0) -> 50 | H61: =IF(H24=4,H44,0) -> 0 | J61: =IF(J24=4,H44,0) -> 50 | K61: =IF(K24=4,K44,0) -> 0 | M61: =IF(M24=4,K44,0) -> 0 | N61: =IF(N24=4,N44,0) -> 0 | P61: =IF(P24=4,N44,0) -> 65 | Q61: =IF(Q24=4,Q44,0) -> 0 | S61: =IF(S24=4,Q44,0) -> 0 | T61: =IF(T24=4,T44,0) -> 0 | V61: =IF(V24=4,T44,0) -> 0 | W61: =IF(W24=4,W44,0) -> 0 | Y61: =IF(Y24=4,W44,0) -> 0 | Z61: =IF(Z24=4,Z44,0) -> 0 | AB61: =IF(AB24=4,Z44,0) -> 0 | AC61: =IF(AC24=4,AC44,0) -> 0 | AE61: =IF(AE24=4,AC44,0) -> 0 | AF61: =SUM(B61:AE61) -> 165
A62: Tm5 Play | B62: =IF(B24=5,B44,0) -> 0 | D62: =IF(D24=5,B44,0) -> 0 | E62: =IF(E24=5,E44,0) -> 0 | G62: =IF(G24=5,E44,0) -> 0 | H62: =IF(H24=5,H44,0) -> 0 | J62: =IF(J24=5,H44,0) -> 0 | K62: =IF(K24=5,K44,0) -> 0 | M62: =IF(M24=5,K44,0) -> 0 | N62: =IF(N24=5,N44,0) -> 0 | P62: =IF(P24=5,N44,0) -> 0 | Q62: =IF(Q24=5,Q44,0) -> 0 | S62: =IF(S24=5,Q44,0) -> 0 | T62: =IF(T24=5,T44,0) -> 0 | V62: =IF(V24=5,T44,0) -> 0 | W62: =IF(W24=5,W44,0) -> 0 | Y62: =IF(Y24=5,W44,0) -> 0 | Z62: =IF(Z24=5,Z44,0) -> 0 | AB62: =IF(AB24=5,Z44,0) -> 0 | AC62: =IF(AC24=5,AC44,0) -> 0 | AE62: =IF(AE24=5,AC44,0) -> 0 | AF62: =SUM(B62:AE62) -> 0
A63: Games | AF63: Game Wins by Team | AG63: Game Losses by Team
A64: Tm1 Wins | B64: =IF(B24=1,SUMIF(B31:B35,">0"),0) -> 0 | D64: =IF(D24=1,SUMIF(D31:D35,">0"),0) -> 0 | E64: =IF(E24=1,SUMIF(E31:E35,">0"),0) -> 2 | G64: =IF(G24=1,SUMIF(G31:G35,">0"),0) -> 0 | H64: =IF(H24=1,SUMIF(H31:H35,">0"),0) -> 0 | J64: =IF(J24=1,SUMIF(J31:J35,">0"),0) -> 0 | K64: =IF(K24=1,SUMIF(K31:K35,">0"),0) -> 2 | M64: =IF(M24=1,SUMIF(M31:M35,">0"),0) -> 0 | N64: =IF(N24=1,SUMIF(N31:N35,">0"),0) -> 0 | P64: =IF(P24=1,SUMIF(P31:P35,">0"),0) -> 0 | Q64: =IF(Q24=1,SUMIF(Q31:Q35,">0"),0) -> 2 | S64: =IF(S24=1,SUMIF(S31:S35,">0"),0) -> 0 | T64: =IF(T24=1,SUMIF(T31:T35,">0"),0) -> 0 | V64: =IF(V24=1,SUMIF(V31:V35,">0"),0) -> 0 | W64: =IF(W24=1,SUMIF(W31:W35,">0"),0) -> 0 | Y64: =IF(Y24=1,SUMIF(Y31:Y35,">0"),0) -> 0 | Z64: =IF(Z24=1,SUMIF(Z31:Z35,">0"),0) -> 0 | AB64: =IF(AB24=1,SUMIF(AB31:AB35,">0"),0) -> 0 | AC64: =IF(AC24=1,SUMIF(AC31:AC35,">0"),0) -> 0 | AE64: =IF(AE24=1,SUMIF(AE31:AE35,">0"),0) -> 0 | AF64: =SUM(B64:AE64) -> 6 | AG64: =AF72-AF64 -> 2
A65: Tm2 Wins | B65: =IF(B24=2,SUMIF(B31:B35,">0"),0) -> 2 | D65: =IF(D24=2,SUMIF(D31:D35,">0"),0) -> 0 | E65: =IF(E24=2,SUMIF(E31:E35,">0"),0) -> 0 | G65: =IF(G24=2,SUMIF(G31:G35,">0"),0) -> 0 | H65: =IF(H24=2,SUMIF(H31:H35,">0"),0) -> 2 | J65: =IF(J24=2,SUMIF(J31:J35,">0"),0) -> 0 | K65: =IF(K24=2,SUMIF(K31:K35,">0"),0) -> 0 | M65: =IF(M24=2,SUMIF(M31:M35,">0"),0) -> 0 | N65: =IF(N24=2,SUMIF(N31:N35,">0"),0) -> 0 | P65: =IF(P24=2,SUMIF(P31:P35,">0"),0) -> 0 | Q65: =IF(Q24=2,SUMIF(Q31:Q35,">0"),0) -> 0 | S65: =IF(S24=2,SUMIF(S31:S35,">0"),0) -> 1 | T65: =IF(T24=2,SUMIF(T31:T35,">0"),0) -> 0 | V65: =IF(V24=2,SUMIF(V31:V35,">0"),0) -> 0 | W65: =IF(W24=2,SUMIF(W31:W35,">0"),0) -> 0 | Y65: =IF(Y24=2,SUMIF(Y31:Y35,">0"),0) -> 0 | Z65: =IF(Z24=2,SUMIF(Z31:Z35,">0"),0) -> 0 | AB65: =IF(AB24=2,SUMIF(AB31:AB35,">0"),0) -> 0 | AC65: =IF(AC24=2,SUMIF(AC31:AC35,">0"),0) -> 0 | AE65: =IF(AE24=2,SUMIF(AE31:AE35,">0"),0) -> 0 | AF65: =SUM(B65:AE65) -> 5 | AG65: =AF73-AF65 -> 2
A66: Tm3 Wins | B66: =IF(B24=3,SUMIF(B31:B35,">0"),0) -> 0 | D66: =IF(D24=3,SUMIF(D31:D35,">0"),0) -> 0 | E66: =IF(E24=3,SUMIF(E31:E35,">0"),0) -> 0 | G66: =IF(G24=3,SUMIF(G31:G35,">0"),0) -> 0 | H66: =IF(H24=3,SUMIF(H31:H35,">0"),0) -> 0 | J66: =IF(J24=3,SUMIF(J31:J35,">0"),0) -> 0 | K66: =IF(K24=3,SUMIF(K31:K35,">0"),0) -> 0 | M66: =IF(M24=3,SUMIF(M31:M35,">0"),0) -> 1 | N66: =IF(N24=3,SUMIF(N31:N35,">0"),0) -> 1 | P66: =IF(P24=3,SUMIF(P31:P35,">0"),0) -> 0 | Q66: =IF(Q24=3,SUMIF(Q31:Q35,">0"),0) -> 0 | S66: =IF(S24=3,SUMIF(S31:S35,">0"),0) -> 0 | T66: =IF(T24=3,SUMIF(T31:T35,">0"),0) -> 0 | V66: =IF(V24=3,SUMIF(V31:V35,">0"),0) -> 0 | W66: =IF(W24=3,SUMIF(W31:W35,">0"),0) -> 0 | Y66: =IF(Y24=3,SUMIF(Y31:Y35,">0"),0) -> 0 | Z66: =IF(Z24=3,SUMIF(Z31:Z35,">0"),0) -> 0 | AB66: =IF(AB24=3,SUMIF(AB31:AB35,">0"),0) -> 0 | AC66: =IF(AC24=3,SUMIF(AC31:AC35,">0"),0) -> 0 | AE66: =IF(AE24=3,SUMIF(AE31:AE35,">0"),0) -> 0 | AF66: =SUM(B66:AE66) -> 2 | AG66: =AF74-AF66 -> 6
A67: Tm4 Wins | B67: =IF(B24=4,SUMIF(B31:B35,">0"),0) -> 0 | D67: =IF(D24=4,SUMIF(D31:D35,">0"),0) -> 0 | E67: =IF(E24=4,SUMIF(E31:E35,">0"),0) -> 0 | G67: =IF(G24=4,SUMIF(G31:G35,">0"),0) -> 0 | H67: =IF(H24=4,SUMIF(H31:H35,">0"),0) -> 0 | J67: =IF(J24=4,SUMIF(J31:J35,">0"),0) -> 0 | K67: =IF(K24=4,SUMIF(K31:K35,">0"),0) -> 0 | M67: =IF(M24=4,SUMIF(M31:M35,">0"),0) -> 0 | N67: =IF(N24=4,SUMIF(N31:N35,">0"),0) -> 0 | P67: =IF(P24=4,SUMIF(P31:P35,">0"),0) -> 2 | Q67: =IF(Q24=4,SUMIF(Q31:Q35,">0"),0) -> 0 | S67: =IF(S24=4,SUMIF(S31:S35,">0"),0) -> 0 | T67: =IF(T24=4,SUMIF(T31:T35,">0"),0) -> 0 | V67: =IF(V24=4,SUMIF(V31:V35,">0"),0) -> 0 | W67: =IF(W24=4,SUMIF(W31:W35,">0"),0) -> 0 | Y67: =IF(Y24=4,SUMIF(Y31:Y35,">0"),0) -> 0 | Z67: =IF(Z24=4,SUMIF(Z31:Z35,">0"),0) -> 0 | AB67: =IF(AB24=4,SUMIF(AB31:AB35,">0"),0) -> 0 | AC67: =IF(AC24=4,SUMIF(AC31:AC35,">0"),0) -> 0 | AE67: =IF(AE24=4,SUMIF(AE31:AE35,">0"),0) -> 0 | AF67: =SUM(B67:AE67) -> 2 | AG67: =AF75-AF67 -> 5
A68: Tm5 Wins | B68: =IF(B24=5,SUMIF(B31:B35,">0"),0) -> 0 | D68: =IF(D24=5,SUMIF(D31:D35,">0"),0) -> 0 | E68: =IF(E24=5,SUMIF(E31:E35,">0"),0) -> 0 | G68: =IF(G24=5,SUMIF(G31:G35,">0"),0) -> 0 | H68: =IF(H24=5,SUMIF(H31:H35,">0"),0) -> 0 | J68: =IF(J24=5,SUMIF(J31:J35,">0"),0) -> 0 | K68: =IF(K24=5,SUMIF(K31:K35,">0"),0) -> 0 | M68: =IF(M24=5,SUMIF(M31:M35,">0"),0) -> 0 | N68: =IF(N24=5,SUMIF(N31:N35,">0"),0) -> 0 | P68: =IF(P24=5,SUMIF(P31:P35,">0"),0) -> 0 | Q68: =IF(Q24=5,SUMIF(Q31:Q35,">0"),0) -> 0 | S68: =IF(S24=5,SUMIF(S31:S35,">0"),0) -> 0 | T68: =IF(T24=5,SUMIF(T31:T35,">0"),0) -> 0 | V68: =IF(V24=5,SUMIF(V31:V35,">0"),0) -> 0 | W68: =IF(W24=5,SUMIF(W31:W35,">0"),0) -> 0 | Y68: =IF(Y24=5,SUMIF(Y31:Y35,">0"),0) -> 0 | Z68: =IF(Z24=5,SUMIF(Z31:Z35,">0"),0) -> 0 | AB68: =IF(AB24=5,SUMIF(AB31:AB35,">0"),0) -> 0 | AC68: =IF(AC24=5,SUMIF(AC31:AC35,">0"),0) -> 0 | AE68: =IF(AE24=5,SUMIF(AE31:AE35,">0"),0) -> 0 | AF68: =SUM(B68:AE68) -> 0 | AG68: =AF76-AF68 -> 0
A71: Games Played this Match | C71: =SUMIF(B64:D68,">0") -> 2 | F71: =SUMIF(E64:G68,">0") -> 2 | I71: =SUMIF(H64:J68,">0") -> 2 | L71: =SUMIF(K64:M68,">0") -> 3 | O71: =SUMIF(N64:P68,">0") -> 3 | R71: =SUMIF(Q64:S68,">0") -> 3 | U71: =SUMIF(T64:V68,">0") -> 0 | X71: =SUMIF(W64:Y68,">0") -> 0 | AA71: =SUMIF(Z64:AB68,">0") -> 0 | AD71: =SUMIF(AC64:AE68,">0") -> 0 | AF71: Games played by team
A72: Tm1 Play | B72: =IF(B24=1,C71,0) -> 0 | D72: =IF(D24=1,C71,0) -> 0 | E72: =IF(E24=1,F71,0) -> 2 | G72: =IF(G24=1,F71,0) -> 0 | H72: =IF(H24=1,I71,0) -> 0 | J72: =IF(J24=1,I71,0) -> 0 | K72: =IF(K24=1,L71,0) -> 3 | M72: =IF(M24=1,L71,0) -> 0 | N72: =IF(N24=1,O71,0) -> 0 | P72: =IF(P24=1,O71,0) -> 0 | Q72: =IF(Q24=1,R71,0) -> 3 | S72: =IF(S24=1,R71,0) -> 0 | T72: =IF(T24=1,U71,0) -> 0 | V72: =IF(V24=1,U71,0) -> 0 | W72: =IF(W24=1,X71,0) -> 0 | Y72: =IF(Y24=1,X71,0) -> 0 | Z72: =IF(Z24=1,AA71,0) -> 0 | AB72: =IF(AB24=1,AA71,0) -> 0 | AC72: =IF(AC24=1,AD71,0) -> 0 | AE72: =IF(AE24=1,AD71,0) -> 0 | AF72: =SUM(B72:AE72) -> 8
A73: Tm2 Play | B73: =IF(B24=2,C71,0) -> 2 | D73: =IF(D24=2,C71,0) -> 0 | E73: =IF(E24=2,F71,0) -> 0 | G73: =IF(G24=2,F71,0) -> 0 | H73: =IF(H24=2,I71,0) -> 2 | J73: =IF(J24=2,I71,0) -> 0 | K73: =IF(K24=2,L71,0) -> 0 | M73: =IF(M24=2,L71,0) -> 0 | N73: =IF(N24=2,O71,0) -> 0 | P73: =IF(P24=2,O71,0) -> 0 | Q73: =IF(Q24=2,R71,0) -> 0 | S73: =IF(S24=2,R71,0) -> 3 | T73: =IF(T24=2,U71,0) -> 0 | V73: =IF(V24=2,U71,0) -> 0 | W73: =IF(W24=2,X71,0) -> 0 | Y73: =IF(Y24=2,X71,0) -> 0 | Z73: =IF(Z24=2,AA71,0) -> 0 | AB73: =IF(AB24=2,AA71,0) -> 0 | AC73: =IF(AC24=2,AD71,0) -> 0 | AE73: =IF(AE24=2,AD71,0) -> 0 | AF73: =SUM(B73:AE73) -> 7
A74: Tm3 Play | B74: =IF(B24=3,C71,0) -> 0 | D74: =IF(D24=3,C71,0) -> 2 | E74: =IF(E24=3,F71,0) -> 0 | G74: =IF(G24=3,F71,0) -> 0 | H74: =IF(H24=3,I71,0) -> 0 | J74: =IF(J24=3,I71,0) -> 0 | K74: =IF(K24=3,L71,0) -> 0 | M74: =IF(M24=3,L71,0) -> 3 | N74: =IF(N24=3,O71,0) -> 3 | P74: =IF(P24=3,O71,0) -> 0 | Q74: =IF(Q24=3,R71,0) -> 0 | S74: =IF(S24=3,R71,0) -> 0 | T74: =IF(T24=3,U71,0) -> 0 | V74: =IF(V24=3,U71,0) -> 0 | W74: =IF(W24=3,X71,0) -> 0 | Y74: =IF(Y24=3,X71,0) -> 0 | Z74: =IF(Z24=3,AA71,0) -> 0 | AB74: =IF(AB24=3,AA71,0) -> 0 | AC74: =IF(AC24=3,AD71,0) -> 0 | AE74: =IF(AE24=3,AD71,0) -> 0 | AF74: =SUM(B74:AE74) -> 8
A75: Tm4 Play | B75: =IF(B24=4,C71,0) -> 0 | D75: =IF(D24=4,C71,0) -> 0 | E75: =IF(E24=4,F71,0) -> 0 | G75: =IF(G24=4,F71,0) -> 2 | H75: =IF(H24=4,I71,0) -> 0 | J75: =IF(J24=4,I71,0) -> 2 | K75: =IF(K24=4,L71,0) -> 0 | M75: =IF(M24=4,L71,0) -> 0 | N75: =IF(N24=4,O71,0) -> 0 | P75: =IF(P24=4,O71,0) -> 3 | Q75: =IF(Q24=4,R71,0) -> 0 | S75: =IF(S24=4,R71,0) -> 0 | T75: =IF(T24=4,U71,0) -> 0 | V75: =IF(V24=4,U71,0) -> 0 | W75: =IF(W24=4,X71,0) -> 0 | Y75: =IF(Y24=4,X71,0) -> 0 | Z75: =IF(Z24=4,AA71,0) -> 0 | AB75: =IF(AB24=4,AA71,0) -> 0 | AC75: =IF(AC24=4,AD71,0) -> 0 | AE75: =IF(AE24=4,AD71,0) -> 0 | AF75: =SUM(B75:AE75) -> 7
A76: Tm5 Play | B76: =IF(B24=5,C71,0) -> 0 | D76: =IF(D24=5,C71,0) -> 0 | E76: =IF(E24=5,F71,0) -> 0 | G76: =IF(G24=5,F71,0) -> 0 | H76: =IF(H24=5,I71,0) -> 0 | J76: =IF(J24=5,I71,0) -> 0 | K76: =IF(K24=5,L71,0) -> 0 | M76: =IF(M24=5,L71,0) -> 0 | N76: =IF(N24=5,O71,0) -> 0 | P76: =IF(P24=5,O71,0) -> 0 | Q76: =IF(Q24=5,R71,0) -> 0 | S76: =IF(S24=5,R71,0) -> 0 | T76: =IF(T24=5,U71,0) -> 0 | V76: =IF(V24=5,U71,0) -> 0 | W76: =IF(W24=5,X71,0) -> 0 | Y76: =IF(Y24=5,X71,0) -> 0 | Z76: =IF(Z24=5,AA71,0) -> 0 | AB76: =IF(AB24=5,AA71,0) -> 0 | AC76: =IF(AC24=5,AD71,0) -> 0 | AE76: =IF(AE24=5,AD71,0) -> 0 | AF76: =SUM(B76:AE76) -> 0
C78: Init | D78: 1 | G78: 2 | J78: 3 | M78: 4 | P78: 5 | S78: 6 | V78: 7 | Y78: 8 | AB78: 9 | AE78: 10 | AR78: End of Pool
A79: 1 | B79: =E8 -> C1VB 13 Power Grvl | C79: =VLOOKUP(B79,AU$3:AW$103,3,FALSE) -> 2201.528761 | D79: =IF(B72,B87,IF(D72,D87,C79)) -> 2201.528761 | G79: =IF(E72,E87,IF(G72,G87,D79)) -> 2214.320284 | J79: =IF(H72,H87,IF(J72,J87,G79)) -> 2214.320284 | M79: =IF(K72,K87,IF(M72,M87,J79)) -> 2215.056717 | P79: =IF(N72,N87,IF(P72,P87,M79)) -> 2215.056717 | S79: =IF(Q72,Q87,IF(S72,S87,P79)) -> 2222.927887 | V79: =IF(T72,T87,IF(V72,V87,S79)) -> 2222.927887 | Y79: =IF(W72,W87,IF(Y72,Y87,V79)) -> 2222.927887 | AB79: =IF(Z72,Z87,IF(AB72,AB87,Y79)) -> 2222.927887 | AE79: =IF(AC72,AC87,IF(AE72,AE87,AB79)) -> 2222.927887 | AR79: =B79 -> C1VB 13 Power Grvl | AS79: =AE79 -> 2222.927887
A80: 2 | B80: =E10 -> Magnum 13 Mizuno | C80: =VLOOKUP(B80,AU$3:AW$103,3,FALSE) -> 2137.537194 | D80: =IF(B73,B87,IF(D73,D87,C80)) -> 2160.669964 | G80: =IF(E73,E87,IF(G73,G87,D80)) -> 2160.669964 | J80: =IF(H73,H87,IF(J73,J87,G80)) -> 2175.033318 | M80: =IF(K73,K87,IF(M73,M87,J80)) -> 2175.033318 | P80: =IF(N73,N87,IF(P73,P87,M80)) -> 2175.033318 | S80: =IF(Q73,Q87,IF(S73,S87,P80)) -> 2167.162148 | V80: =IF(T73,T87,IF(V73,V87,S80)) -> 2167.162148 | Y80: =IF(W73,W87,IF(Y73,Y87,V80)) -> 2167.162148 | AB80: =IF(Z73,Z87,IF(AB73,AB87,Y80)) -> 2167.162148 | AE80: =IF(AC73,AC87,IF(AE73,AE87,AB80)) -> 2167.162148 | AR80: =B80 -> Magnum 13 Mizuno | AS80: =AE80 -> 2167.162148
A81: 3 | B81: =E12 -> CSRA Heat 13 Gold | C81: =VLOOKUP(B81,AU$3:AW$103,3,FALSE) -> 2124.977292 | D81: =IF(B74,B87,IF(D74,D87,C81)) -> 2101.844522 | G81: =IF(E74,E87,IF(G74,G87,D81)) -> 2101.844522 | J81: =IF(H74,H87,IF(J74,J87,G81)) -> 2101.844522 | M81: =IF(K74,K87,IF(M74,M87,J81)) -> 2101.108088 | P81: =IF(N74,N87,IF(P74,P87,M81)) -> 2078.773369 | S81: =IF(Q74,Q87,IF(S74,S87,P81)) -> 2078.773369 | V81: =IF(T74,T87,IF(V74,V87,S81)) -> 2078.773369 | Y81: =IF(W74,W87,IF(Y74,Y87,V81)) -> 2078.773369 | AB81: =IF(Z74,Z87,IF(AB74,AB87,Y81)) -> 2078.773369 | AE81: =IF(AC74,AC87,IF(AE74,AE87,AB81)) -> 2078.773369 | AR81: =B81 -> CSRA Heat 13 Gold | AS81: =AE81 -> 2078.773369
A82: 4 | B82: =E14 -> Magnum Aiken 13 Green | C82: =VLOOKUP(B82,AU$3:AW$103,3,FALSE) -> 2025.638757 | D82: =IF(B75,B87,IF(D75,D87,C82)) -> 2025.638757 | G82: =IF(E75,E87,IF(G75,G87,D82)) -> 2012.847235 | J82: =IF(H75,H87,IF(J75,J87,G82)) -> 1998.483881 | M82: =IF(K75,K87,IF(M75,M87,J82)) -> 1998.483881 | P82: =IF(N75,N87,IF(P75,P87,M82)) -> 2020.8186 | S82: =IF(Q75,Q87,IF(S75,S87,P82)) -> 2020.8186 | V82: =IF(T75,T87,IF(V75,V87,S82)) -> 2020.8186 | Y82: =IF(W75,W87,IF(Y75,Y87,V82)) -> 2020.8186 | AB82: =IF(Z75,Z87,IF(AB75,AB87,Y82)) -> 2020.8186 | AE82: =IF(AC75,AC87,IF(AE75,AE87,AB82)) -> 2020.8186 | AR82: =B82 -> Magnum Aiken 13 Green | AS82: =AE82 -> 2020.8186
A83: 5 | B83: =E16 -> 0 | C83: =VLOOKUP(B83,AU$3:AW$103,3,FALSE) ->  | D83: =IF(B76,B87,IF(D76,D87,C83)) ->  | G83: =IF(E76,E87,IF(G76,G87,D83)) ->  | J83: =IF(H76,H87,IF(J76,J87,G83)) ->  | M83: =IF(K76,K87,IF(M76,M87,J83)) ->  | P83: =IF(N76,N87,IF(P76,P87,M83)) ->  | S83: =IF(Q76,Q87,IF(S76,S87,P83)) ->  | V83: =IF(T76,T87,IF(V76,V87,S83)) ->  | Y83: =IF(W76,W87,IF(Y76,Y87,V83)) ->  | AB83: =IF(Z76,Z87,IF(AB76,AB87,Y83)) ->  | AE83: =IF(AC76,AC87,IF(AE76,AE87,AB83)) ->  | AR83: =B83 -> 0 | AS83: =AE83 -> 
A85: Init Rating | B85: =VLOOKUP(B24,$A79:$AE83,3,FALSE) -> 2137.537194 | C85: 1 | D85: =VLOOKUP(D24,$A79:$AE83,3,FALSE) -> 2124.977292 | E85: =VLOOKUP(E24,$A79:$AE83,4,FALSE) -> 2201.528761 | F85: 2 | G85: =VLOOKUP(G24,$A79:$AE83,4,FALSE) -> 2025.638757 | H85: =VLOOKUP(H24,$A79:$AE83,7,FALSE) -> 2160.669964 | I85: 3 | J85: =VLOOKUP(J24,$A79:$AE83,7,FALSE) -> 2012.847235 | K85: =VLOOKUP(K24,$A79:$AE83,10,FALSE) -> 2214.320284 | L85: 4 | M85: =VLOOKUP(M24,$A79:$AE83,10,FALSE) -> 2101.844522 | N85: =VLOOKUP(N24,$A79:$AE83,13,FALSE) -> 2101.108088 | O85: 5 | P85: =VLOOKUP(P24,$A79:$AE83,13,FALSE) -> 1998.483881 | Q85: =VLOOKUP(Q24,$A79:$AE83,16,FALSE) -> 2215.056717 | R85: 6 | S85: =VLOOKUP(S24,$A79:$AE83,16,FALSE) -> 2175.033318 | T85: =VLOOKUP(T24,$A79:$AE83,19,FALSE) ->  | U85: 7 | V85: =VLOOKUP(V24,$A79:$AE83,19,FALSE) ->  | W85: =VLOOKUP(W24,$A79:$AE83,22,FALSE) ->  | X85: 8 | Y85: =VLOOKUP(Y24,$A79:$AE83,22,FALSE) ->  | Z85: =VLOOKUP(Z24,$A79:$AE83,25,FALSE) ->  | AA85: 9 | AB85: =VLOOKUP(AB24,$A79:$AE83,25,FALSE) ->  | AC85: =VLOOKUP(AC24,$A79:$AE83,28,FALSE) ->  | AD85: 10 | AE85: =VLOOKUP(AE24,$A79:$AE83,28,FALSE) -> 
A86: Exp wins | B86: =1/(1+(10^-((B85-D85)/400)))*(B36+D36) -> 1.036134563 | D86: =1/(1+(10^-((D85-B85)/400)))*(B36+D36) -> 0.9638654374 | E86: =1/(1+(10^-((E85-G85)/400)))*(E36+G36) -> 1.467019899 | G86: =1/(1+(10^-((G85-E85)/400)))*(E36+G36) -> 0.5329801012 | H86: =1/(1+(10^-((H85-J85)/400)))*(H36+J36) -> 1.401526919 | J86: =1/(1+(10^-((J85-H85)/400)))*(H36+J36) -> 0.5984730805 | K86: =1/(1+(10^-((K85-M85)/400)))*(K36+M36) -> 1.969315267 | M86: =1/(1+(10^-((M85-K85)/400)))*(K36+M36) -> 1.030684733 | N86: =1/(1+(10^-((N85-P85)/400)))*(N36+P36) -> 1.930613305 | P86: =1/(1+(10^-((P85-N85)/400)))*(N36+P36) -> 1.069386695 | Q86: =1/(1+(10^-((Q85-S85)/400)))*(Q36+S36) -> 1.672034595 | S86: =1/(1+(10^-((S85-Q85)/400)))*(Q36+S36) -> 1.327965405 | T86: =1/(1+(10^-((T85-V85)/400)))*(T36+V36) ->  | V86: =1/(1+(10^-((V85-T85)/400)))*(T36+V36) ->  | W86: =1/(1+(10^-((W85-Y85)/400)))*(W36+Y36) ->  | Y86: =1/(1+(10^-((Y85-W85)/400)))*(W36+Y36) ->  | Z86: =1/(1+(10^-((Z85-AB85)/400)))*(Z36+AB36) ->  | AB86: =1/(1+(10^-((AB85-Z85)/400)))*(Z36+AB36) ->  | AC86: =1/(1+(10^-((AC85-AE85)/400)))*(AC36+AE36) ->  | AE86: =1/(1+(10^-((AE85-AC85)/400)))*(AC36+AE36) -> 
A87: New Rating | B87: =B85+(B36-B86)*$BA$1 -> 2160.669964 | D87: =D85+(D36-D86)*$BA$1 -> 2101.844522 | E87: =E85+(E36-E86)*$BA$1 -> 2214.320284 | G87: =G85+(G36-G86)*$BA$1 -> 2012.847235 | H87: =H85+(H36-H86)*$BA$1 -> 2175.033318 | J87: =J85+(J36-J86)*$BA$1 -> 1998.483881 | K87: =K85+(K36-K86)*$BA$1 -> 2215.056717 | M87: =M85+(M36-M86)*$BA$1 -> 2101.108088 | N87: =N85+(N36-N86)*$BA$1 -> 2078.773369 | P87: =P85+(P36-P86)*$BA$1 -> 2020.8186 | Q87: =Q85+(Q36-Q86)*$BA$1 -> 2222.927887 | S87: =S85+(S36-S86)*$BA$1 -> 2167.162148 | T87: =T85+(T36-T86)*$BA$1 ->  | V87: =V85+(V36-V86)*$BA$1 ->  | W87: =W85+(W36-W86)*$BA$1 ->  | Y87: =Y85+(Y36-Y86)*$BA$1 ->  | Z87: =Z85+(Z36-Z86)*$BA$1 ->  | AB87: =AB85+(AB36-AB86)*$BA$1 ->  | AC87: =AC85+(AC36-AC86)*$BA$1 ->  | AE87: =AE85+(AE36-AE86)*$BA$1 -> 
A89: =IF($AK10=1,"Pool Tiereaker : 1) Matches Won vs Lost (if 3 way tie then #4) 2) Head to Head 3) Game Win % 4) Total Pool Net Points 5) Flip a Coin","Pool Tiebreaker : 1) Games Won vs Lost (if 3 way tie then #5) 2) Head to Head 3) Head to Head Net Points 4) Game Win % 5) Total Pool Net Points 6) Flip a Coin") -> Pool Tiereaker : 1) Matches Won vs Lost (if 3 way tie then #4) 2) Head to Head 3) Game Win % 4) Total Pool Net Points 5) Flip a Coin
A91: POOL: | B91: BB | C91: COURT: Star Ctr | I91: 2 | K91: ="Pool "&B91&" - Round 2 - Court "&I91 -> Pool BB - Round 2 - Court 2
A92: Team # | B92: Team Name | L92: =IF($AK95=0,"Games Won","Matches Won") -> Matches Won | R92: =IF($AK95=0,"Games Lost","Matches Lost") -> Matches Lost | W92: Total Pool Net Points | Z92: % Total Net Points | AC92: Game Win % | AF92: Pool Finish | AG92: # | AH92: Playoff Finish | AK92: 3 | AL92: Games per Match (1-5)
A93: =IF($AK94>0,"1","") -> 1 | B93: Team Name | E93: ='12-13 Pwr 16 tm Rnd 1'!B350 -> Low Country 13 Open | L93: =IF($AK95=0,AF149,AF131) -> 1 | R93: =IF($AK95=0,AG149,AG131) -> 2 | W93: =AQ109 -> -19 | Z93: =IF(AF143>0,(AQ109/AF143),0) -> -0.1144578313 | AC93: =IF(AF157=0,0,(AF149/AF157)) -> 0.2857142857 | AF93: 3 | AG93: 2 | AH93: 6 | AK93: 6 | AL93: Matches (1-10)
B94: Team Code | E94: ='12-13 Pwr 16 tm Rnd 1'!H350 -> fj3lowco1pm | AK94: 4 | AL94: Teams in Pool (1-5)
A95: =IF($AK94>1,"2","") -> 2 | B95: Team Name | E95: ='12-13 Pwr 16 tm Rnd 1'!B351 -> Upward Stars 13 Becky | L95: =IF($AK95=0,AF150,AF132) -> 1 | R95: =IF($AK95=0,AG150,AG132) -> 2 | W95: =AQ110 -> -14 | Z95: =IF(AF144>0,(AQ110/AF144),0) -> -0.0773480663 | AC95: =IF(AF158=0,0,(AF150/AF158)) -> 0.375 | AF95: 4 | AG95: 2 | AH95: 5 | AK95: 1 | AL95: 0-Count Games 1-Count Matches
B96: Team Code | E96: ='12-13 Pwr 16 tm Rnd 1'!H351 -> fj3upwrd2pm | AK96: 1 | AL96: Game Win % 0 = No 1 = Yes
A97: =IF($AK94>2,"3","") -> 3 | B97: Team Name | E97: ='12-13 Pwr 16 tm Rnd 1'!L352 -> Vision 13 National | L97: =IF($AK95=0,AF151,AF133) -> 2 | R97: =IF($AK95=0,AG151,AG133) -> 1 | W97: =AQ111 -> 13 | Z97: =IF(AF145>0,(AQ111/AF145),0) -> 0.08666666667 | AC97: =IF(AF159=0,0,(AF151/AF159)) -> 0.6666666667 | AF97: 2 | AG97: 2 | AH97: 1 | AK97: 3 | AL97: # of Matches/Games per Team
B98: Team Code | E98: ='12-13 Pwr 16 tm Rnd 1'!R352 -> fj3vison1pm
A99: =IF($AK94>3,"4","") -> 4 | B99: Team Name | E99: ='12-13 Pwr 16 tm Rnd 1'!L349 -> KVA 13Vanessa | L99: =IF($AK95=0,AF152,AF134) -> 2 | R99: =IF($AK95=0,AG152,AG134) -> 1 | W99: =AQ112 -> 20 | Z99: =IF(AF146>0,(AQ112/AF146),0) -> 0.1212121212 | AC99: =IF(AF160=0,0,(AF152/AF160)) -> 0.7142857143 | AF99: 1 | AG99: 2 | AH99: 3
B100: Team Code | E100: ='12-13 Pwr 16 tm Rnd 1'!R349 -> fj3david1so
A101: =IF($AK94>4,"5","") ->  | B101: Team Name | L101: =IF($AK95=0,AF153,AF135) -> 0 | R101: =IF($AK95=0,AG153,AG135) -> 0 | W101: =AQ113 -> 0 | Z101: =IF(AF147>0,(AQ113/AF147),0) -> 0 | AC101: =IF(AF161=0,0,(AF153/AF161)) -> 0
B102: Team Code
B103: POOL PLAY FORMAT: Best of 3 (25-25-15) Start at 4 - 2 Pt cap. Warmups 2-4-4
A104: Sch Start | B104: Sat 3:00 | E104: Sat 4:00 | H104: Sat 5:00 | K104: Sat 6:00 | N104: Sun 8am | Q104: Sun 9am | AF104: Note: The Pool Finish Summary at the bottom of the sheet will fill in AUTOMATICALLY once the POOL FINISH column (at left) is filled in.
A105: Actual Start
A106: End Time
B107: Match 1 | E107: =IF(AK93>1,"Match 2","") -> Match 2 | H107: =IF(AK93>2,"Match 3","") -> Match 3 | K107: =IF(AK93>3,"Match 4","") -> Match 4 | N107: =IF(AK93>4,"Match 5","") -> Match 5 | Q107: =IF(AK93>5,"Match 6","") -> Match 6 | T107: =IF(AK93>6,"Match 7","") ->  | W107: =IF(AK93>7,"Match 8","") ->  | Z107: =IF(AK93>8,"Match 9","") ->  | AC107: =IF(AK93>9,"Match 10","") -> 
B108: 1 refs | E108: 2 refs | H108: 3 refs | K108: 4 refs | N108: 2 refs | Q108: 3 refs | AF108: Net Points | AG108: 1 | AH108: 2 | AI108: 3 | AJ108: 4 | AK108: 5 | AL108: 6 | AM108: 7 | AN108: 8 | AO108: 9 | AP108: 10 | AQ108: Total
B109: 2 | C109: v | D109: 3 | E109: 1 | F109: =IF(AK93>1,"v","") -> v | G109: 4 | H109: 2 | I109: =IF(AK93>2,"v","") -> v | J109: 4 | K109: 1 | L109: =IF(AK93>3,"v","") -> v | M109: 3 | N109: 3 | O109: =IF(AK93>4,"v","") -> v | P109: 4 | Q109: 1 | R109: =IF(AK93>5,"v","") -> v | S109: 2 | U109: =IF(AK93>6,"v","") ->  | X109: =IF(AK93>7,"v","") ->  | AA109: =IF(AK93>8,"v","") ->  | AD109: =IF(AK93>9,"v","") ->  | AF109: =IF(AK94>0,"Team 1","") -> Team 1 | AG109: =IF(AK94<1,"",IF(AK93<1,"",IF(B109=1,B115-D115,IF(D109=1,D115-B115,"")))) ->  | AH109: =IF(AK94<1,"",IF(AK93<2,"",IF(E109=1,E115-G115,IF(G109=1,G115-E115,"")))) -> -6 | AI109: =IF(AK94<1,"",IF(AK93<3,"",IF(H109=1,H115-J115,IF(J109=1,J115-H115,"")))) ->  | AJ109: =IF(AK94<1,"",IF(AK93<4,"",IF(K109=1,K115-M115,IF(M109=1,M115-K115,"")))) -> -20 | AK109: =IF(AK94<1,"",IF(AK93<5,"",IF(N109=1,N115-P115,IF(P109=1,P115-N115,"")))) ->  | AL109: =IF(AK94<1,"",IF(AK93<6,"",IF(Q109=1,Q115-S115,IF(S109=1,S115-Q115,"")))) -> 7 | AM109: =IF(AK94<1,"",IF(AK93<7,"",IF(T109=1,T115-V115,IF(V109=1,V115-T115,"")))) ->  | AN109: =IF(AK94<1,"",IF(AK93<8,"",IF(W109=1,W115-Y115,IF(Y109=1,Y115-W115,"")))) ->  | AO109: =IF(AK94<1,"",IF(AK93<9,"",IF(Z109=1,Z115-AB115,IF(AB109=1,AB115-Z115,"")))) ->  | AP109: =IF(AK94<1,"",IF(AK93<10,"",IF(AC109=1,AC115-AE115,IF(AE109=1,AE115-AC115,"")))) ->  | AQ109: =SUM(AG109:AP109) -> -19
A110: Game 1 | B110: 23 | C110: / | D110: 25 | E110: 22 | F110: =IF(AK93>1,"/","") -> / | G110: 25 | H110: 25 | I110: =IF(AK93>2,"/","") -> / | J110: 21 | K110: 19 | L110: =IF(AK93>3,"/","") -> / | M110: 25 | N110: 14 | O110: =IF(AK93>4,"/","") -> / | P110: 25 | Q110: 24 | R110: =IF(AK93>5,"/","") -> / | S110: 26 | U110: =IF(AK93>6,"/","") ->  | X110: =IF(AK93>7,"/","") ->  | AA110: =IF(AK93>8,"/","") ->  | AD110: =IF(AK93>9,"/","") ->  | AF110: =IF(AK94>1,"Team 2","") -> Team 2 | AG110: =IF(AK94<2,"",IF(AK93<1,"",IF(B109=2,B115-D115,IF(D109=2,D115-B115,"")))) -> -9 | AH110: =IF(AK94<2,"",IF(AK93<2,"",IF(E109=2,E115-G115,IF(G109=2,G115-E115,"")))) ->  | AI110: =IF(AK94<2,"",IF(AK93<3,"",IF(H109=2,H115-J115,IF(J109=2,J115-H115,"")))) -> 2 | AJ110: =IF(AK94<2,"",IF(AK93<4,"",IF(K109=2,K115-M115,IF(M109=2,M115-K115,"")))) ->  | AK110: =IF(AK94<2,"",IF(AK93<5,"",IF(N109=2,N115-P115,IF(P109=2,P115-N115,"")))) ->  | AL110: =IF(AK94<2,"",IF(AK93<6,"",IF(Q109=2,Q115-S115,IF(S109=2,S115-Q115,"")))) -> -7 | AM110: =IF(AK94<2,"",IF(AK93<7,"",IF(T109=2,T115-V115,IF(V109=2,V115-T115,"")))) ->  | AN110: =IF(AK94<2,"",IF(AK93<8,"",IF(W109=2,W115-Y115,IF(Y109=2,Y115-W115,"")))) ->  | AO110: =IF(AK94<2,"",IF(AK93<9,"",IF(Z109=2,Z115-AB115,IF(AB109=2,AB115-Z115,"")))) ->  | AP110: =IF(AK94<2,"",IF(AK93<10,"",IF(AC109=2,AC115-AE115,IF(AE109=2,AE115-AC115,"")))) ->  | AQ110: =SUM(AG110:AP110) -> -14
A111: =IF(AK92>1,"Game 2","") -> Game 2 | B111: 18 | C111: / | D111: 25 | E111: 22 | F111: =IF(AK93>1,IF(AK92>1,"/",""),"") -> / | G111: 25 | H111: 20 | I111: =IF(AK93>2,IF(AK92>1,"/",""),"") -> / | J111: 25 | K111: 11 | L111: =IF(AK93>3,IF(AK92>1,"/",""),"") -> / | M111: 25 | N111: 20 | O111: =IF(AK93>4,IF(AK92>1,"/",""),"") -> / | P111: 25 | Q111: 25 | R111: =IF(AK93>5,IF(AK92>1,"/",""),"") -> / | S111: 18 | U111: =IF(AK93>6,IF(AK92>1,"/",""),"") ->  | X111: =IF(AK93>7,IF(AK92>1,"/",""),"") ->  | AA111: =IF(AK93>8,IF(AK92>1,"/",""),"") ->  | AD111: =IF(AK93>9,IF(AK92>1,"/",""),"") ->  | AF111: =IF(AK94>2,"Team 3","") -> Team 3 | AG111: =IF(AK94<3,"",IF(AK93<1,"",IF(B109=3,B115-D115,IF(D109=3,D115-B115,"")))) -> 9 | AH111: =IF(AK94<3,"",IF(AK93<2,"",IF(E109=3,E115-G115,IF(G109=3,G115-E115,"")))) ->  | AI111: =IF(AK94<3,"",IF(AK93<3,"",IF(H109=3,H115-J115,IF(J109=3,J115-H115,"")))) ->  | AJ111: =IF(AK94<3,"",IF(AK93<4,"",IF(K109=3,K115-M115,IF(M109=3,M115-K115,"")))) -> 20 | AK111: =IF(AK94<3,"",IF(AK93<5,"",IF(N109=3,N115-P115,IF(P109=3,P115-N115,"")))) -> -16 | AL111: =IF(AK94<3,"",IF(AK93<6,"",IF(Q109=3,Q115-S115,IF(S109=3,S115-Q115,"")))) ->  | AM111: =IF(AK94<3,"",IF(AK93<7,"",IF(T109=3,T115-V115,IF(V109=3,V115-T115,"")))) ->  | AN111: =IF(AK94<3,"",IF(AK93<8,"",IF(W109=3,W115-Y115,IF(Y109=3,Y115-W115,"")))) ->  | AO111: =IF(AK94<3,"",IF(AK93<9,"",IF(Z109=3,Z115-AB115,IF(AB109=3,AB115-Z115,"")))) ->  | AP111: =IF(AK94<3,"",IF(AK93<9,"",IF(AC109=3,AC115-AE115,IF(AE109=3,AE115-AC115,"")))) ->  | AQ111: =SUM(AG111:AP111) -> 13
A112: =IF(AK92>2,"Game 3","") -> Game 3 | C112: / | F112: =IF(AK93>1,IF(AK92>2,"/",""),"") -> / | H112: 15 | I112: =IF(AK93>2,IF(AK92>2,"/",""),"") -> / | J112: 12 | L112: =IF(AK93>3,IF(AK92>2,"/",""),"") -> / | O112: =IF(AK93>4,IF(AK92>2,"/",""),"") -> / | Q112: 15 | R112: =IF(AK93>5,IF(AK92>2,"/",""),"") -> / | S112: 13 | U112: =IF(AK93>6,IF(AK92>2,"/",""),"") ->  | X112: =IF(AK93>7,IF(AK92>2,"/",""),"") ->  | AA112: =IF(AK93>8,IF(AK92>2,"/",""),"") ->  | AD112: =IF(AK93>9,IF(AK92>2,"/",""),"") ->  | AF112: =IF(AK94>3,"Team 4","") -> Team 4 | AG112: =IF(AK94<4,"",IF(AK93<1,"",IF(B109=4,B115-D115,IF(D109=4,D115-B115,"")))) ->  | AH112: =IF(AK94<4,"",IF(AK93<2,"",IF(E109=4,E115-G115,IF(G109=4,G115-E115,"")))) -> 6 | AI112: =IF(AK94<4,"",IF(AK93<3,"",IF(H109=4,H115-J115,IF(J109=4,J115-H115,"")))) -> -2 | AJ112: =IF(AK94<4,"",IF(AK93<4,"",IF(K109=4,K115-M115,IF(M109=4,M115-K115,"")))) ->  | AK112: =IF(AK94<4,"",IF(AK93<5,"",IF(N109=4,N115-P115,IF(P109=4,P115-N115,"")))) -> 16 | AL112: =IF(AK94<4,"",IF(AK93<6,"",IF(Q109=4,Q115-S115,IF(S109=4,S115-Q115,"")))) ->  | AM112: =IF(AK94<4,"",IF(AK93<7,"",IF(T109=4,T115-V115,IF(V109=4,V115-T115,"")))) ->  | AN112: =IF(AK94<4,"",IF(AK93<8,"",IF(W109=4,W115-Y115,IF(Y109=4,Y115-W115,"")))) ->  | AO112: =IF(AK94<4,"",IF(AK93<9,"",IF(Z109=4,Z115-AB115,IF(AB109=4,AB115-Z115,"")))) ->  | AP112: =IF(AK94<4,"",IF(AK93<10,"",IF(AC109=4,AC115-AE115,IF(AE109=4,AE115-AC115,"")))) ->  | AQ112: =SUM(AG112:AP112) -> 20
A113: =IF(AK92>3,"Game 4","") ->  | C113: / | F113: =IF(AK93>1,IF(AK92>3,"/",""),"") ->  | I113: =IF(AK93>2,IF(AK92>3,"/",""),"") ->  | L113: =IF(AK93>3,IF(AK92>3,"/",""),"") ->  | O113: =IF(AK93>4,IF(AK92>3,"/",""),"") ->  | R113: =IF(AK93>5,IF(AK92>3,"/",""),"") ->  | U113: =IF(AK93>6,IF(AK92>3,"/",""),"") ->  | X113: =IF(AK93>7,IF(AK92>3,"/",""),"") ->  | AA113: =IF(AK93>8,IF(AK92>3,"/",""),"") ->  | AD113: =IF(AK93>9,IF(AK92>3,"/",""),"") ->  | AF113: =IF(AK94>4,"Team 5","") ->  | AG113: =IF(AK94<5,"",IF(AK93<1,"",IF(B109=5,B115-D115,IF(D109=5,D115-B115,"")))) ->  | AH113: =IF(AK94<5,"",IF(AK93<2,"",IF(E109=5,E115-G115,IF(G109=5,G115-E115,"")))) ->  | AI113: =IF(AK94<5,"",IF(AK93<3,"",IF(H109=5,H115-J115,IF(J109=5,J115-H115,"")))) ->  | AJ113: =IF(AK94<5,"",IF(AK93<4,"",IF(K109=5,K115-M115,IF(M109=5,M115-K115,"")))) ->  | AK113: =IF(AK94<5,"",IF(AK93<5,"",IF(N109=5,N115-P115,IF(P109=5,P115-N115,"")))) ->  | AL113: =IF(AK94<5,"",IF(AK93<6,"",IF(Q109=5,Q115-S115,IF(S109=5,S115-Q115,"")))) ->  | AM113: =IF(AK94<5,"",IF(AK93<7,"",IF(T109=5,T115-V115,IF(V109=5,V115-T115,"")))) ->  | AN113: =IF(AK94<5,"",IF(AK93<8,"",IF(W109=5,W115-Y115,IF(Y109=5,Y115-W115,"")))) ->  | AO113: =IF(AK94<5,"",IF(AK93<9,"",IF(Z109=5,Z115-AB115,IF(AB109=5,AB115-Z115,"")))) ->  | AP113: =IF(AK94<5,"",IF(AK93<10,"",IF(AC109=5,AC115-AE115,IF(AE109=5,AE115-AC115,"")))) ->  | AQ113: =SUM(AG113:AP113) -> 0
A114: =IF(AK92>4,"Game 5","") ->  | C114: / | F114: =IF(AK93>1,IF(AK92>4,"/",""),"") ->  | I114: =IF(AK93>2,IF(AK92>4,"/",""),"") ->  | L114: =IF(AK93>3,IF(AK92>4,"/",""),"") ->  | O114: =IF(AK93>4,IF(AK92>4,"/",""),"") ->  | R114: =IF(AK93>5,IF(AK92>4,"/",""),"") ->  | U114: =IF(AK93>6,IF(AK92>4,"/",""),"") ->  | X114: =IF(AK93>7,IF(AK92>4,"/",""),"") ->  | AA114: =IF(AK93>8,IF(AK92>4,"/",""),"") ->  | AD114: =IF(AK93>9,IF(AK92>4,"/",""),"") -> 
B115: =IF($AK92=5,SUM(B110:B114),IF($AK92=4,SUM(B110:B113),IF($AK92=3,SUM(B110:B112),IF($AK92=2,SUM(B110:B111),B110)))) -> 41 | D115: =IF($AK92=5,SUM(D110:D114),IF($AK92=4,SUM(D110:D113),IF($AK92=3,SUM(D110:D112),IF($AK92=2,SUM(D110:D111),D110)))) -> 50 | E115: =IF($AK92=5,SUM(E110:E114),IF($AK92=4,SUM(E110:E113),IF($AK92=3,SUM(E110:E112),IF($AK92=2,SUM(E110:E111),E110)))) -> 44 | G115: =IF($AK92=5,SUM(G110:G114),IF($AK92=4,SUM(G110:G113),IF($AK92=3,SUM(G110:G112),IF($AK92=2,SUM(G110:G111),G110)))) -> 50 | H115: =IF($AK92=5,SUM(H110:H114),IF($AK92=4,SUM(H110:H113),IF($AK92=3,SUM(H110:H112),IF($AK92=2,SUM(H110:H111),H110)))) -> 60 | J115: =IF($AK92=5,SUM(J110:J114),IF($AK92=4,SUM(J110:J113),IF($AK92=3,SUM(J110:J112),IF($AK92=2,SUM(J110:J111),J110)))) -> 58 | K115: =IF($AK92=5,SUM(K110:K114),IF($AK92=4,SUM(K110:K113),IF($AK92=3,SUM(K110:K112),IF($AK92=2,SUM(K110:K111),K110)))) -> 30 | M115: =IF($AK92=5,SUM(M110:M114),IF($AK92=4,SUM(M110:M113),IF($AK92=3,SUM(M110:M112),IF($AK92=2,SUM(M110:M111),M110)))) -> 50 | N115: =IF($AK92=5,SUM(N110:N114),IF($AK92=4,SUM(N110:N113),IF($AK92=3,SUM(N110:N112),IF($AK92=2,SUM(N110:N111),N110)))) -> 34 | P115: =IF($AK92=5,SUM(P110:P114),IF($AK92=4,SUM(P110:P113),IF($AK92=3,SUM(P110:P112),IF($AK92=2,SUM(P110:P111),P110)))) -> 50 | Q115: =IF($AK92=5,SUM(Q110:Q114),IF($AK92=4,SUM(Q110:Q113),IF($AK92=3,SUM(Q110:Q112),IF($AK92=2,SUM(Q110:Q111),Q110)))) -> 64 | S115: =IF($AK92=5,SUM(S110:S114),IF($AK92=4,SUM(S110:S113),IF($AK92=3,SUM(S110:S112),IF($AK92=2,SUM(S110:S111),S110)))) -> 57 | T115: =IF($AK92=5,SUM(T110:T114),IF($AK92=4,SUM(T110:T113),IF($AK92=3,SUM(T110:T112),IF($AK92=2,SUM(T110:T111),T110)))) -> 0 | V115: =IF($AK92=5,SUM(V110:V114),IF($AK92=4,SUM(V110:V113),IF($AK92=3,SUM(V110:V112),IF($AK92=2,SUM(V110:V111),V110)))) -> 0 | W115: =IF($AK92=5,SUM(W110:W114),IF($AK92=4,SUM(W110:W113),IF($AK92=3,SUM(W110:W112),IF($AK92=2,SUM(W110:W111),W110)))) -> 0 | Y115: =IF($AK92=5,SUM(Y110:Y114),IF($AK92=4,SUM(Y110:Y113),IF($AK92=3,SUM(Y110:Y112),IF($AK92=2,SUM(Y110:Y111),Y110)))) -> 0 | Z115: =IF($AK92=5,SUM(Z110:Z114),IF($AK92=4,SUM(Z110:Z113),IF($AK92=3,SUM(Z110:Z112),IF($AK92=2,SUM(Z110:Z111),Z110)))) -> 0 | AB115: =IF($AK92=5,SUM(AB110:AB114),IF($AK92=4,SUM(AB110:AB113),IF($AK92=3,SUM(AB110:AB112),IF($AK92=2,SUM(AB110:AB111),AB110)))) -> 0 | AC115: =IF($AK92=5,SUM(AC110:AC114),IF($AK92=4,SUM(AC110:AC113),IF($AK92=3,SUM(AC110:AC112),IF($AK92=2,SUM(AC110:AC111),AC110)))) -> 0 | AE115: =IF($AK92=5,SUM(AE110:AE114),IF($AK92=4,SUM(AE110:AE113),IF($AK92=3,SUM(AE110:AE112),IF($AK92=2,SUM(AE110:AE111),AE110)))) -> 0
A116: Gm1 Win | B116: =IF(AND(B110>D110,$AK93>0,ISNUMBER(B110),ISNUMBER(D110)),1,0) -> 0 | D116: =IF(AND(D110>B110,$AK93>0,ISNUMBER(B110),ISNUMBER(D110)),1,0) -> 1 | E116: =IF(AND(E110>G110,$AK93>1,ISNUMBER(E110),ISNUMBER(G110)),1,0) -> 0 | G116: =IF(AND(G110>E110,$AK93>1,ISNUMBER(E110),ISNUMBER(G110)),1,0) -> 1 | H116: =IF(AND(H110>J110,$AK93>2,ISNUMBER(H110),ISNUMBER(J110)),1,0) -> 1 | J116: =IF(AND(J110>H110,$AK93>2,ISNUMBER(H110),ISNUMBER(J110)),1,0) -> 0 | K116: =IF(AND(K110>M110,$AK93>3,ISNUMBER(K110),ISNUMBER(M110)),1,0) -> 0 | M116: =IF(AND(M110>K110,$AK93>3,ISNUMBER(K110),ISNUMBER(M110)),1,0) -> 1 | N116: =IF(AND(N110>P110,$AK93>4,ISNUMBER(N110),ISNUMBER(P110)),1,0) -> 0 | P116: =IF(AND(P110>N110,$AK93>4,ISNUMBER(N110),ISNUMBER(P110)),1,0) -> 1 | Q116: =IF(AND(Q110>S110,$AK93>5,ISNUMBER(Q110),ISNUMBER(S110)),1,0) -> 0 | S116: =IF(AND(S110>Q110,$AK93>5,ISNUMBER(Q110),ISNUMBER(S110)),1,0) -> 1 | T116: =IF(AND(T110>V110,$AK93>6,ISNUMBER(T110),ISNUMBER(V110)),1,0) -> 0 | V116: =IF(AND(V110>T110,$AK93>6,ISNUMBER(T110),ISNUMBER(V110)),1,0) -> 0 | W116: =IF(AND(W110>Y110,$AK93>7,ISNUMBER(W110),ISNUMBER(Y110)),1,0) -> 0 | Y116: =IF(AND(Y110>W110,$AK93>7,ISNUMBER(W110),ISNUMBER(Y110)),1,0) -> 0 | Z116: =IF(AND(Z110>AB110,$AK93>8,ISNUMBER(Z110),ISNUMBER(AB110)),1,0) -> 0 | AB116: =IF(AND(AB110>Z110,$AK93>8,ISNUMBER(Z110),ISNUMBER(AB110)),1,0) -> 0 | AC116: =IF(AND(AC110>AE110,$AK93>9,ISNUMBER(AC110),ISNUMBER(AE110)),1,0) -> 0 | AE116: =IF(AND(AE110>AC110,$AK93>9,ISNUMBER(AC110),ISNUMBER(AE110)),1,0) -> 0
A117: Gm2 Win | B117: =IF(AND(B111>D111,$AK93>0,$AK92>1,ISNUMBER(B111),ISNUMBER(D111)),1,0) -> 0 | D117: =IF(AND(D111>B111,$AK93>0,$AK92>1,ISNUMBER(B111),ISNUMBER(D111)),1,0) -> 1 | E117: =IF(AND(E111>G111,$AK93>1,$AK92>1,ISNUMBER(E111),ISNUMBER(G111)),1,0) -> 0 | G117: =IF(AND(G111>E111,$AK93>1,$AK92>1,ISNUMBER(E111),ISNUMBER(G111)),1,0) -> 1 | H117: =IF(AND(H111>J111,$AK93>2,$AK92>1,ISNUMBER(H111),ISNUMBER(J111)),1,0) -> 0 | J117: =IF(AND(J111>H111,$AK93>2,$AK92>1,ISNUMBER(H111),ISNUMBER(J111)),1,0) -> 1 | K117: =IF(AND(K111>M111,$AK93>3,$AK92>1,ISNUMBER(K111),ISNUMBER(M111)),1,0) -> 0 | M117: =IF(AND(M111>K111,$AK93>3,$AK92>1,ISNUMBER(K111),ISNUMBER(M111)),1,0) -> 1 | N117: =IF(AND(N111>P111,$AK93>4,$AK92>1,ISNUMBER(N111),ISNUMBER(P111)),1,0) -> 0 | P117: =IF(AND(P111>N111,$AK93>4,$AK92>1,ISNUMBER(N111),ISNUMBER(P111)),1,0) -> 1 | Q117: =IF(AND(Q111>S111,$AK93>5,$AK92>1,ISNUMBER(Q111),ISNUMBER(S111)),1,0) -> 1 | S117: =IF(AND(S111>Q111,$AK93>5,$AK92>1,ISNUMBER(Q111),ISNUMBER(S111)),1,0) -> 0 | T117: =IF(AND(T111>V111,$AK93>6,$AK92>1,ISNUMBER(T111),ISNUMBER(V111)),1,0) -> 0 | V117: =IF(AND(V111>T111,$AK93>6,$AK92>1,ISNUMBER(T111),ISNUMBER(V111)),1,0) -> 0 | W117: =IF(AND(W111>Y111,$AK93>7,$AK92>1,ISNUMBER(W111),ISNUMBER(Y111)),1,0) -> 0 | Y117: =IF(AND(Y111>W111,$AK93>7,$AK92>1,ISNUMBER(W111),ISNUMBER(Y111)),1,0) -> 0 | Z117: =IF(AND(Z111>AB111,$AK93>8,$AK92>1,ISNUMBER(Z111),ISNUMBER(AB111)),1,0) -> 0 | AB117: =IF(AND(AB111>Z111,$AK93>8,$AK92>1,ISNUMBER(Z111),ISNUMBER(AB111)),1,0) -> 0 | AC117: =IF(AND(AC111>AE111,$AK93>9,$AK92>1,ISNUMBER(AC111),ISNUMBER(AE111)),1,0) -> 0 | AE117: =IF(AND(AE111>AC111,$AK93>9,$AK92>1,ISNUMBER(AC111),ISNUMBER(AE111)),1,0) -> 0
A118: Gm3 Win | B118: =IF(AND(B112>D112,$AK93>0,$AK92>2,ISNUMBER(B112),ISNUMBER(D112)),1,0) -> 0 | D118: =IF(AND(D112>B112,$AK93>0,$AK92>2,ISNUMBER(B112),ISNUMBER(D112)),1,0) -> 0 | E118: =IF(AND(E112>G112,$AK93>1,$AK92>2,ISNUMBER(E112),ISNUMBER(G112)),1,0) -> 0 | G118: =IF(AND(G112>E112,$AK93>1,$AK92>2,ISNUMBER(E112),ISNUMBER(G112)),1,0) -> 0 | H118: =IF(AND(H112>J112,$AK93>2,$AK92>2,ISNUMBER(H112),ISNUMBER(J112)),1,0) -> 1 | J118: =IF(AND(J112>H112,$AK93>2,$AK92>2,ISNUMBER(H112),ISNUMBER(J112)),1,0) -> 0 | K118: =IF(AND(K112>M112,$AK93>3,$AK92>2,ISNUMBER(K112),ISNUMBER(M112)),1,0) -> 0 | M118: =IF(AND(M112>K112,$AK93>3,$AK92>2,ISNUMBER(K112),ISNUMBER(M112)),1,0) -> 0 | N118: =IF(AND(N112>P112,$AK93>4,$AK92>2,ISNUMBER(N112),ISNUMBER(P112)),1,0) -> 0 | P118: =IF(AND(P112>N112,$AK93>4,$AK92>2,ISNUMBER(N112),ISNUMBER(P112)),1,0) -> 0 | Q118: =IF(AND(Q112>S112,$AK93>5,$AK92>2,ISNUMBER(Q112),ISNUMBER(S112)),1,0) -> 1 | S118: =IF(AND(S112>Q112,$AK93>5,$AK92>2,ISNUMBER(Q112),ISNUMBER(S112)),1,0) -> 0 | T118: =IF(AND(T112>V112,$AK93>6,$AK92>2,ISNUMBER(T112),ISNUMBER(V112)),1,0) -> 0 | V118: =IF(AND(V112>T112,$AK93>6,$AK92>2,ISNUMBER(T112),ISNUMBER(V112)),1,0) -> 0 | W118: =IF(AND(W112>Y112,$AK93>7,$AK92>2,ISNUMBER(W112),ISNUMBER(Y112)),1,0) -> 0 | Y118: =IF(AND(Y112>W112,$AK93>7,$AK92>2,ISNUMBER(W112),ISNUMBER(Y112)),1,0) -> 0 | Z118: =IF(AND(Z112>AB112,$AK93>8,$AK92>2,ISNUMBER(Z112),ISNUMBER(AB112)),1,0) -> 0 | AB118: =IF(AND(AB112>Z112,$AK93>8,$AK92>2,ISNUMBER(Z112),ISNUMBER(AB112)),1,0) -> 0 | AC118: =IF(AND(AC112>AE112,$AK93>9,$AK92>2,ISNUMBER(AC112),ISNUMBER(AE112)),1,0) -> 0 | AE118: =IF(AND(AE112>AC112,$AK93>9,$AK92>2,ISNUMBER(AC112),ISNUMBER(AE112)),1,0) -> 0
A119: Gm4 Win | B119: =IF(AND(B113>D113,$AK93>0,$AK92>3,ISNUMBER(B113),ISNUMBER(D113)),1,0) -> 0 | D119: =IF(AND(D113>B113,$AK93>0,$AK92>3,ISNUMBER(B113),ISNUMBER(D113)),1,0) -> 0 | E119: =IF(AND(E113>G113,$AK93>1,$AK92>3,ISNUMBER(E113),ISNUMBER(G113)),1,0) -> 0 | G119: =IF(AND(G113>E113,$AK93>1,$AK92>3,ISNUMBER(E113),ISNUMBER(G113)),1,0) -> 0 | H119: =IF(AND(H113>J113,$AK93>2,$AK92>3,ISNUMBER(H113),ISNUMBER(J113)),1,0) -> 0 | J119: =IF(AND(J113>H113,$AK93>2,$AK92>3,ISNUMBER(H113),ISNUMBER(J113)),1,0) -> 0 | K119: =IF(AND(K113>M113,$AK93>3,$AK92>3,ISNUMBER(K113),ISNUMBER(M113)),1,0) -> 0 | M119: =IF(AND(M113>K113,$AK93>3,$AK92>3,ISNUMBER(K113),ISNUMBER(M113)),1,0) -> 0 | N119: =IF(AND(N113>P113,$AK93>4,$AK92>3,ISNUMBER(N113),ISNUMBER(P113)),1,0) -> 0 | P119: =IF(AND(P113>N113,$AK93>4,$AK92>3,ISNUMBER(N113),ISNUMBER(P113)),1,0) -> 0 | Q119: =IF(AND(Q113>S113,$AK93>5,$AK92>3,ISNUMBER(Q113),ISNUMBER(S113)),1,0) -> 0 | S119: =IF(AND(S113>Q113,$AK93>5,$AK92>3,ISNUMBER(Q113),ISNUMBER(S113)),1,0) -> 0 | T119: =IF(AND(T113>V113,$AK93>6,$AK92>3,ISNUMBER(T113),ISNUMBER(V113)),1,0) -> 0 | V119: =IF(AND(V113>T113,$AK93>6,$AK92>3,ISNUMBER(T113),ISNUMBER(V113)),1,0) -> 0 | W119: =IF(AND(W113>Y113,$AK93>7,$AK92>3,ISNUMBER(W113),ISNUMBER(Y113)),1,0) -> 0 | Y119: =IF(AND(Y113>W113,$AK93>7,$AK92>3,ISNUMBER(W113),ISNUMBER(Y113)),1,0) -> 0 | Z119: =IF(AND(Z113>AB113,$AK93>8,$AK92>3,ISNUMBER(Z113),ISNUMBER(AB113)),1,0) -> 0 | AB119: =IF(AND(AB113>Z113,$AK93>8,$AK92>3,ISNUMBER(Z113),ISNUMBER(AB113)),1,0) -> 0 | AC119: =IF(AND(AC113>AE113,$AK93>9,$AK92>3,ISNUMBER(AC113),ISNUMBER(AE113)),1,0) -> 0 | AE119: =IF(AND(AE113>AC113,$AK93>9,$AK92>3,ISNUMBER(AC113),ISNUMBER(AE113)),1,0) -> 0
A120: Gm5 Win | B120: =IF(AND(B114>D114,$AK93>0,$AK92>4,ISNUMBER(B114),ISNUMBER(D114)),1,0) -> 0 | D120: =IF(AND(D114>B114,$AK93>0,$AK92>4,ISNUMBER(B114),ISNUMBER(D114)),1,0) -> 0 | E120: =IF(AND(E114>G114,$AK93>1,$AK92>4,ISNUMBER(E114),ISNUMBER(G114)),1,0) -> 0 | G120: =IF(AND(G114>E114,$AK93>1,$AK92>4,ISNUMBER(E114),ISNUMBER(G114)),1,0) -> 0 | H120: =IF(AND(H114>J114,$AK93>2,$AK92>4,ISNUMBER(H114),ISNUMBER(J114)),1,0) -> 0 | J120: =IF(AND(J114>H114,$AK93>2,$AK92>4,ISNUMBER(H114),ISNUMBER(J114)),1,0) -> 0 | K120: =IF(AND(K114>M114,$AK93>3,$AK92>4,ISNUMBER(K114),ISNUMBER(M114)),1,0) -> 0 | M120: =IF(AND(M114>K114,$AK93>3,$AK92>4,ISNUMBER(K114),ISNUMBER(M114)),1,0) -> 0 | N120: =IF(AND(N114>P114,$AK93>4,$AK92>4,ISNUMBER(N114),ISNUMBER(P114)),1,0) -> 0 | P120: =IF(AND(P114>N114,$AK93>4,$AK92>4,ISNUMBER(N114),ISNUMBER(P114)),1,0) -> 0 | Q120: =IF(AND(Q114>S114,$AK93>5,$AK92>4,ISNUMBER(Q114),ISNUMBER(S114)),1,0) -> 0 | S120: =IF(AND(S114>Q114,$AK93>5,$AK92>4,ISNUMBER(Q114),ISNUMBER(S114)),1,0) -> 0 | T120: =IF(AND(T114>V114,$AK93>6,$AK92>4,ISNUMBER(T114),ISNUMBER(V114)),1,0) -> 0 | V120: =IF(AND(V114>T114,$AK93>6,$AK92>4,ISNUMBER(T114),ISNUMBER(V114)),1,0) -> 0 | W120: =IF(AND(W114>Y114,$AK93>7,$AK92>4,ISNUMBER(W114),ISNUMBER(Y114)),1,0) -> 0 | Y120: =IF(AND(Y114>W114,$AK93>7,$AK92>4,ISNUMBER(W114),ISNUMBER(Y114)),1,0) -> 0 | Z120: =IF(AND(Z114>AB114,$AK93>8,$AK92>4,ISNUMBER(Z114),ISNUMBER(AB114)),1,0) -> 0 | AB120: =IF(AND(AB114>Z114,$AK93>8,$AK92>4,ISNUMBER(Z114),ISNUMBER(AB114)),1,0) -> 0 | AC120: =IF(AND(AC114>AE114,$AK93>9,$AK92>4,ISNUMBER(AC114),ISNUMBER(AE114)),1,0) -> 0 | AE120: =IF(AND(AE114>AC114,$AK93>9,$AK92>4,ISNUMBER(AC114),ISNUMBER(AE114)),1,0) -> 0
A121: Sum Game Win/Loss | B121: =SUM(B116:B120) -> 0 | D121: =SUM(D116:D120) -> 2 | E121: =SUM(E116:E120) -> 0 | G121: =SUM(G116:G120) -> 2 | H121: =SUM(H116:H120) -> 2 | J121: =SUM(J116:J120) -> 1 | K121: =SUM(K116:K120) -> 0 | M121: =SUM(M116:M120) -> 2 | N121: =SUM(N116:N120) -> 0 | P121: =SUM(P116:P120) -> 2 | Q121: =SUM(Q116:Q120) -> 2 | S121: =SUM(S116:S120) -> 1 | T121: =SUM(T116:T120) -> 0 | V121: =SUM(V116:V120) -> 0 | W121: =SUM(W116:W120) -> 0 | Y121: =SUM(Y116:Y120) -> 0 | Z121: =SUM(Z116:Z120) -> 0 | AB121: =SUM(AB116:AB120) -> 0 | AC121: =SUM(AC116:AC120) -> 0 | AE121: =SUM(AE116:AE120) -> 0
A122: Match Won/Lost | B122: =IF(B121>D121,IF(C156=AK92,1,IF(C156=AK92-1,1,0)),0) -> 0 | C122: =B122+D122 -> 1 | D122: =IF(D121>B121,IF(C156=AK92,1,IF(C156=AK92-1,1,0)),0) -> 1 | E122: =IF(E121>G121,IF(F156=AK92,1,IF(F156=AK92-1,1,0)),0) -> 0 | F122: =E122+G122 -> 1 | G122: =IF(G121>E121,IF(F156=AK92,1,IF(F156=AK92-1,1,0)),0) -> 1 | H122: =IF(H121>J121,IF(I156=AK92,1,IF(I156=AK92-1,1,0)),0) -> 1 | I122: =H122+J122 -> 1 | J122: =IF(J121>H121,IF(I156=AK92,1,IF(I156=AK92-1,1,0)),0) -> 0 | K122: =IF(K121>M121,IF(L156=AK92,1,IF(L156=AK92-1,1,0)),0) -> 0 | L122: =K122+M122 -> 1 | M122: =IF(M121>K121,IF(L156=AK92,1,IF(L156=AK92-1,1,0)),0) -> 1 | N122: =IF(N121>P121,IF(O156=AK92,1,IF(O156=AK92-1,1,0)),0) -> 0 | O122: =N122+P122 -> 1 | P122: =IF(P121>N121,IF(O156=AK92,1,IF(O156=AK92-1,1,0)),0) -> 1 | Q122: =IF(Q121>S121,IF(R156=AK92,1,IF(R156=AK92-1,1,0)),0) -> 1 | R122: =Q122+S122 -> 1 | S122: =IF(S121>Q121,IF(R156=AK92,1,IF(R156=AK92-1,1,0)),0) -> 0 | T122: =IF(T121>V121,IF(U156=AK92,1,IF(U156=AK92-1,1,0)),0) -> 0 | U122: =T122+V122 -> 0 | V122: =IF(V121>T121,IF(U156=AK92,1,IF(U156=AK92-1,1,0)),0) -> 0 | W122: =IF(W121>Y121,IF(X156=AK92,1,IF(X156=AK92-1,1,0)),0) -> 0 | X122: =W122+Y122 -> 0 | Y122: =IF(Y121>W121,IF(X156=AK92,1,IF(X156=AK92-1,1,0)),0) -> 0 | Z122: =IF(Z121>AB121,IF(AA156=AK92,1,IF(AA156=AK92-1,1,0)),0) -> 0 | AA122: =Z122+AB122 -> 0 | AB122: =IF(AB121>Z121,IF(AA156=AK92,1,IF(AA156=AK92-1,1,0)),0) -> 0 | AC122: =IF(AC121>AE121,IF(AD156=AK92,1,IF(AD156=AK92-1,1,0)),0) -> 0 | AD122: =AC122+AE122 -> 0 | AE122: =IF(AE121>AC121,IF(AD156=AK92,1,IF(AD156=AK92-1,1,0)),0) -> 0
A124: Gm1 Pts | B124: =IF(B116=1,B110,0) -> 0 | D124: =IF(D116=1,D110,0) -> 25 | E124: 0 | G124: =IF(G116=1,G110,0) -> 25 | H124: 25 | J124: =IF(J116=1,J110,0) -> 0 | K124: 0 | M124: =IF(M116=1,M110,0) -> 25 | N124: 0 | P124: =IF(P116=1,P110,0) -> 25 | Q124: 0 | S124: =IF(S116=1,S110,0) -> 26 | T124: 0 | V124: =IF(V116=1,V110,0) -> 0 | W124: 0 | Y124: =IF(Y116=1,Y110,0) -> 0 | Z124: 0 | AB124: =IF(AB116=1,AB110,0) -> 0 | AC124: 0 | AE124: =IF(AE116=1,AE110,0) -> 0
A125: Gm2 Pts | B125: =IF(B117=1,B111,0) -> 0 | D125: 25 | E125: 0 | G125: 25 | H125: 0 | J125: 25 | K125: 0 | M125: 25 | N125: 0 | P125: 25 | Q125: 25 | S125: 0 | T125: 0 | V125: 0 | W125: 0 | Y125: 0 | Z125: 0 | AB125: 0 | AC125: 0 | AE125: =IF(AE117=1,AE111,0) -> 0
A126: Gm3 Pts | B126: =IF(B118=1,B112,0) -> 0 | D126: 0 | E126: 0 | G126: 0 | H126: 15 | J126: 0 | K126: 0 | M126: 0 | N126: 0 | P126: 0 | Q126: 15 | S126: 0 | T126: 0 | V126: 0 | W126: 0 | Y126: 0 | Z126: 0 | AB126: 0 | AC126: 0 | AE126: =IF(AE118=1,AE112,0) -> 0
A127: Gm4 Pts | B127: =IF(B119=1,B113,0) -> 0 | D127: 0 | E127: 0 | G127: 0 | H127: 0 | J127: 0 | K127: 0 | M127: 0 | N127: 0 | P127: 0 | Q127: 0 | S127: 0 | T127: 0 | V127: 0 | W127: 0 | Y127: 0 | Z127: 0 | AB127: 0 | AC127: 0 | AE127: =IF(AE119=1,AE113,0) -> 0
A128: Gm5 Pts | B128: =IF(B120=1,B114,0) -> 0 | D128: 0 | E128: 0 | G128: 0 | H128: 0 | J128: 0 | K128: 0 | M128: 0 | N128: 0 | P128: 0 | Q128: 0 | S128: 0 | T128: 0 | V128: 0 | W128: 0 | Y128: 0 | Z128: 0 | AB128: 0 | AC128: 0 | AE128: =IF(AE120=1,AE114,0) -> 0
A129: Sum Match Points | B129: =SUM(B124:D128) -> 50 | E129: =SUM(E124:G128) -> 50 | H129: =SUM(H124:J128) -> 65 | K129: =SUM(K124:M128) -> 50 | N129: =SUM(N124:P128) -> 50 | Q129: =SUM(Q124:S128) -> 66 | T129: =SUM(T124:V128) -> 0 | W129: =SUM(W124:Y128) -> 0 | Z129: =SUM(Z124:AB128) -> 0 | AC129: =SUM(AC124:AE128) -> 0
A130: Matches | AF130: Match Wins by Team | AG130: Match Losses by Team
A131: Tm1 Wins | B131: =IF(B109=1,IF(B122=1,1,0),0) -> 0 | D131: =IF(D109=1,IF(D122=1,1,0),0) -> 0 | E131: =IF(E109=1,IF(E122=1,1,0),0) -> 0 | G131: =IF(G109=1,IF(G122=1,1,0),0) -> 0 | H131: =IF(H109=1,IF(H122=1,1,0),0) -> 0 | J131: =IF(J109=1,IF(J122=1,1,0),0) -> 0 | K131: =IF(K109=1,IF(K122=1,1,0),0) -> 0 | M131: =IF(M109=1,IF(M122=1,1,0),0) -> 0 | N131: =IF(N109=1,IF(N122=1,1,0),0) -> 0 | P131: =IF(P109=1,IF(P122=1,1,0),0) -> 0 | Q131: =IF(Q109=1,IF(Q122=1,1,0),0) -> 1 | S131: =IF(S109=1,IF(S122=1,1,0),0) -> 0 | T131: =IF(T109=1,IF(T122=1,1,0),0) -> 0 | V131: =IF(V109=1,IF(V122=1,1,0),0) -> 0 | W131: =IF(W109=1,IF(W122=1,1,0),0) -> 0 | Y131: =IF(Y109=1,IF(Y122=1,1,0),0) -> 0 | Z131: =IF(Z109=1,IF(Z122=1,1,0),0) -> 0 | AB131: =IF(AB109=1,IF(AB122=1,1,0),0) -> 0 | AC131: =IF(AC109=1,IF(AC122=1,1,0),0) -> 0 | AE131: =IF(AE109=1,IF(AE122=1,1,0),0) -> 0 | AF131: =SUM(B131:AE131) -> 1 | AG131: =AF137-AF131 -> 2
A132: Tm2 Wins | B132: =IF(B109=2,IF(B122=1,1,0),0) -> 0 | D132: =IF(D109=2,IF(D122=1,1,0),0) -> 0 | E132: =IF(E109=2,IF(E122=1,1,0),0) -> 0 | G132: =IF(G109=2,IF(G122=1,1,0),0) -> 0 | H132: =IF(H109=2,IF(H122=1,1,0),0) -> 1 | J132: =IF(J109=2,IF(J122=1,1,0),0) -> 0 | K132: =IF(K109=2,IF(K122=1,1,0),0) -> 0 | M132: =IF(M109=2,IF(M122=1,1,0),0) -> 0 | N132: =IF(N109=2,IF(N122=1,1,0),0) -> 0 | P132: =IF(P109=2,IF(P122=1,1,0),0) -> 0 | Q132: =IF(Q109=2,IF(Q122=1,1,0),0) -> 0 | S132: =IF(S109=2,IF(S122=1,1,0),0) -> 0 | T132: =IF(T109=2,IF(T122=1,1,0),0) -> 0 | V132: =IF(V109=2,IF(V122=1,1,0),0) -> 0 | W132: =IF(W109=2,IF(W122=1,1,0),0) -> 0 | Y132: =IF(Y109=2,IF(Y122=1,1,0),0) -> 0 | Z132: =IF(Z109=2,IF(Z122=1,1,0),0) -> 0 | AB132: =IF(AB109=2,IF(AB122=1,1,0),0) -> 0 | AC132: =IF(AC109=2,IF(AC122=1,1,0),0) -> 0 | AE132: =IF(AE109=2,IF(AE122=1,1,0),0) -> 0 | AF132: =SUM(B132:AE132) -> 1 | AG132: =AF138-AF132 -> 2
A133: Tm3 Wins | B133: =IF(B109=3,IF(B122=1,1,0),0) -> 0 | D133: =IF(D109=3,IF(D122=1,1,0),0) -> 1 | E133: =IF(E109=3,IF(E122=1,1,0),0) -> 0 | G133: =IF(G109=3,IF(G122=1,1,0),0) -> 0 | H133: =IF(H109=3,IF(H122=1,1,0),0) -> 0 | J133: =IF(J109=3,IF(J122=1,1,0),0) -> 0 | K133: =IF(K109=3,IF(K122=1,1,0),0) -> 0 | M133: =IF(M109=3,IF(M122=1,1,0),0) -> 1 | N133: =IF(N109=3,IF(N122=1,1,0),0) -> 0 | P133: =IF(P109=3,IF(P122=1,1,0),0) -> 0 | Q133: =IF(Q109=3,IF(Q122=1,1,0),0) -> 0 | S133: =IF(S109=3,IF(S122=1,1,0),0) -> 0 | T133: =IF(T109=3,IF(T122=1,1,0),0) -> 0 | V133: =IF(V109=3,IF(V122=1,1,0),0) -> 0 | W133: =IF(W109=3,IF(W122=1,1,0),0) -> 0 | Y133: =IF(Y109=3,IF(Y122=1,1,0),0) -> 0 | Z133: =IF(Z109=3,IF(Z122=1,1,0),0) -> 0 | AB133: =IF(AB109=3,IF(AB122=1,1,0),0) -> 0 | AC133: =IF(AC109=3,IF(AC122=1,1,0),0) -> 0 | AE133: =IF(AE109=3,IF(AE122=1,1,0),0) -> 0 | AF133: =SUM(B133:AE133) -> 2 | AG133: =AF139-AF133 -> 1
A134: Tm4 Wins | B134: =IF(B109=4,IF(B122=1,1,0),0) -> 0 | D134: =IF(D109=4,IF(D122=1,1,0),0) -> 0 | E134: =IF(E109=4,IF(E122=1,1,0),0) -> 0 | G134: =IF(G109=4,IF(G122=1,1,0),0) -> 1 | H134: =IF(H109=4,IF(H122=1,1,0),0) -> 0 | J134: =IF(J109=4,IF(J122=1,1,0),0) -> 0 | K134: =IF(K109=4,IF(K122=1,1,0),0) -> 0 | M134: =IF(M109=4,IF(M122=1,1,0),0) -> 0 | N134: =IF(N109=4,IF(N122=1,1,0),0) -> 0 | P134: =IF(P109=4,IF(P122=1,1,0),0) -> 1 | Q134: =IF(Q109=4,IF(Q122=1,1,0),0) -> 0 | S134: =IF(S109=4,IF(S122=1,1,0),0) -> 0 | T134: =IF(T109=4,IF(T122=1,1,0),0) -> 0 | V134: =IF(V109=4,IF(V122=1,1,0),0) -> 0 | W134: =IF(W109=4,IF(W122=1,1,0),0) -> 0 | Y134: =IF(Y109=4,IF(Y122=1,1,0),0) -> 0 | Z134: =IF(Z109=4,IF(Z122=1,1,0),0) -> 0 | AB134: =IF(AB109=4,IF(AB122=1,1,0),0) -> 0 | AC134: =IF(AC109=4,IF(AC122=1,1,0),0) -> 0 | AE134: =IF(AE109=4,IF(AE122=1,1,0),0) -> 0 | AF134: =SUM(B134:AE134) -> 2 | AG134: =AF140-AF134 -> 1
A135: Tm5 Wins | B135: =IF(B109=5,IF(B122=1,1,0),0) -> 0 | D135: =IF(D109=5,IF(D122=1,1,0),0) -> 0 | E135: =IF(E109=5,IF(E122=1,1,0),0) -> 0 | G135: =IF(G109=5,IF(G122=1,1,0),0) -> 0 | H135: =IF(H109=5,IF(H122=1,1,0),0) -> 0 | J135: =IF(J109=5,IF(J122=1,1,0),0) -> 0 | K135: =IF(K109=5,IF(K122=1,1,0),0) -> 0 | M135: =IF(M109=5,IF(M122=1,1,0),0) -> 0 | N135: =IF(N109=5,IF(N122=1,1,0),0) -> 0 | P135: =IF(P109=5,IF(P122=1,1,0),0) -> 0 | Q135: =IF(Q109=5,IF(Q122=1,1,0),0) -> 0 | S135: =IF(S109=5,IF(S122=1,1,0),0) -> 0 | T135: =IF(T109=5,IF(T122=1,1,0),0) -> 0 | V135: =IF(V109=5,IF(V122=1,1,0),0) -> 0 | W135: =IF(W109=5,IF(W122=1,1,0),0) -> 0 | Y135: =IF(Y109=5,IF(Y122=1,1,0),0) -> 0 | Z135: =IF(Z109=5,IF(Z122=1,1,0),0) -> 0 | AB135: =IF(AB109=5,IF(AB122=1,1,0),0) -> 0 | AC135: =IF(AC109=5,IF(AC122=1,1,0),0) -> 0 | AE135: =IF(AE109=5,IF(AE122=1,1,0),0) -> 0 | AF135: =SUM(B135:AE135) -> 0 | AG135: =AF141-AF135 -> 0
AF136: Matches played by team
A137: Tm1 Play | B137: =IF(B109=1,IF(C122=1,1,0),0) -> 0 | D137: =IF(D109=1,IF(C122=1,1,0),0) -> 0 | E137: =IF(E109=1,IF(F122=1,1,0),0) -> 1 | G137: =IF(G109=1,IF(F122=1,1,0),0) -> 0 | H137: =IF(H109=1,IF(I122=1,1,0),0) -> 0 | J137: =IF(J109=1,IF(I122=1,1,0),0) -> 0 | K137: =IF(K109=1,IF(L122=1,1,0),0) -> 1 | M137: =IF(M109=1,IF(L122=1,1,0),0) -> 0 | N137: =IF(N109=1,IF(O122=1,1,0),0) -> 0 | P137: =IF(P109=1,IF(O122=1,1,0),0) -> 0 | Q137: =IF(Q109=1,IF(R122=1,1,0),0) -> 1 | S137: =IF(S109=1,IF(R122=1,1,0),0) -> 0 | T137: =IF(T109=1,IF(U122=1,1,0),0) -> 0 | V137: =IF(V109=1,IF(U122=1,1,0),0) -> 0 | W137: =IF(W109=1,IF(X122=1,1,0),0) -> 0 | Y137: =IF(Y109=1,IF(X122=1,1,0),0) -> 0 | Z137: =IF(Z109=1,IF(AA122=1,1,0),0) -> 0 | AB137: =IF(AB109=1,IF(AA122=1,1,0),0) -> 0 | AC137: =IF(AC109=1,IF(AD122=1,1,0),0) -> 0 | AE137: =IF(AE109=1,IF(AD122=1,1,0),0) -> 0 | AF137: =SUM(B137:AE137) -> 3
A138: Tm2 Play | B138: =IF(B109=2,IF(C122=1,1,0),0) -> 1 | D138: =IF(D109=2,IF(C122=1,1,0),0) -> 0 | E138: =IF(E109=2,IF(F122=1,1,0),0) -> 0 | G138: =IF(G109=2,IF(F122=1,1,0),0) -> 0 | H138: =IF(H109=2,IF(I122=1,1,0),0) -> 1 | J138: =IF(J109=2,IF(I122=1,1,0),0) -> 0 | K138: =IF(K109=2,IF(L122=1,1,0),0) -> 0 | M138: =IF(M109=2,IF(L122=1,1,0),0) -> 0 | N138: =IF(N109=2,IF(O122=1,1,0),0) -> 0 | P138: =IF(P109=2,IF(O122=1,1,0),0) -> 0 | Q138: =IF(Q109=2,IF(R122=1,1,0),0) -> 0 | S138: =IF(S109=2,IF(R122=1,1,0),0) -> 1 | T138: =IF(T109=2,IF(U122=1,1,0),0) -> 0 | V138: =IF(V109=2,IF(U122=1,1,0),0) -> 0 | W138: =IF(W109=2,IF(X122=1,1,0),0) -> 0 | Y138: =IF(Y109=2,IF(X122=1,1,0),0) -> 0 | Z138: =IF(Z109=2,IF(AA122=1,1,0),0) -> 0 | AB138: =IF(AB109=2,IF(AA122=1,1,0),0) -> 0 | AC138: =IF(AC109=2,IF(AD122=1,1,0),0) -> 0 | AE138: =IF(AE109=2,IF(AD122=1,1,0),0) -> 0 | AF138: =SUM(B138:AE138) -> 3
A139: Tm3 Play | B139: =IF(B109=3,IF(C122=1,1,0),0) -> 0 | D139: =IF(D109=3,IF(C122=1,1,0),0) -> 1 | E139: =IF(E109=3,IF(F122=1,1,0),0) -> 0 | G139: =IF(G109=3,IF(F122=1,1,0),0) -> 0 | H139: =IF(H109=3,IF(I122=1,1,0),0) -> 0 | J139: =IF(J109=3,IF(I122=1,1,0),0) -> 0 | K139: =IF(K109=3,IF(L122=1,1,0),0) -> 0 | M139: =IF(M109=3,IF(L122=1,1,0),0) -> 1 | N139: =IF(N109=3,IF(O122=1,1,0),0) -> 1 | P139: =IF(P109=3,IF(O122=1,1,0),0) -> 0 | Q139: =IF(Q109=3,IF(R122=1,1,0),0) -> 0 | S139: =IF(S109=3,IF(R122=1,1,0),0) -> 0 | T139: =IF(T109=3,IF(U122=1,1,0),0) -> 0 | V139: =IF(V109=3,IF(U122=1,1,0),0) -> 0 | W139: =IF(W109=3,IF(X122=1,1,0),0) -> 0 | Y139: =IF(Y109=3,IF(X122=1,1,0),0) -> 0 | Z139: =IF(Z109=3,IF(AA122=1,1,0),0) -> 0 | AB139: =IF(AB109=3,IF(AA122=1,1,0),0) -> 0 | AC139: =IF(AC109=3,IF(AD122=1,1,0),0) -> 0 | AE139: =IF(AE109=3,IF(AD122=1,1,0),0) -> 0 | AF139: =SUM(B139:AE139) -> 3
A140: Tm4 Play | B140: =IF(B109=4,IF(C122=1,1,0),0) -> 0 | D140: =IF(D109=4,IF(C122=1,1,0),0) -> 0 | E140: =IF(E109=4,IF(F122=1,1,0),0) -> 0 | G140: =IF(G109=4,IF(F122=1,1,0),0) -> 1 | H140: =IF(H109=4,IF(I122=1,1,0),0) -> 0 | J140: =IF(J109=4,IF(I122=1,1,0),0) -> 1 | K140: =IF(K109=4,IF(L122=1,1,0),0) -> 0 | M140: =IF(M109=4,IF(L122=1,1,0),0) -> 0 | N140: =IF(N109=4,IF(O122=1,1,0),0) -> 0 | P140: =IF(P109=4,IF(O122=1,1,0),0) -> 1 | Q140: =IF(Q109=4,IF(R122=1,1,0),0) -> 0 | S140: =IF(S109=4,IF(R122=1,1,0),0) -> 0 | T140: =IF(T109=4,IF(U122=1,1,0),0) -> 0 | V140: =IF(V109=4,IF(U122=1,1,0),0) -> 0 | W140: =IF(W109=4,IF(X122=1,1,0),0) -> 0 | Y140: =IF(Y109=4,IF(X122=1,1,0),0) -> 0 | Z140: =IF(Z109=4,IF(AA122=1,1,0),0) -> 0 | AB140: =IF(AB109=4,IF(AA122=1,1,0),0) -> 0 | AC140: =IF(AC109=4,IF(AD122=1,1,0),0) -> 0 | AE140: =IF(AE109=4,IF(AD122=1,1,0),0) -> 0 | AF140: =SUM(B140:AE140) -> 3
A141: Tm5 Play | B141: =IF(B109=5,IF(C122=1,1,0),0) -> 0 | D141: =IF(D109=5,IF(C122=1,1,0),0) -> 0 | E141: =IF(E109=5,IF(F122=1,1,0),0) -> 0 | G141: =IF(G109=5,IF(F122=1,1,0),0) -> 0 | H141: =IF(H109=5,IF(I122=1,1,0),0) -> 0 | J141: =IF(J109=5,IF(I122=1,1,0),0) -> 0 | K141: =IF(K109=5,IF(L122=1,1,0),0) -> 0 | M141: =IF(M109=5,IF(L122=1,1,0),0) -> 0 | N141: =IF(N109=5,IF(O122=1,1,0),0) -> 0 | P141: =IF(P109=5,IF(O122=1,1,0),0) -> 0 | Q141: =IF(Q109=5,IF(R122=1,1,0),0) -> 0 | S141: =IF(S109=5,IF(R122=1,1,0),0) -> 0 | T141: =IF(T109=5,IF(U122=1,1,0),0) -> 0 | V141: =IF(V109=5,IF(U122=1,1,0),0) -> 0 | W141: =IF(W109=5,IF(X122=1,1,0),0) -> 0 | Y141: =IF(Y109=5,IF(X122=1,1,0),0) -> 0 | Z141: =IF(Z109=5,IF(AA122=1,1,0),0) -> 0 | AB141: =IF(AB109=5,IF(AA122=1,1,0),0) -> 0 | AC141: =IF(AC109=5,IF(AD122=1,1,0),0) -> 0 | AE141: =IF(AE109=5,IF(AD122=1,1,0),0) -> 0 | AF141: =SUM(B141:AE141) -> 0
AF142: Total Points played by team
A143: Tm1 Play | B143: =IF(B109=1,B129,0) -> 0 | D143: =IF(D109=1,B129,0) -> 0 | E143: =IF(E109=1,E129,0) -> 50 | G143: =IF(G109=1,E129,0) -> 0 | H143: =IF(H109=1,H129,0) -> 0 | J143: =IF(J109=1,H129,0) -> 0 | K143: =IF(K109=1,K129,0) -> 50 | M143: =IF(M109=1,K129,0) -> 0 | N143: =IF(N109=1,N129,0) -> 0 | P143: =IF(P109=1,N129,0) -> 0 | Q143: =IF(Q109=1,Q129,0) -> 66 | S143: =IF(S109=1,Q129,0) -> 0 | T143: =IF(T109=1,T129,0) -> 0 | V143: =IF(V109=1,T129,0) -> 0 | W143: =IF(W109=1,W129,0) -> 0 | Y143: =IF(Y109=1,W129,0) -> 0 | Z143: =IF(Z109=1,Z129,0) -> 0 | AB143: =IF(AB109=1,Z129,0) -> 0 | AC143: =IF(AC109=1,AC129,0) -> 0 | AE143: =IF(AE109=1,AC129,0) -> 0 | AF143: =SUM(B143:AE143) -> 166
A144: Tm2 Play | B144: =IF(B109=2,B129,0) -> 50 | D144: =IF(D109=2,B129,0) -> 0 | E144: =IF(E109=2,E129,0) -> 0 | G144: =IF(G109=2,E129,0) -> 0 | H144: =IF(H109=2,H129,0) -> 65 | J144: =IF(J109=2,H129,0) -> 0 | K144: =IF(K109=2,K129,0) -> 0 | M144: =IF(M109=2,K129,0) -> 0 | N144: =IF(N109=2,N129,0) -> 0 | P144: =IF(P109=2,N129,0) -> 0 | Q144: =IF(Q109=2,Q129,0) -> 0 | S144: =IF(S109=2,Q129,0) -> 66 | T144: =IF(T109=2,T129,0) -> 0 | V144: =IF(V109=2,T129,0) -> 0 | W144: =IF(W109=2,W129,0) -> 0 | Y144: =IF(Y109=2,W129,0) -> 0 | Z144: =IF(Z109=2,Z129,0) -> 0 | AB144: =IF(AB109=2,Z129,0) -> 0 | AC144: =IF(AC109=2,AC129,0) -> 0 | AE144: =IF(AE109=2,AC129,0) -> 0 | AF144: =SUM(B144:AE144) -> 181
A145: Tm3 Play | B145: =IF(B109=3,B129,0) -> 0 | D145: =IF(D109=3,B129,0) -> 50 | E145: =IF(E109=3,E129,0) -> 0 | G145: =IF(G109=3,E129,0) -> 0 | H145: =IF(H109=3,H129,0) -> 0 | J145: =IF(J109=3,H129,0) -> 0 | K145: =IF(K109=3,K129,0) -> 0 | M145: =IF(M109=3,K129,0) -> 50 | N145: =IF(N109=3,N129,0) -> 50 | P145: =IF(P109=3,N129,0) -> 0 | Q145: =IF(Q109=3,Q129,0) -> 0 | S145: =IF(S109=3,Q129,0) -> 0 | T145: =IF(T109=3,T129,0) -> 0 | V145: =IF(V109=3,T129,0) -> 0 | W145: =IF(W109=3,W129,0) -> 0 | Y145: =IF(Y109=3,W129,0) -> 0 | Z145: =IF(Z109=3,Z129,0) -> 0 | AB145: =IF(AB109=3,Z129,0) -> 0 | AC145: =IF(AC109=3,AC129,0) -> 0 | AE145: =IF(AE109=3,AC129,0) -> 0 | AF145: =SUM(B145:AE145) -> 150
A146: Tm4 Play | B146: =IF(B109=4,B129,0) -> 0 | D146: =IF(D109=4,B129,0) -> 0 | E146: =IF(E109=4,E129,0) -> 0 | G146: =IF(G109=4,E129,0) -> 50 | H146: =IF(H109=4,H129,0) -> 0 | J146: =IF(J109=4,H129,0) -> 65 | K146: =IF(K109=4,K129,0) -> 0 | M146: =IF(M109=4,K129,0) -> 0 | N146: =IF(N109=4,N129,0) -> 0 | P146: =IF(P109=4,N129,0) -> 50 | Q146: =IF(Q109=4,Q129,0) -> 0 | S146: =IF(S109=4,Q129,0) -> 0 | T146: =IF(T109=4,T129,0) -> 0 | V146: =IF(V109=4,T129,0) -> 0 | W146: =IF(W109=4,W129,0) -> 0 | Y146: =IF(Y109=4,W129,0) -> 0 | Z146: =IF(Z109=4,Z129,0) -> 0 | AB146: =IF(AB109=4,Z129,0) -> 0 | AC146: =IF(AC109=4,AC129,0) -> 0 | AE146: =IF(AE109=4,AC129,0) -> 0 | AF146: =SUM(B146:AE146) -> 165
A147: Tm5 Play | B147: =IF(B109=5,B129,0) -> 0 | D147: =IF(D109=5,B129,0) -> 0 | E147: =IF(E109=5,E129,0) -> 0 | G147: =IF(G109=5,E129,0) -> 0 | H147: =IF(H109=5,H129,0) -> 0 | J147: =IF(J109=5,H129,0) -> 0 | K147: =IF(K109=5,K129,0) -> 0 | M147: =IF(M109=5,K129,0) -> 0 | N147: =IF(N109=5,N129,0) -> 0 | P147: =IF(P109=5,N129,0) -> 0 | Q147: =IF(Q109=5,Q129,0) -> 0 | S147: =IF(S109=5,Q129,0) -> 0 | T147: =IF(T109=5,T129,0) -> 0 | V147: =IF(V109=5,T129,0) -> 0 | W147: =IF(W109=5,W129,0) -> 0 | Y147: =IF(Y109=5,W129,0) -> 0 | Z147: =IF(Z109=5,Z129,0) -> 0 | AB147: =IF(AB109=5,Z129,0) -> 0 | AC147: =IF(AC109=5,AC129,0) -> 0 | AE147: =IF(AE109=5,AC129,0) -> 0 | AF147: =SUM(B147:AE147) -> 0
A148: Games | AF148: Game Wins by Team | AG148: Game Losses by Team
A149: Tm1 Wins | B149: =IF(B109=1,SUMIF(B116:B120,">0"),0) -> 0 | D149: =IF(D109=1,SUMIF(D116:D120,">0"),0) -> 0 | E149: =IF(E109=1,SUMIF(E116:E120,">0"),0) -> 0 | G149: =IF(G109=1,SUMIF(G116:G120,">0"),0) -> 0 | H149: =IF(H109=1,SUMIF(H116:H120,">0"),0) -> 0 | J149: =IF(J109=1,SUMIF(J116:J120,">0"),0) -> 0 | K149: =IF(K109=1,SUMIF(K116:K120,">0"),0) -> 0 | M149: =IF(M109=1,SUMIF(M116:M120,">0"),0) -> 0 | N149: =IF(N109=1,SUMIF(N116:N120,">0"),0) -> 0 | P149: =IF(P109=1,SUMIF(P116:P120,">0"),0) -> 0 | Q149: =IF(Q109=1,SUMIF(Q116:Q120,">0"),0) -> 2 | S149: =IF(S109=1,SUMIF(S116:S120,">0"),0) -> 0 | T149: =IF(T109=1,SUMIF(T116:T120,">0"),0) -> 0 | V149: =IF(V109=1,SUMIF(V116:V120,">0"),0) -> 0 | W149: =IF(W109=1,SUMIF(W116:W120,">0"),0) -> 0 | Y149: =IF(Y109=1,SUMIF(Y116:Y120,">0"),0) -> 0 | Z149: =IF(Z109=1,SUMIF(Z116:Z120,">0"),0) -> 0 | AB149: =IF(AB109=1,SUMIF(AB116:AB120,">0"),0) -> 0 | AC149: =IF(AC109=1,SUMIF(AC116:AC120,">0"),0) -> 0 | AE149: =IF(AE109=1,SUMIF(AE116:AE120,">0"),0) -> 0 | AF149: =SUM(B149:AE149) -> 2 | AG149: =AF157-AF149 -> 5
A150: Tm2 Wins | B150: =IF(B109=2,SUMIF(B116:B120,">0"),0) -> 0 | D150: =IF(D109=2,SUMIF(D116:D120,">0"),0) -> 0 | E150: =IF(E109=2,SUMIF(E116:E120,">0"),0) -> 0 | G150: =IF(G109=2,SUMIF(G116:G120,">0"),0) -> 0 | H150: =IF(H109=2,SUMIF(H116:H120,">0"),0) -> 2 | J150: =IF(J109=2,SUMIF(J116:J120,">0"),0) -> 0 | K150: =IF(K109=2,SUMIF(K116:K120,">0"),0) -> 0 | M150: =IF(M109=2,SUMIF(M116:M120,">0"),0) -> 0 | N150: =IF(N109=2,SUMIF(N116:N120,">0"),0) -> 0 | P150: =IF(P109=2,SUMIF(P116:P120,">0"),0) -> 0 | Q150: =IF(Q109=2,SUMIF(Q116:Q120,">0"),0) -> 0 | S150: =IF(S109=2,SUMIF(S116:S120,">0"),0) -> 1 | T150: =IF(T109=2,SUMIF(T116:T120,">0"),0) -> 0 | V150: =IF(V109=2,SUMIF(V116:V120,">0"),0) -> 0 | W150: =IF(W109=2,SUMIF(W116:W120,">0"),0) -> 0 | Y150: =IF(Y109=2,SUMIF(Y116:Y120,">0"),0) -> 0 | Z150: =IF(Z109=2,SUMIF(Z116:Z120,">0"),0) -> 0 | AB150: =IF(AB109=2,SUMIF(AB116:AB120,">0"),0) -> 0 | AC150: =IF(AC109=2,SUMIF(AC116:AC120,">0"),0) -> 0 | AE150: =IF(AE109=2,SUMIF(AE116:AE120,">0"),0) -> 0 | AF150: =SUM(B150:AE150) -> 3 | AG150: =AF158-AF150 -> 5
A151: Tm3 Wins | B151: =IF(B109=3,SUMIF(B116:B120,">0"),0) -> 0 | D151: =IF(D109=3,SUMIF(D116:D120,">0"),0) -> 2 | E151: =IF(E109=3,SUMIF(E116:E120,">0"),0) -> 0 | G151: =IF(G109=3,SUMIF(G116:G120,">0"),0) -> 0 | H151: =IF(H109=3,SUMIF(H116:H120,">0"),0) -> 0 | J151: =IF(J109=3,SUMIF(J116:J120,">0"),0) -> 0 | K151: =IF(K109=3,SUMIF(K116:K120,">0"),0) -> 0 | M151: =IF(M109=3,SUMIF(M116:M120,">0"),0) -> 2 | N151: =IF(N109=3,SUMIF(N116:N120,">0"),0) -> 0 | P151: =IF(P109=3,SUMIF(P116:P120,">0"),0) -> 0 | Q151: =IF(Q109=3,SUMIF(Q116:Q120,">0"),0) -> 0 | S151: =IF(S109=3,SUMIF(S116:S120,">0"),0) -> 0 | T151: =IF(T109=3,SUMIF(T116:T120,">0"),0) -> 0 | V151: =IF(V109=3,SUMIF(V116:V120,">0"),0) -> 0 | W151: =IF(W109=3,SUMIF(W116:W120,">0"),0) -> 0 | Y151: =IF(Y109=3,SUMIF(Y116:Y120,">0"),0) -> 0 | Z151: =IF(Z109=3,SUMIF(Z116:Z120,">0"),0) -> 0 | AB151: =IF(AB109=3,SUMIF(AB116:AB120,">0"),0) -> 0 | AC151: =IF(AC109=3,SUMIF(AC116:AC120,">0"),0) -> 0 | AE151: =IF(AE109=3,SUMIF(AE116:AE120,">0"),0) -> 0 | AF151: =SUM(B151:AE151) -> 4 | AG151: =AF159-AF151 -> 2
A152: Tm4 Wins | B152: =IF(B109=4,SUMIF(B116:B120,">0"),0) -> 0 | D152: =IF(D109=4,SUMIF(D116:D120,">0"),0) -> 0 | E152: =IF(E109=4,SUMIF(E116:E120,">0"),0) -> 0 | G152: =IF(G109=4,SUMIF(G116:G120,">0"),0) -> 2 | H152: =IF(H109=4,SUMIF(H116:H120,">0"),0) -> 0 | J152: =IF(J109=4,SUMIF(J116:J120,">0"),0) -> 1 | K152: =IF(K109=4,SUMIF(K116:K120,">0"),0) -> 0 | M152: =IF(M109=4,SUMIF(M116:M120,">0"),0) -> 0 | N152: =IF(N109=4,SUMIF(N116:N120,">0"),0) -> 0 | P152: =IF(P109=4,SUMIF(P116:P120,">0"),0) -> 2 | Q152: =IF(Q109=4,SUMIF(Q116:Q120,">0"),0) -> 0 | S152: =IF(S109=4,SUMIF(S116:S120,">0"),0) -> 0 | T152: =IF(T109=4,SUMIF(T116:T120,">0"),0) -> 0 | V152: =IF(V109=4,SUMIF(V116:V120,">0"),0) -> 0 | W152: =IF(W109=4,SUMIF(W116:W120,">0"),0) -> 0 | Y152: =IF(Y109=4,SUMIF(Y116:Y120,">0"),0) -> 0 | Z152: =IF(Z109=4,SUMIF(Z116:Z120,">0"),0) -> 0 | AB152: =IF(AB109=4,SUMIF(AB116:AB120,">0"),0) -> 0 | AC152: =IF(AC109=4,SUMIF(AC116:AC120,">0"),0) -> 0 | AE152: =IF(AE109=4,SUMIF(AE116:AE120,">0"),0) -> 0 | AF152: =SUM(B152:AE152) -> 5 | AG152: =AF160-AF152 -> 2
A153: Tm5 Wins | B153: =IF(B109=5,SUMIF(B116:B120,">0"),0) -> 0 | D153: =IF(D109=5,SUMIF(D116:D120,">0"),0) -> 0 | E153: =IF(E109=5,SUMIF(E116:E120,">0"),0) -> 0 | G153: =IF(G109=5,SUMIF(G116:G120,">0"),0) -> 0 | H153: =IF(H109=5,SUMIF(H116:H120,">0"),0) -> 0 | J153: =IF(J109=5,SUMIF(J116:J120,">0"),0) -> 0 | K153: =IF(K109=5,SUMIF(K116:K120,">0"),0) -> 0 | M153: =IF(M109=5,SUMIF(M116:M120,">0"),0) -> 0 | N153: =IF(N109=5,SUMIF(N116:N120,">0"),0) -> 0 | P153: =IF(P109=5,SUMIF(P116:P120,">0"),0) -> 0 | Q153: =IF(Q109=5,SUMIF(Q116:Q120,">0"),0) -> 0 | S153: =IF(S109=5,SUMIF(S116:S120,">0"),0) -> 0 | T153: =IF(T109=5,SUMIF(T116:T120,">0"),0) -> 0 | V153: =IF(V109=5,SUMIF(V116:V120,">0"),0) -> 0 | W153: =IF(W109=5,SUMIF(W116:W120,">0"),0) -> 0 | Y153: =IF(Y109=5,SUMIF(Y116:Y120,">0"),0) -> 0 | Z153: =IF(Z109=5,SUMIF(Z116:Z120,">0"),0) -> 0 | AB153: =IF(AB109=5,SUMIF(AB116:AB120,">0"),0) -> 0 | AC153: =IF(AC109=5,SUMIF(AC116:AC120,">0"),0) -> 0 | AE153: =IF(AE109=5,SUMIF(AE116:AE120,">0"),0) -> 0 | AF153: =SUM(B153:AE153) -> 0 | AG153: =AF161-AF153 -> 0
A156: Games Played this Match | C156: =SUMIF(B149:D153,">0") -> 2 | F156: =SUMIF(E149:G153,">0") -> 2 | I156: =SUMIF(H149:J153,">0") -> 3 | L156: =SUMIF(K149:M153,">0") -> 2 | O156: =SUMIF(N149:P153,">0") -> 2 | R156: =SUMIF(Q149:S153,">0") -> 3 | U156: =SUMIF(T149:V153,">0") -> 0 | X156: =SUMIF(W149:Y153,">0") -> 0 | AA156: =SUMIF(Z149:AB153,">0") -> 0 | AD156: =SUMIF(AC149:AE153,">0") -> 0 | AF156: Games played by team
A157: Tm1 Play | B157: =IF(B109=1,C156,0) -> 0 | D157: =IF(D109=1,C156,0) -> 0 | E157: =IF(E109=1,F156,0) -> 2 | G157: =IF(G109=1,F156,0) -> 0 | H157: =IF(H109=1,I156,0) -> 0 | J157: =IF(J109=1,I156,0) -> 0 | K157: =IF(K109=1,L156,0) -> 2 | M157: =IF(M109=1,L156,0) -> 0 | N157: =IF(N109=1,O156,0) -> 0 | P157: =IF(P109=1,O156,0) -> 0 | Q157: =IF(Q109=1,R156,0) -> 3 | S157: =IF(S109=1,R156,0) -> 0 | T157: =IF(T109=1,U156,0) -> 0 | V157: =IF(V109=1,U156,0) -> 0 | W157: =IF(W109=1,X156,0) -> 0 | Y157: =IF(Y109=1,X156,0) -> 0 | Z157: =IF(Z109=1,AA156,0) -> 0 | AB157: =IF(AB109=1,AA156,0) -> 0 | AC157: =IF(AC109=1,AD156,0) -> 0 | AE157: =IF(AE109=1,AD156,0) -> 0 | AF157: =SUM(B157:AE157) -> 7
A158: Tm2 Play | B158: =IF(B109=2,C156,0) -> 2 | D158: =IF(D109=2,C156,0) -> 0 | E158: =IF(E109=2,F156,0) -> 0 | G158: =IF(G109=2,F156,0) -> 0 | H158: =IF(H109=2,I156,0) -> 3 | J158: =IF(J109=2,I156,0) -> 0 | K158: =IF(K109=2,L156,0) -> 0 | M158: =IF(M109=2,L156,0) -> 0 | N158: =IF(N109=2,O156,0) -> 0 | P158: =IF(P109=2,O156,0) -> 0 | Q158: =IF(Q109=2,R156,0) -> 0 | S158: =IF(S109=2,R156,0) -> 3 | T158: =IF(T109=2,U156,0) -> 0 | V158: =IF(V109=2,U156,0) -> 0 | W158: =IF(W109=2,X156,0) -> 0 | Y158: =IF(Y109=2,X156,0) -> 0 | Z158: =IF(Z109=2,AA156,0) -> 0 | AB158: =IF(AB109=2,AA156,0) -> 0 | AC158: =IF(AC109=2,AD156,0) -> 0 | AE158: =IF(AE109=2,AD156,0) -> 0 | AF158: =SUM(B158:AE158) -> 8
A159: Tm3 Play | B159: =IF(B109=3,C156,0) -> 0 | D159: =IF(D109=3,C156,0) -> 2 | E159: =IF(E109=3,F156,0) -> 0 | G159: =IF(G109=3,F156,0) -> 0 | H159: =IF(H109=3,I156,0) -> 0 | J159: =IF(J109=3,I156,0) -> 0 | K159: =IF(K109=3,L156,0) -> 0 | M159: =IF(M109=3,L156,0) -> 2 | N159: =IF(N109=3,O156,0) -> 2 | P159: =IF(P109=3,O156,0) -> 0 | Q159: =IF(Q109=3,R156,0) -> 0 | S159: =IF(S109=3,R156,0) -> 0 | T159: =IF(T109=3,U156,0) -> 0 | V159: =IF(V109=3,U156,0) -> 0 | W159: =IF(W109=3,X156,0) -> 0 | Y159: =IF(Y109=3,X156,0) -> 0 | Z159: =IF(Z109=3,AA156,0) -> 0 | AB159: =IF(AB109=3,AA156,0) -> 0 | AC159: =IF(AC109=3,AD156,0) -> 0 | AE159: =IF(AE109=3,AD156,0) -> 0 | AF159: =SUM(B159:AE159) -> 6
A160: Tm4 Play | B160: =IF(B109=4,C156,0) -> 0 | D160: =IF(D109=4,C156,0) -> 0 | E160: =IF(E109=4,F156,0) -> 0 | G160: =IF(G109=4,F156,0) -> 2 | H160: =IF(H109=4,I156,0) -> 0 | J160: =IF(J109=4,I156,0) -> 3 | K160: =IF(K109=4,L156,0) -> 0 | M160: =IF(M109=4,L156,0) -> 0 | N160: =IF(N109=4,O156,0) -> 0 | P160: =IF(P109=4,O156,0) -> 2 | Q160: =IF(Q109=4,R156,0) -> 0 | S160: =IF(S109=4,R156,0) -> 0 | T160: =IF(T109=4,U156,0) -> 0 | V160: =IF(V109=4,U156,0) -> 0 | W160: =IF(W109=4,X156,0) -> 0 | Y160: =IF(Y109=4,X156,0) -> 0 | Z160: =IF(Z109=4,AA156,0) -> 0 | AB160: =IF(AB109=4,AA156,0) -> 0 | AC160: =IF(AC109=4,AD156,0) -> 0 | AE160: =IF(AE109=4,AD156,0) -> 0 | AF160: =SUM(B160:AE160) -> 7
A161: Tm5 Play | B161: =IF(B109=5,C156,0) -> 0 | D161: =IF(D109=5,C156,0) -> 0 | E161: =IF(E109=5,F156,0) -> 0 | G161: =IF(G109=5,F156,0) -> 0 | H161: =IF(H109=5,I156,0) -> 0 | J161: =IF(J109=5,I156,0) -> 0 | K161: =IF(K109=5,L156,0) -> 0 | M161: =IF(M109=5,L156,0) -> 0 | N161: =IF(N109=5,O156,0) -> 0 | P161: =IF(P109=5,O156,0) -> 0 | Q161: =IF(Q109=5,R156,0) -> 0 | S161: =IF(S109=5,R156,0) -> 0 | T161: =IF(T109=5,U156,0) -> 0 | V161: =IF(V109=5,U156,0) -> 0 | W161: =IF(W109=5,X156,0) -> 0 | Y161: =IF(Y109=5,X156,0) -> 0 | Z161: =IF(Z109=5,AA156,0) -> 0 | AB161: =IF(AB109=5,AA156,0) -> 0 | AC161: =IF(AC109=5,AD156,0) -> 0 | AE161: =IF(AE109=5,AD156,0) -> 0 | AF161: =SUM(B161:AE161) -> 0
C163: Init | D163: 1 | G163: 2 | J163: 3 | M163: 4 | P163: 5 | S163: 6 | V163: 7 | Y163: 8 | AB163: 9 | AE163: 10 | AR163: End of Pool
A164: 1 | B164: =E93 -> Low Country 13 Open | C164: =VLOOKUP(B164,AU$3:AW$103,3,FALSE) -> 2151.52903 | D164: =IF(B157,B172,IF(D157,D172,C164)) -> 2151.52903 | G164: =IF(E157,E172,IF(G157,G172,D164)) -> 2121.756155 | J164: =IF(H157,H172,IF(J157,J172,G164)) -> 2121.756155 | M164: =IF(K157,K172,IF(M157,M172,J164)) -> 2103.752829 | P164: =IF(N157,N172,IF(P157,P172,M164)) -> 2103.752829 | S164: =IF(Q157,Q172,IF(S157,S172,P164)) -> 2120.171792 | V164: =IF(T157,T172,IF(V157,V172,S164)) -> 2120.171792 | Y164: =IF(W157,W172,IF(Y157,Y172,V164)) -> 2120.171792 | AB164: =IF(Z157,Z172,IF(AB157,AB172,Y164)) -> 2120.171792 | AE164: =IF(AC157,AC172,IF(AE157,AE172,AB164)) -> 2120.171792 | AR164: =B164 -> Low Country 13 Open | AS164: =AE164 -> 2120.171792
A165: 2 | B165: =E95 -> Upward Stars 13 Becky | C165: =VLOOKUP(B165,AU$3:AW$103,3,FALSE) -> 2161.177082 | D165: =IF(B158,B172,IF(D158,D172,C165)) -> 2139.047908 | G165: =IF(E158,E172,IF(G158,G172,D165)) -> 2139.047908 | J165: =IF(H158,H172,IF(J158,J172,G165)) -> 2146.616339 | M165: =IF(K158,K172,IF(M158,M172,J165)) -> 2146.616339 | P165: =IF(N158,N172,IF(P158,P172,M165)) -> 2146.616339 | S165: =IF(Q158,Q172,IF(S158,S172,P165)) -> 2130.197376 | V165: =IF(T158,T172,IF(V158,V172,S165)) -> 2130.197376 | Y165: =IF(W158,W172,IF(Y158,Y172,V165)) -> 2130.197376 | AB165: =IF(Z158,Z172,IF(AB158,AB172,Y165)) -> 2130.197376 | AE165: =IF(AC158,AC172,IF(AE158,AE172,AB165)) -> 2130.197376 | AR165: =B165 -> Upward Stars 13 Becky | AS165: =AE165 -> 2130.197376
A166: 3 | B166: =E97 -> Vision 13 National | C166: =VLOOKUP(B166,AU$3:AW$103,3,FALSE) -> 2188.315122 | D166: =IF(B159,B172,IF(D159,D172,C166)) -> 2210.444296 | G166: =IF(E159,E172,IF(G159,G172,D166)) -> 2210.444296 | J166: =IF(H159,H172,IF(J159,J172,G166)) -> 2210.444296 | M166: =IF(K159,K172,IF(M159,M172,J166)) -> 2228.447622 | P166: =IF(N159,N172,IF(P159,P172,M166)) -> 2195.270929 | S166: =IF(Q159,Q172,IF(S159,S172,P166)) -> 2195.270929 | V166: =IF(T159,T172,IF(V159,V172,S166)) -> 2195.270929 | Y166: =IF(W159,W172,IF(Y159,Y172,V166)) -> 2195.270929 | AB166: =IF(Z159,Z172,IF(AB159,AB172,Y166)) -> 2195.270929 | AE166: =IF(AC159,AC172,IF(AE159,AE172,AB166)) -> 2195.270929 | AR166: =B166 -> Vision 13 National | AS166: =AE166 -> 2195.270929
A167: 4 | B167: =E99 -> KVA 13Vanessa | C167: =VLOOKUP(B167,AU$3:AW$103,3,FALSE) -> 2066.287987 | D167: =IF(B160,B172,IF(D160,D172,C167)) -> 2066.287987 | G167: =IF(E160,E172,IF(G160,G172,D167)) -> 2096.060862 | J167: =IF(H160,H172,IF(J160,J172,G167)) -> 2088.492432 | M167: =IF(K160,K172,IF(M160,M172,J167)) -> 2088.492432 | P167: =IF(N160,N172,IF(P160,P172,M167)) -> 2121.669125 | S167: =IF(Q160,Q172,IF(S160,S172,P167)) -> 2121.669125 | V167: =IF(T160,T172,IF(V160,V172,S167)) -> 2121.669125 | Y167: =IF(W160,W172,IF(Y160,Y172,V167)) -> 2121.669125 | AB167: =IF(Z160,Z172,IF(AB160,AB172,Y167)) -> 2121.669125 | AE167: =IF(AC160,AC172,IF(AE160,AE172,AB167)) -> 2121.669125 | AR167: =B167 -> KVA 13Vanessa | AS167: =AE167 -> 2121.669125
A168: 5 | B168: =E101 -> 0 | C168: =VLOOKUP(B168,AU$3:AW$103,3,FALSE) ->  | D168: =IF(B161,B172,IF(D161,D172,C168)) ->  | G168: =IF(E161,E172,IF(G161,G172,D168)) ->  | J168: =IF(H161,H172,IF(J161,J172,G168)) ->  | M168: =IF(K161,K172,IF(M161,M172,J168)) ->  | P168: =IF(N161,N172,IF(P161,P172,M168)) ->  | S168: =IF(Q161,Q172,IF(S161,S172,P168)) ->  | V168: =IF(T161,T172,IF(V161,V172,S168)) ->  | Y168: =IF(W161,W172,IF(Y161,Y172,V168)) ->  | AB168: =IF(Z161,Z172,IF(AB161,AB172,Y168)) ->  | AE168: =IF(AC161,AC172,IF(AE161,AE172,AB168)) ->  | AR168: =B168 -> 0 | AS168: =AE168 -> 
A170: Init Rating | B170: =VLOOKUP(B109,$A164:$AE168,3,FALSE) -> 2161.177082 | C170: 1 | D170: =VLOOKUP(D109,$A164:$AE168,3,FALSE) -> 2188.315122 | E170: =VLOOKUP(E109,$A164:$AE168,4,FALSE) -> 2151.52903 | F170: 2 | G170: =VLOOKUP(G109,$A164:$AE168,4,FALSE) -> 2066.287987 | H170: =VLOOKUP(H109,$A164:$AE168,7,FALSE) -> 2139.047908 | I170: 3 | J170: =VLOOKUP(J109,$A164:$AE168,7,FALSE) -> 2096.060862 | K170: =VLOOKUP(K109,$A164:$AE168,10,FALSE) -> 2121.756155 | L170: 4 | M170: =VLOOKUP(M109,$A164:$AE168,10,FALSE) -> 2210.444296 | N170: =VLOOKUP(N109,$A164:$AE168,13,FALSE) -> 2228.447622 | O170: 5 | P170: =VLOOKUP(P109,$A164:$AE168,13,FALSE) -> 2088.492432 | Q170: =VLOOKUP(Q109,$A164:$AE168,16,FALSE) -> 2103.752829 | R170: 6 | S170: =VLOOKUP(S109,$A164:$AE168,16,FALSE) -> 2146.616339 | T170: =VLOOKUP(T109,$A164:$AE168,19,FALSE) ->  | U170: 7 | V170: =VLOOKUP(V109,$A164:$AE168,19,FALSE) ->  | W170: =VLOOKUP(W109,$A164:$AE168,22,FALSE) ->  | X170: 8 | Y170: =VLOOKUP(Y109,$A164:$AE168,22,FALSE) ->  | Z170: =VLOOKUP(Z109,$A164:$AE168,25,FALSE) ->  | AA170: 9 | AB170: =VLOOKUP(AB109,$A164:$AE168,25,FALSE) ->  | AC170: =VLOOKUP(AC109,$A164:$AE168,28,FALSE) ->  | AD170: 10 | AE170: =VLOOKUP(AE109,$A164:$AE168,28,FALSE) -> 
A171: Exp wins | B171: =1/(1+(10^-((B170-D170)/400)))*(B121+D121) -> 0.9220489069 | D171: =1/(1+(10^-((D170-B170)/400)))*(B121+D121) -> 1.077951093 | E171: =1/(1+(10^-((E170-G170)/400)))*(E121+G121) -> 1.240536464 | G171: =1/(1+(10^-((G170-E170)/400)))*(E121+G121) -> 0.7594635359 | H171: =1/(1+(10^-((H170-J170)/400)))*(H121+J121) -> 1.684648738 | J171: =1/(1+(10^-((J170-H170)/400)))*(H121+J121) -> 1.315351262 | K171: =1/(1+(10^-((K170-M170)/400)))*(K121+M121) -> 0.7501385891 | M171: =1/(1+(10^-((M170-K170)/400)))*(K121+M121) -> 1.249861411 | N171: =1/(1+(10^-((N170-P170)/400)))*(N121+P121) -> 1.382362193 | P171: =1/(1+(10^-((P170-N170)/400)))*(N121+P121) -> 0.6176378071 | Q171: =1/(1+(10^-((Q170-S170)/400)))*(Q121+S121) -> 1.315876552 | S171: =1/(1+(10^-((S170-Q170)/400)))*(Q121+S121) -> 1.684123448 | T171: =1/(1+(10^-((T170-V170)/400)))*(T121+V121) ->  | V171: =1/(1+(10^-((V170-T170)/400)))*(T121+V121) ->  | W171: =1/(1+(10^-((W170-Y170)/400)))*(W121+Y121) ->  | Y171: =1/(1+(10^-((Y170-W170)/400)))*(W121+Y121) ->  | Z171: =1/(1+(10^-((Z170-AB170)/400)))*(Z121+AB121) ->  | AB171: =1/(1+(10^-((AB170-Z170)/400)))*(Z121+AB121) ->  | AC171: =1/(1+(10^-((AC170-AE170)/400)))*(AC121+AE121) ->  | AE171: =1/(1+(10^-((AE170-AC170)/400)))*(AC121+AE121) -> 
A172: New Rating | B172: =B170+(B121-B171)*$BA$1 -> 2139.047908 | D172: =D170+(D121-D171)*$BA$1 -> 2210.444296 | E172: =E170+(E121-E171)*$BA$1 -> 2121.756155 | G172: =G170+(G121-G171)*$BA$1 -> 2096.060862 | H172: =H170+(H121-H171)*$BA$1 -> 2146.616339 | J172: =J170+(J121-J171)*$BA$1 -> 2088.492432 | K172: =K170+(K121-K171)*$BA$1 -> 2103.752829 | M172: =M170+(M121-M171)*$BA$1 -> 2228.447622 | N172: =N170+(N121-N171)*$BA$1 -> 2195.270929 | P172: =P170+(P121-P171)*$BA$1 -> 2121.669125 | Q172: =Q170+(Q121-Q171)*$BA$1 -> 2120.171792 | S172: =S170+(S121-S171)*$BA$1 -> 2130.197376 | T172: =T170+(T121-T171)*$BA$1 ->  | V172: =V170+(V121-V171)*$BA$1 ->  | W172: =W170+(W121-W171)*$BA$1 ->  | Y172: =Y170+(Y121-Y171)*$BA$1 ->  | Z172: =Z170+(Z121-Z171)*$BA$1 ->  | AB172: =AB170+(AB121-AB171)*$BA$1 ->  | AC172: =AC170+(AC121-AC171)*$BA$1 ->  | AE172: =AE170+(AE121-AE171)*$BA$1 -> 
A174: =IF($AK95=1,"Pool Tiereaker : 1) Matches Won vs Lost (if 3 way tie then #4) 2) Head to Head 3) Game Win % 4) Total Pool Net Points 5) Flip a Coin","Pool Tiebreaker : 1) Games Won vs Lost (if 3 way tie then #5) 2) Head to Head 3) Head to Head Net Points 4) Game Win % 5) Total Pool Net Points 6) Flip a Coin") -> Pool Tiereaker : 1) Matches Won vs Lost (if 3 way tie then #4) 2) Head to Head 3) Game Win % 4) Total Pool Net Points 5) Flip a Coin
A176: POOL: | B176: CC | C176: COURT: Luke VB Ctr | I176: 3 | K176: ="Pool "&B176&" - Round 2 - Court "&I176 -> Pool CC - Round 2 - Court 3
A177: Team # | B177: Team Name | L177: =IF($AK180=0,"Games Won","Matches Won") -> Matches Won | R177: =IF($AK180=0,"Games Lost","Matches Lost") -> Matches Lost | W177: Total Pool Net Points | Z177: % Total Net Points | AC177: Game Win % | AF177: Pool Finish | AG177: # | AH177: Playoff Finish | AK177: 3 | AL177: Games per Match (1-5)
A178: =IF($AK179>0,"1","") -> 1 | B178: Team Name | E178: ='12-13 Pwr 16 tm Rnd 1'!V349 -> Magnum 13 Blue | L178: =IF($AK180=0,AF234,AF216) -> 2 | R178: =IF($AK180=0,AG234,AG216) -> 1 | W178: =AQ194 -> 6 | Z178: =IF(AF228>0,(AQ194/AF228),0) -> 0.03592814371 | AC178: =IF(AF242=0,0,(AF234/AF242)) -> 0.5714285714 | AF178: 3 | AG178: 4 | AH178: 13 | AK178: 6 | AL178: Matches (1-10)
B179: Team Code | E179: ='12-13 Pwr 16 tm Rnd 1'!AB349 -> fj3magnm4pm | AK179: 4 | AL179: Teams in Pool (1-5)
A180: =IF($AK179>1,"2","") -> 2 | B180: Team Name | E180: ='12-13 Pwr 16 tm Rnd 1'!V352 -> Chas Jrs 13 Red | L180: =IF($AK180=0,AF235,AF217) -> 2 | R180: =IF($AK180=0,AG235,AG217) -> 1 | W180: =AQ195 -> 28 | Z180: =IF(AF229>0,(AQ195/AF229),0) -> 0.1696969697 | AC180: =IF(AF243=0,0,(AF235/AF243)) -> 0.7142857143 | AF180: 1 | AG180: 4 | AH180: 9 | AK180: 1 | AL180: 0-Count Games 1-Count Matches
B181: Team Code | E181: ='12-13 Pwr 16 tm Rnd 1'!AB352 -> fj3charl1pm | AK181: 1 | AL181: Game Win % 0 = No 1 = Yes
A182: =IF($AK179>2,"3","") -> 3 | B182: Team Name | E182: ='12-13 Pwr 16 tm Rnd 1'!AF351 -> Upward Stars 12 Candi | L182: =IF($AK180=0,AF236,AF218) -> 2 | R182: =IF($AK180=0,AG236,AG218) -> 1 | W182: =AQ196 -> 19 | Z182: =IF(AF230>0,(AQ196/AF230),0) -> 0.1043956044 | AC182: =IF(AF244=0,0,(AF236/AF244)) -> 0.625 | AF182: 2 | AG182: 4 | AH182: 11 | AK182: 3 | AL182: # of Matches/Games per Team
B183: Team Code | E183: ='12-13 Pwr 16 tm Rnd 1'!AL351 -> fj2upwrd2pm
A184: =IF($AK179>3,"4","") -> 4 | B184: Team Name | E184: ='12-13 Pwr 16 tm Rnd 1'!AF350 -> Upward Stars 13 Abbey | L184: =IF($AK180=0,AF237,AF219) -> 0 | R184: =IF($AK180=0,AG237,AG219) -> 3 | W184: =AQ197 -> -53 | Z184: =IF(AF231>0,(AQ197/AF231),0) -> -0.3533333333 | AC184: =IF(AF245=0,0,(AF237/AF245)) -> 0 | AF184: 4 | AG184: 1 | AH184: 15
B185: Team Code | E185: ='12-13 Pwr 16 tm Rnd 1'!AL350 -> fj3upwrd5pm
A186: =IF($AK179>4,"5","") ->  | B186: Team Name | L186: =IF($AK180=0,AF238,AF220) -> 0 | R186: =IF($AK180=0,AG238,AG220) -> 0 | W186: =AQ198 -> 0 | Z186: =IF(AF232>0,(AQ198/AF232),0) -> 0 | AC186: =IF(AF246=0,0,(AF238/AF246)) -> 0
B187: Team Code
B188: POOL PLAY FORMAT: Best of 3 (25-25-15) Start at 4 - 2 Pt cap. Warmups 2-4-4
A189: Sch Start | B189: Sat 3:00 | E189: Sat 4:00 | H189: Sat 5:00 | K189: Sat 6:00 | N189: Sun 8am | Q189: Sun 9am | AF189: Note: The Pool Finish Summary at the bottom of the sheet will fill in AUTOMATICALLY once the POOL FINISH column (at left) is filled in.
A190: Actual Start
A191: End Time
B192: Match 1 | E192: =IF(AK178>1,"Match 2","") -> Match 2 | H192: =IF(AK178>2,"Match 3","") -> Match 3 | K192: =IF(AK178>3,"Match 4","") -> Match 4 | N192: =IF(AK178>4,"Match 5","") -> Match 5 | Q192: =IF(AK178>5,"Match 6","") -> Match 6 | T192: =IF(AK178>6,"Match 7","") ->  | W192: =IF(AK178>7,"Match 8","") ->  | Z192: =IF(AK178>8,"Match 9","") ->  | AC192: =IF(AK178>9,"Match 10","") -> 
B193: 1 refs | E193: 2 refs | H193: 3 refs | K193: 4 refs | N193: 2 refs | Q193: 3 refs | AF193: Net Points | AG193: 1 | AH193: 2 | AI193: 3 | AJ193: 4 | AK193: 5 | AL193: 6 | AM193: 7 | AN193: 8 | AO193: 9 | AP193: 10 | AQ193: Total
B194: 2 | C194: v | D194: 3 | E194: 1 | F194: =IF(AK178>1,"v","") -> v | G194: 4 | H194: 2 | I194: =IF(AK178>2,"v","") -> v | J194: 4 | K194: 1 | L194: =IF(AK178>3,"v","") -> v | M194: 3 | N194: 3 | O194: =IF(AK178>4,"v","") -> v | P194: 4 | Q194: 1 | R194: =IF(AK178>5,"v","") -> v | S194: 2 | U194: =IF(AK178>6,"v","") ->  | X194: =IF(AK178>7,"v","") ->  | AA194: =IF(AK178>8,"v","") ->  | AD194: =IF(AK178>9,"v","") ->  | AF194: =IF(AK179>0,"Team 1","") -> Team 1 | AG194: =IF(AK179<1,"",IF(AK178<1,"",IF(B194=1,B200-D200,IF(D194=1,D200-B200,"")))) ->  | AH194: =IF(AK179<1,"",IF(AK178<2,"",IF(E194=1,E200-G200,IF(G194=1,G200-E200,"")))) -> 13 | AI194: =IF(AK179<1,"",IF(AK178<3,"",IF(H194=1,H200-J200,IF(J194=1,J200-H200,"")))) ->  | AJ194: =IF(AK179<1,"",IF(AK178<4,"",IF(K194=1,K200-M200,IF(M194=1,M200-K200,"")))) -> 5 | AK194: =IF(AK179<1,"",IF(AK178<5,"",IF(N194=1,N200-P200,IF(P194=1,P200-N200,"")))) ->  | AL194: =IF(AK179<1,"",IF(AK178<6,"",IF(Q194=1,Q200-S200,IF(S194=1,S200-Q200,"")))) -> -12 | AM194: =IF(AK179<1,"",IF(AK178<7,"",IF(T194=1,T200-V200,IF(V194=1,V200-T200,"")))) ->  | AN194: =IF(AK179<1,"",IF(AK178<8,"",IF(W194=1,W200-Y200,IF(Y194=1,Y200-W200,"")))) ->  | AO194: =IF(AK179<1,"",IF(AK178<9,"",IF(Z194=1,Z200-AB200,IF(AB194=1,AB200-Z200,"")))) ->  | AP194: =IF(AK179<1,"",IF(AK178<10,"",IF(AC194=1,AC200-AE200,IF(AE194=1,AE200-AC200,"")))) ->  | AQ194: =SUM(AG194:AP194) -> 6
A195: Game 1 | B195: 25 | C195: / | D195: 16 | E195: 25 | F195: =IF(AK178>1,"/","") -> / | G195: 22 | H195: 25 | I195: =IF(AK178>2,"/","") -> / | J195: 12 | K195: 25 | L195: =IF(AK178>3,"/","") -> / | M195: 20 | N195: 25 | O195: =IF(AK178>4,"/","") -> / | P195: 20 | Q195: 16 | R195: =IF(AK178>5,"/","") -> / | S195: 25 | U195: =IF(AK178>6,"/","") ->  | X195: =IF(AK178>7,"/","") ->  | AA195: =IF(AK178>8,"/","") ->  | AD195: =IF(AK178>9,"/","") ->  | AF195: =IF(AK179>1,"Team 2","") -> Team 2 | AG195: =IF(AK179<2,"",IF(AK178<1,"",IF(B194=2,B200-D200,IF(D194=2,D200-B200,"")))) -> -5 | AH195: =IF(AK179<2,"",IF(AK178<2,"",IF(E194=2,E200-G200,IF(G194=2,G200-E200,"")))) ->  | AI195: =IF(AK179<2,"",IF(AK178<3,"",IF(H194=2,H200-J200,IF(J194=2,J200-H200,"")))) -> 21 | AJ195: =IF(AK179<2,"",IF(AK178<4,"",IF(K194=2,K200-M200,IF(M194=2,M200-K200,"")))) ->  | AK195: =IF(AK179<2,"",IF(AK178<5,"",IF(N194=2,N200-P200,IF(P194=2,P200-N200,"")))) ->  | AL195: =IF(AK179<2,"",IF(AK178<6,"",IF(Q194=2,Q200-S200,IF(S194=2,S200-Q200,"")))) -> 12 | AM195: =IF(AK179<2,"",IF(AK178<7,"",IF(T194=2,T200-V200,IF(V194=2,V200-T200,"")))) ->  | AN195: =IF(AK179<2,"",IF(AK178<8,"",IF(W194=2,W200-Y200,IF(Y194=2,Y200-W200,"")))) ->  | AO195: =IF(AK179<2,"",IF(AK178<9,"",IF(Z194=2,Z200-AB200,IF(AB194=2,AB200-Z200,"")))) ->  | AP195: =IF(AK179<2,"",IF(AK178<10,"",IF(AC194=2,AC200-AE200,IF(AE194=2,AE200-AC200,"")))) ->  | AQ195: =SUM(AG195:AP195) -> 28
A196: =IF(AK177>1,"Game 2","") -> Game 2 | B196: 13 | C196: / | D196: 25 | E196: 25 | F196: =IF(AK178>1,IF(AK177>1,"/",""),"") -> / | G196: 15 | H196: 25 | I196: =IF(AK178>2,IF(AK177>1,"/",""),"") -> / | J196: 17 | K196: 24 | L196: =IF(AK178>3,IF(AK177>1,"/",""),"") -> / | M196: 26 | N196: 25 | O196: =IF(AK178>4,IF(AK177>1,"/",""),"") -> / | P196: 11 | Q196: 22 | R196: =IF(AK178>5,IF(AK177>1,"/",""),"") -> / | S196: 25 | U196: =IF(AK178>6,IF(AK177>1,"/",""),"") ->  | X196: =IF(AK178>7,IF(AK177>1,"/",""),"") ->  | AA196: =IF(AK178>8,IF(AK177>1,"/",""),"") ->  | AD196: =IF(AK178>9,IF(AK177>1,"/",""),"") ->  | AF196: =IF(AK179>2,"Team 3","") -> Team 3 | AG196: =IF(AK179<3,"",IF(AK178<1,"",IF(B194=3,B200-D200,IF(D194=3,D200-B200,"")))) -> 5 | AH196: =IF(AK179<3,"",IF(AK178<2,"",IF(E194=3,E200-G200,IF(G194=3,G200-E200,"")))) ->  | AI196: =IF(AK179<3,"",IF(AK178<3,"",IF(H194=3,H200-J200,IF(J194=3,J200-H200,"")))) ->  | AJ196: =IF(AK179<3,"",IF(AK178<4,"",IF(K194=3,K200-M200,IF(M194=3,M200-K200,"")))) -> -5 | AK196: =IF(AK179<3,"",IF(AK178<5,"",IF(N194=3,N200-P200,IF(P194=3,P200-N200,"")))) -> 19 | AL196: =IF(AK179<3,"",IF(AK178<6,"",IF(Q194=3,Q200-S200,IF(S194=3,S200-Q200,"")))) ->  | AM196: =IF(AK179<3,"",IF(AK178<7,"",IF(T194=3,T200-V200,IF(V194=3,V200-T200,"")))) ->  | AN196: =IF(AK179<3,"",IF(AK178<8,"",IF(W194=3,W200-Y200,IF(Y194=3,Y200-W200,"")))) ->  | AO196: =IF(AK179<3,"",IF(AK178<9,"",IF(Z194=3,Z200-AB200,IF(AB194=3,AB200-Z200,"")))) ->  | AP196: =IF(AK179<3,"",IF(AK178<9,"",IF(AC194=3,AC200-AE200,IF(AE194=3,AE200-AC200,"")))) ->  | AQ196: =SUM(AG196:AP196) -> 19
A197: =IF(AK177>2,"Game 3","") -> Game 3 | B197: 13 | C197: / | D197: 15 | F197: =IF(AK178>1,IF(AK177>2,"/",""),"") -> / | I197: =IF(AK178>2,IF(AK177>2,"/",""),"") -> / | K197: 16 | L197: =IF(AK178>3,IF(AK177>2,"/",""),"") -> / | M197: 14 | O197: =IF(AK178>4,IF(AK177>2,"/",""),"") -> / | R197: =IF(AK178>5,IF(AK177>2,"/",""),"") -> / | U197: =IF(AK178>6,IF(AK177>2,"/",""),"") ->  | X197: =IF(AK178>7,IF(AK177>2,"/",""),"") ->  | AA197: =IF(AK178>8,IF(AK177>2,"/",""),"") ->  | AD197: =IF(AK178>9,IF(AK177>2,"/",""),"") ->  | AF197: =IF(AK179>3,"Team 4","") -> Team 4 | AG197: =IF(AK179<4,"",IF(AK178<1,"",IF(B194=4,B200-D200,IF(D194=4,D200-B200,"")))) ->  | AH197: =IF(AK179<4,"",IF(AK178<2,"",IF(E194=4,E200-G200,IF(G194=4,G200-E200,"")))) -> -13 | AI197: =IF(AK179<4,"",IF(AK178<3,"",IF(H194=4,H200-J200,IF(J194=4,J200-H200,"")))) -> -21 | AJ197: =IF(AK179<4,"",IF(AK178<4,"",IF(K194=4,K200-M200,IF(M194=4,M200-K200,"")))) ->  | AK197: =IF(AK179<4,"",IF(AK178<5,"",IF(N194=4,N200-P200,IF(P194=4,P200-N200,"")))) -> -19 | AL197: =IF(AK179<4,"",IF(AK178<6,"",IF(Q194=4,Q200-S200,IF(S194=4,S200-Q200,"")))) ->  | AM197: =IF(AK179<4,"",IF(AK178<7,"",IF(T194=4,T200-V200,IF(V194=4,V200-T200,"")))) ->  | AN197: =IF(AK179<4,"",IF(AK178<8,"",IF(W194=4,W200-Y200,IF(Y194=4,Y200-W200,"")))) ->  | AO197: =IF(AK179<4,"",IF(AK178<9,"",IF(Z194=4,Z200-AB200,IF(AB194=4,AB200-Z200,"")))) ->  | AP197: =IF(AK179<4,"",IF(AK178<10,"",IF(AC194=4,AC200-AE200,IF(AE194=4,AE200-AC200,"")))) ->  | AQ197: =SUM(AG197:AP197) -> -53
A198: =IF(AK177>3,"Game 4","") ->  | C198: / | F198: =IF(AK178>1,IF(AK177>3,"/",""),"") ->  | I198: =IF(AK178>2,IF(AK177>3,"/",""),"") ->  | L198: =IF(AK178>3,IF(AK177>3,"/",""),"") ->  | O198: =IF(AK178>4,IF(AK177>3,"/",""),"") ->  | R198: =IF(AK178>5,IF(AK177>3,"/",""),"") ->  | U198: =IF(AK178>6,IF(AK177>3,"/",""),"") ->  | X198: =IF(AK178>7,IF(AK177>3,"/",""),"") ->  | AA198: =IF(AK178>8,IF(AK177>3,"/",""),"") ->  | AD198: =IF(AK178>9,IF(AK177>3,"/",""),"") ->  | AF198: =IF(AK179>4,"Team 5","") ->  | AG198: =IF(AK179<5,"",IF(AK178<1,"",IF(B194=5,B200-D200,IF(D194=5,D200-B200,"")))) ->  | AH198: =IF(AK179<5,"",IF(AK178<2,"",IF(E194=5,E200-G200,IF(G194=5,G200-E200,"")))) ->  | AI198: =IF(AK179<5,"",IF(AK178<3,"",IF(H194=5,H200-J200,IF(J194=5,J200-H200,"")))) ->  | AJ198: =IF(AK179<5,"",IF(AK178<4,"",IF(K194=5,K200-M200,IF(M194=5,M200-K200,"")))) ->  | AK198: =IF(AK179<5,"",IF(AK178<5,"",IF(N194=5,N200-P200,IF(P194=5,P200-N200,"")))) ->  | AL198: =IF(AK179<5,"",IF(AK178<6,"",IF(Q194=5,Q200-S200,IF(S194=5,S200-Q200,"")))) ->  | AM198: =IF(AK179<5,"",IF(AK178<7,"",IF(T194=5,T200-V200,IF(V194=5,V200-T200,"")))) ->  | AN198: =IF(AK179<5,"",IF(AK178<8,"",IF(W194=5,W200-Y200,IF(Y194=5,Y200-W200,"")))) ->  | AO198: =IF(AK179<5,"",IF(AK178<9,"",IF(Z194=5,Z200-AB200,IF(AB194=5,AB200-Z200,"")))) ->  | AP198: =IF(AK179<5,"",IF(AK178<10,"",IF(AC194=5,AC200-AE200,IF(AE194=5,AE200-AC200,"")))) ->  | AQ198: =SUM(AG198:AP198) -> 0
A199: =IF(AK177>4,"Game 5","") ->  | C199: / | F199: =IF(AK178>1,IF(AK177>4,"/",""),"") ->  | I199: =IF(AK178>2,IF(AK177>4,"/",""),"") ->  | L199: =IF(AK178>3,IF(AK177>4,"/",""),"") ->  | O199: =IF(AK178>4,IF(AK177>4,"/",""),"") ->  | R199: =IF(AK178>5,IF(AK177>4,"/",""),"") ->  | U199: =IF(AK178>6,IF(AK177>4,"/",""),"") ->  | X199: =IF(AK178>7,IF(AK177>4,"/",""),"") ->  | AA199: =IF(AK178>8,IF(AK177>4,"/",""),"") ->  | AD199: =IF(AK178>9,IF(AK177>4,"/",""),"") -> 
B200: =IF($AK177=5,SUM(B195:B199),IF($AK177=4,SUM(B195:B198),IF($AK177=3,SUM(B195:B197),IF($AK177=2,SUM(B195:B196),B195)))) -> 51 | D200: =IF($AK177=5,SUM(D195:D199),IF($AK177=4,SUM(D195:D198),IF($AK177=3,SUM(D195:D197),IF($AK177=2,SUM(D195:D196),D195)))) -> 56 | E200: =IF($AK177=5,SUM(E195:E199),IF($AK177=4,SUM(E195:E198),IF($AK177=3,SUM(E195:E197),IF($AK177=2,SUM(E195:E196),E195)))) -> 50 | G200: =IF($AK177=5,SUM(G195:G199),IF($AK177=4,SUM(G195:G198),IF($AK177=3,SUM(G195:G197),IF($AK177=2,SUM(G195:G196),G195)))) -> 37 | H200: =IF($AK177=5,SUM(H195:H199),IF($AK177=4,SUM(H195:H198),IF($AK177=3,SUM(H195:H197),IF($AK177=2,SUM(H195:H196),H195)))) -> 50 | J200: =IF($AK177=5,SUM(J195:J199),IF($AK177=4,SUM(J195:J198),IF($AK177=3,SUM(J195:J197),IF($AK177=2,SUM(J195:J196),J195)))) -> 29 | K200: =IF($AK177=5,SUM(K195:K199),IF($AK177=4,SUM(K195:K198),IF($AK177=3,SUM(K195:K197),IF($AK177=2,SUM(K195:K196),K195)))) -> 65 | M200: =IF($AK177=5,SUM(M195:M199),IF($AK177=4,SUM(M195:M198),IF($AK177=3,SUM(M195:M197),IF($AK177=2,SUM(M195:M196),M195)))) -> 60 | N200: =IF($AK177=5,SUM(N195:N199),IF($AK177=4,SUM(N195:N198),IF($AK177=3,SUM(N195:N197),IF($AK177=2,SUM(N195:N196),N195)))) -> 50 | P200: =IF($AK177=5,SUM(P195:P199),IF($AK177=4,SUM(P195:P198),IF($AK177=3,SUM(P195:P197),IF($AK177=2,SUM(P195:P196),P195)))) -> 31 | Q200: =IF($AK177=5,SUM(Q195:Q199),IF($AK177=4,SUM(Q195:Q198),IF($AK177=3,SUM(Q195:Q197),IF($AK177=2,SUM(Q195:Q196),Q195)))) -> 38 | S200: =IF($AK177=5,SUM(S195:S199),IF($AK177=4,SUM(S195:S198),IF($AK177=3,SUM(S195:S197),IF($AK177=2,SUM(S195:S196),S195)))) -> 50 | T200: =IF($AK177=5,SUM(T195:T199),IF($AK177=4,SUM(T195:T198),IF($AK177=3,SUM(T195:T197),IF($AK177=2,SUM(T195:T196),T195)))) -> 0 | V200: =IF($AK177=5,SUM(V195:V199),IF($AK177=4,SUM(V195:V198),IF($AK177=3,SUM(V195:V197),IF($AK177=2,SUM(V195:V196),V195)))) -> 0 | W200: =IF($AK177=5,SUM(W195:W199),IF($AK177=4,SUM(W195:W198),IF($AK177=3,SUM(W195:W197),IF($AK177=2,SUM(W195:W196),W195)))) -> 0 | Y200: =IF($AK177=5,SUM(Y195:Y199),IF($AK177=4,SUM(Y195:Y198),IF($AK177=3,SUM(Y195:Y197),IF($AK177=2,SUM(Y195:Y196),Y195)))) -> 0 | Z200: =IF($AK177=5,SUM(Z195:Z199),IF($AK177=4,SUM(Z195:Z198),IF($AK177=3,SUM(Z195:Z197),IF($AK177=2,SUM(Z195:Z196),Z195)))) -> 0 | AB200: =IF($AK177=5,SUM(AB195:AB199),IF($AK177=4,SUM(AB195:AB198),IF($AK177=3,SUM(AB195:AB197),IF($AK177=2,SUM(AB195:AB196),AB195)))) -> 0 | AC200: =IF($AK177=5,SUM(AC195:AC199),IF($AK177=4,SUM(AC195:AC198),IF($AK177=3,SUM(AC195:AC197),IF($AK177=2,SUM(AC195:AC196),AC195)))) -> 0 | AE200: =IF($AK177=5,SUM(AE195:AE199),IF($AK177=4,SUM(AE195:AE198),IF($AK177=3,SUM(AE195:AE197),IF($AK177=2,SUM(AE195:AE196),AE195)))) -> 0
A201: Gm1 Win | B201: =IF(AND(B195>D195,$AK178>0,ISNUMBER(B195),ISNUMBER(D195)),1,0) -> 1 | D201: =IF(AND(D195>B195,$AK178>0,ISNUMBER(B195),ISNUMBER(D195)),1,0) -> 0 | E201: =IF(AND(E195>G195,$AK178>1,ISNUMBER(E195),ISNUMBER(G195)),1,0) -> 1 | G201: =IF(AND(G195>E195,$AK178>1,ISNUMBER(E195),ISNUMBER(G195)),1,0) -> 0 | H201: =IF(AND(H195>J195,$AK178>2,ISNUMBER(H195),ISNUMBER(J195)),1,0) -> 1 | J201: =IF(AND(J195>H195,$AK178>2,ISNUMBER(H195),ISNUMBER(J195)),1,0) -> 0 | K201: =IF(AND(K195>M195,$AK178>3,ISNUMBER(K195),ISNUMBER(M195)),1,0) -> 1 | M201: =IF(AND(M195>K195,$AK178>3,ISNUMBER(K195),ISNUMBER(M195)),1,0) -> 0 | N201: =IF(AND(N195>P195,$AK178>4,ISNUMBER(N195),ISNUMBER(P195)),1,0) -> 1 | P201: =IF(AND(P195>N195,$AK178>4,ISNUMBER(N195),ISNUMBER(P195)),1,0) -> 0 | Q201: =IF(AND(Q195>S195,$AK178>5,ISNUMBER(Q195),ISNUMBER(S195)),1,0) -> 0 | S201: =IF(AND(S195>Q195,$AK178>5,ISNUMBER(Q195),ISNUMBER(S195)),1,0) -> 1 | T201: =IF(AND(T195>V195,$AK178>6,ISNUMBER(T195),ISNUMBER(V195)),1,0) -> 0 | V201: =IF(AND(V195>T195,$AK178>6,ISNUMBER(T195),ISNUMBER(V195)),1,0) -> 0 | W201: =IF(AND(W195>Y195,$AK178>7,ISNUMBER(W195),ISNUMBER(Y195)),1,0) -> 0 | Y201: =IF(AND(Y195>W195,$AK178>7,ISNUMBER(W195),ISNUMBER(Y195)),1,0) -> 0 | Z201: =IF(AND(Z195>AB195,$AK178>8,ISNUMBER(Z195),ISNUMBER(AB195)),1,0) -> 0 | AB201: =IF(AND(AB195>Z195,$AK178>8,ISNUMBER(Z195),ISNUMBER(AB195)),1,0) -> 0 | AC201: =IF(AND(AC195>AE195,$AK178>9,ISNUMBER(AC195),ISNUMBER(AE195)),1,0) -> 0 | AE201: =IF(AND(AE195>AC195,$AK178>9,ISNUMBER(AC195),ISNUMBER(AE195)),1,0) -> 0
A202: Gm2 Win | B202: =IF(AND(B196>D196,$AK178>0,$AK177>1,ISNUMBER(B196),ISNUMBER(D196)),1,0) -> 0 | D202: =IF(AND(D196>B196,$AK178>0,$AK177>1,ISNUMBER(B196),ISNUMBER(D196)),1,0) -> 1 | E202: =IF(AND(E196>G196,$AK178>1,$AK177>1,ISNUMBER(E196),ISNUMBER(G196)),1,0) -> 1 | G202: =IF(AND(G196>E196,$AK178>1,$AK177>1,ISNUMBER(E196),ISNUMBER(G196)),1,0) -> 0 | H202: =IF(AND(H196>J196,$AK178>2,$AK177>1,ISNUMBER(H196),ISNUMBER(J196)),1,0) -> 1 | J202: =IF(AND(J196>H196,$AK178>2,$AK177>1,ISNUMBER(H196),ISNUMBER(J196)),1,0) -> 0 | K202: =IF(AND(K196>M196,$AK178>3,$AK177>1,ISNUMBER(K196),ISNUMBER(M196)),1,0) -> 0 | M202: =IF(AND(M196>K196,$AK178>3,$AK177>1,ISNUMBER(K196),ISNUMBER(M196)),1,0) -> 1 | N202: =IF(AND(N196>P196,$AK178>4,$AK177>1,ISNUMBER(N196),ISNUMBER(P196)),1,0) -> 1 | P202: =IF(AND(P196>N196,$AK178>4,$AK177>1,ISNUMBER(N196),ISNUMBER(P196)),1,0) -> 0 | Q202: =IF(AND(Q196>S196,$AK178>5,$AK177>1,ISNUMBER(Q196),ISNUMBER(S196)),1,0) -> 0 | S202: =IF(AND(S196>Q196,$AK178>5,$AK177>1,ISNUMBER(Q196),ISNUMBER(S196)),1,0) -> 1 | T202: =IF(AND(T196>V196,$AK178>6,$AK177>1,ISNUMBER(T196),ISNUMBER(V196)),1,0) -> 0 | V202: =IF(AND(V196>T196,$AK178>6,$AK177>1,ISNUMBER(T196),ISNUMBER(V196)),1,0) -> 0 | W202: =IF(AND(W196>Y196,$AK178>7,$AK177>1,ISNUMBER(W196),ISNUMBER(Y196)),1,0) -> 0 | Y202: =IF(AND(Y196>W196,$AK178>7,$AK177>1,ISNUMBER(W196),ISNUMBER(Y196)),1,0) -> 0 | Z202: =IF(AND(Z196>AB196,$AK178>8,$AK177>1,ISNUMBER(Z196),ISNUMBER(AB196)),1,0) -> 0 | AB202: =IF(AND(AB196>Z196,$AK178>8,$AK177>1,ISNUMBER(Z196),ISNUMBER(AB196)),1,0) -> 0 | AC202: =IF(AND(AC196>AE196,$AK178>9,$AK177>1,ISNUMBER(AC196),ISNUMBER(AE196)),1,0) -> 0 | AE202: =IF(AND(AE196>AC196,$AK178>9,$AK177>1,ISNUMBER(AC196),ISNUMBER(AE196)),1,0) -> 0
A203: Gm3 Win | B203: =IF(AND(B197>D197,$AK178>0,$AK177>2,ISNUMBER(B197),ISNUMBER(D197)),1,0) -> 0 | D203: =IF(AND(D197>B197,$AK178>0,$AK177>2,ISNUMBER(B197),ISNUMBER(D197)),1,0) -> 1 | E203: =IF(AND(E197>G197,$AK178>1,$AK177>2,ISNUMBER(E197),ISNUMBER(G197)),1,0) -> 0 | G203: =IF(AND(G197>E197,$AK178>1,$AK177>2,ISNUMBER(E197),ISNUMBER(G197)),1,0) -> 0 | H203: =IF(AND(H197>J197,$AK178>2,$AK177>2,ISNUMBER(H197),ISNUMBER(J197)),1,0) -> 0 | J203: =IF(AND(J197>H197,$AK178>2,$AK177>2,ISNUMBER(H197),ISNUMBER(J197)),1,0) -> 0 | K203: =IF(AND(K197>M197,$AK178>3,$AK177>2,ISNUMBER(K197),ISNUMBER(M197)),1,0) -> 1 | M203: =IF(AND(M197>K197,$AK178>3,$AK177>2,ISNUMBER(K197),ISNUMBER(M197)),1,0) -> 0 | N203: =IF(AND(N197>P197,$AK178>4,$AK177>2,ISNUMBER(N197),ISNUMBER(P197)),1,0) -> 0 | P203: =IF(AND(P197>N197,$AK178>4,$AK177>2,ISNUMBER(N197),ISNUMBER(P197)),1,0) -> 0 | Q203: =IF(AND(Q197>S197,$AK178>5,$AK177>2,ISNUMBER(Q197),ISNUMBER(S197)),1,0) -> 0 | S203: =IF(AND(S197>Q197,$AK178>5,$AK177>2,ISNUMBER(Q197),ISNUMBER(S197)),1,0) -> 0 | T203: =IF(AND(T197>V197,$AK178>6,$AK177>2,ISNUMBER(T197),ISNUMBER(V197)),1,0) -> 0 | V203: =IF(AND(V197>T197,$AK178>6,$AK177>2,ISNUMBER(T197),ISNUMBER(V197)),1,0) -> 0 | W203: =IF(AND(W197>Y197,$AK178>7,$AK177>2,ISNUMBER(W197),ISNUMBER(Y197)),1,0) -> 0 | Y203: =IF(AND(Y197>W197,$AK178>7,$AK177>2,ISNUMBER(W197),ISNUMBER(Y197)),1,0) -> 0 | Z203: =IF(AND(Z197>AB197,$AK178>8,$AK177>2,ISNUMBER(Z197),ISNUMBER(AB197)),1,0) -> 0 | AB203: =IF(AND(AB197>Z197,$AK178>8,$AK177>2,ISNUMBER(Z197),ISNUMBER(AB197)),1,0) -> 0 | AC203: =IF(AND(AC197>AE197,$AK178>9,$AK177>2,ISNUMBER(AC197),ISNUMBER(AE197)),1,0) -> 0 | AE203: =IF(AND(AE197>AC197,$AK178>9,$AK177>2,ISNUMBER(AC197),ISNUMBER(AE197)),1,0) -> 0
A204: Gm4 Win | B204: =IF(AND(B198>D198,$AK178>0,$AK177>3,ISNUMBER(B198),ISNUMBER(D198)),1,0) -> 0 | D204: =IF(AND(D198>B198,$AK178>0,$AK177>3,ISNUMBER(B198),ISNUMBER(D198)),1,0) -> 0 | E204: =IF(AND(E198>G198,$AK178>1,$AK177>3,ISNUMBER(E198),ISNUMBER(G198)),1,0) -> 0 | G204: =IF(AND(G198>E198,$AK178>1,$AK177>3,ISNUMBER(E198),ISNUMBER(G198)),1,0) -> 0 | H204: =IF(AND(H198>J198,$AK178>2,$AK177>3,ISNUMBER(H198),ISNUMBER(J198)),1,0) -> 0 | J204: =IF(AND(J198>H198,$AK178>2,$AK177>3,ISNUMBER(H198),ISNUMBER(J198)),1,0) -> 0 | K204: =IF(AND(K198>M198,$AK178>3,$AK177>3,ISNUMBER(K198),ISNUMBER(M198)),1,0) -> 0 | M204: =IF(AND(M198>K198,$AK178>3,$AK177>3,ISNUMBER(K198),ISNUMBER(M198)),1,0) -> 0 | N204: =IF(AND(N198>P198,$AK178>4,$AK177>3,ISNUMBER(N198),ISNUMBER(P198)),1,0) -> 0 | P204: =IF(AND(P198>N198,$AK178>4,$AK177>3,ISNUMBER(N198),ISNUMBER(P198)),1,0) -> 0 | Q204: =IF(AND(Q198>S198,$AK178>5,$AK177>3,ISNUMBER(Q198),ISNUMBER(S198)),1,0) -> 0 | S204: =IF(AND(S198>Q198,$AK178>5,$AK177>3,ISNUMBER(Q198),ISNUMBER(S198)),1,0) -> 0 | T204: =IF(AND(T198>V198,$AK178>6,$AK177>3,ISNUMBER(T198),ISNUMBER(V198)),1,0) -> 0 | V204: =IF(AND(V198>T198,$AK178>6,$AK177>3,ISNUMBER(T198),ISNUMBER(V198)),1,0) -> 0 | W204: =IF(AND(W198>Y198,$AK178>7,$AK177>3,ISNUMBER(W198),ISNUMBER(Y198)),1,0) -> 0 | Y204: =IF(AND(Y198>W198,$AK178>7,$AK177>3,ISNUMBER(W198),ISNUMBER(Y198)),1,0) -> 0 | Z204: =IF(AND(Z198>AB198,$AK178>8,$AK177>3,ISNUMBER(Z198),ISNUMBER(AB198)),1,0) -> 0 | AB204: =IF(AND(AB198>Z198,$AK178>8,$AK177>3,ISNUMBER(Z198),ISNUMBER(AB198)),1,0) -> 0 | AC204: =IF(AND(AC198>AE198,$AK178>9,$AK177>3,ISNUMBER(AC198),ISNUMBER(AE198)),1,0) -> 0 | AE204: =IF(AND(AE198>AC198,$AK178>9,$AK177>3,ISNUMBER(AC198),ISNUMBER(AE198)),1,0) -> 0
A205: Gm5 Win | B205: =IF(AND(B199>D199,$AK178>0,$AK177>4,ISNUMBER(B199),ISNUMBER(D199)),1,0) -> 0 | D205: =IF(AND(D199>B199,$AK178>0,$AK177>4,ISNUMBER(B199),ISNUMBER(D199)),1,0) -> 0 | E205: =IF(AND(E199>G199,$AK178>1,$AK177>4,ISNUMBER(E199),ISNUMBER(G199)),1,0) -> 0 | G205: =IF(AND(G199>E199,$AK178>1,$AK177>4,ISNUMBER(E199),ISNUMBER(G199)),1,0) -> 0 | H205: =IF(AND(H199>J199,$AK178>2,$AK177>4,ISNUMBER(H199),ISNUMBER(J199)),1,0) -> 0 | J205: =IF(AND(J199>H199,$AK178>2,$AK177>4,ISNUMBER(H199),ISNUMBER(J199)),1,0) -> 0 | K205: =IF(AND(K199>M199,$AK178>3,$AK177>4,ISNUMBER(K199),ISNUMBER(M199)),1,0) -> 0 | M205: =IF(AND(M199>K199,$AK178>3,$AK177>4,ISNUMBER(K199),ISNUMBER(M199)),1,0) -> 0 | N205: =IF(AND(N199>P199,$AK178>4,$AK177>4,ISNUMBER(N199),ISNUMBER(P199)),1,0) -> 0 | P205: =IF(AND(P199>N199,$AK178>4,$AK177>4,ISNUMBER(N199),ISNUMBER(P199)),1,0) -> 0 | Q205: =IF(AND(Q199>S199,$AK178>5,$AK177>4,ISNUMBER(Q199),ISNUMBER(S199)),1,0) -> 0 | S205: =IF(AND(S199>Q199,$AK178>5,$AK177>4,ISNUMBER(Q199),ISNUMBER(S199)),1,0) -> 0 | T205: =IF(AND(T199>V199,$AK178>6,$AK177>4,ISNUMBER(T199),ISNUMBER(V199)),1,0) -> 0 | V205: =IF(AND(V199>T199,$AK178>6,$AK177>4,ISNUMBER(T199),ISNUMBER(V199)),1,0) -> 0 | W205: =IF(AND(W199>Y199,$AK178>7,$AK177>4,ISNUMBER(W199),ISNUMBER(Y199)),1,0) -> 0 | Y205: =IF(AND(Y199>W199,$AK178>7,$AK177>4,ISNUMBER(W199),ISNUMBER(Y199)),1,0) -> 0 | Z205: =IF(AND(Z199>AB199,$AK178>8,$AK177>4,ISNUMBER(Z199),ISNUMBER(AB199)),1,0) -> 0 | AB205: =IF(AND(AB199>Z199,$AK178>8,$AK177>4,ISNUMBER(Z199),ISNUMBER(AB199)),1,0) -> 0 | AC205: =IF(AND(AC199>AE199,$AK178>9,$AK177>4,ISNUMBER(AC199),ISNUMBER(AE199)),1,0) -> 0 | AE205: =IF(AND(AE199>AC199,$AK178>9,$AK177>4,ISNUMBER(AC199),ISNUMBER(AE199)),1,0) -> 0
A206: Sum Game Win/Loss | B206: =SUM(B201:B205) -> 1 | D206: =SUM(D201:D205) -> 2 | E206: =SUM(E201:E205) -> 2 | G206: =SUM(G201:G205) -> 0 | H206: =SUM(H201:H205) -> 2 | J206: =SUM(J201:J205) -> 0 | K206: =SUM(K201:K205) -> 2 | M206: =SUM(M201:M205) -> 1 | N206: =SUM(N201:N205) -> 2 | P206: =SUM(P201:P205) -> 0 | Q206: =SUM(Q201:Q205) -> 0 | S206: =SUM(S201:S205) -> 2 | T206: =SUM(T201:T205) -> 0 | V206: =SUM(V201:V205) -> 0 | W206: =SUM(W201:W205) -> 0 | Y206: =SUM(Y201:Y205) -> 0 | Z206: =SUM(Z201:Z205) -> 0 | AB206: =SUM(AB201:AB205) -> 0 | AC206: =SUM(AC201:AC205) -> 0 | AE206: =SUM(AE201:AE205) -> 0
A207: Match Won/Lost | B207: =IF(B206>D206,IF(C241=AK177,1,IF(C241=AK177-1,1,0)),0) -> 0 | C207: =B207+D207 -> 1 | D207: =IF(D206>B206,IF(C241=AK177,1,IF(C241=AK177-1,1,0)),0) -> 1 | E207: =IF(E206>G206,IF(F241=AK177,1,IF(F241=AK177-1,1,0)),0) -> 1 | F207: =E207+G207 -> 1 | G207: =IF(G206>E206,IF(F241=AK177,1,IF(F241=AK177-1,1,0)),0) -> 0 | H207: =IF(H206>J206,IF(I241=AK177,1,IF(I241=AK177-1,1,0)),0) -> 1 | I207: =H207+J207 -> 1 | J207: =IF(J206>H206,IF(I241=AK177,1,IF(I241=AK177-1,1,0)),0) -> 0 | K207: =IF(K206>M206,IF(L241=AK177,1,IF(L241=AK177-1,1,0)),0) -> 1 | L207: =K207+M207 -> 1 | M207: =IF(M206>K206,IF(L241=AK177,1,IF(L241=AK177-1,1,0)),0) -> 0 | N207: =IF(N206>P206,IF(O241=AK177,1,IF(O241=AK177-1,1,0)),0) -> 1 | O207: =N207+P207 -> 1 | P207: =IF(P206>N206,IF(O241=AK177,1,IF(O241=AK177-1,1,0)),0) -> 0 | Q207: =IF(Q206>S206,IF(R241=AK177,1,IF(R241=AK177-1,1,0)),0) -> 0 | R207: =Q207+S207 -> 1 | S207: =IF(S206>Q206,IF(R241=AK177,1,IF(R241=AK177-1,1,0)),0) -> 1 | T207: =IF(T206>V206,IF(U241=AK177,1,IF(U241=AK177-1,1,0)),0) -> 0 | U207: =T207+V207 -> 0 | V207: =IF(V206>T206,IF(U241=AK177,1,IF(U241=AK177-1,1,0)),0) -> 0 | W207: =IF(W206>Y206,IF(X241=AK177,1,IF(X241=AK177-1,1,0)),0) -> 0 | X207: =W207+Y207 -> 0 | Y207: =IF(Y206>W206,IF(X241=AK177,1,IF(X241=AK177-1,1,0)),0) -> 0 | Z207: =IF(Z206>AB206,IF(AA241=AK177,1,IF(AA241=AK177-1,1,0)),0) -> 0 | AA207: =Z207+AB207 -> 0 | AB207: =IF(AB206>Z206,IF(AA241=AK177,1,IF(AA241=AK177-1,1,0)),0) -> 0 | AC207: =IF(AC206>AE206,IF(AD241=AK177,1,IF(AD241=AK177-1,1,0)),0) -> 0 | AD207: =AC207+AE207 -> 0 | AE207: =IF(AE206>AC206,IF(AD241=AK177,1,IF(AD241=AK177-1,1,0)),0) -> 0
A209: Gm1 Pts | B209: =IF(B201=1,B195,0) -> 25 | D209: =IF(D201=1,D195,0) -> 0 | E209: 25 | G209: =IF(G201=1,G195,0) -> 0 | H209: 25 | J209: =IF(J201=1,J195,0) -> 0 | K209: 25 | M209: =IF(M201=1,M195,0) -> 0 | N209: 25 | P209: =IF(P201=1,P195,0) -> 0 | Q209: 0 | S209: =IF(S201=1,S195,0) -> 25 | T209: 0 | V209: =IF(V201=1,V195,0) -> 0 | W209: 0 | Y209: =IF(Y201=1,Y195,0) -> 0 | Z209: 0 | AB209: =IF(AB201=1,AB195,0) -> 0 | AC209: 0 | AE209: =IF(AE201=1,AE195,0) -> 0
A210: Gm2 Pts | B210: =IF(B202=1,B196,0) -> 0 | D210: 25 | E210: 25 | G210: 0 | H210: 25 | J210: 0 | K210: 0 | M210: 26 | N210: 25 | P210: 0 | Q210: 0 | S210: 25 | T210: 0 | V210: 0 | W210: 0 | Y210: 0 | Z210: 0 | AB210: 0 | AC210: 0 | AE210: =IF(AE202=1,AE196,0) -> 0
A211: Gm3 Pts | B211: =IF(B203=1,B197,0) -> 0 | D211: 15 | E211: 0 | G211: 0 | H211: 0 | J211: 0 | K211: 16 | M211: 0 | N211: 0 | P211: 0 | Q211: 0 | S211: 0 | T211: 0 | V211: 0 | W211: 0 | Y211: 0 | Z211: 0 | AB211: 0 | AC211: 0 | AE211: =IF(AE203=1,AE197,0) -> 0
A212: Gm4 Pts | B212: =IF(B204=1,B198,0) -> 0 | D212: 0 | E212: 0 | G212: 0 | H212: 0 | J212: 0 | K212: 0 | M212: 0 | N212: 0 | P212: 0 | Q212: 0 | S212: 0 | T212: 0 | V212: 0 | W212: 0 | Y212: 0 | Z212: 0 | AB212: 0 | AC212: 0 | AE212: =IF(AE204=1,AE198,0) -> 0
A213: Gm5 Pts | B213: =IF(B205=1,B199,0) -> 0 | D213: 0 | E213: 0 | G213: 0 | H213: 0 | J213: 0 | K213: 0 | M213: 0 | N213: 0 | P213: 0 | Q213: 0 | S213: 0 | T213: 0 | V213: 0 | W213: 0 | Y213: 0 | Z213: 0 | AB213: 0 | AC213: 0 | AE213: =IF(AE205=1,AE199,0) -> 0
A214: Sum Match Points | B214: =SUM(B209:D213) -> 65 | E214: =SUM(E209:G213) -> 50 | H214: =SUM(H209:J213) -> 50 | K214: =SUM(K209:M213) -> 67 | N214: =SUM(N209:P213) -> 50 | Q214: =SUM(Q209:S213) -> 50 | T214: =SUM(T209:V213) -> 0 | W214: =SUM(W209:Y213) -> 0 | Z214: =SUM(Z209:AB213) -> 0 | AC214: =SUM(AC209:AE213) -> 0
A215: Matches | AF215: Match Wins by Team | AG215: Match Losses by Team
... 124 more rows

Sheet 12-13 Pwr 16 tm Rnd 1
A1: copywrited program: May not be used or reproduced without the consent of Chip Moseley | AQ1: Version : 5.1 | AT1: Seeding | AX1: Final Ranking | AZ1: Pool Ranking Multiplier = | BA1: 32
B2: Tournament Name | J2: S O U T H E R N C L A S S I C | U2: Date | X2: March 12-13th | AT2: # | AU2: Team Name | AV2: Team Code | AW2: Initial Ranking | AX2: Pool Play | AY2: Finals | AZ2: Playoff Ranking Multiplier = | BA2: 16
B3: Site: | D3: Upward Facilities | L3: Age | P3: 2016-12-13 | U3: Division | AB3: Club | AD3: Power | AT3: 1 | AU3: C1VB 13 Power Grvl | AV3: fj3crone1pm | AW3: =VLOOKUP(AV3,Initial!G:K,5,FALSE) -> 2168.005537 | AX3: =VLOOKUP(AU3,AR$79:AS$345,2,FALSE) -> 2201.528761 | AY3: =IF(ISNA(VLOOKUP(AU3,#REF!,2,FALSE)),AX3,VLOOKUP(AU3,#REF!,2,FALSE)) -> 
H4: Gym Supervisor | N4: See Attached Sheet | U4: Supr Cell #: | AT4: 2 | AU4: Low Country 13 Open | AV4: fj3lowco1pm | AW4: =VLOOKUP(AV4,Initial!G:K,5,FALSE) -> 2126.773294 | AX4: 2151.52903 | AY4: =IF(ISNA(VLOOKUP(AU4,#REF!,2,FALSE)),AX4,VLOOKUP(AU4,#REF!,2,FALSE)) -> 
K5: Crts 1 & 2 Star Center Crts 3-4 Luke VB Ctr | AT5: 3 | AU5: Upward Stars 13 Becky | AV5: fj3upwrd2pm | AW5: ='12-13Pwr Rnd 2'!BB5 -> 2148.833704 | AX5: 2161.177082 | AY5: =IF(ISNA(VLOOKUP(AU5,#REF!,2,FALSE)),AX5,VLOOKUP(AU5,#REF!,2,FALSE)) -> 
A6: POOL: | B6: A | C6: COURT: Star Ctr | I6: 1 | K6: ="Pool "&B6&" - Round 1 - Court "&I6 -> Pool A - Round 1 - Court 1 | AT6: 4 | AU6: Vision 13 National | AV6: fj3vison1pm | AW6: =VLOOKUP(AV6,Initial!G:K,5,FALSE) -> 2221.845381 | AX6: 2188.315122 | AY6: =IF(ISNA(VLOOKUP(AU6,#REF!,2,FALSE)),AX6,VLOOKUP(AU6,#REF!,2,FALSE)) -> 
A7: Team # | B7: Team Name | L7: =IF($AK10=0,"Games Won","Matches Won") -> Matches Won | R7: =IF($AK10=0,"Games Lost","Matches Lost") -> Matches Lost | W7: Total Pool Net Points | Z7: % Total Net Points | AC7: Game Win % | AF7: Pool Finish | AG7: # | AH7: Playoff Finish | AK7: 3 | AL7: Games per Match (1-5) | AT7: 5 | AU7: Magnum 13 Mizuno | AV7: fj3magnm1pm | AW7: =VLOOKUP(AV7,Initial!G:K,5,FALSE) -> 2070.762543 | AX7: 2137.537194 | AY7: =IF(ISNA(VLOOKUP(AU7,#REF!,2,FALSE)),AX7,VLOOKUP(AU7,#REF!,2,FALSE)) -> 
A8: =IF($AK9>0,"1","") -> 1 | B8: Team Name | E8: =AU3 -> C1VB 13 Power Grvl | L8: =IF($AK10=0,AF64,AF46) -> 3 | R8: =IF($AK10=0,AG64,AG46) -> 0 | W8: =AQ24 -> 59 | Z8: =IF(AF58>0,(AQ24/AF58),0) -> 0.3933333333 | AC8: =IF(AF72=0,0,(AF64/AF72)) -> 1 | AF8: 1 | AG8: 1 | AH8: 3 | AK8: 6 | AL8: Matches (1-10) | AT8: 6 | AU8: CSRA Heat 13 Gold | AV8: fj3csrah1pm | AW8: =VLOOKUP(AV8,Initial!G:K,5,FALSE) -> 2114.218467 | AX8: 2124.977292 | AY8: =IF(ISNA(VLOOKUP(AU8,#REF!,2,FALSE)),AX8,VLOOKUP(AU8,#REF!,2,FALSE)) -> 
B9: Team Code | E9: =AV3 -> fj3crone1pm | AK9: 4 | AL9: Teams in Pool (1-5) | AT9: 7 | AU9: Fort Mill VBC 13 Purple | AV9: fj3fortm1pm | AW9: =VLOOKUP(AV9,Initial!G:K,5,FALSE) -> 2032.469395 | AX9: 1992.289461 | AY9: =IF(ISNA(VLOOKUP(AU9,#REF!,2,FALSE)),AX9,VLOOKUP(AU9,#REF!,2,FALSE)) -> 
A10: =IF($AK9>1,"2","") -> 2 | B10: Team Name | E10: =AU10 -> Upward Stars 13 BrittanyL | L10: =IF($AK10=0,AF65,AF47) -> 0 | R10: =IF($AK10=0,AG65,AG47) -> 3 | W10: =AQ25 -> -48 | Z10: =IF(AF59>0,(AQ25/AF59),0) -> -0.32 | AC10: =IF(AF73=0,0,(AF65/AF73)) -> 0 | AF10: 4 | AG10: 1 | AH10: 14 | AK10: 1 | AL10: 0-Count Games 1-Count Matches | AT10: 8 | AU10: Upward Stars 13 BrittanyL | AV10: fj3upwrd3pm | AW10: ='12-13Pwr Rnd 2'!BB10 -> 1568.691363 | AX10: 1548.799543 | AY10: =IF(ISNA(VLOOKUP(AU10,#REF!,2,FALSE)),AX10,VLOOKUP(AU10,#REF!,2,FALSE)) -> 
B11: Team Code | E11: =AV10 -> fj3upwrd3pm | AK11: 1 | AL11: Game Win % 0 = No 1 = Yes | AT11: 9 | AU11: KVA 13Vanessa | AV11: fj3david1so | AW11: ='12-13Pwr Rnd 2'!BB11 -> 2107.752264 | AX11: 2066.287987 | AY11: =IF(ISNA(VLOOKUP(AU11,#REF!,2,FALSE)),AX11,VLOOKUP(AU11,#REF!,2,FALSE)) -> 
A12: =IF($AK9>2,"3","") -> 3 | B12: Team Name | E12: =AU11 -> KVA 13Vanessa | L12: =IF($AK10=0,AF66,AF48) -> 2 | R12: =IF($AK10=0,AG66,AG48) -> 1 | W12: =AQ26 -> -12 | Z12: =IF(AF60>0,(AQ26/AF60),0) -> -0.07272727273 | AC12: =IF(AF74=0,0,(AF66/AF74)) -> 0.5714285714 | AF12: 2 | AG12: 1 | AH12: 3 | AK12: 3 | AL12: # of Matches/Games per Team | AT12: 10 | AU12: Magnum Aiken 13 Green | AV12: fj3magnm3pm | AW12: =VLOOKUP(AV12,Initial!G:K,5,FALSE) -> 2007.983742 | AX12: 2025.638757 | AY12: =IF(ISNA(VLOOKUP(AU12,#REF!,2,FALSE)),AX12,VLOOKUP(AU12,#REF!,2,FALSE)) -> 
B13: Team Code | E13: =AV11 -> fj3david1so | AT13: 11 | AU13: Magnum 13 Black | AV13: fj3magnm2pm | AW13: =VLOOKUP(AV13,Initial!G:K,5,FALSE) -> 1981.846267 | AX13: 1982.038263 | AY13: =IF(ISNA(VLOOKUP(AU13,#REF!,2,FALSE)),AX13,VLOOKUP(AU13,#REF!,2,FALSE)) -> 
A14: =IF($AK9>3,"4","") -> 4 | B14: Team Name | E14: =AU18 -> Magnum 13 Blue | L14: =IF($AK10=0,AF67,AF49) -> 1 | R14: =IF($AK10=0,AG67,AG49) -> 2 | W14: =AQ27 -> 1 | Z14: =IF(AF61>0,(AQ27/AF61),0) -> 0.006060606061 | AC14: =IF(AF75=0,0,(AF67/AF75)) -> 0.4285714286 | AF14: 3 | AG14: 1 | AH14: 13 | AT14: 12 | AU14: Chas Jrs 13 Red | AV14: fj3charl1pm | AW14: =VLOOKUP(AV14,Initial!G:K,5,FALSE) -> 1957.442417 | AX14: 1926.978658 | AY14: =IF(ISNA(VLOOKUP(AU14,#REF!,2,FALSE)),AX14,VLOOKUP(AU14,#REF!,2,FALSE)) -> 
B15: Team Code | E15: =AV18 -> fj3magnm4pm | AT15: 13 | AU15: Upward Stars 13 Emily | AV15: fj3upwrd4pm | AW15: ='12-13Pwr Rnd 2'!BB15 -> 1307.241286 | AX15: 1304.460653 | AY15: =IF(ISNA(VLOOKUP(AU15,#REF!,2,FALSE)),AX15,VLOOKUP(AU15,#REF!,2,FALSE)) -> 
A16: =IF($AK9>4,"5","") ->  | B16: Team Name | L16: =IF($AK10=0,AF68,AF50) -> 0 | R16: =IF($AK10=0,AG68,AG50) -> 0 | W16: =AQ28 -> 0 | Z16: =IF(AF62>0,(AQ28/AF62),0) -> 0 | AC16: =IF(AF76=0,0,(AF68/AF76)) -> 0 | AT16: 14 | AU16: Upward Stars 12 Candi | AV16: fj2upwrd2pm | AW16: ='12-13Pwr Rnd 2'!BB16 -> 1732.341214 | AX16: 1709.047016 | AY16: =IF(ISNA(VLOOKUP(AU16,#REF!,2,FALSE)),AX16,VLOOKUP(AU16,#REF!,2,FALSE)) -> 
B17: Team Code | AT17: 15 | AU17: Upward Stars 13 Abbey | AV17: fj3upwrd5pm | AW17: ='12-13Pwr Rnd 2'!BB17 -> 1276.898691 | AX17: 1274.667874 | AY17: =IF(ISNA(VLOOKUP(AU17,#REF!,2,FALSE)),AX17,VLOOKUP(AU17,#REF!,2,FALSE)) -> 
B18: POOL PLAY FORMAT: Best of 3 (25-25-15) Start at 4 - 2 Pt cap. Warmups 2-4-4 | AT18: 16 | AU18: Magnum 13 Blue | AV18: fj3magnm4pm | AW18: =VLOOKUP(AV18,Initial!G:K,5,FALSE) -> 1767.603021 | AX18: 1795.435894 | AY18: =IF(ISNA(VLOOKUP(AU18,#REF!,2,FALSE)),AX18,VLOOKUP(AU18,#REF!,2,FALSE)) -> 
A19: Sch Start | B19: 08:30:00 | E19: 09:30:00 | H19: 10:30:00 | K19: 11:30:00 | N19: 12:30:00 | Q19: 01:30:00 | AF19: Note: The Pool Finish Summary at the bottom of the sheet will fill in AUTOMATICALLY once the POOL FINISH column (at left) is filled in. | AT19: Warning -- Do not use CUT/PASTE to move teams in table. Only use COPY/PASTE or seeded cells will be corrupted.
A20: Actual Start | B20: 08:30:00
A21: End Time | B21: 09:15:00
B22: Match 1 | E22: =IF(AK8>1,"Match 2","") -> Match 2 | H22: =IF(AK8>2,"Match 3","") -> Match 3 | K22: =IF(AK8>3,"Match 4","") -> Match 4 | N22: =IF(AK8>4,"Match 5","") -> Match 5 | Q22: =IF(AK8>5,"Match 6","") -> Match 6 | T22: =IF(AK8>6,"Match 7","") ->  | W22: =IF(AK8>7,"Match 8","") ->  | Z22: =IF(AK8>8,"Match 9","") ->  | AC22: =IF(AK8>9,"Match 10","") -> 
B23: 1 refs | E23: 2 refs | H23: 3 refs | K23: 4 refs | N23: 2 refs | Q23: 3 refs | AF23: Net Points | AG23: 1 | AH23: 2 | AI23: 3 | AJ23: 4 | AK23: 5 | AL23: 6 | AM23: 7 | AN23: 8 | AO23: 9 | AP23: 10 | AQ23: Total
B24: 2 | C24: v | D24: 3 | E24: 1 | F24: =IF(AK8>1,"v","") -> v | G24: 4 | H24: 2 | I24: =IF(AK8>2,"v","") -> v | J24: 4 | K24: 1 | L24: =IF(AK8>3,"v","") -> v | M24: 3 | N24: 3 | O24: =IF(AK8>4,"v","") -> v | P24: 4 | Q24: 1 | R24: =IF(AK8>5,"v","") -> v | S24: 2 | U24: =IF(AK8>6,"v","") ->  | X24: =IF(AK8>7,"v","") ->  | AA24: =IF(AK8>8,"v","") ->  | AD24: =IF(AK8>9,"v","") ->  | AF24: =IF(AK9>0,"Team 1","") -> Team 1 | AG24: =IF(AK9<1,"",IF(AK8<1,"",IF(B24=1,B30-D30,IF(D24=1,D30-B30,"")))) ->  | AH24: =IF(AK9<1,"",IF(AK8<2,"",IF(E24=1,E30-G30,IF(G24=1,G30-E30,"")))) -> 11 | AI24: =IF(AK9<1,"",IF(AK8<3,"",IF(H24=1,H30-J30,IF(J24=1,J30-H30,"")))) ->  | AJ24: =IF(AK9<1,"",IF(AK8<4,"",IF(K24=1,K30-M30,IF(M24=1,M30-K30,"")))) -> 31 | AK24: =IF(AK9<1,"",IF(AK8<5,"",IF(N24=1,N30-P30,IF(P24=1,P30-N30,"")))) ->  | AL24: =IF(AK9<1,"",IF(AK8<6,"",IF(Q24=1,Q30-S30,IF(S24=1,S30-Q30,"")))) -> 17 | AM24: =IF(AK9<1,"",IF(AK8<7,"",IF(T24=1,T30-V30,IF(V24=1,V30-T30,"")))) ->  | AN24: =IF(AK9<1,"",IF(AK8<8,"",IF(W24=1,W30-Y30,IF(Y24=1,Y30-W30,"")))) ->  | AO24: =IF(AK9<1,"",IF(AK8<9,"",IF(Z24=1,Z30-AB30,IF(AB24=1,AB30-Z30,"")))) ->  | AP24: =IF(AK9<1,"",IF(AK8<10,"",IF(AC24=1,AC30-AE30,IF(AE24=1,AE30-AC30,"")))) ->  | AQ24: =SUM(AG24:AP24) -> 59
A25: Game 1 | B25: 19 | C25: / | D25: 25 | E25: 25 | F25: =IF(AK8>1,"/","") -> / | G25: 16 | H25: 17 | I25: =IF(AK8>2,"/","") -> / | J25: 25 | K25: 25 | L25: =IF(AK8>3,"/","") -> / | M25: 8 | N25: 25 | O25: =IF(AK8>4,"/","") -> / | P25: 20 | Q25: 25 | R25: =IF(AK8>5,"/","") -> / | S25: 20 | U25: =IF(AK8>6,"/","") ->  | X25: =IF(AK8>7,"/","") ->  | AA25: =IF(AK8>8,"/","") ->  | AD25: =IF(AK8>9,"/","") ->  | AF25: =IF(AK9>1,"Team 2","") -> Team 2 | AG25: =IF(AK9<2,"",IF(AK8<1,"",IF(B24=2,B30-D30,IF(D24=2,D30-B30,"")))) -> -15 | AH25: =IF(AK9<2,"",IF(AK8<2,"",IF(E24=2,E30-G30,IF(G24=2,G30-E30,"")))) ->  | AI25: =IF(AK9<2,"",IF(AK8<3,"",IF(H24=2,H30-J30,IF(J24=2,J30-H30,"")))) -> -16 | AJ25: =IF(AK9<2,"",IF(AK8<4,"",IF(K24=2,K30-M30,IF(M24=2,M30-K30,"")))) ->  | AK25: =IF(AK9<2,"",IF(AK8<5,"",IF(N24=2,N30-P30,IF(P24=2,P30-N30,"")))) ->  | AL25: =IF(AK9<2,"",IF(AK8<6,"",IF(Q24=2,Q30-S30,IF(S24=2,S30-Q30,"")))) -> -17 | AM25: =IF(AK9<2,"",IF(AK8<7,"",IF(T24=2,T30-V30,IF(V24=2,V30-T30,"")))) ->  | AN25: =IF(AK9<2,"",IF(AK8<8,"",IF(W24=2,W30-Y30,IF(Y24=2,Y30-W30,"")))) ->  | AO25: =IF(AK9<2,"",IF(AK8<9,"",IF(Z24=2,Z30-AB30,IF(AB24=2,AB30-Z30,"")))) ->  | AP25: =IF(AK9<2,"",IF(AK8<10,"",IF(AC24=2,AC30-AE30,IF(AE24=2,AE30-AC30,"")))) ->  | AQ25: =SUM(AG25:AP25) -> -48
A26: =IF(AK7>1,"Game 2","") -> Game 2 | B26: 16 | C26: / | D26: 25 | E26: 25 | F26: =IF(AK8>1,IF(AK7>1,"/",""),"") -> / | G26: 23 | H26: 17 | I26: =IF(AK8>2,IF(AK7>1,"/",""),"") -> / | J26: 25 | K26: 25 | L26: =IF(AK8>3,IF(AK7>1,"/",""),"") -> / | M26: 11 | N26: 22 | O26: =IF(AK8>4,IF(AK7>1,"/",""),"") -> / | P26: 25 | Q26: 25 | R26: =IF(AK8>5,IF(AK7>1,"/",""),"") -> / | S26: 13 | U26: =IF(AK8>6,IF(AK7>1,"/",""),"") ->  | X26: =IF(AK8>7,IF(AK7>1,"/",""),"") ->  | AA26: =IF(AK8>8,IF(AK7>1,"/",""),"") ->  | AD26: =IF(AK8>9,IF(AK7>1,"/",""),"") ->  | AF26: =IF(AK9>2,"Team 3","") -> Team 3 | AG26: =IF(AK9<3,"",IF(AK8<1,"",IF(B24=3,B30-D30,IF(D24=3,D30-B30,"")))) -> 15 | AH26: =IF(AK9<3,"",IF(AK8<2,"",IF(E24=3,E30-G30,IF(G24=3,G30-E30,"")))) ->  | AI26: =IF(AK9<3,"",IF(AK8<3,"",IF(H24=3,H30-J30,IF(J24=3,J30-H30,"")))) ->  | AJ26: =IF(AK9<3,"",IF(AK8<4,"",IF(K24=3,K30-M30,IF(M24=3,M30-K30,"")))) -> -31 | AK26: =IF(AK9<3,"",IF(AK8<5,"",IF(N24=3,N30-P30,IF(P24=3,P30-N30,"")))) -> 4 | AL26: =IF(AK9<3,"",IF(AK8<6,"",IF(Q24=3,Q30-S30,IF(S24=3,S30-Q30,"")))) ->  | AM26: =IF(AK9<3,"",IF(AK8<7,"",IF(T24=3,T30-V30,IF(V24=3,V30-T30,"")))) ->  | AN26: =IF(AK9<3,"",IF(AK8<8,"",IF(W24=3,W30-Y30,IF(Y24=3,Y30-W30,"")))) ->  | AO26: =IF(AK9<3,"",IF(AK8<9,"",IF(Z24=3,Z30-AB30,IF(AB24=3,AB30-Z30,"")))) ->  | AP26: =IF(AK9<3,"",IF(AK8<9,"",IF(AC24=3,AC30-AE30,IF(AE24=3,AE30-AC30,"")))) ->  | AQ26: =SUM(AG26:AP26) -> -12
A27: =IF(AK7>2,"Game 3","") -> Game 3 | C27: / | F27: =IF(AK8>1,IF(AK7>2,"/",""),"") -> / | I27: =IF(AK8>2,IF(AK7>2,"/",""),"") -> / | L27: =IF(AK8>3,IF(AK7>2,"/",""),"") -> / | N27: 15 | O27: =IF(AK8>4,IF(AK7>2,"/",""),"") -> / | P27: 13 | R27: =IF(AK8>5,IF(AK7>2,"/",""),"") -> / | U27: =IF(AK8>6,IF(AK7>2,"/",""),"") ->  | X27: =IF(AK8>7,IF(AK7>2,"/",""),"") ->  | AA27: =IF(AK8>8,IF(AK7>2,"/",""),"") ->  | AD27: =IF(AK8>9,IF(AK7>2,"/",""),"") ->  | AF27: =IF(AK9>3,"Team 4","") -> Team 4 | AG27: =IF(AK9<4,"",IF(AK8<1,"",IF(B24=4,B30-D30,IF(D24=4,D30-B30,"")))) ->  | AH27: =IF(AK9<4,"",IF(AK8<2,"",IF(E24=4,E30-G30,IF(G24=4,G30-E30,"")))) -> -11 | AI27: =IF(AK9<4,"",IF(AK8<3,"",IF(H24=4,H30-J30,IF(J24=4,J30-H30,"")))) -> 16 | AJ27: =IF(AK9<4,"",IF(AK8<4,"",IF(K24=4,K30-M30,IF(M24=4,M30-K30,"")))) ->  | AK27: =IF(AK9<4,"",IF(AK8<5,"",IF(N24=4,N30-P30,IF(P24=4,P30-N30,"")))) -> -4 | AL27: =IF(AK9<4,"",IF(AK8<6,"",IF(Q24=4,Q30-S30,IF(S24=4,S30-Q30,"")))) ->  | AM27: =IF(AK9<4,"",IF(AK8<7,"",IF(T24=4,T30-V30,IF(V24=4,V30-T30,"")))) ->  | AN27: =IF(AK9<4,"",IF(AK8<8,"",IF(W24=4,W30-Y30,IF(Y24=4,Y30-W30,"")))) ->  | AO27: =IF(AK9<4,"",IF(AK8<9,"",IF(Z24=4,Z30-AB30,IF(AB24=4,AB30-Z30,"")))) ->  | AP27: =IF(AK9<4,"",IF(AK8<10,"",IF(AC24=4,AC30-AE30,IF(AE24=4,AE30-AC30,"")))) ->  | AQ27: =SUM(AG27:AP27) -> 1
A28: =IF(AK7>3,"Game 4","") ->  | C28: / | F28: =IF(AK8>1,IF(AK7>3,"/",""),"") ->  | I28: =IF(AK8>2,IF(AK7>3,"/",""),"") ->  | L28: =IF(AK8>3,IF(AK7>3,"/",""),"") ->  | O28: =IF(AK8>4,IF(AK7>3,"/",""),"") ->  | R28: =IF(AK8>5,IF(AK7>3,"/",""),"") ->  | U28: =IF(AK8>6,IF(AK7>3,"/",""),"") ->  | X28: =IF(AK8>7,IF(AK7>3,"/",""),"") ->  | AA28: =IF(AK8>8,IF(AK7>3,"/",""),"") ->  | AD28: =IF(AK8>9,IF(AK7>3,"/",""),"") ->  | AF28: =IF(AK9>4,"Team 5","") ->  | AG28: =IF(AK9<5,"",IF(AK8<1,"",IF(B24=5,B30-D30,IF(D24=5,D30-B30,"")))) ->  | AH28: =IF(AK9<5,"",IF(AK8<2,"",IF(E24=5,E30-G30,IF(G24=5,G30-E30,"")))) ->  | AI28: =IF(AK9<5,"",IF(AK8<3,"",IF(H24=5,H30-J30,IF(J24=5,J30-H30,"")))) ->  | AJ28: =IF(AK9<5,"",IF(AK8<4,"",IF(K24=5,K30-M30,IF(M24=5,M30-K30,"")))) ->  | AK28: =IF(AK9<5,"",IF(AK8<5,"",IF(N24=5,N30-P30,IF(P24=5,P30-N30,"")))) ->  | AL28: =IF(AK9<5,"",IF(AK8<6,"",IF(Q24=5,Q30-S30,IF(S24=5,S30-Q30,"")))) ->  | AM28: =IF(AK9<5,"",IF(AK8<7,"",IF(T24=5,T30-V30,IF(V24=5,V30-T30,"")))) ->  | AN28: =IF(AK9<5,"",IF(AK8<8,"",IF(W24=5,W30-Y30,IF(Y24=5,Y30-W30,"")))) ->  | AO28: =IF(AK9<5,"",IF(AK8<9,"",IF(Z24=5,Z30-AB30,IF(AB24=5,AB30-Z30,"")))) ->  | AP28: =IF(AK9<5,"",IF(AK8<10,"",IF(AC24=5,AC30-AE30,IF(AE24=5,AE30-AC30,"")))) ->  | AQ28: =SUM(AG28:AP28) -> 0
A29: =IF(AK7>4,"Game 5","") ->  | C29: / | F29: =IF(AK8>1,IF(AK7>4,"/",""),"") ->  | I29: =IF(AK8>2,IF(AK7>4,"/",""),"") ->  | L29: =IF(AK8>3,IF(AK7>4,"/",""),"") ->  | O29: =IF(AK8>4,IF(AK7>4,"/",""),"") ->  | R29: =IF(AK8>5,IF(AK7>4,"/",""),"") ->  | U29: =IF(AK8>6,IF(AK7>4,"/",""),"") ->  | X29: =IF(AK8>7,IF(AK7>4,"/",""),"") ->  | AA29: =IF(AK8>8,IF(AK7>4,"/",""),"") ->  | AD29: =IF(AK8>9,IF(AK7>4,"/",""),"") -> 
B30: =IF($AK7=5,SUM(B25:B29),IF($AK7=4,SUM(B25:B28),IF($AK7=3,SUM(B25:B27),IF($AK7=2,SUM(B25:B26),B25)))) -> 35 | D30: =IF($AK7=5,SUM(D25:D29),IF($AK7=4,SUM(D25:D28),IF($AK7=3,SUM(D25:D27),IF($AK7=2,SUM(D25:D26),D25)))) -> 50 | E30: =IF($AK7=5,SUM(E25:E29),IF($AK7=4,SUM(E25:E28),IF($AK7=3,SUM(E25:E27),IF($AK7=2,SUM(E25:E26),E25)))) -> 50 | G30: =IF($AK7=5,SUM(G25:G29),IF($AK7=4,SUM(G25:G28),IF($AK7=3,SUM(G25:G27),IF($AK7=2,SUM(G25:G26),G25)))) -> 39 | H30: =IF($AK7=5,SUM(H25:H29),IF($AK7=4,SUM(H25:H28),IF($AK7=3,SUM(H25:H27),IF($AK7=2,SUM(H25:H26),H25)))) -> 34 | J30: =IF($AK7=5,SUM(J25:J29),IF($AK7=4,SUM(J25:J28),IF($AK7=3,SUM(J25:J27),IF($AK7=2,SUM(J25:J26),J25)))) -> 50 | K30: =IF($AK7=5,SUM(K25:K29),IF($AK7=4,SUM(K25:K28),IF($AK7=3,SUM(K25:K27),IF($AK7=2,SUM(K25:K26),K25)))) -> 50 | M30: =IF($AK7=5,SUM(M25:M29),IF($AK7=4,SUM(M25:M28),IF($AK7=3,SUM(M25:M27),IF($AK7=2,SUM(M25:M26),M25)))) -> 19 | N30: =IF($AK7=5,SUM(N25:N29),IF($AK7=4,SUM(N25:N28),IF($AK7=3,SUM(N25:N27),IF($AK7=2,SUM(N25:N26),N25)))) -> 62 | P30: =IF($AK7=5,SUM(P25:P29),IF($AK7=4,SUM(P25:P28),IF($AK7=3,SUM(P25:P27),IF($AK7=2,SUM(P25:P26),P25)))) -> 58 | Q30: =IF($AK7=5,SUM(Q25:Q29),IF($AK7=4,SUM(Q25:Q28),IF($AK7=3,SUM(Q25:Q27),IF($AK7=2,SUM(Q25:Q26),Q25)))) -> 50 | S30: =IF($AK7=5,SUM(S25:S29),IF($AK7=4,SUM(S25:S28),IF($AK7=3,SUM(S25:S27),IF($AK7=2,SUM(S25:S26),S25)))) -> 33 | T30: =IF($AK7=5,SUM(T25:T29),IF($AK7=4,SUM(T25:T28),IF($AK7=3,SUM(T25:T27),IF($AK7=2,SUM(T25:T26),T25)))) -> 0 | V30: =IF($AK7=5,SUM(V25:V29),IF($AK7=4,SUM(V25:V28),IF($AK7=3,SUM(V25:V27),IF($AK7=2,SUM(V25:V26),V25)))) -> 0 | W30: =IF($AK7=5,SUM(W25:W29),IF($AK7=4,SUM(W25:W28),IF($AK7=3,SUM(W25:W27),IF($AK7=2,SUM(W25:W26),W25)))) -> 0 | Y30: =IF($AK7=5,SUM(Y25:Y29),IF($AK7=4,SUM(Y25:Y28),IF($AK7=3,SUM(Y25:Y27),IF($AK7=2,SUM(Y25:Y26),Y25)))) -> 0 | Z30: =IF($AK7=5,SUM(Z25:Z29),IF($AK7=4,SUM(Z25:Z28),IF($AK7=3,SUM(Z25:Z27),IF($AK7=2,SUM(Z25:Z26),Z25)))) -> 0 | AB30: =IF($AK7=5,SUM(AB25:AB29),IF($AK7=4,SUM(AB25:AB28),IF($AK7=3,SUM(AB25:AB27),IF($AK7=2,SUM(AB25:AB26),AB25)))) -> 0 | AC30: =IF($AK7=5,SUM(AC25:AC29),IF($AK7=4,SUM(AC25:AC28),IF($AK7=3,SUM(AC25:AC27),IF($AK7=2,SUM(AC25:AC26),AC25)))) -> 0 | AE30: =IF($AK7=5,SUM(AE25:AE29),IF($AK7=4,SUM(AE25:AE28),IF($AK7=3,SUM(AE25:AE27),IF($AK7=2,SUM(AE25:AE26),AE25)))) -> 0
A31: Gm1 Win | B31: =IF(AND(B25>D25,$AK8>0,ISNUMBER(B25),ISNUMBER(D25)),1,0) -> 0 | D31: =IF(AND(D25>B25,$AK8>0,ISNUMBER(B25),ISNUMBER(D25)),1,0) -> 1 | E31: =IF(AND(E25>G25,$AK8>1,ISNUMBER(E25),ISNUMBER(G25)),1,0) -> 1 | G31: =IF(AND(G25>E25,$AK8>1,ISNUMBER(E25),ISNUMBER(G25)),1,0) -> 0 | H31: =IF(AND(H25>J25,$AK8>2,ISNUMBER(H25),ISNUMBER(J25)),1,0) -> 0 | J31: =IF(AND(J25>H25,$AK8>2,ISNUMBER(H25),ISNUMBER(J25)),1,0) -> 1 | K31: =IF(AND(K25>M25,$AK8>3,ISNUMBER(K25),ISNUMBER(M25)),1,0) -> 1 | M31: =IF(AND(M25>K25,$AK8>3,ISNUMBER(K25),ISNUMBER(M25)),1,0) -> 0 | N31: =IF(AND(N25>P25,$AK8>4,ISNUMBER(N25),ISNUMBER(P25)),1,0) -> 1 | P31: =IF(AND(P25>N25,$AK8>4,ISNUMBER(N25),ISNUMBER(P25)),1,0) -> 0 | Q31: =IF(AND(Q25>S25,$AK8>5,ISNUMBER(Q25),ISNUMBER(S25)),1,0) -> 1 | S31: =IF(AND(S25>Q25,$AK8>5,ISNUMBER(Q25),ISNUMBER(S25)),1,0) -> 0 | T31: =IF(AND(T25>V25,$AK8>6,ISNUMBER(T25),ISNUMBER(V25)),1,0) -> 0 | V31: =IF(AND(V25>T25,$AK8>6,ISNUMBER(T25),ISNUMBER(V25)),1,0) -> 0 | W31: =IF(AND(W25>Y25,$AK8>7,ISNUMBER(W25),ISNUMBER(Y25)),1,0) -> 0 | Y31: =IF(AND(Y25>W25,$AK8>7,ISNUMBER(W25),ISNUMBER(Y25)),1,0) -> 0 | Z31: =IF(AND(Z25>AB25,$AK8>8,ISNUMBER(Z25),ISNUMBER(AB25)),1,0) -> 0 | AB31: =IF(AND(AB25>Z25,$AK8>8,ISNUMBER(Z25),ISNUMBER(AB25)),1,0) -> 0 | AC31: =IF(AND(AC25>AE25,$AK8>9,ISNUMBER(AC25),ISNUMBER(AE25)),1,0) -> 0 | AE31: =IF(AND(AE25>AC25,$AK8>9,ISNUMBER(AC25),ISNUMBER(AE25)),1,0) -> 0
A32: Gm2 Win | B32: =IF(AND(B26>D26,$AK8>0,$AK7>1,ISNUMBER(B26),ISNUMBER(D26)),1,0) -> 0 | D32: =IF(AND(D26>B26,$AK8>0,$AK7>1,ISNUMBER(B26),ISNUMBER(D26)),1,0) -> 1 | E32: =IF(AND(E26>G26,$AK8>1,$AK7>1,ISNUMBER(E26),ISNUMBER(G26)),1,0) -> 1 | G32: =IF(AND(G26>E26,$AK8>1,$AK7>1,ISNUMBER(E26),ISNUMBER(G26)),1,0) -> 0 | H32: =IF(AND(H26>J26,$AK8>2,$AK7>1,ISNUMBER(H26),ISNUMBER(J26)),1,0) -> 0 | J32: =IF(AND(J26>H26,$AK8>2,$AK7>1,ISNUMBER(H26),ISNUMBER(J26)),1,0) -> 1 | K32: =IF(AND(K26>M26,$AK8>3,$AK7>1,ISNUMBER(K26),ISNUMBER(M26)),1,0) -> 1 | M32: =IF(AND(M26>K26,$AK8>3,$AK7>1,ISNUMBER(K26),ISNUMBER(M26)),1,0) -> 0 | N32: =IF(AND(N26>P26,$AK8>4,$AK7>1,ISNUMBER(N26),ISNUMBER(P26)),1,0) -> 0 | P32: =IF(AND(P26>N26,$AK8>4,$AK7>1,ISNUMBER(N26),ISNUMBER(P26)),1,0) -> 1 | Q32: =IF(AND(Q26>S26,$AK8>5,$AK7>1,ISNUMBER(Q26),ISNUMBER(S26)),1,0) -> 1 | S32: =IF(AND(S26>Q26,$AK8>5,$AK7>1,ISNUMBER(Q26),ISNUMBER(S26)),1,0) -> 0 | T32: =IF(AND(T26>V26,$AK8>6,$AK7>1,ISNUMBER(T26),ISNUMBER(V26)),1,0) -> 0 | V32: =IF(AND(V26>T26,$AK8>6,$AK7>1,ISNUMBER(T26),ISNUMBER(V26)),1,0) -> 0 | W32: =IF(AND(W26>Y26,$AK8>7,$AK7>1,ISNUMBER(W26),ISNUMBER(Y26)),1,0) -> 0 | Y32: =IF(AND(Y26>W26,$AK8>7,$AK7>1,ISNUMBER(W26),ISNUMBER(Y26)),1,0) -> 0 | Z32: =IF(AND(Z26>AB26,$AK8>8,$AK7>1,ISNUMBER(Z26),ISNUMBER(AB26)),1,0) -> 0 | AB32: =IF(AND(AB26>Z26,$AK8>8,$AK7>1,ISNUMBER(Z26),ISNUMBER(AB26)),1,0) -> 0 | AC32: =IF(AND(AC26>AE26,$AK8>9,$AK7>1,ISNUMBER(AC26),ISNUMBER(AE26)),1,0) -> 0 | AE32: =IF(AND(AE26>AC26,$AK8>9,$AK7>1,ISNUMBER(AC26),ISNUMBER(AE26)),1,0) -> 0
A33: Gm3 Win | B33: =IF(AND(B27>D27,$AK8>0,$AK7>2,ISNUMBER(B27),ISNUMBER(D27)),1,0) -> 0 | D33: =IF(AND(D27>B27,$AK8>0,$AK7>2,ISNUMBER(B27),ISNUMBER(D27)),1,0) -> 0 | E33: =IF(AND(E27>G27,$AK8>1,$AK7>2,ISNUMBER(E27),ISNUMBER(G27)),1,0) -> 0 | G33: =IF(AND(G27>E27,$AK8>1,$AK7>2,ISNUMBER(E27),ISNUMBER(G27)),1,0) -> 0 | H33: =IF(AND(H27>J27,$AK8>2,$AK7>2,ISNUMBER(H27),ISNUMBER(J27)),1,0) -> 0 | J33: =IF(AND(J27>H27,$AK8>2,$AK7>2,ISNUMBER(H27),ISNUMBER(J27)),1,0) -> 0 | K33: =IF(AND(K27>M27,$AK8>3,$AK7>2,ISNUMBER(K27),ISNUMBER(M27)),1,0) -> 0 | M33: =IF(AND(M27>K27,$AK8>3,$AK7>2,ISNUMBER(K27),ISNUMBER(M27)),1,0) -> 0 | N33: =IF(AND(N27>P27,$AK8>4,$AK7>2,ISNUMBER(N27),ISNUMBER(P27)),1,0) -> 1 | P33: =IF(AND(P27>N27,$AK8>4,$AK7>2,ISNUMBER(N27),ISNUMBER(P27)),1,0) -> 0 | Q33: =IF(AND(Q27>S27,$AK8>5,$AK7>2,ISNUMBER(Q27),ISNUMBER(S27)),1,0) -> 0 | S33: =IF(AND(S27>Q27,$AK8>5,$AK7>2,ISNUMBER(Q27),ISNUMBER(S27)),1,0) -> 0 | T33: =IF(AND(T27>V27,$AK8>6,$AK7>2,ISNUMBER(T27),ISNUMBER(V27)),1,0) -> 0 | V33: =IF(AND(V27>T27,$AK8>6,$AK7>2,ISNUMBER(T27),ISNUMBER(V27)),1,0) -> 0 | W33: =IF(AND(W27>Y27,$AK8>7,$AK7>2,ISNUMBER(W27),ISNUMBER(Y27)),1,0) -> 0 | Y33: =IF(AND(Y27>W27,$AK8>7,$AK7>2,ISNUMBER(W27),ISNUMBER(Y27)),1,0) -> 0 | Z33: =IF(AND(Z27>AB27,$AK8>8,$AK7>2,ISNUMBER(Z27),ISNUMBER(AB27)),1,0) -> 0 | AB33: =IF(AND(AB27>Z27,$AK8>8,$AK7>2,ISNUMBER(Z27),ISNUMBER(AB27)),1,0) -> 0 | AC33: =IF(AND(AC27>AE27,$AK8>9,$AK7>2,ISNUMBER(AC27),ISNUMBER(AE27)),1,0) -> 0 | AE33: =IF(AND(AE27>AC27,$AK8>9,$AK7>2,ISNUMBER(AC27),ISNUMBER(AE27)),1,0) -> 0
A34: Gm4 Win | B34: =IF(AND(B28>D28,$AK8>0,$AK7>3,ISNUMBER(B28),ISNUMBER(D28)),1,0) -> 0 | D34: =IF(AND(D28>B28,$AK8>0,$AK7>3,ISNUMBER(B28),ISNUMBER(D28)),1,0) -> 0 | E34: =IF(AND(E28>G28,$AK8>1,$AK7>3,ISNUMBER(E28),ISNUMBER(G28)),1,0) -> 0 | G34: =IF(AND(G28>E28,$AK8>1,$AK7>3,ISNUMBER(E28),ISNUMBER(G28)),1,0) -> 0 | H34: =IF(AND(H28>J28,$AK8>2,$AK7>3,ISNUMBER(H28),ISNUMBER(J28)),1,0) -> 0 | J34: =IF(AND(J28>H28,$AK8>2,$AK7>3,ISNUMBER(H28),ISNUMBER(J28)),1,0) -> 0 | K34: =IF(AND(K28>M28,$AK8>3,$AK7>3,ISNUMBER(K28),ISNUMBER(M28)),1,0) -> 0 | M34: =IF(AND(M28>K28,$AK8>3,$AK7>3,ISNUMBER(K28),ISNUMBER(M28)),1,0) -> 0 | N34: =IF(AND(N28>P28,$AK8>4,$AK7>3,ISNUMBER(N28),ISNUMBER(P28)),1,0) -> 0 | P34: =IF(AND(P28>N28,$AK8>4,$AK7>3,ISNUMBER(N28),ISNUMBER(P28)),1,0) -> 0 | Q34: =IF(AND(Q28>S28,$AK8>5,$AK7>3,ISNUMBER(Q28),ISNUMBER(S28)),1,0) -> 0 | S34: =IF(AND(S28>Q28,$AK8>5,$AK7>3,ISNUMBER(Q28),ISNUMBER(S28)),1,0) -> 0 | T34: =IF(AND(T28>V28,$AK8>6,$AK7>3,ISNUMBER(T28),ISNUMBER(V28)),1,0) -> 0 | V34: =IF(AND(V28>T28,$AK8>6,$AK7>3,ISNUMBER(T28),ISNUMBER(V28)),1,0) -> 0 | W34: =IF(AND(W28>Y28,$AK8>7,$AK7>3,ISNUMBER(W28),ISNUMBER(Y28)),1,0) -> 0 | Y34: =IF(AND(Y28>W28,$AK8>7,$AK7>3,ISNUMBER(W28),ISNUMBER(Y28)),1,0) -> 0 | Z34: =IF(AND(Z28>AB28,$AK8>8,$AK7>3,ISNUMBER(Z28),ISNUMBER(AB28)),1,0) -> 0 | AB34: =IF(AND(AB28>Z28,$AK8>8,$AK7>3,ISNUMBER(Z28),ISNUMBER(AB28)),1,0) -> 0 | AC34: =IF(AND(AC28>AE28,$AK8>9,$AK7>3,ISNUMBER(AC28),ISNUMBER(AE28)),1,0) -> 0 | AE34: =IF(AND(AE28>AC28,$AK8>9,$AK7>3,ISNUMBER(AC28),ISNUMBER(AE28)),1,0) -> 0
A35: Gm5 Win | B35: =IF(AND(B29>D29,$AK8>0,$AK7>4,ISNUMBER(B29),ISNUMBER(D29)),1,0) -> 0 | D35: =IF(AND(D29>B29,$AK8>0,$AK7>4,ISNUMBER(B29),ISNUMBER(D29)),1,0) -> 0 | E35: =IF(AND(E29>G29,$AK8>1,$AK7>4,ISNUMBER(E29),ISNUMBER(G29)),1,0) -> 0 | G35: =IF(AND(G29>E29,$AK8>1,$AK7>4,ISNUMBER(E29),ISNUMBER(G29)),1,0) -> 0 | H35: =IF(AND(H29>J29,$AK8>2,$AK7>4,ISNUMBER(H29),ISNUMBER(J29)),1,0) -> 0 | J35: =IF(AND(J29>H29,$AK8>2,$AK7>4,ISNUMBER(H29),ISNUMBER(J29)),1,0) -> 0 | K35: =IF(AND(K29>M29,$AK8>3,$AK7>4,ISNUMBER(K29),ISNUMBER(M29)),1,0) -> 0 | M35: =IF(AND(M29>K29,$AK8>3,$AK7>4,ISNUMBER(K29),ISNUMBER(M29)),1,0) -> 0 | N35: =IF(AND(N29>P29,$AK8>4,$AK7>4,ISNUMBER(N29),ISNUMBER(P29)),1,0) -> 0 | P35: =IF(AND(P29>N29,$AK8>4,$AK7>4,ISNUMBER(N29),ISNUMBER(P29)),1,0) -> 0 | Q35: =IF(AND(Q29>S29,$AK8>5,$AK7>4,ISNUMBER(Q29),ISNUMBER(S29)),1,0) -> 0 | S35: =IF(AND(S29>Q29,$AK8>5,$AK7>4,ISNUMBER(Q29),ISNUMBER(S29)),1,0) -> 0 | T35: =IF(AND(T29>V29,$AK8>6,$AK7>4,ISNUMBER(T29),ISNUMBER(V29)),1,0) -> 0 | V35: =IF(AND(V29>T29,$AK8>6,$AK7>4,ISNUMBER(T29),ISNUMBER(V29)),1,0) -> 0 | W35: =IF(AND(W29>Y29,$AK8>7,$AK7>4,ISNUMBER(W29),ISNUMBER(Y29)),1,0) -> 0 | Y35: =IF(AND(Y29>W29,$AK8>7,$AK7>4,ISNUMBER(W29),ISNUMBER(Y29)),1,0) -> 0 | Z35: =IF(AND(Z29>AB29,$AK8>8,$AK7>4,ISNUMBER(Z29),ISNUMBER(AB29)),1,0) -> 0 | AB35: =IF(AND(AB29>Z29,$AK8>8,$AK7>4,ISNUMBER(Z29),ISNUMBER(AB29)),1,0) -> 0 | AC35: =IF(AND(AC29>AE29,$AK8>9,$AK7>4,ISNUMBER(AC29),ISNUMBER(AE29)),1,0) -> 0 | AE35: =IF(AND(AE29>AC29,$AK8>9,$AK7>4,ISNUMBER(AC29),ISNUMBER(AE29)),1,0) -> 0
A36: Sum Game Win/Loss | B36: =SUM(B31:B35) -> 0 | D36: =SUM(D31:D35) -> 2 | E36: =SUM(E31:E35) -> 2 | G36: =SUM(G31:G35) -> 0 | H36: =SUM(H31:H35) -> 0 | J36: =SUM(J31:J35) -> 2 | K36: =SUM(K31:K35) -> 2 | M36: =SUM(M31:M35) -> 0 | N36: =SUM(N31:N35) -> 2 | P36: =SUM(P31:P35) -> 1 | Q36: =SUM(Q31:Q35) -> 2 | S36: =SUM(S31:S35) -> 0 | T36: =SUM(T31:T35) -> 0 | V36: =SUM(V31:V35) -> 0 | W36: =SUM(W31:W35) -> 0 | Y36: =SUM(Y31:Y35) -> 0 | Z36: =SUM(Z31:Z35) -> 0 | AB36: =SUM(AB31:AB35) -> 0 | AC36: =SUM(AC31:AC35) -> 0 | AE36: =SUM(AE31:AE35) -> 0
A37: Match Won/Lost | B37: =IF(B36>D36,IF(C71=AK7,1,IF(C71=AK7-1,1,0)),0) -> 0 | C37: =B37+D37 -> 1 | D37: =IF(D36>B36,IF(C71=AK7,1,IF(C71=AK7-1,1,0)),0) -> 1 | E37: =IF(E36>G36,IF(F71=AK7,1,IF(F71=AK7-1,1,0)),0) -> 1 | F37: =E37+G37 -> 1 | G37: =IF(G36>E36,IF(F71=AK7,1,IF(F71=AK7-1,1,0)),0) -> 0 | H37: =IF(H36>J36,IF(I71=AK7,1,IF(I71=AK7-1,1,0)),0) -> 0 | I37: =H37+J37 -> 1 | J37: =IF(J36>H36,IF(I71=AK7,1,IF(I71=AK7-1,1,0)),0) -> 1 | K37: =IF(K36>M36,IF(L71=AK7,1,IF(L71=AK7-1,1,0)),0) -> 1 | L37: =K37+M37 -> 1 | M37: =IF(M36>K36,IF(L71=AK7,1,IF(L71=AK7-1,1,0)),0) -> 0 | N37: =IF(N36>P36,IF(O71=AK7,1,IF(O71=AK7-1,1,0)),0) -> 1 | O37: =N37+P37 -> 1 | P37: =IF(P36>N36,IF(O71=AK7,1,IF(O71=AK7-1,1,0)),0) -> 0 | Q37: =IF(Q36>S36,IF(R71=AK7,1,IF(R71=AK7-1,1,0)),0) -> 1 | R37: =Q37+S37 -> 1 | S37: =IF(S36>Q36,IF(R71=AK7,1,IF(R71=AK7-1,1,0)),0) -> 0 | T37: =IF(T36>V36,IF(U71=AK7,1,IF(U71=AK7-1,1,0)),0) -> 0 | U37: =T37+V37 -> 0 | V37: =IF(V36>T36,IF(U71=AK7,1,IF(U71=AK7-1,1,0)),0) -> 0 | W37: =IF(W36>Y36,IF(X71=AK7,1,IF(X71=AK7-1,1,0)),0) -> 0 | X37: =W37+Y37 -> 0 | Y37: =IF(Y36>W36,IF(X71=AK7,1,IF(X71=AK7-1,1,0)),0) -> 0 | Z37: =IF(Z36>AB36,IF(AA71=AK7,1,IF(AA71=AK7-1,1,0)),0) -> 0 | AA37: =Z37+AB37 -> 0 | AB37: =IF(AB36>Z36,IF(AA71=AK7,1,IF(AA71=AK7-1,1,0)),0) -> 0 | AC37: =IF(AC36>AE36,IF(AD71=AK7,1,IF(AD71=AK7-1,1,0)),0) -> 0 | AD37: =AC37+AE37 -> 0 | AE37: =IF(AE36>AC36,IF(AD71=AK7,1,IF(AD71=AK7-1,1,0)),0) -> 0
A39: Gm1 Pts | B39: =IF(B31=1,B25,0) -> 0 | D39: =IF(D31=1,D25,0) -> 25 | E39: 25 | G39: =IF(G31=1,G25,0) -> 0 | H39: 0 | J39: =IF(J31=1,J25,0) -> 25 | K39: 25 | M39: =IF(M31=1,M25,0) -> 0 | N39: 25 | P39: =IF(P31=1,P25,0) -> 0 | Q39: 25 | S39: =IF(S31=1,S25,0) -> 0 | T39: 0 | V39: =IF(V31=1,V25,0) -> 0 | W39: 0 | Y39: =IF(Y31=1,Y25,0) -> 0 | Z39: 0 | AB39: =IF(AB31=1,AB25,0) -> 0 | AC39: 0 | AE39: =IF(AE31=1,AE25,0) -> 0
A40: Gm2 Pts | B40: =IF(B32=1,B26,0) -> 0 | D40: 25 | E40: 25 | G40: 0 | H40: 0 | J40: 25 | K40: 25 | M40: 0 | N40: 0 | P40: 25 | Q40: 25 | S40: 0 | T40: 0 | V40: 0 | W40: 0 | Y40: 0 | Z40: 0 | AB40: 0 | AC40: 0 | AE40: =IF(AE32=1,AE26,0) -> 0
A41: Gm3 Pts | B41: =IF(B33=1,B27,0) -> 0 | D41: 0 | E41: 0 | G41: 0 | H41: 0 | J41: 0 | K41: 0 | M41: 0 | N41: 15 | P41: 0 | Q41: 0 | S41: 0 | T41: 0 | V41: 0 | W41: 0 | Y41: 0 | Z41: 0 | AB41: 0 | AC41: 0 | AE41: =IF(AE33=1,AE27,0) -> 0
A42: Gm4 Pts | B42: =IF(B34=1,B28,0) -> 0 | D42: 0 | E42: 0 | G42: 0 | H42: 0 | J42: 0 | K42: 0 | M42: 0 | N42: 0 | P42: 0 | Q42: 0 | S42: 0 | T42: 0 | V42: 0 | W42: 0 | Y42: 0 | Z42: 0 | AB42: 0 | AC42: 0 | AE42: =IF(AE34=1,AE28,0) -> 0
A43: Gm5 Pts | B43: =IF(B35=1,B29,0) -> 0 | D43: 0 | E43: 0 | G43: 0 | H43: 0 | J43: 0 | K43: 0 | M43: 0 | N43: 0 | P43: 0 | Q43: 0 | S43: 0 | T43: 0 | V43: 0 | W43: 0 | Y43: 0 | Z43: 0 | AB43: 0 | AC43: 0 | AE43: =IF(AE35=1,AE29,0) -> 0
A44: Sum Match Points | B44: =SUM(B39:D43) -> 50 | E44: =SUM(E39:G43) -> 50 | H44: =SUM(H39:J43) -> 50 | K44: =SUM(K39:M43) -> 50 | N44: =SUM(N39:P43) -> 65 | Q44: =SUM(Q39:S43) -> 50 | T44: =SUM(T39:V43) -> 0 | W44: =SUM(W39:Y43) -> 0 | Z44: =SUM(Z39:AB43) -> 0 | AC44: =SUM(AC39:AE43) -> 0
A45: Matches | AF45: Match Wins by Team | AG45: Match Losses by Team
A46: Tm1 Wins | B46: =IF(B24=1,IF(B37=1,1,0),0) -> 0 | D46: =IF(D24=1,IF(D37=1,1,0),0) -> 0 | E46: =IF(E24=1,IF(E37=1,1,0),0) -> 1 | G46: =IF(G24=1,IF(G37=1,1,0),0) -> 0 | H46: =IF(H24=1,IF(H37=1,1,0),0) -> 0 | J46: =IF(J24=1,IF(J37=1,1,0),0) -> 0 | K46: =IF(K24=1,IF(K37=1,1,0),0) -> 1 | M46: =IF(M24=1,IF(M37=1,1,0),0) -> 0 | N46: =IF(N24=1,IF(N37=1,1,0),0) -> 0 | P46: =IF(P24=1,IF(P37=1,1,0),0) -> 0 | Q46: =IF(Q24=1,IF(Q37=1,1,0),0) -> 1 | S46: =IF(S24=1,IF(S37=1,1,0),0) -> 0 | T46: =IF(T24=1,IF(T37=1,1,0),0) -> 0 | V46: =IF(V24=1,IF(V37=1,1,0),0) -> 0 | W46: =IF(W24=1,IF(W37=1,1,0),0) -> 0 | Y46: =IF(Y24=1,IF(Y37=1,1,0),0) -> 0 | Z46: =IF(Z24=1,IF(Z37=1,1,0),0) -> 0 | AB46: =IF(AB24=1,IF(AB37=1,1,0),0) -> 0 | AC46: =IF(AC24=1,IF(AC37=1,1,0),0) -> 0 | AE46: =IF(AE24=1,IF(AE37=1,1,0),0) -> 0 | AF46: =SUM(B46:AE46) -> 3 | AG46: =AF52-AF46 -> 0
A47: Tm2 Wins | B47: =IF(B24=2,IF(B37=1,1,0),0) -> 0 | D47: =IF(D24=2,IF(D37=1,1,0),0) -> 0 | E47: =IF(E24=2,IF(E37=1,1,0),0) -> 0 | G47: =IF(G24=2,IF(G37=1,1,0),0) -> 0 | H47: =IF(H24=2,IF(H37=1,1,0),0) -> 0 | J47: =IF(J24=2,IF(J37=1,1,0),0) -> 0 | K47: =IF(K24=2,IF(K37=1,1,0),0) -> 0 | M47: =IF(M24=2,IF(M37=1,1,0),0) -> 0 | N47: =IF(N24=2,IF(N37=1,1,0),0) -> 0 | P47: =IF(P24=2,IF(P37=1,1,0),0) -> 0 | Q47: =IF(Q24=2,IF(Q37=1,1,0),0) -> 0 | S47: =IF(S24=2,IF(S37=1,1,0),0) -> 0 | T47: =IF(T24=2,IF(T37=1,1,0),0) -> 0 | V47: =IF(V24=2,IF(V37=1,1,0),0) -> 0 | W47: =IF(W24=2,IF(W37=1,1,0),0) -> 0 | Y47: =IF(Y24=2,IF(Y37=1,1,0),0) -> 0 | Z47: =IF(Z24=2,IF(Z37=1,1,0),0) -> 0 | AB47: =IF(AB24=2,IF(AB37=1,1,0),0) -> 0 | AC47: =IF(AC24=2,IF(AC37=1,1,0),0) -> 0 | AE47: =IF(AE24=2,IF(AE37=1,1,0),0) -> 0 | AF47: =SUM(B47:AE47) -> 0 | AG47: =AF53-AF47 -> 3
A48: Tm3 Wins | B48: =IF(B24=3,IF(B37=1,1,0),0) -> 0 | D48: =IF(D24=3,IF(D37=1,1,0),0) -> 1 | E48: =IF(E24=3,IF(E37=1,1,0),0) -> 0 | G48: =IF(G24=3,IF(G37=1,1,0),0) -> 0 | H48: =IF(H24=3,IF(H37=1,1,0),0) -> 0 | J48: =IF(J24=3,IF(J37=1,1,0),0) -> 0 | K48: =IF(K24=3,IF(K37=1,1,0),0) -> 0 | M48: =IF(M24=3,IF(M37=1,1,0),0) -> 0 | N48: =IF(N24=3,IF(N37=1,1,0),0) -> 1 | P48: =IF(P24=3,IF(P37=1,1,0),0) -> 0 | Q48: =IF(Q24=3,IF(Q37=1,1,0),0) -> 0 | S48: =IF(S24=3,IF(S37=1,1,0),0) -> 0 | T48: =IF(T24=3,IF(T37=1,1,0),0) -> 0 | V48: =IF(V24=3,IF(V37=1,1,0),0) -> 0 | W48: =IF(W24=3,IF(W37=1,1,0),0) -> 0 | Y48: =IF(Y24=3,IF(Y37=1,1,0),0) -> 0 | Z48: =IF(Z24=3,IF(Z37=1,1,0),0) -> 0 | AB48: =IF(AB24=3,IF(AB37=1,1,0),0) -> 0 | AC48: =IF(AC24=3,IF(AC37=1,1,0),0) -> 0 | AE48: =IF(AE24=3,IF(AE37=1,1,0),0) -> 0 | AF48: =SUM(B48:AE48) -> 2 | AG48: =AF54-AF48 -> 1
A49: Tm4 Wins | B49: =IF(B24=4,IF(B37=1,1,0),0) -> 0 | D49: =IF(D24=4,IF(D37=1,1,0),0) -> 0 | E49: =IF(E24=4,IF(E37=1,1,0),0) -> 0 | G49: =IF(G24=4,IF(G37=1,1,0),0) -> 0 | H49: =IF(H24=4,IF(H37=1,1,0),0) -> 0 | J49: =IF(J24=4,IF(J37=1,1,0),0) -> 1 | K49: =IF(K24=4,IF(K37=1,1,0),0) -> 0 | M49: =IF(M24=4,IF(M37=1,1,0),0) -> 0 | N49: =IF(N24=4,IF(N37=1,1,0),0) -> 0 | P49: =IF(P24=4,IF(P37=1,1,0),0) -> 0 | Q49: =IF(Q24=4,IF(Q37=1,1,0),0) -> 0 | S49: =IF(S24=4,IF(S37=1,1,0),0) -> 0 | T49: =IF(T24=4,IF(T37=1,1,0),0) -> 0 | V49: =IF(V24=4,IF(V37=1,1,0),0) -> 0 | W49: =IF(W24=4,IF(W37=1,1,0),0) -> 0 | Y49: =IF(Y24=4,IF(Y37=1,1,0),0) -> 0 | Z49: =IF(Z24=4,IF(Z37=1,1,0),0) -> 0 | AB49: =IF(AB24=4,IF(AB37=1,1,0),0) -> 0 | AC49: =IF(AC24=4,IF(AC37=1,1,0),0) -> 0 | AE49: =IF(AE24=4,IF(AE37=1,1,0),0) -> 0 | AF49: =SUM(B49:AE49) -> 1 | AG49: =AF55-AF49 -> 2
A50: Tm5 Wins | B50: =IF(B24=5,IF(B37=1,1,0),0) -> 0 | D50: =IF(D24=5,IF(D37=1,1,0),0) -> 0 | E50: =IF(E24=5,IF(E37=1,1,0),0) -> 0 | G50: =IF(G24=5,IF(G37=1,1,0),0) -> 0 | H50: =IF(H24=5,IF(H37=1,1,0),0) -> 0 | J50: =IF(J24=5,IF(J37=1,1,0),0) -> 0 | K50: =IF(K24=5,IF(K37=1,1,0),0) -> 0 | M50: =IF(M24=5,IF(M37=1,1,0),0) -> 0 | N50: =IF(N24=5,IF(N37=1,1,0),0) -> 0 | P50: =IF(P24=5,IF(P37=1,1,0),0) -> 0 | Q50: =IF(Q24=5,IF(Q37=1,1,0),0) -> 0 | S50: =IF(S24=5,IF(S37=1,1,0),0) -> 0 | T50: =IF(T24=5,IF(T37=1,1,0),0) -> 0 | V50: =IF(V24=5,IF(V37=1,1,0),0) -> 0 | W50: =IF(W24=5,IF(W37=1,1,0),0) -> 0 | Y50: =IF(Y24=5,IF(Y37=1,1,0),0) -> 0 | Z50: =IF(Z24=5,IF(Z37=1,1,0),0) -> 0 | AB50: =IF(AB24=5,IF(AB37=1,1,0),0) -> 0 | AC50: =IF(AC24=5,IF(AC37=1,1,0),0) -> 0 | AE50: =IF(AE24=5,IF(AE37=1,1,0),0) -> 0 | AF50: =SUM(B50:AE50) -> 0 | AG50: =AF56-AF50 -> 0
AF51: Matches played by team
A52: Tm1 Play | B52: =IF(B24=1,IF(C37=1,1,0),0) -> 0 | D52: =IF(D24=1,IF(C37=1,1,0),0) -> 0 | E52: =IF(E24=1,IF(F37=1,1,0),0) -> 1 | G52: =IF(G24=1,IF(F37=1,1,0),0) -> 0 | H52: =IF(H24=1,IF(I37=1,1,0),0) -> 0 | J52: =IF(J24=1,IF(I37=1,1,0),0) -> 0 | K52: =IF(K24=1,IF(L37=1,1,0),0) -> 1 | M52: =IF(M24=1,IF(L37=1,1,0),0) -> 0 | N52: =IF(N24=1,IF(O37=1,1,0),0) -> 0 | P52: =IF(P24=1,IF(O37=1,1,0),0) -> 0 | Q52: =IF(Q24=1,IF(R37=1,1,0),0) -> 1 | S52: =IF(S24=1,IF(R37=1,1,0),0) -> 0 | T52: =IF(T24=1,IF(U37=1,1,0),0) -> 0 | V52: =IF(V24=1,IF(U37=1,1,0),0) -> 0 | W52: =IF(W24=1,IF(X37=1,1,0),0) -> 0 | Y52: =IF(Y24=1,IF(X37=1,1,0),0) -> 0 | Z52: =IF(Z24=1,IF(AA37=1,1,0),0) -> 0 | AB52: =IF(AB24=1,IF(AA37=1,1,0),0) -> 0 | AC52: =IF(AC24=1,IF(AD37=1,1,0),0) -> 0 | AE52: =IF(AE24=1,IF(AD37=1,1,0),0) -> 0 | AF52: =SUM(B52:AE52) -> 3
A53: Tm2 Play | B53: =IF(B24=2,IF(C37=1,1,0),0) -> 1 | D53: =IF(D24=2,IF(C37=1,1,0),0) -> 0 | E53: =IF(E24=2,IF(F37=1,1,0),0) -> 0 | G53: =IF(G24=2,IF(F37=1,1,0),0) -> 0 | H53: =IF(H24=2,IF(I37=1,1,0),0) -> 1 | J53: =IF(J24=2,IF(I37=1,1,0),0) -> 0 | K53: =IF(K24=2,IF(L37=1,1,0),0) -> 0 | M53: =IF(M24=2,IF(L37=1,1,0),0) -> 0 | N53: =IF(N24=2,IF(O37=1,1,0),0) -> 0 | P53: =IF(P24=2,IF(O37=1,1,0),0) -> 0 | Q53: =IF(Q24=2,IF(R37=1,1,0),0) -> 0 | S53: =IF(S24=2,IF(R37=1,1,0),0) -> 1 | T53: =IF(T24=2,IF(U37=1,1,0),0) -> 0 | V53: =IF(V24=2,IF(U37=1,1,0),0) -> 0 | W53: =IF(W24=2,IF(X37=1,1,0),0) -> 0 | Y53: =IF(Y24=2,IF(X37=1,1,0),0) -> 0 | Z53: =IF(Z24=2,IF(AA37=1,1,0),0) -> 0 | AB53: =IF(AB24=2,IF(AA37=1,1,0),0) -> 0 | AC53: =IF(AC24=2,IF(AD37=1,1,0),0) -> 0 | AE53: =IF(AE24=2,IF(AD37=1,1,0),0) -> 0 | AF53: =SUM(B53:AE53) -> 3
A54: Tm3 Play | B54: =IF(B24=3,IF(C37=1,1,0),0) -> 0 | D54: =IF(D24=3,IF(C37=1,1,0),0) -> 1 | E54: =IF(E24=3,IF(F37=1,1,0),0) -> 0 | G54: =IF(G24=3,IF(F37=1,1,0),0) -> 0 | H54: =IF(H24=3,IF(I37=1,1,0),0) -> 0 | J54: =IF(J24=3,IF(I37=1,1,0),0) -> 0 | K54: =IF(K24=3,IF(L37=1,1,0),0) -> 0 | M54: =IF(M24=3,IF(L37=1,1,0),0) -> 1 | N54: =IF(N24=3,IF(O37=1,1,0),0) -> 1 | P54: =IF(P24=3,IF(O37=1,1,0),0) -> 0 | Q54: =IF(Q24=3,IF(R37=1,1,0),0) -> 0 | S54: =IF(S24=3,IF(R37=1,1,0),0) -> 0 | T54: =IF(T24=3,IF(U37=1,1,0),0) -> 0 | V54: =IF(V24=3,IF(U37=1,1,0),0) -> 0 | W54: =IF(W24=3,IF(X37=1,1,0),0) -> 0 | Y54: =IF(Y24=3,IF(X37=1,1,0),0) -> 0 | Z54: =IF(Z24=3,IF(AA37=1,1,0),0) -> 0 | AB54: =IF(AB24=3,IF(AA37=1,1,0),0) -> 0 | AC54: =IF(AC24=3,IF(AD37=1,1,0),0) -> 0 | AE54: =IF(AE24=3,IF(AD37=1,1,0),0) -> 0 | AF54: =SUM(B54:AE54) -> 3
A55: Tm4 Play | B55: =IF(B24=4,IF(C37=1,1,0),0) -> 0 | D55: =IF(D24=4,IF(C37=1,1,0),0) -> 0 | E55: =IF(E24=4,IF(F37=1,1,0),0) -> 0 | G55: =IF(G24=4,IF(F37=1,1,0),0) -> 1 | H55: =IF(H24=4,IF(I37=1,1,0),0) -> 0 | J55: =IF(J24=4,IF(I37=1,1,0),0) -> 1 | K55: =IF(K24=4,IF(L37=1,1,0),0) -> 0 | M55: =IF(M24=4,IF(L37=1,1,0),0) -> 0 | N55: =IF(N24=4,IF(O37=1,1,0),0) -> 0 | P55: =IF(P24=4,IF(O37=1,1,0),0) -> 1 | Q55: =IF(Q24=4,IF(R37=1,1,0),0) -> 0 | S55: =IF(S24=4,IF(R37=1,1,0),0) -> 0 | T55: =IF(T24=4,IF(U37=1,1,0),0) -> 0 | V55: =IF(V24=4,IF(U37=1,1,0),0) -> 0 | W55: =IF(W24=4,IF(X37=1,1,0),0) -> 0 | Y55: =IF(Y24=4,IF(X37=1,1,0),0) -> 0 | Z55: =IF(Z24=4,IF(AA37=1,1,0),0) -> 0 | AB55: =IF(AB24=4,IF(AA37=1,1,0),0) -> 0 | AC55: =IF(AC24=4,IF(AD37=1,1,0),0) -> 0 | AE55: =IF(AE24=4,IF(AD37=1,1,0),0) -> 0 | AF55: =SUM(B55:AE55) -> 3
A56: Tm5 Play | B56: =IF(B24=5,IF(C37=1,1,0),0) -> 0 | D56: =IF(D24=5,IF(C37=1,1,0),0) -> 0 | E56: =IF(E24=5,IF(F37=1,1,0),0) -> 0 | G56: =IF(G24=5,IF(F37=1,1,0),0) -> 0 | H56: =IF(H24=5,IF(I37=1,1,0),0) -> 0 | J56: =IF(J24=5,IF(I37=1,1,0),0) -> 0 | K56: =IF(K24=5,IF(L37=1,1,0),0) -> 0 | M56: =IF(M24=5,IF(L37=1,1,0),0) -> 0 | N56: =IF(N24=5,IF(O37=1,1,0),0) -> 0 | P56: =IF(P24=5,IF(O37=1,1,0),0) -> 0 | Q56: =IF(Q24=5,IF(R37=1,1,0),0) -> 0 | S56: =IF(S24=5,IF(R37=1,1,0),0) -> 0 | T56: =IF(T24=5,IF(U37=1,1,0),0) -> 0 | V56: =IF(V24=5,IF(U37=1,1,0),0) -> 0 | W56: =IF(W24=5,IF(X37=1,1,0),0) -> 0 | Y56: =IF(Y24=5,IF(X37=1,1,0),0) -> 0 | Z56: =IF(Z24=5,IF(AA37=1,1,0),0) -> 0 | AB56: =IF(AB24=5,IF(AA37=1,1,0),0) -> 0 | AC56: =IF(AC24=5,IF(AD37=1,1,0),0) -> 0 | AE56: =IF(AE24=5,IF(AD37=1,1,0),0) -> 0 | AF56: =SUM(B56:AE56) -> 0
AF57: Total Points played by team
A58: Tm1 Play | B58: =IF(B24=1,B44,0) -> 0 | D58: =IF(D24=1,B44,0) -> 0 | E58: =IF(E24=1,E44,0) -> 50 | G58: =IF(G24=1,E44,0) -> 0 | H58: =IF(H24=1,H44,0) -> 0 | J58: =IF(J24=1,H44,0) -> 0 | K58: =IF(K24=1,K44,0) -> 50 | M58: =IF(M24=1,K44,0) -> 0 | N58: =IF(N24=1,N44,0) -> 0 | P58: =IF(P24=1,N44,0) -> 0 | Q58: =IF(Q24=1,Q44,0) -> 50 | S58: =IF(S24=1,Q44,0) -> 0 | T58: =IF(T24=1,T44,0) -> 0 | V58: =IF(V24=1,T44,0) -> 0 | W58: =IF(W24=1,W44,0) -> 0 | Y58: =IF(Y24=1,W44,0) -> 0 | Z58: =IF(Z24=1,Z44,0) -> 0 | AB58: =IF(AB24=1,Z44,0) -> 0 | AC58: =IF(AC24=1,AC44,0) -> 0 | AE58: =IF(AE24=1,AC44,0) -> 0 | AF58: =SUM(B58:AE58) -> 150
A59: Tm2 Play | B59: =IF(B24=2,B44,0) -> 50 | D59: =IF(D24=2,B44,0) -> 0 | E59: =IF(E24=2,E44,0) -> 0 | G59: =IF(G24=2,E44,0) -> 0 | H59: =IF(H24=2,H44,0) -> 50 | J59: =IF(J24=2,H44,0) -> 0 | K59: =IF(K24=2,K44,0) -> 0 | M59: =IF(M24=2,K44,0) -> 0 | N59: =IF(N24=2,N44,0) -> 0 | P59: =IF(P24=2,N44,0) -> 0 | Q59: =IF(Q24=2,Q44,0) -> 0 | S59: =IF(S24=2,Q44,0) -> 50 | T59: =IF(T24=2,T44,0) -> 0 | V59: =IF(V24=2,T44,0) -> 0 | W59: =IF(W24=2,W44,0) -> 0 | Y59: =IF(Y24=2,W44,0) -> 0 | Z59: =IF(Z24=2,Z44,0) -> 0 | AB59: =IF(AB24=2,Z44,0) -> 0 | AC59: =IF(AC24=2,AC44,0) -> 0 | AE59: =IF(AE24=2,AC44,0) -> 0 | AF59: =SUM(B59:AE59) -> 150
A60: Tm3 Play | B60: =IF(B24=3,B44,0) -> 0 | D60: =IF(D24=3,B44,0) -> 50 | E60: =IF(E24=3,E44,0) -> 0 | G60: =IF(G24=3,E44,0) -> 0 | H60: =IF(H24=3,H44,0) -> 0 | J60: =IF(J24=3,H44,0) -> 0 | K60: =IF(K24=3,K44,0) -> 0 | M60: =IF(M24=3,K44,0) -> 50 | N60: =IF(N24=3,N44,0) -> 65 | P60: =IF(P24=3,N44,0) -> 0 | Q60: =IF(Q24=3,Q44,0) -> 0 | S60: =IF(S24=3,Q44,0) -> 0 | T60: =IF(T24=3,T44,0) -> 0 | V60: =IF(V24=3,T44,0) -> 0 | W60: =IF(W24=3,W44,0) -> 0 | Y60: =IF(Y24=3,W44,0) -> 0 | Z60: =IF(Z24=3,Z44,0) -> 0 | AB60: =IF(AB24=3,Z44,0) -> 0 | AC60: =IF(AC24=3,AC44,0) -> 0 | AE60: =IF(AE24=3,AC44,0) -> 0 | AF60: =SUM(B60:AE60) -> 165
A61: Tm4 Play | B61: =IF(B24=4,B44,0) -> 0 | D61: =IF(D24=4,B44,0) -> 0 | E61: =IF(E24=4,E44,0) -> 0 | G61: =IF(G24=4,E44,0) -> 50 | H61: =IF(H24=4,H44,0) -> 0 | J61: =IF(J24=4,H44,0) -> 50 | K61: =IF(K24=4,K44,0) -> 0 | M61: =IF(M24=4,K44,0) -> 0 | N61: =IF(N24=4,N44,0) -> 0 | P61: =IF(P24=4,N44,0) -> 65 | Q61: =IF(Q24=4,Q44,0) -> 0 | S61: =IF(S24=4,Q44,0) -> 0 | T61: =IF(T24=4,T44,0) -> 0 | V61: =IF(V24=4,T44,0) -> 0 | W61: =IF(W24=4,W44,0) -> 0 | Y61: =IF(Y24=4,W44,0) -> 0 | Z61: =IF(Z24=4,Z44,0) -> 0 | AB61: =IF(AB24=4,Z44,0) -> 0 | AC61: =IF(AC24=4,AC44,0) -> 0 | AE61: =IF(AE24=4,AC44,0) -> 0 | AF61: =SUM(B61:AE61) -> 165
A62: Tm5 Play | B62: =IF(B24=5,B44,0) -> 0 | D62: =IF(D24=5,B44,0) -> 0 | E62: =IF(E24=5,E44,0) -> 0 | G62: =IF(G24=5,E44,0) -> 0 | H62: =IF(H24=5,H44,0) -> 0 | J62: =IF(J24=5,H44,0) -> 0 | K62: =IF(K24=5,K44,0) -> 0 | M62: =IF(M24=5,K44,0) -> 0 | N62: =IF(N24=5,N44,0) -> 0 | P62: =IF(P24=5,N44,0) -> 0 | Q62: =IF(Q24=5,Q44,0) -> 0 | S62: =IF(S24=5,Q44,0) -> 0 | T62: =IF(T24=5,T44,0) -> 0 | V62: =IF(V24=5,T44,0) -> 0 | W62: =IF(W24=5,W44,0) -> 0 | Y62: =IF(Y24=5,W44,0) -> 0 | Z62: =IF(Z24=5,Z44,0) -> 0 | AB62: =IF(AB24=5,Z44,0) -> 0 | AC62: =IF(AC24=5,AC44,0) -> 0 | AE62: =IF(AE24=5,AC44,0) -> 0 | AF62: =SUM(B62:AE62) -> 0
A63: Games | AF63: Game Wins by Team | AG63: Game Losses by Team
A64: Tm1 Wins | B64: =IF(B24=1,SUMIF(B31:B35,">0"),0) -> 0 | D64: =IF(D24=1,SUMIF(D31:D35,">0"),0) -> 0 | E64: =IF(E24=1,SUMIF(E31:E35,">0"),0) -> 2 | G64: =IF(G24=1,SUMIF(G31:G35,">0"),0) -> 0 | H64: =IF(H24=1,SUMIF(H31:H35,">0"),0) -> 0 | J64: =IF(J24=1,SUMIF(J31:J35,">0"),0) -> 0 | K64: =IF(K24=1,SUMIF(K31:K35,">0"),0) -> 2 | M64: =IF(M24=1,SUMIF(M31:M35,">0"),0) -> 0 | N64: =IF(N24=1,SUMIF(N31:N35,">0"),0) -> 0 | P64: =IF(P24=1,SUMIF(P31:P35,">0"),0) -> 0 | Q64: =IF(Q24=1,SUMIF(Q31:Q35,">0"),0) -> 2 | S64: =IF(S24=1,SUMIF(S31:S35,">0"),0) -> 0 | T64: =IF(T24=1,SUMIF(T31:T35,">0"),0) -> 0 | V64: =IF(V24=1,SUMIF(V31:V35,">0"),0) -> 0 | W64: =IF(W24=1,SUMIF(W31:W35,">0"),0) -> 0 | Y64: =IF(Y24=1,SUMIF(Y31:Y35,">0"),0) -> 0 | Z64: =IF(Z24=1,SUMIF(Z31:Z35,">0"),0) -> 0 | AB64: =IF(AB24=1,SUMIF(AB31:AB35,">0"),0) -> 0 | AC64: =IF(AC24=1,SUMIF(AC31:AC35,">0"),0) -> 0 | AE64: =IF(AE24=1,SUMIF(AE31:AE35,">0"),0) -> 0 | AF64: =SUM(B64:AE64) -> 6 | AG64: =AF72-AF64 -> 0
A65: Tm2 Wins | B65: =IF(B24=2,SUMIF(B31:B35,">0"),0) -> 0 | D65: =IF(D24=2,SUMIF(D31:D35,">0"),0) -> 0 | E65: =IF(E24=2,SUMIF(E31:E35,">0"),0) -> 0 | G65: =IF(G24=2,SUMIF(G31:G35,">0"),0) -> 0 | H65: =IF(H24=2,SUMIF(H31:H35,">0"),0) -> 0 | J65: =IF(J24=2,SUMIF(J31:J35,">0"),0) -> 0 | K65: =IF(K24=2,SUMIF(K31:K35,">0"),0) -> 0 | M65: =IF(M24=2,SUMIF(M31:M35,">0"),0) -> 0 | N65: =IF(N24=2,SUMIF(N31:N35,">0"),0) -> 0 | P65: =IF(P24=2,SUMIF(P31:P35,">0"),0) -> 0 | Q65: =IF(Q24=2,SUMIF(Q31:Q35,">0"),0) -> 0 | S65: =IF(S24=2,SUMIF(S31:S35,">0"),0) -> 0 | T65: =IF(T24=2,SUMIF(T31:T35,">0"),0) -> 0 | V65: =IF(V24=2,SUMIF(V31:V35,">0"),0) -> 0 | W65: =IF(W24=2,SUMIF(W31:W35,">0"),0) -> 0 | Y65: =IF(Y24=2,SUMIF(Y31:Y35,">0"),0) -> 0 | Z65: =IF(Z24=2,SUMIF(Z31:Z35,">0"),0) -> 0 | AB65: =IF(AB24=2,SUMIF(AB31:AB35,">0"),0) -> 0 | AC65: =IF(AC24=2,SUMIF(AC31:AC35,">0"),0) -> 0 | AE65: =IF(AE24=2,SUMIF(AE31:AE35,">0"),0) -> 0 | AF65: =SUM(B65:AE65) -> 0 | AG65: =AF73-AF65 -> 6
A66: Tm3 Wins | B66: =IF(B24=3,SUMIF(B31:B35,">0"),0) -> 0 | D66: =IF(D24=3,SUMIF(D31:D35,">0"),0) -> 2 | E66: =IF(E24=3,SUMIF(E31:E35,">0"),0) -> 0 | G66: =IF(G24=3,SUMIF(G31:G35,">0"),0) -> 0 | H66: =IF(H24=3,SUMIF(H31:H35,">0"),0) -> 0 | J66: =IF(J24=3,SUMIF(J31:J35,">0"),0) -> 0 | K66: =IF(K24=3,SUMIF(K31:K35,">0"),0) -> 0 | M66: =IF(M24=3,SUMIF(M31:M35,">0"),0) -> 0 | N66: =IF(N24=3,SUMIF(N31:N35,">0"),0) -> 2 | P66: =IF(P24=3,SUMIF(P31:P35,">0"),0) -> 0 | Q66: =IF(Q24=3,SUMIF(Q31:Q35,">0"),0) -> 0 | S66: =IF(S24=3,SUMIF(S31:S35,">0"),0) -> 0 | T66: =IF(T24=3,SUMIF(T31:T35,">0"),0) -> 0 | V66: =IF(V24=3,SUMIF(V31:V35,">0"),0) -> 0 | W66: =IF(W24=3,SUMIF(W31:W35,">0"),0) -> 0 | Y66: =IF(Y24=3,SUMIF(Y31:Y35,">0"),0) -> 0 | Z66: =IF(Z24=3,SUMIF(Z31:Z35,">0"),0) -> 0 | AB66: =IF(AB24=3,SUMIF(AB31:AB35,">0"),0) -> 0 | AC66: =IF(AC24=3,SUMIF(AC31:AC35,">0"),0) -> 0 | AE66: =IF(AE24=3,SUMIF(AE31:AE35,">0"),0) -> 0 | AF66: =SUM(B66:AE66) -> 4 | AG66: =AF74-AF66 -> 3
A67: Tm4 Wins | B67: =IF(B24=4,SUMIF(B31:B35,">0"),0) -> 0 | D67: =IF(D24=4,SUMIF(D31:D35,">0"),0) -> 0 | E67: =IF(E24=4,SUMIF(E31:E35,">0"),0) -> 0 | G67: =IF(G24=4,SUMIF(G31:G35,">0"),0) -> 0 | H67: =IF(H24=4,SUMIF(H31:H35,">0"),0) -> 0 | J67: =IF(J24=4,SUMIF(J31:J35,">0"),0) -> 2 | K67: =IF(K24=4,SUMIF(K31:K35,">0"),0) -> 0 | M67: =IF(M24=4,SUMIF(M31:M35,">0"),0) -> 0 | N67: =IF(N24=4,SUMIF(N31:N35,">0"),0) -> 0 | P67: =IF(P24=4,SUMIF(P31:P35,">0"),0) -> 1 | Q67: =IF(Q24=4,SUMIF(Q31:Q35,">0"),0) -> 0 | S67: =IF(S24=4,SUMIF(S31:S35,">0"),0) -> 0 | T67: =IF(T24=4,SUMIF(T31:T35,">0"),0) -> 0 | V67: =IF(V24=4,SUMIF(V31:V35,">0"),0) -> 0 | W67: =IF(W24=4,SUMIF(W31:W35,">0"),0) -> 0 | Y67: =IF(Y24=4,SUMIF(Y31:Y35,">0"),0) -> 0 | Z67: =IF(Z24=4,SUMIF(Z31:Z35,">0"),0) -> 0 | AB67: =IF(AB24=4,SUMIF(AB31:AB35,">0"),0) -> 0 | AC67: =IF(AC24=4,SUMIF(AC31:AC35,">0"),0) -> 0 | AE67: =IF(AE24=4,SUMIF(AE31:AE35,">0"),0) -> 0 | AF67: =SUM(B67:AE67) -> 3 | AG67: =AF75-AF67 -> 4
A68: Tm5 Wins | B68: =IF(B24=5,SUMIF(B31:B35,">0"),0) -> 0 | D68: =IF(D24=5,SUMIF(D31:D35,">0"),0) -> 0 | E68: =IF(E24=5,SUMIF(E31:E35,">0"),0) -> 0 | G68: =IF(G24=5,SUMIF(G31:G35,">0"),0) -> 0 | H68: =IF(H24=5,SUMIF(H31:H35,">0"),0) -> 0 | J68: =IF(J24=5,SUMIF(J31:J35,">0"),0) -> 0 | K68: =IF(K24=5,SUMIF(K31:K35,">0"),0) -> 0 | M68: =IF(M24=5,SUMIF(M31:M35,">0"),0) -> 0 | N68: =IF(N24=5,SUMIF(N31:N35,">0"),0) -> 0 | P68: =IF(P24=5,SUMIF(P31:P35,">0"),0) -> 0 | Q68: =IF(Q24=5,SUMIF(Q31:Q35,">0"),0) -> 0 | S68: =IF(S24=5,SUMIF(S31:S35,">0"),0) -> 0 | T68: =IF(T24=5,SUMIF(T31:T35,">0"),0) -> 0 | V68: =IF(V24=5,SUMIF(V31:V35,">0"),0) -> 0 | W68: =IF(W24=5,SUMIF(W31:W35,">0"),0) -> 0 | Y68: =IF(Y24=5,SUMIF(Y31:Y35,">0"),0) -> 0 | Z68: =IF(Z24=5,SUMIF(Z31:Z35,">0"),0) -> 0 | AB68: =IF(AB24=5,SUMIF(AB31:AB35,">0"),0) -> 0 | AC68: =IF(AC24=5,SUMIF(AC31:AC35,">0"),0) -> 0 | AE68: =IF(AE24=5,SUMIF(AE31:AE35,">0"),0) -> 0 | AF68: =SUM(B68:AE68) -> 0 | AG68: =AF76-AF68 -> 0
A71: Games Played this Match | C71: =SUMIF(B64:D68,">0") -> 2 | F71: =SUMIF(E64:G68,">0") -> 2 | I71: =SUMIF(H64:J68,">0") -> 2 | L71: =SUMIF(K64:M68,">0") -> 2 | O71: =SUMIF(N64:P68,">0") -> 3 | R71: =SUMIF(Q64:S68,">0") -> 2 | U71: =SUMIF(T64:V68,">0") -> 0 | X71: =SUMIF(W64:Y68,">0") -> 0 | AA71: =SUMIF(Z64:AB68,">0") -> 0 | AD71: =SUMIF(AC64:AE68,">0") -> 0 | AF71: Games played by team
A72: Tm1 Play | B72: =IF(B24=1,C71,0) -> 0 | D72: =IF(D24=1,C71,0) -> 0 | E72: =IF(E24=1,F71,0) -> 2 | G72: =IF(G24=1,F71,0) -> 0 | H72: =IF(H24=1,I71,0) -> 0 | J72: =IF(J24=1,I71,0) -> 0 | K72: =IF(K24=1,L71,0) -> 2 | M72: =IF(M24=1,L71,0) -> 0 | N72: =IF(N24=1,O71,0) -> 0 | P72: =IF(P24=1,O71,0) -> 0 | Q72: =IF(Q24=1,R71,0) -> 2 | S72: =IF(S24=1,R71,0) -> 0 | T72: =IF(T24=1,U71,0) -> 0 | V72: =IF(V24=1,U71,0) -> 0 | W72: =IF(W24=1,X71,0) -> 0 | Y72: =IF(Y24=1,X71,0) -> 0 | Z72: =IF(Z24=1,AA71,0) -> 0 | AB72: =IF(AB24=1,AA71,0) -> 0 | AC72: =IF(AC24=1,AD71,0) -> 0 | AE72: =IF(AE24=1,AD71,0) -> 0 | AF72: =SUM(B72:AE72) -> 6
A73: Tm2 Play | B73: =IF(B24=2,C71,0) -> 2 | D73: =IF(D24=2,C71,0) -> 0 | E73: =IF(E24=2,F71,0) -> 0 | G73: =IF(G24=2,F71,0) -> 0 | H73: =IF(H24=2,I71,0) -> 2 | J73: =IF(J24=2,I71,0) -> 0 | K73: =IF(K24=2,L71,0) -> 0 | M73: =IF(M24=2,L71,0) -> 0 | N73: =IF(N24=2,O71,0) -> 0 | P73: =IF(P24=2,O71,0) -> 0 | Q73: =IF(Q24=2,R71,0) -> 0 | S73: =IF(S24=2,R71,0) -> 2 | T73: =IF(T24=2,U71,0) -> 0 | V73: =IF(V24=2,U71,0) -> 0 | W73: =IF(W24=2,X71,0) -> 0 | Y73: =IF(Y24=2,X71,0) -> 0 | Z73: =IF(Z24=2,AA71,0) -> 0 | AB73: =IF(AB24=2,AA71,0) -> 0 | AC73: =IF(AC24=2,AD71,0) -> 0 | AE73: =IF(AE24=2,AD71,0) -> 0 | AF73: =SUM(B73:AE73) -> 6
A74: Tm3 Play | B74: =IF(B24=3,C71,0) -> 0 | D74: =IF(D24=3,C71,0) -> 2 | E74: =IF(E24=3,F71,0) -> 0 | G74: =IF(G24=3,F71,0) -> 0 | H74: =IF(H24=3,I71,0) -> 0 | J74: =IF(J24=3,I71,0) -> 0 | K74: =IF(K24=3,L71,0) -> 0 | M74: =IF(M24=3,L71,0) -> 2 | N74: =IF(N24=3,O71,0) -> 3 | P74: =IF(P24=3,O71,0) -> 0 | Q74: =IF(Q24=3,R71,0) -> 0 | S74: =IF(S24=3,R71,0) -> 0 | T74: =IF(T24=3,U71,0) -> 0 | V74: =IF(V24=3,U71,0) -> 0 | W74: =IF(W24=3,X71,0) -> 0 | Y74: =IF(Y24=3,X71,0) -> 0 | Z74: =IF(Z24=3,AA71,0) -> 0 | AB74: =IF(AB24=3,AA71,0) -> 0 | AC74: =IF(AC24=3,AD71,0) -> 0 | AE74: =IF(AE24=3,AD71,0) -> 0 | AF74: =SUM(B74:AE74) -> 7
A75: Tm4 Play | B75: =IF(B24=4,C71,0) -> 0 | D75: =IF(D24=4,C71,0) -> 0 | E75: =IF(E24=4,F71,0) -> 0 | G75: =IF(G24=4,F71,0) -> 2 | H75: =IF(H24=4,I71,0) -> 0 | J75: =IF(J24=4,I71,0) -> 2 | K75: =IF(K24=4,L71,0) -> 0 | M75: =IF(M24=4,L71,0) -> 0 | N75: =IF(N24=4,O71,0) -> 0 | P75: =IF(P24=4,O71,0) -> 3 | Q75: =IF(Q24=4,R71,0) -> 0 | S75: =IF(S24=4,R71,0) -> 0 | T75: =IF(T24=4,U71,0) -> 0 | V75: =IF(V24=4,U71,0) -> 0 | W75: =IF(W24=4,X71,0) -> 0 | Y75: =IF(Y24=4,X71,0) -> 0 | Z75: =IF(Z24=4,AA71,0) -> 0 | AB75: =IF(AB24=4,AA71,0) -> 0 | AC75: =IF(AC24=4,AD71,0) -> 0 | AE75: =IF(AE24=4,AD71,0) -> 0 | AF75: =SUM(B75:AE75) -> 7
A76: Tm5 Play | B76: =IF(B24=5,C71,0) -> 0 | D76: =IF(D24=5,C71,0) -> 0 | E76: =IF(E24=5,F71,0) -> 0 | G76: =IF(G24=5,F71,0) -> 0 | H76: =IF(H24=5,I71,0) -> 0 | J76: =IF(J24=5,I71,0) -> 0 | K76: =IF(K24=5,L71,0) -> 0 | M76: =IF(M24=5,L71,0) -> 0 | N76: =IF(N24=5,O71,0) -> 0 | P76: =IF(P24=5,O71,0) -> 0 | Q76: =IF(Q24=5,R71,0) -> 0 | S76: =IF(S24=5,R71,0) -> 0 | T76: =IF(T24=5,U71,0) -> 0 | V76: =IF(V24=5,U71,0) -> 0 | W76: =IF(W24=5,X71,0) -> 0 | Y76: =IF(Y24=5,X71,0) -> 0 | Z76: =IF(Z24=5,AA71,0) -> 0 | AB76: =IF(AB24=5,AA71,0) -> 0 | AC76: =IF(AC24=5,AD71,0) -> 0 | AE76: =IF(AE24=5,AD71,0) -> 0 | AF76: =SUM(B76:AE76) -> 0
C78: Init | D78: 1 | G78: 2 | J78: 3 | M78: 4 | P78: 5 | S78: 6 | V78: 7 | Y78: 8 | AB78: 9 | AE78: 10 | AR78: End of Pool
A79: 1 | B79: =E8 -> C1VB 13 Power Grvl | C79: =VLOOKUP(B79,AU$3:AW$103,3,FALSE) -> 2168.005537 | D79: =IF(B72,B87,IF(D72,D87,C79)) -> 2168.005537 | G79: =IF(E72,E87,IF(G72,G87,D79)) -> 2173.811475 | J79: =IF(H72,H87,IF(J72,J87,G79)) -> 2173.811475 | M79: =IF(K72,K87,IF(M72,M87,J79)) -> 2200.044237 | P79: =IF(N72,N87,IF(P72,P87,M79)) -> 2200.044237 | S79: =IF(Q72,Q87,IF(S72,S87,P79)) -> 2201.528761 | V79: =IF(T72,T87,IF(V72,V87,S79)) -> 2201.528761 | Y79: =IF(W72,W87,IF(Y72,Y87,V79)) -> 2201.528761 | AB79: =IF(Z72,Z87,IF(AB72,AB87,Y79)) -> 2201.528761 | AE79: =IF(AC72,AC87,IF(AE72,AE87,AB79)) -> 2201.528761 | AR79: =B79 -> C1VB 13 Power Grvl | AS79: =AE79 -> 2201.528761
A80: 2 | B80: =E10 -> Upward Stars 13 BrittanyL | C80: =VLOOKUP(B80,AU$3:AW$103,3,FALSE) -> 1568.691363 | D80: =IF(B73,B87,IF(D73,D87,C80)) -> 1565.940628 | G80: =IF(E73,E87,IF(G73,G87,D80)) -> 1565.940628 | J80: =IF(H73,H87,IF(J73,J87,G80)) -> 1550.284066 | M80: =IF(K73,K87,IF(M73,M87,J80)) -> 1550.284066 | P80: =IF(N73,N87,IF(P73,P87,M80)) -> 1550.284066 | S80: =IF(Q73,Q87,IF(S73,S87,P80)) -> 1548.799543 | V80: =IF(T73,T87,IF(V73,V87,S80)) -> 1548.799543 | Y80: =IF(W73,W87,IF(Y73,Y87,V80)) -> 1548.799543 | AB80: =IF(Z73,Z87,IF(AB73,AB87,Y80)) -> 1548.799543 | AE80: =IF(AC73,AC87,IF(AE73,AE87,AB80)) -> 1548.799543 | AR80: =B80 -> Upward Stars 13 BrittanyL | AS80: =AE80 -> 1548.799543
A81: 3 | B81: =E12 -> KVA 13Vanessa | C81: =VLOOKUP(B81,AU$3:AW$103,3,FALSE) -> 2107.752264 | D81: =IF(B74,B87,IF(D74,D87,C81)) -> 2110.502998 | G81: =IF(E74,E87,IF(G74,G87,D81)) -> 2110.502998 | J81: =IF(H74,H87,IF(J74,J87,G81)) -> 2110.502998 | M81: =IF(K74,K87,IF(M74,M87,J81)) -> 2084.270236 | P81: =IF(N74,N87,IF(P74,P87,M81)) -> 2066.287987 | S81: =IF(Q74,Q87,IF(S74,S87,P81)) -> 2066.287987 | V81: =IF(T74,T87,IF(V74,V87,S81)) -> 2066.287987 | Y81: =IF(W74,W87,IF(Y74,Y87,V81)) -> 2066.287987 | AB81: =IF(Z74,Z87,IF(AB74,AB87,Y81)) -> 2066.287987 | AE81: =IF(AC74,AC87,IF(AE74,AE87,AB81)) -> 2066.287987 | AR81: =B81 -> KVA 13Vanessa | AS81: =AE81 -> 2066.287987
A82: 4 | B82: =E14 -> Magnum 13 Blue | C82: =VLOOKUP(B82,AU$3:AW$103,3,FALSE) -> 1767.603021 | D82: =IF(B75,B87,IF(D75,D87,C82)) -> 1767.603021 | G82: =IF(E75,E87,IF(G75,G87,D82)) -> 1761.797084 | J82: =IF(H75,H87,IF(J75,J87,G82)) -> 1777.453645 | M82: =IF(K75,K87,IF(M75,M87,J82)) -> 1777.453645 | P82: =IF(N75,N87,IF(P75,P87,M82)) -> 1795.435894 | S82: =IF(Q75,Q87,IF(S75,S87,P82)) -> 1795.435894 | V82: =IF(T75,T87,IF(V75,V87,S82)) -> 1795.435894 | Y82: =IF(W75,W87,IF(Y75,Y87,V82)) -> 1795.435894 | AB82: =IF(Z75,Z87,IF(AB75,AB87,Y82)) -> 1795.435894 | AE82: =IF(AC75,AC87,IF(AE75,AE87,AB82)) -> 1795.435894 | AR82: =B82 -> Magnum 13 Blue | AS82: =AE82 -> 1795.435894
A83: 5 | B83: =E16 -> 0 | C83: =VLOOKUP(B83,AU$3:AW$103,3,FALSE) ->  | D83: =IF(B76,B87,IF(D76,D87,C83)) ->  | G83: =IF(E76,E87,IF(G76,G87,D83)) ->  | J83: =IF(H76,H87,IF(J76,J87,G83)) ->  | M83: =IF(K76,K87,IF(M76,M87,J83)) ->  | P83: =IF(N76,N87,IF(P76,P87,M83)) ->  | S83: =IF(Q76,Q87,IF(S76,S87,P83)) ->  | V83: =IF(T76,T87,IF(V76,V87,S83)) ->  | Y83: =IF(W76,W87,IF(Y76,Y87,V83)) ->  | AB83: =IF(Z76,Z87,IF(AB76,AB87,Y83)) ->  | AE83: =IF(AC76,AC87,IF(AE76,AE87,AB83)) ->  | AR83: =B83 -> 0 | AS83: =AE83 -> 
A85: Init Rating | B85: =VLOOKUP(B24,$A79:$AE83,3,FALSE) -> 1568.691363 | C85: 1 | D85: =VLOOKUP(D24,$A79:$AE83,3,FALSE) -> 2107.752264 | E85: =VLOOKUP(E24,$A79:$AE83,4,FALSE) -> 2168.005537 | F85: 2 | G85: =VLOOKUP(G24,$A79:$AE83,4,FALSE) -> 1767.603021 | H85: =VLOOKUP(H24,$A79:$AE83,7,FALSE) -> 1565.940628 | I85: 3 | J85: =VLOOKUP(J24,$A79:$AE83,7,FALSE) -> 1761.797084 | K85: =VLOOKUP(K24,$A79:$AE83,10,FALSE) -> 2173.811475 | L85: 4 | M85: =VLOOKUP(M24,$A79:$AE83,10,FALSE) -> 2110.502998 | N85: =VLOOKUP(N24,$A79:$AE83,13,FALSE) -> 2084.270236 | O85: 5 | P85: =VLOOKUP(P24,$A79:$AE83,13,FALSE) -> 1777.453645 | Q85: =VLOOKUP(Q24,$A79:$AE83,16,FALSE) -> 2200.044237 | R85: 6 | S85: =VLOOKUP(S24,$A79:$AE83,16,FALSE) -> 1550.284066 | T85: =VLOOKUP(T24,$A79:$AE83,19,FALSE) ->  | U85: 7 | V85: =VLOOKUP(V24,$A79:$AE83,19,FALSE) ->  | W85: =VLOOKUP(W24,$A79:$AE83,22,FALSE) ->  | X85: 8 | Y85: =VLOOKUP(Y24,$A79:$AE83,22,FALSE) ->  | Z85: =VLOOKUP(Z24,$A79:$AE83,25,FALSE) ->  | AA85: 9 | AB85: =VLOOKUP(AB24,$A79:$AE83,25,FALSE) ->  | AC85: =VLOOKUP(AC24,$A79:$AE83,28,FALSE) ->  | AD85: 10 | AE85: =VLOOKUP(AE24,$A79:$AE83,28,FALSE) -> 
A86: Exp wins | B86: =1/(1+(10^-((B85-D85)/400)))*(B36+D36) -> 0.08596044489 | D86: =1/(1+(10^-((D85-B85)/400)))*(B36+D36) -> 1.914039555 | E86: =1/(1+(10^-((E85-G85)/400)))*(E36+G36) -> 1.818564442 | G86: =1/(1+(10^-((G85-E85)/400)))*(E36+G36) -> 0.1814355585 | H86: =1/(1+(10^-((H85-J85)/400)))*(H36+J36) -> 0.4892675558 | J86: =1/(1+(10^-((J85-H85)/400)))*(H36+J36) -> 1.510732444 | K86: =1/(1+(10^-((K85-M85)/400)))*(K36+M36) -> 1.180226171 | M86: =1/(1+(10^-((M85-K85)/400)))*(K36+M36) -> 0.8197738287 | N86: =1/(1+(10^-((N85-P85)/400)))*(N36+P36) -> 2.561945272 | P86: =1/(1+(10^-((P85-N85)/400)))*(N36+P36) -> 0.4380547278 | Q86: =1/(1+(10^-((Q85-S85)/400)))*(Q36+S36) -> 1.953608636 | S86: =1/(1+(10^-((S85-Q85)/400)))*(Q36+S36) -> 0.0463913637 | T86: =1/(1+(10^-((T85-V85)/400)))*(T36+V36) ->  | V86: =1/(1+(10^-((V85-T85)/400)))*(T36+V36) ->  | W86: =1/(1+(10^-((W85-Y85)/400)))*(W36+Y36) ->  | Y86: =1/(1+(10^-((Y85-W85)/400)))*(W36+Y36) ->  | Z86: =1/(1+(10^-((Z85-AB85)/400)))*(Z36+AB36) ->  | AB86: =1/(1+(10^-((AB85-Z85)/400)))*(Z36+AB36) ->  | AC86: =1/(1+(10^-((AC85-AE85)/400)))*(AC36+AE36) ->  | AE86: =1/(1+(10^-((AE85-AC85)/400)))*(AC36+AE36) -> 
A87: New Rating | B87: =B85+(B36-B86)*$BA$1 -> 1565.940628 | D87: =D85+(D36-D86)*$BA$1 -> 2110.502998 | E87: =E85+(E36-E86)*$BA$1 -> 2173.811475 | G87: =G85+(G36-G86)*$BA$1 -> 1761.797084 | H87: =H85+(H36-H86)*$BA$1 -> 1550.284066 | J87: =J85+(J36-J86)*$BA$1 -> 1777.453645 | K87: =K85+(K36-K86)*$BA$1 -> 2200.044237 | M87: =M85+(M36-M86)*$BA$1 -> 2084.270236 | N87: =N85+(N36-N86)*$BA$1 -> 2066.287987 | P87: =P85+(P36-P86)*$BA$1 -> 1795.435894 | Q87: =Q85+(Q36-Q86)*$BA$1 -> 2201.528761 | S87: =S85+(S36-S86)*$BA$1 -> 1548.799543 | T87: =T85+(T36-T86)*$BA$1 ->  | V87: =V85+(V36-V86)*$BA$1 ->  | W87: =W85+(W36-W86)*$BA$1 ->  | Y87: =Y85+(Y36-Y86)*$BA$1 ->  | Z87: =Z85+(Z36-Z86)*$BA$1 ->  | AB87: =AB85+(AB36-AB86)*$BA$1 ->  | AC87: =AC85+(AC36-AC86)*$BA$1 ->  | AE87: =AE85+(AE36-AE86)*$BA$1 -> 
A89: =IF($AK10=1,"Pool Tiereaker : 1) Matches Won vs Lost (if 3 way tie then #4) 2) Head to Head 3) Game Win % 4) Total Pool Net Points 5) Flip a Coin","Pool Tiebreaker : 1) Games Won vs Lost (if 3 way tie then #5) 2) Head to Head 3) Head to Head Net Points 4) Game Win % 5) Total Pool Net Points 6) Flip a Coin") -> Pool Tiereaker : 1) Matches Won vs Lost (if 3 way tie then #4) 2) Head to Head 3) Game Win % 4) Total Pool Net Points 5) Flip a Coin
A91: POOL: | B91: B | C91: COURT: Star Ctr | I91: 2 | K91: ="Pool "&B91&" - Round 1 - Court "&I91 -> Pool B - Round 1 - Court 2
A92: Team # | B92: Team Name | L92: =IF($AK95=0,"Games Won","Matches Won") -> Matches Won | R92: =IF($AK95=0,"Games Lost","Matches Lost") -> Matches Lost | W92: Total Pool Net Points | Z92: % Total Net Points | AC92: Game Win % | AF92: Pool Finish | AG92: # | AH92: Playoff Finish | AK92: 3 | AL92: Games per Match (1-5)
A93: =IF($AK94>0,"1","") -> 1 | B93: Team Name | E93: =AU4 -> Low Country 13 Open | L93: =IF($AK95=0,AF149,AF131) -> 3 | R93: =IF($AK95=0,AG149,AG131) -> 0 | W93: =AQ109 -> 32 | Z93: =IF(AF143>0,(AQ109/AF143),0) -> 0.1927710843 | AC93: =IF(AF157=0,0,(AF149/AF157)) -> 0.8571428571 | AF93: 1 | AG93: 1 | AH93: 6 | AK93: 6 | AL93: Matches (1-10)
B94: Team Code | E94: =AV4 -> fj3lowco1pm | AK94: 4 | AL94: Teams in Pool (1-5)
A95: =IF($AK94>1,"2","") -> 2 | B95: Team Name | E95: =AU9 -> Fort Mill VBC 13 Purple | L95: =IF($AK95=0,AF150,AF132) -> 1 | R95: =IF($AK95=0,AG150,AG132) -> 2 | W95: =AQ110 -> 2 | Z95: =IF(AF144>0,(AQ110/AF144),0) -> 0.01204819277 | AC95: =IF(AF158=0,0,(AF150/AF158)) -> 0.4285714286 | AF95: 3 | AG95: 1 | AH95: 10 | AK95: 1 | AL95: 0-Count Games 1-Count Matches
B96: Team Code | E96: =AV9 -> fj3fortm1pm | AK96: 1 | AL96: Game Win % 0 = No 1 = Yes
A97: =IF($AK94>2,"3","") -> 3 | B97: Team Name | E97: =AU12 -> Magnum Aiken 13 Green | L97: =IF($AK95=0,AF151,AF133) -> 2 | R97: =IF($AK95=0,AG151,AG133) -> 1 | W97: =AQ111 -> 34 | Z97: =IF(AF145>0,(AQ111/AF145),0) -> 0.1888888889 | AC97: =IF(AF159=0,0,(AF151/AF159)) -> 0.625 | AF97: 2 | AG97: 1 | AH97: 7 | AK97: 3 | AL97: # of Matches/Games per Team
B98: Team Code | E98: =AV12 -> fj3magnm3pm
A99: =IF($AK94>3,"4","") -> 4 | B99: Team Name | E99: =AU17 -> Upward Stars 13 Abbey | L99: =IF($AK95=0,AF152,AF134) -> 0 | R99: =IF($AK95=0,AG152,AG134) -> 3 | W99: =AQ112 -> -68 | Z99: =IF(AF146>0,(AQ112/AF146),0) -> -0.4533333333 | AC99: =IF(AF160=0,0,(AF152/AF160)) -> 0 | AF99: 4 | AG99: 1 | AH99: 15
B100: Team Code | E100: =AV17 -> fj3upwrd5pm
A101: =IF($AK94>4,"5","") ->  | B101: Team Name | L101: =IF($AK95=0,AF153,AF135) -> 0 | R101: =IF($AK95=0,AG153,AG135) -> 0 | W101: =AQ113 -> 0 | Z101: =IF(AF147>0,(AQ113/AF147),0) -> 0 | AC101: =IF(AF161=0,0,(AF153/AF161)) -> 0
B102: Team Code
B103: POOL PLAY FORMAT: Best of 3 (25-25-15) Start at 4 - 2 Pt cap. Warmups 2-4-4
A104: Sch Start | B104: 08:30:00 | E104: 09:30:00 | H104: 10:30:00 | K104: 11:30:00 | N104: 12:30:00 | Q104: 01:30:00 | AF104: Note: The Pool Finish Summary at the bottom of the sheet will fill in AUTOMATICALLY once the POOL FINISH column (at left) is filled in.
A105: Actual Start
A106: End Time
B107: Match 1 | E107: =IF(AK93>1,"Match 2","") -> Match 2 | H107: =IF(AK93>2,"Match 3","") -> Match 3 | K107: =IF(AK93>3,"Match 4","") -> Match 4 | N107: =IF(AK93>4,"Match 5","") -> Match 5 | Q107: =IF(AK93>5,"Match 6","") -> Match 6 | T107: =IF(AK93>6,"Match 7","") ->  | W107: =IF(AK93>7,"Match 8","") ->  | Z107: =IF(AK93>8,"Match 9","") ->  | AC107: =IF(AK93>9,"Match 10","") -> 
B108: 1 refs | E108: 2 refs | H108: 3 refs | K108: 4 refs | N108: 2 refs | Q108: 3 refs | AF108: Net Points | AG108: 1 | AH108: 2 | AI108: 3 | AJ108: 4 | AK108: 5 | AL108: 6 | AM108: 7 | AN108: 8 | AO108: 9 | AP108: 10 | AQ108: Total
B109: 2 | C109: v | D109: 3 | E109: 1 | F109: =IF(AK93>1,"v","") -> v | G109: 4 | H109: 2 | I109: =IF(AK93>2,"v","") -> v | J109: 4 | K109: 1 | L109: =IF(AK93>3,"v","") -> v | M109: 3 | N109: 3 | O109: =IF(AK93>4,"v","") -> v | P109: 4 | Q109: 1 | R109: =IF(AK93>5,"v","") -> v | S109: 2 | U109: =IF(AK93>6,"v","") ->  | X109: =IF(AK93>7,"v","") ->  | AA109: =IF(AK93>8,"v","") ->  | AD109: =IF(AK93>9,"v","") ->  | AF109: =IF(AK94>0,"Team 1","") -> Team 1 | AG109: =IF(AK94<1,"",IF(AK93<1,"",IF(B109=1,B115-D115,IF(D109=1,D115-B115,"")))) ->  | AH109: =IF(AK94<1,"",IF(AK93<2,"",IF(E109=1,E115-G115,IF(G109=1,G115-E115,"")))) -> 28 | AI109: =IF(AK94<1,"",IF(AK93<3,"",IF(H109=1,H115-J115,IF(J109=1,J115-H115,"")))) ->  | AJ109: =IF(AK94<1,"",IF(AK93<4,"",IF(K109=1,K115-M115,IF(M109=1,M115-K115,"")))) -> -12 | AK109: =IF(AK94<1,"",IF(AK93<5,"",IF(N109=1,N115-P115,IF(P109=1,P115-N115,"")))) ->  | AL109: =IF(AK94<1,"",IF(AK93<6,"",IF(Q109=1,Q115-S115,IF(S109=1,S115-Q115,"")))) -> 16 | AM109: =IF(AK94<1,"",IF(AK93<7,"",IF(T109=1,T115-V115,IF(V109=1,V115-T115,"")))) ->  | AN109: =IF(AK94<1,"",IF(AK93<8,"",IF(W109=1,W115-Y115,IF(Y109=1,Y115-W115,"")))) ->  | AO109: =IF(AK94<1,"",IF(AK93<9,"",IF(Z109=1,Z115-AB115,IF(AB109=1,AB115-Z115,"")))) ->  | AP109: =IF(AK94<1,"",IF(AK93<10,"",IF(AC109=1,AC115-AE115,IF(AE109=1,AE115-AC115,"")))) ->  | AQ109: =SUM(AG109:AP109) -> 32
A110: Game 1 | B110: 16 | C110: / | D110: 25 | E110: 25 | F110: =IF(AK93>1,"/","") -> / | G110: 12 | H110: 25 | I110: =IF(AK93>2,"/","") -> / | J110: 16 | K110: 8 | L110: =IF(AK93>3,"/","") -> / | M110: 25 | N110: 25 | O110: =IF(AK93>4,"/","") -> / | P110: 13 | Q110: 26 | R110: =IF(AK93>5,"/","") -> / | S110: 24 | U110: =IF(AK93>6,"/","") ->  | X110: =IF(AK93>7,"/","") ->  | AA110: =IF(AK93>8,"/","") ->  | AD110: =IF(AK93>9,"/","") ->  | AF110: =IF(AK94>1,"Team 2","") -> Team 2 | AG110: =IF(AK94<2,"",IF(AK93<1,"",IF(B109=2,B115-D115,IF(D109=2,D115-B115,"")))) -> 1 | AH110: =IF(AK94<2,"",IF(AK93<2,"",IF(E109=2,E115-G115,IF(G109=2,G115-E115,"")))) ->  | AI110: =IF(AK94<2,"",IF(AK93<3,"",IF(H109=2,H115-J115,IF(J109=2,J115-H115,"")))) -> 17 | AJ110: =IF(AK94<2,"",IF(AK93<4,"",IF(K109=2,K115-M115,IF(M109=2,M115-K115,"")))) ->  | AK110: =IF(AK94<2,"",IF(AK93<5,"",IF(N109=2,N115-P115,IF(P109=2,P115-N115,"")))) ->  | AL110: =IF(AK94<2,"",IF(AK93<6,"",IF(Q109=2,Q115-S115,IF(S109=2,S115-Q115,"")))) -> -16 | AM110: =IF(AK94<2,"",IF(AK93<7,"",IF(T109=2,T115-V115,IF(V109=2,V115-T115,"")))) ->  | AN110: =IF(AK94<2,"",IF(AK93<8,"",IF(W109=2,W115-Y115,IF(Y109=2,Y115-W115,"")))) ->  | AO110: =IF(AK94<2,"",IF(AK93<9,"",IF(Z109=2,Z115-AB115,IF(AB109=2,AB115-Z115,"")))) ->  | AP110: =IF(AK94<2,"",IF(AK93<10,"",IF(AC109=2,AC115-AE115,IF(AE109=2,AE115-AC115,"")))) ->  | AQ110: =SUM(AG110:AP110) -> 2
A111: =IF(AK92>1,"Game 2","") -> Game 2 | B111: 25 | C111: / | D111: 13 | E111: 25 | F111: =IF(AK93>1,IF(AK92>1,"/",""),"") -> / | G111: 10 | H111: 25 | I111: =IF(AK93>2,IF(AK92>1,"/",""),"") -> / | J111: 17 | K111: 25 | L111: =IF(AK93>3,IF(AK92>1,"/",""),"") -> / | M111: 23 | N111: 25 | O111: =IF(AK93>4,IF(AK92>1,"/",""),"") -> / | P111: 14 | Q111: 25 | R111: =IF(AK93>5,IF(AK92>1,"/",""),"") -> / | S111: 11 | U111: =IF(AK93>6,IF(AK92>1,"/",""),"") ->  | X111: =IF(AK93>7,IF(AK92>1,"/",""),"") ->  | AA111: =IF(AK93>8,IF(AK92>1,"/",""),"") ->  | AD111: =IF(AK93>9,IF(AK92>1,"/",""),"") ->  | AF111: =IF(AK94>2,"Team 3","") -> Team 3 | AG111: =IF(AK94<3,"",IF(AK93<1,"",IF(B109=3,B115-D115,IF(D109=3,D115-B115,"")))) -> -1 | AH111: =IF(AK94<3,"",IF(AK93<2,"",IF(E109=3,E115-G115,IF(G109=3,G115-E115,"")))) ->  | AI111: =IF(AK94<3,"",IF(AK93<3,"",IF(H109=3,H115-J115,IF(J109=3,J115-H115,"")))) ->  | AJ111: =IF(AK94<3,"",IF(AK93<4,"",IF(K109=3,K115-M115,IF(M109=3,M115-K115,"")))) -> 12 | AK111: =IF(AK94<3,"",IF(AK93<5,"",IF(N109=3,N115-P115,IF(P109=3,P115-N115,"")))) -> 23 | AL111: =IF(AK94<3,"",IF(AK93<6,"",IF(Q109=3,Q115-S115,IF(S109=3,S115-Q115,"")))) ->  | AM111: =IF(AK94<3,"",IF(AK93<7,"",IF(T109=3,T115-V115,IF(V109=3,V115-T115,"")))) ->  | AN111: =IF(AK94<3,"",IF(AK93<8,"",IF(W109=3,W115-Y115,IF(Y109=3,Y115-W115,"")))) ->  | AO111: =IF(AK94<3,"",IF(AK93<9,"",IF(Z109=3,Z115-AB115,IF(AB109=3,AB115-Z115,"")))) ->  | AP111: =IF(AK94<3,"",IF(AK93<9,"",IF(AC109=3,AC115-AE115,IF(AE109=3,AE115-AC115,"")))) ->  | AQ111: =SUM(AG111:AP111) -> 34
A112: =IF(AK92>2,"Game 3","") -> Game 3 | B112: 13 | C112: / | D112: 15 | F112: =IF(AK93>1,IF(AK92>2,"/",""),"") -> / | I112: =IF(AK93>2,IF(AK92>2,"/",""),"") -> / | K112: 15 | L112: =IF(AK93>3,IF(AK92>2,"/",""),"") -> / | M112: 12 | O112: =IF(AK93>4,IF(AK92>2,"/",""),"") -> / | R112: =IF(AK93>5,IF(AK92>2,"/",""),"") -> / | U112: =IF(AK93>6,IF(AK92>2,"/",""),"") ->  | X112: =IF(AK93>7,IF(AK92>2,"/",""),"") ->  | AA112: =IF(AK93>8,IF(AK92>2,"/",""),"") ->  | AD112: =IF(AK93>9,IF(AK92>2,"/",""),"") ->  | AF112: =IF(AK94>3,"Team 4","") -> Team 4 | AG112: =IF(AK94<4,"",IF(AK93<1,"",IF(B109=4,B115-D115,IF(D109=4,D115-B115,"")))) ->  | AH112: =IF(AK94<4,"",IF(AK93<2,"",IF(E109=4,E115-G115,IF(G109=4,G115-E115,"")))) -> -28 | AI112: =IF(AK94<4,"",IF(AK93<3,"",IF(H109=4,H115-J115,IF(J109=4,J115-H115,"")))) -> -17 | AJ112: =IF(AK94<4,"",IF(AK93<4,"",IF(K109=4,K115-M115,IF(M109=4,M115-K115,"")))) ->  | AK112: =IF(AK94<4,"",IF(AK93<5,"",IF(N109=4,N115-P115,IF(P109=4,P115-N115,"")))) -> -23 | AL112: =IF(AK94<4,"",IF(AK93<6,"",IF(Q109=4,Q115-S115,IF(S109=4,S115-Q115,"")))) ->  | AM112: =IF(AK94<4,"",IF(AK93<7,"",IF(T109=4,T115-V115,IF(V109=4,V115-T115,"")))) ->  | AN112: =IF(AK94<4,"",IF(AK93<8,"",IF(W109=4,W115-Y115,IF(Y109=4,Y115-W115,"")))) ->  | AO112: =IF(AK94<4,"",IF(AK93<9,"",IF(Z109=4,Z115-AB115,IF(AB109=4,AB115-Z115,"")))) ->  | AP112: =IF(AK94<4,"",IF(AK93<10,"",IF(AC109=4,AC115-AE115,IF(AE109=4,AE115-AC115,"")))) ->  | AQ112: =SUM(AG112:AP112) -> -68
A113: =IF(AK92>3,"Game 4","") ->  | C113: / | F113: =IF(AK93>1,IF(AK92>3,"/",""),"") ->  | I113: =IF(AK93>2,IF(AK92>3,"/",""),"") ->  | L113: =IF(AK93>3,IF(AK92>3,"/",""),"") ->  | O113: =IF(AK93>4,IF(AK92>3,"/",""),"") ->  | R113: =IF(AK93>5,IF(AK92>3,"/",""),"") ->  | U113: =IF(AK93>6,IF(AK92>3,"/",""),"") ->  | X113: =IF(AK93>7,IF(AK92>3,"/",""),"") ->  | AA113: =IF(AK93>8,IF(AK92>3,"/",""),"") ->  | AD113: =IF(AK93>9,IF(AK92>3,"/",""),"") ->  | AF113: =IF(AK94>4,"Team 5","") ->  | AG113: =IF(AK94<5,"",IF(AK93<1,"",IF(B109=5,B115-D115,IF(D109=5,D115-B115,"")))) ->  | AH113: =IF(AK94<5,"",IF(AK93<2,"",IF(E109=5,E115-G115,IF(G109=5,G115-E115,"")))) ->  | AI113: =IF(AK94<5,"",IF(AK93<3,"",IF(H109=5,H115-J115,IF(J109=5,J115-H115,"")))) ->  | AJ113: =IF(AK94<5,"",IF(AK93<4,"",IF(K109=5,K115-M115,IF(M109=5,M115-K115,"")))) ->  | AK113: =IF(AK94<5,"",IF(AK93<5,"",IF(N109=5,N115-P115,IF(P109=5,P115-N115,"")))) ->  | AL113: =IF(AK94<5,"",IF(AK93<6,"",IF(Q109=5,Q115-S115,IF(S109=5,S115-Q115,"")))) ->  | AM113: =IF(AK94<5,"",IF(AK93<7,"",IF(T109=5,T115-V115,IF(V109=5,V115-T115,"")))) ->  | AN113: =IF(AK94<5,"",IF(AK93<8,"",IF(W109=5,W115-Y115,IF(Y109=5,Y115-W115,"")))) ->  | AO113: =IF(AK94<5,"",IF(AK93<9,"",IF(Z109=5,Z115-AB115,IF(AB109=5,AB115-Z115,"")))) ->  | AP113: =IF(AK94<5,"",IF(AK93<10,"",IF(AC109=5,AC115-AE115,IF(AE109=5,AE115-AC115,"")))) ->  | AQ113: =SUM(AG113:AP113) -> 0
A114: =IF(AK92>4,"Game 5","") ->  | C114: / | F114: =IF(AK93>1,IF(AK92>4,"/",""),"") ->  | I114: =IF(AK93>2,IF(AK92>4,"/",""),"") ->  | L114: =IF(AK93>3,IF(AK92>4,"/",""),"") ->  | O114: =IF(AK93>4,IF(AK92>4,"/",""),"") ->  | R114: =IF(AK93>5,IF(AK92>4,"/",""),"") ->  | U114: =IF(AK93>6,IF(AK92>4,"/",""),"") ->  | X114: =IF(AK93>7,IF(AK92>4,"/",""),"") ->  | AA114: =IF(AK93>8,IF(AK92>4,"/",""),"") ->  | AD114: =IF(AK93>9,IF(AK92>4,"/",""),"") -> 
B115: =IF($AK92=5,SUM(B110:B114),IF($AK92=4,SUM(B110:B113),IF($AK92=3,SUM(B110:B112),IF($AK92=2,SUM(B110:B111),B110)))) -> 54 | D115: =IF($AK92=5,SUM(D110:D114),IF($AK92=4,SUM(D110:D113),IF($AK92=3,SUM(D110:D112),IF($AK92=2,SUM(D110:D111),D110)))) -> 53 | E115: =IF($AK92=5,SUM(E110:E114),IF($AK92=4,SUM(E110:E113),IF($AK92=3,SUM(E110:E112),IF($AK92=2,SUM(E110:E111),E110)))) -> 50 | G115: =IF($AK92=5,SUM(G110:G114),IF($AK92=4,SUM(G110:G113),IF($AK92=3,SUM(G110:G112),IF($AK92=2,SUM(G110:G111),G110)))) -> 22 | H115: =IF($AK92=5,SUM(H110:H114),IF($AK92=4,SUM(H110:H113),IF($AK92=3,SUM(H110:H112),IF($AK92=2,SUM(H110:H111),H110)))) -> 50 | J115: =IF($AK92=5,SUM(J110:J114),IF($AK92=4,SUM(J110:J113),IF($AK92=3,SUM(J110:J112),IF($AK92=2,SUM(J110:J111),J110)))) -> 33 | K115: =IF($AK92=5,SUM(K110:K114),IF($AK92=4,SUM(K110:K113),IF($AK92=3,SUM(K110:K112),IF($AK92=2,SUM(K110:K111),K110)))) -> 48 | M115: =IF($AK92=5,SUM(M110:M114),IF($AK92=4,SUM(M110:M113),IF($AK92=3,SUM(M110:M112),IF($AK92=2,SUM(M110:M111),M110)))) -> 60 | N115: =IF($AK92=5,SUM(N110:N114),IF($AK92=4,SUM(N110:N113),IF($AK92=3,SUM(N110:N112),IF($AK92=2,SUM(N110:N111),N110)))) -> 50 | P115: =IF($AK92=5,SUM(P110:P114),IF($AK92=4,SUM(P110:P113),IF($AK92=3,SUM(P110:P112),IF($AK92=2,SUM(P110:P111),P110)))) -> 27 | Q115: =IF($AK92=5,SUM(Q110:Q114),IF($AK92=4,SUM(Q110:Q113),IF($AK92=3,SUM(Q110:Q112),IF($AK92=2,SUM(Q110:Q111),Q110)))) -> 51 | S115: =IF($AK92=5,SUM(S110:S114),IF($AK92=4,SUM(S110:S113),IF($AK92=3,SUM(S110:S112),IF($AK92=2,SUM(S110:S111),S110)))) -> 35 | T115: =IF($AK92=5,SUM(T110:T114),IF($AK92=4,SUM(T110:T113),IF($AK92=3,SUM(T110:T112),IF($AK92=2,SUM(T110:T111),T110)))) -> 0 | V115: =IF($AK92=5,SUM(V110:V114),IF($AK92=4,SUM(V110:V113),IF($AK92=3,SUM(V110:V112),IF($AK92=2,SUM(V110:V111),V110)))) -> 0 | W115: =IF($AK92=5,SUM(W110:W114),IF($AK92=4,SUM(W110:W113),IF($AK92=3,SUM(W110:W112),IF($AK92=2,SUM(W110:W111),W110)))) -> 0 | Y115: =IF($AK92=5,SUM(Y110:Y114),IF($AK92=4,SUM(Y110:Y113),IF($AK92=3,SUM(Y110:Y112),IF($AK92=2,SUM(Y110:Y111),Y110)))) -> 0 | Z115: =IF($AK92=5,SUM(Z110:Z114),IF($AK92=4,SUM(Z110:Z113),IF($AK92=3,SUM(Z110:Z112),IF($AK92=2,SUM(Z110:Z111),Z110)))) -> 0 | AB115: =IF($AK92=5,SUM(AB110:AB114),IF($AK92=4,SUM(AB110:AB113),IF($AK92=3,SUM(AB110:AB112),IF($AK92=2,SUM(AB110:AB111),AB110)))) -> 0 | AC115: =IF($AK92=5,SUM(AC110:AC114),IF($AK92=4,SUM(AC110:AC113),IF($AK92=3,SUM(AC110:AC112),IF($AK92=2,SUM(AC110:AC111),AC110)))) -> 0 | AE115: =IF($AK92=5,SUM(AE110:AE114),IF($AK92=4,SUM(AE110:AE113),IF($AK92=3,SUM(AE110:AE112),IF($AK92=2,SUM(AE110:AE111),AE110)))) -> 0
A116: Gm1 Win | B116: =IF(AND(B110>D110,$AK93>0,ISNUMBER(B110),ISNUMBER(D110)),1,0) -> 0 | D116: =IF(AND(D110>B110,$AK93>0,ISNUMBER(B110),ISNUMBER(D110)),1,0) -> 1 | E116: =IF(AND(E110>G110,$AK93>1,ISNUMBER(E110),ISNUMBER(G110)),1,0) -> 1 | G116: =IF(AND(G110>E110,$AK93>1,ISNUMBER(E110),ISNUMBER(G110)),1,0) -> 0 | H116: =IF(AND(H110>J110,$AK93>2,ISNUMBER(H110),ISNUMBER(J110)),1,0) -> 1 | J116: =IF(AND(J110>H110,$AK93>2,ISNUMBER(H110),ISNUMBER(J110)),1,0) -> 0 | K116: =IF(AND(K110>M110,$AK93>3,ISNUMBER(K110),ISNUMBER(M110)),1,0) -> 0 | M116: =IF(AND(M110>K110,$AK93>3,ISNUMBER(K110),ISNUMBER(M110)),1,0) -> 1 | N116: =IF(AND(N110>P110,$AK93>4,ISNUMBER(N110),ISNUMBER(P110)),1,0) -> 1 | P116: =IF(AND(P110>N110,$AK93>4,ISNUMBER(N110),ISNUMBER(P110)),1,0) -> 0 | Q116: =IF(AND(Q110>S110,$AK93>5,ISNUMBER(Q110),ISNUMBER(S110)),1,0) -> 1 | S116: =IF(AND(S110>Q110,$AK93>5,ISNUMBER(Q110),ISNUMBER(S110)),1,0) -> 0 | T116: =IF(AND(T110>V110,$AK93>6,ISNUMBER(T110),ISNUMBER(V110)),1,0) -> 0 | V116: =IF(AND(V110>T110,$AK93>6,ISNUMBER(T110),ISNUMBER(V110)),1,0) -> 0 | W116: =IF(AND(W110>Y110,$AK93>7,ISNUMBER(W110),ISNUMBER(Y110)),1,0) -> 0 | Y116: =IF(AND(Y110>W110,$AK93>7,ISNUMBER(W110),ISNUMBER(Y110)),1,0) -> 0 | Z116: =IF(AND(Z110>AB110,$AK93>8,ISNUMBER(Z110),ISNUMBER(AB110)),1,0) -> 0 | AB116: =IF(AND(AB110>Z110,$AK93>8,ISNUMBER(Z110),ISNUMBER(AB110)),1,0) -> 0 | AC116: =IF(AND(AC110>AE110,$AK93>9,ISNUMBER(AC110),ISNUMBER(AE110)),1,0) -> 0 | AE116: =IF(AND(AE110>AC110,$AK93>9,ISNUMBER(AC110),ISNUMBER(AE110)),1,0) -> 0
A117: Gm2 Win | B117: =IF(AND(B111>D111,$AK93>0,$AK92>1,ISNUMBER(B111),ISNUMBER(D111)),1,0) -> 1 | D117: =IF(AND(D111>B111,$AK93>0,$AK92>1,ISNUMBER(B111),ISNUMBER(D111)),1,0) -> 0 | E117: =IF(AND(E111>G111,$AK93>1,$AK92>1,ISNUMBER(E111),ISNUMBER(G111)),1,0) -> 1 | G117: =IF(AND(G111>E111,$AK93>1,$AK92>1,ISNUMBER(E111),ISNUMBER(G111)),1,0) -> 0 | H117: =IF(AND(H111>J111,$AK93>2,$AK92>1,ISNUMBER(H111),ISNUMBER(J111)),1,0) -> 1 | J117: =IF(AND(J111>H111,$AK93>2,$AK92>1,ISNUMBER(H111),ISNUMBER(J111)),1,0) -> 0 | K117: =IF(AND(K111>M111,$AK93>3,$AK92>1,ISNUMBER(K111),ISNUMBER(M111)),1,0) -> 1 | M117: =IF(AND(M111>K111,$AK93>3,$AK92>1,ISNUMBER(K111),ISNUMBER(M111)),1,0) -> 0 | N117: =IF(AND(N111>P111,$AK93>4,$AK92>1,ISNUMBER(N111),ISNUMBER(P111)),1,0) -> 1 | P117: =IF(AND(P111>N111,$AK93>4,$AK92>1,ISNUMBER(N111),ISNUMBER(P111)),1,0) -> 0 | Q117: =IF(AND(Q111>S111,$AK93>5,$AK92>1,ISNUMBER(Q111),ISNUMBER(S111)),1,0) -> 1 | S117: =IF(AND(S111>Q111,$AK93>5,$AK92>1,ISNUMBER(Q111),ISNUMBER(S111)),1,0) -> 0 | T117: =IF(AND(T111>V111,$AK93>6,$AK92>1,ISNUMBER(T111),ISNUMBER(V111)),1,0) -> 0 | V117: =IF(AND(V111>T111,$AK93>6,$AK92>1,ISNUMBER(T111),ISNUMBER(V111)),1,0) -> 0 | W117: =IF(AND(W111>Y111,$AK93>7,$AK92>1,ISNUMBER(W111),ISNUMBER(Y111)),1,0) -> 0 | Y117: =IF(AND(Y111>W111,$AK93>7,$AK92>1,ISNUMBER(W111),ISNUMBER(Y111)),1,0) -> 0 | Z117: =IF(AND(Z111>AB111,$AK93>8,$AK92>1,ISNUMBER(Z111),ISNUMBER(AB111)),1,0) -> 0 | AB117: =IF(AND(AB111>Z111,$AK93>8,$AK92>1,ISNUMBER(Z111),ISNUMBER(AB111)),1,0) -> 0 | AC117: =IF(AND(AC111>AE111,$AK93>9,$AK92>1,ISNUMBER(AC111),ISNUMBER(AE111)),1,0) -> 0 | AE117: =IF(AND(AE111>AC111,$AK93>9,$AK92>1,ISNUMBER(AC111),ISNUMBER(AE111)),1,0) -> 0
A118: Gm3 Win | B118: =IF(AND(B112>D112,$AK93>0,$AK92>2,ISNUMBER(B112),ISNUMBER(D112)),1,0) -> 0 | D118: =IF(AND(D112>B112,$AK93>0,$AK92>2,ISNUMBER(B112),ISNUMBER(D112)),1,0) -> 1 | E118: =IF(AND(E112>G112,$AK93>1,$AK92>2,ISNUMBER(E112),ISNUMBER(G112)),1,0) -> 0 | G118: =IF(AND(G112>E112,$AK93>1,$AK92>2,ISNUMBER(E112),ISNUMBER(G112)),1,0) -> 0 | H118: =IF(AND(H112>J112,$AK93>2,$AK92>2,ISNUMBER(H112),ISNUMBER(J112)),1,0) -> 0 | J118: =IF(AND(J112>H112,$AK93>2,$AK92>2,ISNUMBER(H112),ISNUMBER(J112)),1,0) -> 0 | K118: =IF(AND(K112>M112,$AK93>3,$AK92>2,ISNUMBER(K112),ISNUMBER(M112)),1,0) -> 1 | M118: =IF(AND(M112>K112,$AK93>3,$AK92>2,ISNUMBER(K112),ISNUMBER(M112)),1,0) -> 0 | N118: =IF(AND(N112>P112,$AK93>4,$AK92>2,ISNUMBER(N112),ISNUMBER(P112)),1,0) -> 0 | P118: =IF(AND(P112>N112,$AK93>4,$AK92>2,ISNUMBER(N112),ISNUMBER(P112)),1,0) -> 0 | Q118: =IF(AND(Q112>S112,$AK93>5,$AK92>2,ISNUMBER(Q112),ISNUMBER(S112)),1,0) -> 0 | S118: =IF(AND(S112>Q112,$AK93>5,$AK92>2,ISNUMBER(Q112),ISNUMBER(S112)),1,0) -> 0 | T118: =IF(AND(T112>V112,$AK93>6,$AK92>2,ISNUMBER(T112),ISNUMBER(V112)),1,0) -> 0 | V118: =IF(AND(V112>T112,$AK93>6,$AK92>2,ISNUMBER(T112),ISNUMBER(V112)),1,0) -> 0 | W118: =IF(AND(W112>Y112,$AK93>7,$AK92>2,ISNUMBER(W112),ISNUMBER(Y112)),1,0) -> 0 | Y118: =IF(AND(Y112>W112,$AK93>7,$AK92>2,ISNUMBER(W112),ISNUMBER(Y112)),1,0) -> 0 | Z118: =IF(AND(Z112>AB112,$AK93>8,$AK92>2,ISNUMBER(Z112),ISNUMBER(AB112)),1,0) -> 0 | AB118: =IF(AND(AB112>Z112,$AK93>8,$AK92>2,ISNUMBER(Z112),ISNUMBER(AB112)),1,0) -> 0 | AC118: =IF(AND(AC112>AE112,$AK93>9,$AK92>2,ISNUMBER(AC112),ISNUMBER(AE112)),1,0) -> 0 | AE118: =IF(AND(AE112>AC112,$AK93>9,$AK92>2,ISNUMBER(AC112),ISNUMBER(AE112)),1,0) -> 0
A119: Gm4 Win | B119: =IF(AND(B113>D113,$AK93>0,$AK92>3,ISNUMBER(B113),ISNUMBER(D113)),1,0) -> 0 | D119: =IF(AND(D113>B113,$AK93>0,$AK92>3,ISNUMBER(B113),ISNUMBER(D113)),1,0) -> 0 | E119: =IF(AND(E113>G113,$AK93>1,$AK92>3,ISNUMBER(E113),ISNUMBER(G113)),1,0) -> 0 | G119: =IF(AND(G113>E113,$AK93>1,$AK92>3,ISNUMBER(E113),ISNUMBER(G113)),1,0) -> 0 | H119: =IF(AND(H113>J113,$AK93>2,$AK92>3,ISNUMBER(H113),ISNUMBER(J113)),1,0) -> 0 | J119: =IF(AND(J113>H113,$AK93>2,$AK92>3,ISNUMBER(H113),ISNUMBER(J113)),1,0) -> 0 | K119: =IF(AND(K113>M113,$AK93>3,$AK92>3,ISNUMBER(K113),ISNUMBER(M113)),1,0) -> 0 | M119: =IF(AND(M113>K113,$AK93>3,$AK92>3,ISNUMBER(K113),ISNUMBER(M113)),1,0) -> 0 | N119: =IF(AND(N113>P113,$AK93>4,$AK92>3,ISNUMBER(N113),ISNUMBER(P113)),1,0) -> 0 | P119: =IF(AND(P113>N113,$AK93>4,$AK92>3,ISNUMBER(N113),ISNUMBER(P113)),1,0) -> 0 | Q119: =IF(AND(Q113>S113,$AK93>5,$AK92>3,ISNUMBER(Q113),ISNUMBER(S113)),1,0) -> 0 | S119: =IF(AND(S113>Q113,$AK93>5,$AK92>3,ISNUMBER(Q113),ISNUMBER(S113)),1,0) -> 0 | T119: =IF(AND(T113>V113,$AK93>6,$AK92>3,ISNUMBER(T113),ISNUMBER(V113)),1,0) -> 0 | V119: =IF(AND(V113>T113,$AK93>6,$AK92>3,ISNUMBER(T113),ISNUMBER(V113)),1,0) -> 0 | W119: =IF(AND(W113>Y113,$AK93>7,$AK92>3,ISNUMBER(W113),ISNUMBER(Y113)),1,0) -> 0 | Y119: =IF(AND(Y113>W113,$AK93>7,$AK92>3,ISNUMBER(W113),ISNUMBER(Y113)),1,0) -> 0 | Z119: =IF(AND(Z113>AB113,$AK93>8,$AK92>3,ISNUMBER(Z113),ISNUMBER(AB113)),1,0) -> 0 | AB119: =IF(AND(AB113>Z113,$AK93>8,$AK92>3,ISNUMBER(Z113),ISNUMBER(AB113)),1,0) -> 0 | AC119: =IF(AND(AC113>AE113,$AK93>9,$AK92>3,ISNUMBER(AC113),ISNUMBER(AE113)),1,0) -> 0 | AE119: =IF(AND(AE113>AC113,$AK93>9,$AK92>3,ISNUMBER(AC113),ISNUMBER(AE113)),1,0) -> 0
A120: Gm5 Win | B120: =IF(AND(B114>D114,$AK93>0,$AK92>4,ISNUMBER(B114),ISNUMBER(D114)),1,0) -> 0 | D120: =IF(AND(D114>B114,$AK93>0,$AK92>4,ISNUMBER(B114),ISNUMBER(D114)),1,0) -> 0 | E120: =IF(AND(E114>G114,$AK93>1,$AK92>4,ISNUMBER(E114),ISNUMBER(G114)),1,0) -> 0 | G120: =IF(AND(G114>E114,$AK93>1,$AK92>4,ISNUMBER(E114),ISNUMBER(G114)),1,0) -> 0 | H120: =IF(AND(H114>J114,$AK93>2,$AK92>4,ISNUMBER(H114),ISNUMBER(J114)),1,0) -> 0 | J120: =IF(AND(J114>H114,$AK93>2,$AK92>4,ISNUMBER(H114),ISNUMBER(J114)),1,0) -> 0 | K120: =IF(AND(K114>M114,$AK93>3,$AK92>4,ISNUMBER(K114),ISNUMBER(M114)),1,0) -> 0 | M120: =IF(AND(M114>K114,$AK93>3,$AK92>4,ISNUMBER(K114),ISNUMBER(M114)),1,0) -> 0 | N120: =IF(AND(N114>P114,$AK93>4,$AK92>4,ISNUMBER(N114),ISNUMBER(P114)),1,0) -> 0 | P120: =IF(AND(P114>N114,$AK93>4,$AK92>4,ISNUMBER(N114),ISNUMBER(P114)),1,0) -> 0 | Q120: =IF(AND(Q114>S114,$AK93>5,$AK92>4,ISNUMBER(Q114),ISNUMBER(S114)),1,0) -> 0 | S120: =IF(AND(S114>Q114,$AK93>5,$AK92>4,ISNUMBER(Q114),ISNUMBER(S114)),1,0) -> 0 | T120: =IF(AND(T114>V114,$AK93>6,$AK92>4,ISNUMBER(T114),ISNUMBER(V114)),1,0) -> 0 | V120: =IF(AND(V114>T114,$AK93>6,$AK92>4,ISNUMBER(T114),ISNUMBER(V114)),1,0) -> 0 | W120: =IF(AND(W114>Y114,$AK93>7,$AK92>4,ISNUMBER(W114),ISNUMBER(Y114)),1,0) -> 0 | Y120: =IF(AND(Y114>W114,$AK93>7,$AK92>4,ISNUMBER(W114),ISNUMBER(Y114)),1,0) -> 0 | Z120: =IF(AND(Z114>AB114,$AK93>8,$AK92>4,ISNUMBER(Z114),ISNUMBER(AB114)),1,0) -> 0 | AB120: =IF(AND(AB114>Z114,$AK93>8,$AK92>4,ISNUMBER(Z114),ISNUMBER(AB114)),1,0) -> 0 | AC120: =IF(AND(AC114>AE114,$AK93>9,$AK92>4,ISNUMBER(AC114),ISNUMBER(AE114)),1,0) -> 0 | AE120: =IF(AND(AE114>AC114,$AK93>9,$AK92>4,ISNUMBER(AC114),ISNUMBER(AE114)),1,0) -> 0
A121: Sum Game Win/Loss | B121: =SUM(B116:B120) -> 1 | D121: =SUM(D116:D120) -> 2 | E121: =SUM(E116:E120) -> 2 | G121: =SUM(G116:G120) -> 0 | H121: =SUM(H116:H120) -> 2 | J121: =SUM(J116:J120) -> 0 | K121: =SUM(K116:K120) -> 2 | M121: =SUM(M116:M120) -> 1 | N121: =SUM(N116:N120) -> 2 | P121: =SUM(P116:P120) -> 0 | Q121: =SUM(Q116:Q120) -> 2 | S121: =SUM(S116:S120) -> 0 | T121: =SUM(T116:T120) -> 0 | V121: =SUM(V116:V120) -> 0 | W121: =SUM(W116:W120) -> 0 | Y121: =SUM(Y116:Y120) -> 0 | Z121: =SUM(Z116:Z120) -> 0 | AB121: =SUM(AB116:AB120) -> 0 | AC121: =SUM(AC116:AC120) -> 0 | AE121: =SUM(AE116:AE120) -> 0
